Workbook

Sheet Introduction
C4: Joint Monitoring Programme for Water Supply, Sanitation and Hygiene
C6: Estimates on household water, sanitation and hygiene by wealth quintile and sub-national region in
C7: =+Water!B5 -> Gabon
C9: Updated May 2021
C11: Follow the links below to find the following information:
C13: JMP Estimates
C14: WASH status and trends by wealth quintile (customized quintiles made without water and sanitation assets)
C15: Water
C16: Sanitation
C17: Hygiene
C19: Data inputs
C20: customized wealth quintiles and subnational data:
C21: =IF(INDIRECT(CONCATENATE("Water","!B105"))=0,"",INDIRECT(CONCATENATE("Water","!B105"))) -> DHS00
C22: =IF(INDIRECT(CONCATENATE("Water","!B106"))=0,"",INDIRECT(CONCATENATE("Water","!B106"))) -> DHS12
C23: =IF(INDIRECT(CONCATENATE("Water","!B107"))=0,"",INDIRECT(CONCATENATE("Water","!B107"))) -> 
C24: =IF(INDIRECT(CONCATENATE("Water","!B108"))=0,"",INDIRECT(CONCATENATE("Water","!B108"))) -> 
C25: =IF(INDIRECT(CONCATENATE("Water","!B109"))=0,"",INDIRECT(CONCATENATE("Water","!B109"))) -> 
C26: =IF(INDIRECT(CONCATENATE("Water","!B110"))=0,"",INDIRECT(CONCATENATE("Water","!B110"))) -> 
C27: =IF(INDIRECT(CONCATENATE("Water","!B111"))=0,"",INDIRECT(CONCATENATE("Water","!B111"))) -> 
C28: =IF(INDIRECT(CONCATENATE("Water","!B112"))=0,"",INDIRECT(CONCATENATE("Water","!B112"))) -> 
C29: =IF(INDIRECT(CONCATENATE("Water","!B113"))=0,"",INDIRECT(CONCATENATE("Water","!B113"))) -> 
C30: =IF(INDIRECT(CONCATENATE("Water","!B114"))=0,"",INDIRECT(CONCATENATE("Water","!B114"))) -> 
C31: =IF(INDIRECT(CONCATENATE("Water","!B115"))=0,"",INDIRECT(CONCATENATE("Water","!B115"))) -> 
C32: =IF(INDIRECT(CONCATENATE("Water","!B116"))=0,"",INDIRECT(CONCATENATE("Water","!B116"))) -> 
L55: =+IF(ISNUMBER(M48), "", "Insufficient data to estimate safely managed sanitation services at national level") -> Insufficient data to estimate safely managed sanitation services at national level

Sheet Water
A1: BGD
B4: Summary of trends in use of drinking water by wealth quintile (%)
B5: =IF(ISERROR(INDIRECT(CONCATENATE($B105,"!A2"))),"",INDIRECT(CONCATENATE($B105,"!A2"))) -> Gabon
B7: =B118 -> National use of drinking water sources, 2000–2018 | J7: =B218 -> Urban use of drinking water sources, 2000–2018 | R7: =B318 -> Rural use of drinking water sources, 2000–2018
B31: =IF(ISERROR(INDIRECT(CONCATENATE($B105,"!A2"))),"",INDIRECT(CONCATENATE($B105,"!A2"))) -> Gabon | F31: Poorest | J31: Poor | N31: Middle | R31: Rich | V31: Richest
F32: Basic | G32: Limited | H32: Unimproved | I32: Surface water | J32: Basic | K32: Limited | L32: Unimproved | M32: Surface water | N32: Basic | O32: Limited | P32: Unimproved | Q32: Surface water | R32: Basic | S32: Limited | T32: Unimproved | U32: Surface water | V32: Basic | W32: Limited | X32: Unimproved | Y32: Surface water
B33: NATIONAL | D33: Estimate | E33: =C99 -> 2000 | F33: =E99 -> 34.23556834 | G33: =F99 -> 12.0913171 | H33: 17.28729 | I33: 36.38582456 | J33: =J99 -> 65.3669988 | K33: =K99 -> 9.767482579 | L33: 11.1473138 | M33: 13.71820482 | N33: =O99 -> 89.23148923 | O33: =P99 -> 5.09355224 | P33: 3.573717737 | Q33: 2.101240789 | R33: =T99 -> 93.41588569 | S33: =U99 -> 3.892328571 | T33: 1.563257332 | U33: 1.128528403 | V33: =Y99 -> 96.97953856 | W33: =Z99 -> 2.283039291 | X33: 0.648737147 | Y33: 0.08868500301
E34: =C100 -> 2018 | F34: =E100 -> 58.26683861 | G34: 20.57868048 | H34: 5.052118334 | I34: 16.10236257 | J34: =J100 -> 84.8200002 | K34: 12.6742529 | L34: 1.642114366 | M34: 0.8636325302 | N34: =O100 -> 92.73558513 | O34: 5.293574627 | P34: 1.621047044 | Q34: 0.3497932018 | R34: =T100 -> 95.19868572 | S34: 3.966611905 | T34: 0.7894571113 | U34: 0.0452452661 | V34: =Y100 -> 95.88236024 | W34: 2.257210118 | X34: 1.860429642 | Y34: 0
B36: URBAN | D36: Estimate | E36: =C199 -> 2000 | F36: =E199 -> 61.88877626 | G36: =F199 -> 18.69556783 | H36: 10.81594519 | I36: 8.599710719 | J36: =J199 -> 88.94046052 | K36: =K199 -> 7.315449134 | L36: 2.804172394 | M36: 0.9399179527 | N36: =O199 -> 94.32335714 | O36: =P199 -> 3.522449022 | P36: 1.652418009 | Q36: 0.5017758334 | R36: =T199 -> 96.18010149 | S36: =U199 -> 3.179507487 | T36: 0.4884310758 | U36: 0.1519599512 | V36: =Y199 -> 96.95612394 | W36: =Z199 -> 2.48605446 | X36: 0.4759185718 | Y36: 0.08190303178
E37: =C200 -> 2018 | F37: =E200 -> 72.56520396 | G37: 21.9207387 | H37: 4.380675801 | I37: 1.133381547 | J37: =J200 -> 90.28158991 | K37: 7.425758478 | L37: 1.982637934 | M37: 0.3100136745 | N37: =O200 -> 96.18377381 | O37: 3.591925163 | P37: 0.07459699845 | Q37: 0.1497040278 | R37: =T200 -> 95.77398309 | S37: 3.166082085 | T37: 1.059934829 | U37: 0 | V37: =Y200 -> 95.42939601 | W37: 2.44690759 | X37: 2.123696399 | Y37: 0
B39: RURAL | D39: Estimate | E39: =C299 -> 2000 | F39: =E299 -> 31.3223284 | G39: =F299 -> 10.44077613 | H39: 16.83788389 | I39: 41.39901157 | J39: =J299 -> 32.1904911 | K39: =K299 -> 8.148470179 | L39: 18.6731307 | M39: 40.98790802 | N39: =O299 -> 30.67784599 | O39: =P299 -> 12.04895901 | P39: 16.01565191 | Q39: 41.25754309 | R39: =T299 -> 40.11611808 | S39: =U299 -> 9.348885718 | T39: 20.19537329 | U39: 30.33962291 | V39: =Y299 -> 57.52358536 | W39: =Z299 -> 9.598451233 | X39: 12.86256302 | Y39: 20.01540039
E40: =C300 -> 2018 | F40: =E300 -> 39.49211193 | G40: 13.16403731 | H40: 7.110352684 | I40: 40.23349807 | J40: =J300 -> 49.09841815 | K40: 12.42842164 | L40: 4.121144884 | M40: 34.35201533 | N40: =O300 -> 51.17822567 | O40: 20.10064017 | P40: 4.214058014 | Q40: 24.50707615 | R40: =T300 -> 60.77566365 | S40: 14.16350238 | T40: 7.017437785 | U40: 18.04339618 | V40: =Y300 -> 80.29775244 | W40: 13.39857479 | X40: 3.572906164 | Y40: 2.730766601
A97: NATIONAL | D97: Poorest | I97: Poor | N97: Middle | S97: Rich | X97: Richest
D98: Improved | E98: Basic | F98: Limited | G98: Unimproved | H98: Surface water | I98: Improved | J98: Basic | K98: Limited | L98: Unimproved | M98: Surface water | N98: Improved | O98: Basic | P98: Limited | Q98: Unimproved | R98: Surface water | S98: Improved | T98: Basic | U98: Limited | V98: Unimproved | W98: Surface water | X98: Improved | Y98: Basic | Z98: Limited | AA98: Unimproved | AB98: Surface water
A99: Forecast period: | C99: =MinBase(C105:C116) -> 2000 | D99: =IF((D101+H101)>100,D101*100/(D101+H101),D101) -> 46.32688545 | E99: =D99*AVERAGEIF(E105:E116,">0")/100 -> 34.23556834 | F99: =D99*(100-AVERAGEIF(E105:E116,">0"))/100 -> 12.0913171 | G99: =100-(E99+F99+H99) -> 17.28729 | H99: =IF((D101+H101)>100,H101*100/(D101+H101),H101) -> 36.38582456 | I99: =IF((I101+M101)>100,I101*100/(I101+M101),I101) -> 75.13448138 | J99: =I99*AVERAGEIF(J105:J116,">0")/100 -> 65.3669988 | K99: =I99*(100-AVERAGEIF(J105:J116,">0"))/100 -> 9.767482579 | L99: =100-(J99+K99+M99) -> 11.1473138 | M99: =IF((I101+M101)>100,M101*100/(I101+M101),M101) -> 13.71820482 | N99: =IF((N101+R101)>100,N101*100/(N101+R101),N101) -> 94.32504147 | O99: =N99*AVERAGEIF(O105:O116,">0")/100 -> 89.23148923 | P99: =N99*(100-AVERAGEIF(O105:O116,">0"))/100 -> 5.09355224 | Q99: =100-(O99+P99+R99) -> 3.573717737 | R99: =IF((N101+R101)>100,R101*100/(N101+R101),R101) -> 2.101240789 | S99: =IF((S101+W101)>100,S101*100/(S101+W101),S101) -> 97.30821426 | T99: =S99*AVERAGEIF(T105:T116,">0")/100 -> 93.41588569 | U99: =S99*(100-AVERAGEIF(T105:T116,">0"))/100 -> 3.892328571 | V99: =100-(T99+U99+W99) -> 1.563257332 | W99: =IF((S101+W101)>100,W101*100/(S101+W101),W101) -> 1.128528403 | X99: =IF((X101+AB101)>100,X101*100/(X101+AB101),X101) -> 99.26257785 | Y99: =X99*AVERAGEIF(Y105:Y116,">0")/100 -> 96.97953856 | Z99: =X99*(100-AVERAGEIF(Y105:Y116,">0"))/100 -> 2.283039291 | AA99: =100-(Y99+Z99+AB99) -> 0.648737147 | AB99: =IF((X101+AB101)>100,AB101*100/(X101+AB101),AB101) -> 0.08868500301
C100: =MaxTarget(C105:C116) -> 2018 | D100: =IF((D102+H102)>100,D102*100/(D102+H102),D102) -> 78.84551909 | E100: =D100*AVERAGEIF(E105:E116,">0")/100 -> 58.26683861 | F100: =D100*(100-AVERAGEIF(E105:E116,">0"))/100 -> 20.57868048 | G100: =100-(E100+F100+H100) -> 5.052118334 | H100: =IF((D102+H102)>100,H102*100/(D102+H102),H102) -> 16.10236257 | I100: =IF((I102+M102)>100,I102*100/(I102+M102),I102) -> 97.4942531 | J100: =I100*AVERAGEIF(J105:J116,">0")/100 -> 84.8200002 | K100: =I100*(100-AVERAGEIF(J105:J116,">0"))/100 -> 12.6742529 | L100: =100-(J100+K100+M100) -> 1.642114366 | M100: =IF((I102+M102)>100,M102*100/(I102+M102),M102) -> 0.8636325302 | N100: =IF((N102+R102)>100,N102*100/(N102+R102),N102) -> 98.02915975 | O100: =N100*AVERAGEIF(O105:O116,">0")/100 -> 92.73558513 | P100: =N100*(100-AVERAGEIF(O105:O116,">0"))/100 -> 5.293574627 | Q100: =100-(O100+P100+R100) -> 1.621047044 | R100: =IF((N102+R102)>100,R102*100/(N102+R102),R102) -> 0.3497932018 | S100: =IF((S102+W102)>100,S102*100/(S102+W102),S102) -> 99.16529762 | T100: =S100*AVERAGEIF(T105:T116,">0")/100 -> 95.19868572 | U100: =S100*(100-AVERAGEIF(T105:T116,">0"))/100 -> 3.966611905 | V100: =100-(T100+U100+W100) -> 0.7894571113 | W100: =IF((S102+W102)>100,W102*100/(S102+W102),W102) -> 0.0452452661 | X100: =IF((X102+AB102)>100,X102*100/(X102+AB102),X102) -> 98.13957036 | Y100: =X100*AVERAGEIF(Y105:Y116,">0")/100 -> 95.88236024 | Z100: =X100*(100-AVERAGEIF(Y105:Y116,">0"))/100 -> 2.257210118 | AA100: =100-(Y100+Z100+AB100) -> 1.860429642 | AB100: =IF((X102+AB102)>100,AB102*100/(X102+AB102),AB102) -> 0
A101: Regression period: | C101: =MinRegYear(C99,C105:C116) -> 2000 | D101: =IF(MAX(C105:C116)-MIN(C105:C116)<5,AVERAGEIF(C105:C116,">0",D105:D116), IF(FORECAST($C101,D$105:D$116,$C$105:$C$116)<0,0, IF(FORECAST($C101,D$105:D$116,$C$105:$C$116)>100,100, FORECAST($C101,D$105:D$116,$C$105:$C$116)))) -> 46.32688545 | H101: =IF(MAX(C105:C116)-MIN(C105:C116)<5,AVERAGEIF(C105:C116,">0",H105:H116), IF(FORECAST($C101,H$105:H$116,$C$105:$C$116)<0,0, IF(FORECAST($C101,H$105:H$116,$C$105:$C$116)>100,100, FORECAST($C101,H$105:H$116,$C$105:$C$116)))) -> 36.38582456 | I101: =IF(MAX(C105:C116)-MIN(C105:C116)<5,AVERAGEIF(C105:C116,">0",I105:I116), IF(FORECAST($C101,I$105:I$116,$C$105:$C$116)<0,0, IF(FORECAST($C101,I$105:I$116,$C$105:$C$116)>100,100, FORECAST($C101,I$105:I$116,$C$105:$C$116)))) -> 75.13448138 | M101: =IF(MAX(C105:C116)-MIN(C105:C116)<5,AVERAGEIF(C105:C116,">0",M105:M116), IF(FORECAST($C101,M$105:M$116,$C$105:$C$116)<0,0, IF(FORECAST($C101,M$105:M$116,$C$105:$C$116)>100,100, FORECAST($C101,M$105:M$116,$C$105:$C$116)))) -> 13.71820482 | N101: =IF(MAX(C105:C116)-MIN(C105:C116)<5,AVERAGEIF(C105:C116,">0",N105:N116), IF(FORECAST($C101,N$105:N$116,$C$105:$C$116)<0,0, IF(FORECAST($C101,N$105:N$116,$C$105:$C$116)>100,100, FORECAST($C101,N$105:N$116,$C$105:$C$116)))) -> 94.32504147 | R101: =IF(MAX(C105:C116)-MIN(C105:C116)<5,AVERAGEIF(C105:C116,">0",R105:R116), IF(FORECAST($C101,R$105:R$116,$C$105:$C$116)<0,0, IF(FORECAST($C101,R$105:R$116,$C$105:$C$116)>100,100, FORECAST($C101,R$105:R$116,$C$105:$C$116)))) -> 2.101240789 | S101: =IF(MAX(C105:C116)-MIN(C105:C116)<5,AVERAGEIF(C105:C116,">0",S105:S116), IF(FORECAST($C101,S$105:S$116,$C$105:$C$116)<0,0, IF(FORECAST($C101,S$105:S$116,$C$105:$C$116)>100,100, FORECAST($C101,S$105:S$116,$C$105:$C$116)))) -> 97.30821426 | W101: =IF(MAX(C105:C116)-MIN(C105:C116)<5,AVERAGEIF(C105:C116,">0",W105:W116), IF(FORECAST($C101,W$105:W$116,$C$105:$C$116)<0,0, IF(FORECAST($C101,W$105:W$116,$C$105:$C$116)>100,100, FORECAST($C101,W$105:W$116,$C$105:$C$116)))) -> 1.128528403 | X101: =IF(MAX(C105:C116)-MIN(C105:C116)<5,AVERAGEIF(C105:C116,">0",X105:X116), IF(FORECAST($C101,X$105:X$116,$C$105:$C$116)<0,0, IF(FORECAST($C101,X$105:X$116,$C$105:$C$116)>100,100, FORECAST($C101,X$105:X$116,$C$105:$C$116)))) -> 99.26257785 | AB101: =IF(MAX(C105:C116)-MIN(C105:C116)<5,AVERAGEIF(C105:C116,">0",AB105:AB116), IF(FORECAST($C101,AB$105:AB$116,$C$105:$C$116)<0,0, IF(FORECAST($C101,AB$105:AB$116,$C$105:$C$116)>100,100, FORECAST($C101,AB$105:AB$116,$C$105:$C$116)))) -> 0.08868500301
C102: =MaxRegYear(C100,C105:C116) -> 2014 | D102: =IF(MAX(C105:C116)-MIN(C105:C116)<5,AVERAGEIF(C105:C116,">0",D105:D116), IF(FORECAST($C102,D$105:D$116,$C$105:$C$116)<0,0, IF(FORECAST($C102,D$105:D$116,$C$105:$C$116)>100,100, FORECAST($C102,D$105:D$116,$C$105:$C$116)))) -> 78.84551909 | H102: =IF(MAX(C105:C116)-MIN(C105:C116)<5,AVERAGEIF(C105:C116,">0",H105:H116), IF(FORECAST($C102,H$105:H$116,$C$105:$C$116)<0,0, IF(FORECAST($C102,H$105:H$116,$C$105:$C$116)>100,100, FORECAST($C102,H$105:H$116,$C$105:$C$116)))) -> 16.10236257 | I102: =IF(MAX(C105:C116)-MIN(C105:C116)<5,AVERAGEIF(C105:C116,">0",I105:I116), IF(FORECAST($C102,I$105:I$116,$C$105:$C$116)<0,0, IF(FORECAST($C102,I$105:I$116,$C$105:$C$116)>100,100, FORECAST($C102,I$105:I$116,$C$105:$C$116)))) -> 97.4942531 | M102: =IF(MAX(C105:C116)-MIN(C105:C116)<5,AVERAGEIF(C105:C116,">0",M105:M116), IF(FORECAST($C102,M$105:M$116,$C$105:$C$116)<0,0, IF(FORECAST($C102,M$105:M$116,$C$105:$C$116)>100,100, FORECAST($C102,M$105:M$116,$C$105:$C$116)))) -> 0.8636325302 | N102: =IF(MAX(C105:C116)-MIN(C105:C116)<5,AVERAGEIF(C105:C116,">0",N105:N116), IF(FORECAST($C102,N$105:N$116,$C$105:$C$116)<0,0, IF(FORECAST($C102,N$105:N$116,$C$105:$C$116)>100,100, FORECAST($C102,N$105:N$116,$C$105:$C$116)))) -> 98.02915975 | R102: =IF(MAX(C105:C116)-MIN(C105:C116)<5,AVERAGEIF(C105:C116,">0",R105:R116), IF(FORECAST($C102,R$105:R$116,$C$105:$C$116)<0,0, IF(FORECAST($C102,R$105:R$116,$C$105:$C$116)>100,100, FORECAST($C102,R$105:R$116,$C$105:$C$116)))) -> 0.3497932018 | S102: =IF(MAX(C105:C116)-MIN(C105:C116)<5,AVERAGEIF(C105:C116,">0",S105:S116), IF(FORECAST($C102,S$105:S$116,$C$105:$C$116)<0,0, IF(FORECAST($C102,S$105:S$116,$C$105:$C$116)>100,100, FORECAST($C102,S$105:S$116,$C$105:$C$116)))) -> 99.16529762 | W102: =IF(MAX(C105:C116)-MIN(C105:C116)<5,AVERAGEIF(C105:C116,">0",W105:W116), IF(FORECAST($C102,W$105:W$116,$C$105:$C$116)<0,0, IF(FORECAST($C102,W$105:W$116,$C$105:$C$116)>100,100, FORECAST($C102,W$105:W$116,$C$105:$C$116)))) -> 0.0452452661 | X102: =IF(MAX(C105:C116)-MIN(C105:C116)<5,AVERAGEIF(C105:C116,">0",X105:X116), IF(FORECAST($C102,X$105:X$116,$C$105:$C$116)<0,0, IF(FORECAST($C102,X$105:X$116,$C$105:$C$116)>100,100, FORECAST($C102,X$105:X$116,$C$105:$C$116)))) -> 98.13957036 | AB102: =IF(MAX(C105:C116)-MIN(C105:C116)<5,AVERAGEIF(C105:C116,">0",AB105:AB116), IF(FORECAST($C102,AB$105:AB$116,$C$105:$C$116)<0,0, IF(FORECAST($C102,AB$105:AB$116,$C$105:$C$116)>100,100, FORECAST($C102,AB$105:AB$116,$C$105:$C$116)))) -> 0
B104: Survey | C104: Year | D104: Improved | E104: % Improved < = 30min | H104: Surface water | I104: Improved | J104: % Improved < = 30min | M104: Surface water | N104: Improved | O104: % Improved < = 30min | R104: Surface water | S104: Improved | T104: % Improved < = 30min | W104: Surface water | X104: Improved | Y104: % Improved < = 30min | AB104: Surface water
B105: DHS00 | C105: 2000 | D105: =IF(ISERROR(INDIRECT(CONCATENATE($B105,"!C16"))),"",INDIRECT(CONCATENATE($B105,"!C16"))) -> 46.32688545 | E105: =IF(ISERROR(INDIRECT(CONCATENATE($B105,"!C23"))),"",INDIRECT(CONCATENATE($B105,"!C23"))) -> N/A | H105: =IF(ISERROR(INDIRECT(CONCATENATE($B105,"!C21"))),"",INDIRECT(CONCATENATE($B105,"!C21"))) -> 36.38582456 | I105: =IF(ISERROR(INDIRECT(CONCATENATE($B105,"!D16"))),"",INDIRECT(CONCATENATE($B105,"!D16"))) -> 75.13448138 | J105: =IF(ISERROR(INDIRECT(CONCATENATE($B105,"!D23"))),"",INDIRECT(CONCATENATE($B105,"!D23"))) -> N/A | M105: =IF(ISERROR(INDIRECT(CONCATENATE($B105,"!D21"))),"",INDIRECT(CONCATENATE($B105,"!D21"))) -> 13.71820482 | N105: =IF(ISERROR(INDIRECT(CONCATENATE($B105,"!E16"))),"",INDIRECT(CONCATENATE($B105,"!E16"))) -> 94.32504147 | O105: =IF(ISERROR(INDIRECT(CONCATENATE($B105,"!E23"))),"",INDIRECT(CONCATENATE($B105,"!E23"))) -> N/A | R105: =IF(ISERROR(INDIRECT(CONCATENATE($B105,"!E21"))),"",INDIRECT(CONCATENATE($B105,"!E21"))) -> 2.101240789 | S105: =IF(ISERROR(INDIRECT(CONCATENATE($B105,"!F16"))),"",INDIRECT(CONCATENATE($B105,"!F16"))) -> 97.30821426 | T105: =IF(ISERROR(INDIRECT(CONCATENATE($B105,"!F23"))),"",INDIRECT(CONCATENATE($B105,"!F23"))) -> N/A | W105: =IF(ISERROR(INDIRECT(CONCATENATE($B105,"!F21"))),"",INDIRECT(CONCATENATE($B105,"!F21"))) -> 1.128528403 | X105: =IF(ISERROR(INDIRECT(CONCATENATE($B105,"!G16"))),"",INDIRECT(CONCATENATE($B105,"!G16"))) -> 99.26257785 | Y105: =IF(ISERROR(INDIRECT(CONCATENATE($B105,"!G23"))),"",INDIRECT(CONCATENATE($B105,"!G23"))) -> N/A | AB105: =IF(ISERROR(INDIRECT(CONCATENATE($B105,"!G221"))),"",INDIRECT(CONCATENATE($B105,"!G21"))) -> 0.08868500301
B106: DHS12 | C106: 2012 | D106: 74.2 | E106: 73.9 | H106: 19 | I106: 94.3 | J106: 87 | M106: 2.7 | N106: 97.5 | O106: 94.6 | R106: 0.6 | S106: 98.9 | T106: 96 | W106: 0.2 | X106: 98.3 | Y106: 97.7 | AB106: 0
D111: =IF(ISERROR(INDIRECT(CONCATENATE($B111,"!C16"))),"",INDIRECT(CONCATENATE($B111,"!C16"))) ->  | E111: =IF(ISERROR(INDIRECT(CONCATENATE($B111,"!C23"))),"",INDIRECT(CONCATENATE($B111,"!C23"))) ->  | H111: =IF(ISERROR(INDIRECT(CONCATENATE($B111,"!C21"))),"",INDIRECT(CONCATENATE($B111,"!C21"))) ->  | I111: =IF(ISERROR(INDIRECT(CONCATENATE($B111,"!D16"))),"",INDIRECT(CONCATENATE($B111,"!D16"))) ->  | J111: =IF(ISERROR(INDIRECT(CONCATENATE($B111,"!D23"))),"",INDIRECT(CONCATENATE($B111,"!D23"))) ->  | M111: =IF(ISERROR(INDIRECT(CONCATENATE($B111,"!D21"))),"",INDIRECT(CONCATENATE($B111,"!D21"))) ->  | N111: =IF(ISERROR(INDIRECT(CONCATENATE($B111,"!E16"))),"",INDIRECT(CONCATENATE($B111,"!E16"))) ->  | O111: =IF(ISERROR(INDIRECT(CONCATENATE($B111,"!E23"))),"",INDIRECT(CONCATENATE($B111,"!E23"))) ->  | R111: =IF(ISERROR(INDIRECT(CONCATENATE($B111,"!E21"))),"",INDIRECT(CONCATENATE($B111,"!E21"))) ->  | S111: =IF(ISERROR(INDIRECT(CONCATENATE($B111,"!F16"))),"",INDIRECT(CONCATENATE($B111,"!F16"))) ->  | T111: =IF(ISERROR(INDIRECT(CONCATENATE($B111,"!F23"))),"",INDIRECT(CONCATENATE($B111,"!F23"))) ->  | W111: =IF(ISERROR(INDIRECT(CONCATENATE($B111,"!F21"))),"",INDIRECT(CONCATENATE($B111,"!F21"))) ->  | X111: =IF(ISERROR(INDIRECT(CONCATENATE($B111,"!G16"))),"",INDIRECT(CONCATENATE($B111,"!G16"))) ->  | Y111: =IF(ISERROR(INDIRECT(CONCATENATE($B111,"!G23"))),"",INDIRECT(CONCATENATE($B111,"!G23"))) ->  | AB111: =IF(ISERROR(INDIRECT(CONCATENATE($B111,"!G221"))),"",INDIRECT(CONCATENATE($B111,"!G21"))) -> 
D112: =IF(ISERROR(INDIRECT(CONCATENATE($B112,"!C16"))),"",INDIRECT(CONCATENATE($B112,"!C16"))) ->  | E112: =IF(ISERROR(INDIRECT(CONCATENATE($B112,"!C23"))),"",INDIRECT(CONCATENATE($B112,"!C23"))) ->  | H112: =IF(ISERROR(INDIRECT(CONCATENATE($B112,"!C21"))),"",INDIRECT(CONCATENATE($B112,"!C21"))) ->  | I112: =IF(ISERROR(INDIRECT(CONCATENATE($B112,"!D16"))),"",INDIRECT(CONCATENATE($B112,"!D16"))) ->  | J112: =IF(ISERROR(INDIRECT(CONCATENATE($B112,"!D23"))),"",INDIRECT(CONCATENATE($B112,"!D23"))) ->  | M112: =IF(ISERROR(INDIRECT(CONCATENATE($B112,"!D21"))),"",INDIRECT(CONCATENATE($B112,"!D21"))) ->  | N112: =IF(ISERROR(INDIRECT(CONCATENATE($B112,"!E16"))),"",INDIRECT(CONCATENATE($B112,"!E16"))) ->  | O112: =IF(ISERROR(INDIRECT(CONCATENATE($B112,"!E23"))),"",INDIRECT(CONCATENATE($B112,"!E23"))) ->  | R112: =IF(ISERROR(INDIRECT(CONCATENATE($B112,"!E21"))),"",INDIRECT(CONCATENATE($B112,"!E21"))) ->  | S112: =IF(ISERROR(INDIRECT(CONCATENATE($B112,"!F16"))),"",INDIRECT(CONCATENATE($B112,"!F16"))) ->  | T112: =IF(ISERROR(INDIRECT(CONCATENATE($B112,"!F23"))),"",INDIRECT(CONCATENATE($B112,"!F23"))) ->  | W112: =IF(ISERROR(INDIRECT(CONCATENATE($B112,"!F21"))),"",INDIRECT(CONCATENATE($B112,"!F21"))) ->  | X112: =IF(ISERROR(INDIRECT(CONCATENATE($B112,"!G16"))),"",INDIRECT(CONCATENATE($B112,"!G16"))) ->  | Y112: =IF(ISERROR(INDIRECT(CONCATENATE($B112,"!G23"))),"",INDIRECT(CONCATENATE($B112,"!G23"))) ->  | AB112: =IF(ISERROR(INDIRECT(CONCATENATE($B112,"!G221"))),"",INDIRECT(CONCATENATE($B112,"!G21"))) -> 
B118: =CONCATENATE("National use of drinking water sources, ",C99,"–",C100) -> National use of drinking water sources, 2000–2018 | S118: Data points used for regression
E153: =IF(ISERROR(INDIRECT(CONCATENATE($B153,"!M18"))),"",INDIRECT(CONCATENATE($B153,"!M18"))) ->  | F153: =IF(ISERROR(INDIRECT(CONCATENATE($B153,"!M19"))),"",INDIRECT(CONCATENATE($B153,"!M19"))) ->  | G153: =IF(ISERROR(INDIRECT(CONCATENATE($B153,"!M20"))),"",INDIRECT(CONCATENATE($B153,"!M20"))) ->  | H153: =IF(ISERROR(INDIRECT(CONCATENATE($B153,"!M21"))),"",INDIRECT(CONCATENATE($B153,"!M21"))) ->  | J153: =IF(ISERROR(INDIRECT(CONCATENATE($B153,"!N18"))),"",INDIRECT(CONCATENATE($B153,"!N18"))) ->  | K153: =IF(ISERROR(INDIRECT(CONCATENATE($B153,"!N19"))),"",INDIRECT(CONCATENATE($B153,"!N19"))) ->  | L153: =IF(ISERROR(INDIRECT(CONCATENATE($B153,"!N20"))),"",INDIRECT(CONCATENATE($B153,"!N20"))) ->  | M153: =IF(ISERROR(INDIRECT(CONCATENATE($B153,"!N21"))),"",INDIRECT(CONCATENATE($B153,"!N21"))) ->  | O153: =IF(ISERROR(INDIRECT(CONCATENATE($B153,"!O18"))),"",INDIRECT(CONCATENATE($B153,"!O18"))) ->  | P153: =IF(ISERROR(INDIRECT(CONCATENATE($B153,"!O19"))),"",INDIRECT(CONCATENATE($B153,"!O19"))) ->  | Q153: =IF(ISERROR(INDIRECT(CONCATENATE($B153,"!O20"))),"",INDIRECT(CONCATENATE($B153,"!O20"))) ->  | R153: =IF(ISERROR(INDIRECT(CONCATENATE($B153,"!O21"))),"",INDIRECT(CONCATENATE($B153,"!O21"))) ->  | T153: =IF(ISERROR(INDIRECT(CONCATENATE($B153,"!P18"))),"",INDIRECT(CONCATENATE($B153,"!P18"))) ->  | U153: =IF(ISERROR(INDIRECT(CONCATENATE($B153,"!P19"))),"",INDIRECT(CONCATENATE($B153,"!P19"))) ->  | V153: =IF(ISERROR(INDIRECT(CONCATENATE($B153,"!P20"))),"",INDIRECT(CONCATENATE($B153,"!P20"))) ->  | W153: =IF(ISERROR(INDIRECT(CONCATENATE($B153,"!P21"))),"",INDIRECT(CONCATENATE($B153,"!P21"))) ->  | Y153: =IF(ISERROR(INDIRECT(CONCATENATE($B153,"!Q18"))),"",INDIRECT(CONCATENATE($B153,"!Q18"))) ->  | Z153: =IF(ISERROR(INDIRECT(CONCATENATE($B153,"!Q19"))),"",INDIRECT(CONCATENATE($B153,"!Q19"))) ->  | AA153: =IF(ISERROR(INDIRECT(CONCATENATE($B153,"!Q20"))),"",INDIRECT(CONCATENATE($B153,"!Q20"))) ->  | AB153: =IF(ISERROR(INDIRECT(CONCATENATE($B153,"!Q21"))),"",INDIRECT(CONCATENATE($B153,"!Q1"))) -> 
A197: URBAN | D197: Poorest | I197: Poor | N197: Middle | S197: Rich | X197: Richest
D198: Improved | E198: Basic | F198: Limited | G198: Unimproved | H198: Surface water | I198: Improved | J198: Basic | K198: Limited | L198: Unimproved | M198: Surface water | N198: Improved | O198: Basic | P198: Limited | Q198: Unimproved | R198: Surface water | S198: Improved | T198: Basic | U198: Limited | V198: Unimproved | W198: Surface water | X198: Improved | Y198: Basic | Z198: Limited | AA198: Unimproved | AB198: Surface water
A199: Forecast period: | C199: =MinBase(C205:C216) -> 2000 | D199: =IF((D201+H201)>100,D201*100/(D201+H201),D201) -> 80.58434409 | E199: =D199*AVERAGEIF(E205:E216,">0")/100 -> 61.88877626 | F199: =D199*(100-AVERAGEIF(E205:E216,">0"))/100 -> 18.69556783 | G199: =100-(E199+F199+H199) -> 10.81594519 | H199: =IF((D201+H201)>100,H201*100/(D201+H201),H201) -> 8.599710719 | I199: =IF((I201+M201)>100,I201*100/(I201+M201),I201) -> 96.25590965 | J199: =I199*AVERAGEIF(J205:J216,">0")/100 -> 88.94046052 | K199: =I199*(100-AVERAGEIF(J205:J216,">0"))/100 -> 7.315449134 | L199: =100-(J199+K199+M199) -> 2.804172394 | M199: =IF((I201+M201)>100,M201*100/(I201+M201),M201) -> 0.9399179527 | N199: =IF((N201+R201)>100,N201*100/(N201+R201),N201) -> 97.84580616 | O199: =N199*AVERAGEIF(O205:O216,">0")/100 -> 94.32335714 | P199: =N199*(100-AVERAGEIF(O205:O216,">0"))/100 -> 3.522449022 | Q199: =100-(O199+P199+R199) -> 1.652418009 | R199: =IF((N201+R201)>100,R201*100/(N201+R201),R201) -> 0.5017758334 | S199: =IF((S201+W201)>100,S201*100/(S201+W201),S201) -> 99.35960897 | T199: =S199*AVERAGEIF(T205:T216,">0")/100 -> 96.18010149 | U199: =S199*(100-AVERAGEIF(T205:T216,">0"))/100 -> 3.179507487 | V199: =100-(T199+U199+W199) -> 0.4884310758 | W199: =IF((S201+W201)>100,W201*100/(S201+W201),W201) -> 0.1519599512 | X199: =IF((X201+AB201)>100,X201*100/(X201+AB201),X201) -> 99.4421784 | Y199: =X199*AVERAGEIF(Y205:Y216,">0")/100 -> 96.95612394 | Z199: =X199*(100-AVERAGEIF(Y205:Y216,">0"))/100 -> 2.48605446 | AA199: =100-(Y199+Z199+AB199) -> 0.4759185718 | AB199: =IF((X201+AB201)>100,AB201*100/(X201+AB201),AB201) -> 0.08190303178
C200: =MaxTarget(C205:C216) -> 2018 | D200: =IF((D202+H202)>100,D202*100/(D202+H202),D202) -> 94.48594265 | E200: =D200*AVERAGEIF(E205:E216,">0")/100 -> 72.56520396 | F200: =D200*(100-AVERAGEIF(E205:E216,">0"))/100 -> 21.9207387 | G200: =100-(E200+F200+H200) -> 4.380675801 | H200: =IF((D202+H202)>100,H202*100/(D202+H202),H202) -> 1.133381547 | I200: =IF((I202+M202)>100,I202*100/(I202+M202),I202) -> 97.70734839 | J200: =I200*AVERAGEIF(J205:J216,">0")/100 -> 90.28158991 | K200: =I200*(100-AVERAGEIF(J205:J216,">0"))/100 -> 7.425758478 | L200: =100-(J200+K200+M200) -> 1.982637934 | M200: =IF((I202+M202)>100,M202*100/(I202+M202),M202) -> 0.3100136745 | N200: =IF((N202+R202)>100,N202*100/(N202+R202),N202) -> 99.77569897 | O200: =N200*AVERAGEIF(O205:O216,">0")/100 -> 96.18377381 | P200: =N200*(100-AVERAGEIF(O205:O216,">0"))/100 -> 3.591925163 | Q200: =100-(O200+P200+R200) -> 0.07459699845 | R200: =IF((N202+R202)>100,R202*100/(N202+R202),R202) -> 0.1497040278 | S200: =IF((S202+W202)>100,S202*100/(S202+W202),S202) -> 98.94006517 | T200: =S200*AVERAGEIF(T205:T216,">0")/100 -> 95.77398309 | U200: =S200*(100-AVERAGEIF(T205:T216,">0"))/100 -> 3.166082085 | V200: =100-(T200+U200+W200) -> 1.059934829 | W200: =IF((S202+W202)>100,W202*100/(S202+W202),W202) -> 0 | X200: =IF((X202+AB202)>100,X202*100/(X202+AB202),X202) -> 97.8763036 | Y200: =X200*AVERAGEIF(Y205:Y216,">0")/100 -> 95.42939601 | Z200: =X200*(100-AVERAGEIF(Y205:Y216,">0"))/100 -> 2.44690759 | AA200: =100-(Y200+Z200+AB200) -> 2.123696399 | AB200: =IF((X202+AB202)>100,AB202*100/(X202+AB202),AB202) -> 0
A201: Regression period: | C201: =MinRegYear(C199,C205:C216) -> 2000 | D201: =IF(MAX(C205:C216)-MIN(C205:C216)<5,AVERAGEIF(C205:C216,">0",D205:D216), IF(FORECAST($C201,D$205:D$216,$C$205:$C$216)<0,0, IF(FORECAST($C201,D$205:D$216,$C$205:$C$216)>100,100, FORECAST($C201,D$205:D$216,$C$205:$C$216)))) -> 80.58434409 | H201: =IF(MAX(C205:C216)-MIN(C205:C216)<5,AVERAGEIF(C205:C216,">0",H205:H216), IF(FORECAST($C201,H$205:H$216,$C$205:$C$216)<0,0, IF(FORECAST($C201,H$205:H$216,$C$205:$C$216)>100,100, FORECAST($C201,H$205:H$216,$C$205:$C$216)))) -> 8.599710719 | I201: =IF(MAX(C205:C216)-MIN(C205:C216)<5,AVERAGEIF(C205:C216,">0",I205:I216), IF(FORECAST($C201,I$205:I$216,$C$205:$C$216)<0,0, IF(FORECAST($C201,I$205:I$216,$C$205:$C$216)>100,100, FORECAST($C201,I$205:I$216,$C$205:$C$216)))) -> 96.25590965 | M201: =IF(MAX(C205:C216)-MIN(C205:C216)<5,AVERAGEIF(C205:C216,">0",M205:M216), IF(FORECAST($C201,M$205:M$216,$C$205:$C$216)<0,0, IF(FORECAST($C201,M$205:M$216,$C$205:$C$216)>100,100, FORECAST($C201,M$205:M$216,$C$205:$C$216)))) -> 0.9399179527 | N201: =IF(MAX(C205:C216)-MIN(C205:C216)<5,AVERAGEIF(C205:C216,">0",N205:N216), IF(FORECAST($C201,N$205:N$216,$C$205:$C$216)<0,0, IF(FORECAST($C201,N$205:N$216,$C$205:$C$216)>100,100, FORECAST($C201,N$205:N$216,$C$205:$C$216)))) -> 97.84580616 | R201: =IF(MAX(C205:C216)-MIN(C205:C216)<5,AVERAGEIF(C205:C216,">0",R205:R216), IF(FORECAST($C201,R$205:R$216,$C$205:$C$216)<0,0, IF(FORECAST($C201,R$205:R$216,$C$205:$C$216)>100,100, FORECAST($C201,R$205:R$216,$C$205:$C$216)))) -> 0.5017758334 | S201: =IF(MAX(C205:C216)-MIN(C205:C216)<5,AVERAGEIF(C205:C216,">0",S205:S216), IF(FORECAST($C201,S$205:S$216,$C$205:$C$216)<0,0, IF(FORECAST($C201,S$205:S$216,$C$205:$C$216)>100,100, FORECAST($C201,S$205:S$216,$C$205:$C$216)))) -> 99.35960897 | W201: =IF(MAX(C205:C216)-MIN(C205:C216)<5,AVERAGEIF(C205:C216,">0",W205:W216), IF(FORECAST($C201,W$205:W$216,$C$205:$C$216)<0,0, IF(FORECAST($C201,W$205:W$216,$C$205:$C$216)>100,100, FORECAST($C201,W$205:W$216,$C$205:$C$216)))) -> 0.1519599512 | X201: =IF(MAX(C205:C216)-MIN(C205:C216)<5,AVERAGEIF(C205:C216,">0",X205:X216), IF(FORECAST($C201,X$205:X$216,$C$205:$C$216)<0,0, IF(FORECAST($C201,X$205:X$216,$C$205:$C$216)>100,100, FORECAST($C201,X$205:X$216,$C$205:$C$216)))) -> 99.4421784 | AB201: =IF(MAX(C205:C216)-MIN(C205:C216)<5,AVERAGEIF(C205:C216,">0",AB205:AB216), IF(FORECAST($C201,AB$205:AB$216,$C$205:$C$216)<0,0, IF(FORECAST($C201,AB$205:AB$216,$C$205:$C$216)>100,100, FORECAST($C201,AB$205:AB$216,$C$205:$C$216)))) -> 0.08190303178
C202: =MaxRegYear(C200,C205:C216) -> 2014 | D202: =IF(MAX(C205:C216)-MIN(C205:C216)<5,AVERAGEIF(C205:C216,">0",D205:D216), IF(FORECAST($C202,D$205:D$216,$C$205:$C$216)<0,0, IF(FORECAST($C202,D$205:D$216,$C$205:$C$216)>100,100, FORECAST($C202,D$205:D$216,$C$205:$C$216)))) -> 94.48594265 | H202: =IF(MAX(C205:C216)-MIN(C205:C216)<5,AVERAGEIF(C205:C216,">0",H205:H216), IF(FORECAST($C202,H$205:H$216,$C$205:$C$216)<0,0, IF(FORECAST($C202,H$205:H$216,$C$205:$C$216)>100,100, FORECAST($C202,H$205:H$216,$C$205:$C$216)))) -> 1.133381547 | I202: =IF(MAX(C205:C216)-MIN(C205:C216)<5,AVERAGEIF(C205:C216,">0",I205:I216), IF(FORECAST($C202,I$205:I$216,$C$205:$C$216)<0,0, IF(FORECAST($C202,I$205:I$216,$C$205:$C$216)>100,100, FORECAST($C202,I$205:I$216,$C$205:$C$216)))) -> 97.70734839 | M202: =IF(MAX(C205:C216)-MIN(C205:C216)<5,AVERAGEIF(C205:C216,">0",M205:M216), IF(FORECAST($C202,M$205:M$216,$C$205:$C$216)<0,0, IF(FORECAST($C202,M$205:M$216,$C$205:$C$216)>100,100, FORECAST($C202,M$205:M$216,$C$205:$C$216)))) -> 0.3100136745 | N202: =IF(MAX(C205:C216)-MIN(C205:C216)<5,AVERAGEIF(C205:C216,">0",N205:N216), IF(FORECAST($C202,N$205:N$216,$C$205:$C$216)<0,0, IF(FORECAST($C202,N$205:N$216,$C$205:$C$216)>100,100, FORECAST($C202,N$205:N$216,$C$205:$C$216)))) -> 99.77569897 | R202: =IF(MAX(C205:C216)-MIN(C205:C216)<5,AVERAGEIF(C205:C216,">0",R205:R216), IF(FORECAST($C202,R$205:R$216,$C$205:$C$216)<0,0, IF(FORECAST($C202,R$205:R$216,$C$205:$C$216)>100,100, FORECAST($C202,R$205:R$216,$C$205:$C$216)))) -> 0.1497040278 | S202: =IF(MAX(C205:C216)-MIN(C205:C216)<5,AVERAGEIF(C205:C216,">0",S205:S216), IF(FORECAST($C202,S$205:S$216,$C$205:$C$216)<0,0, IF(FORECAST($C202,S$205:S$216,$C$205:$C$216)>100,100, FORECAST($C202,S$205:S$216,$C$205:$C$216)))) -> 98.94006517 | W202: =IF(MAX(C205:C216)-MIN(C205:C216)<5,AVERAGEIF(C205:C216,">0",W205:W216), IF(FORECAST($C202,W$205:W$216,$C$205:$C$216)<0,0, IF(FORECAST($C202,W$205:W$216,$C$205:$C$216)>100,100, FORECAST($C202,W$205:W$216,$C$205:$C$216)))) -> 0 | X202: =IF(MAX(C205:C216)-MIN(C205:C216)<5,AVERAGEIF(C205:C216,">0",X205:X216), IF(FORECAST($C202,X$205:X$216,$C$205:$C$216)<0,0, IF(FORECAST($C202,X$205:X$216,$C$205:$C$216)>100,100, FORECAST($C202,X$205:X$216,$C$205:$C$216)))) -> 97.8763036 | AB202: =IF(MAX(C205:C216)-MIN(C205:C216)<5,AVERAGEIF(C205:C216,">0",AB205:AB216), IF(FORECAST($C202,AB$205:AB$216,$C$205:$C$216)<0,0, IF(FORECAST($C202,AB$205:AB$216,$C$205:$C$216)>100,100, FORECAST($C202,AB$205:AB$216,$C$205:$C$216)))) -> 0
B204: Survey | C204: Year | D204: Improved | E204: % Improved < = 30min | H204: Surface water | I204: Improved | J204: % Improved < = 30min | M204: Surface water | N204: Improved | O204: % Improved < = 30min | R204: Surface water | S204: Improved | T204: % Improved < = 30min | W204: Surface water | X204: Improved | Y204: % Improved < = 30min | AB204: Surface water
B205: DHS00 | C205: 2000 | D205: =IF(ISERROR(INDIRECT(CONCATENATE($B205,"!H16"))),"",INDIRECT(CONCATENATE($B205,"!H16"))) -> 80.58434409 | E205: =IF(ISERROR(INDIRECT(CONCATENATE($B205,"!H23"))),"",INDIRECT(CONCATENATE($B205,"!H23"))) -> N/A | H205: =IF(ISERROR(INDIRECT(CONCATENATE($B205,"!H21"))),"",INDIRECT(CONCATENATE($B205,"!H21"))) -> 8.599710719 | I205: =IF(ISERROR(INDIRECT(CONCATENATE($B205,"!I16"))),"",INDIRECT(CONCATENATE($B205,"!I16"))) -> 96.25590965 | J205: =IF(ISERROR(INDIRECT(CONCATENATE($B205,"!I23"))),"",INDIRECT(CONCATENATE($B205,"!I23"))) -> N/A | M205: =IF(ISERROR(INDIRECT(CONCATENATE($B205,"!I21"))),"",INDIRECT(CONCATENATE($B205,"!I21"))) -> 0.9399179527 | N205: =IF(ISERROR(INDIRECT(CONCATENATE($B205,"!J16"))),"",INDIRECT(CONCATENATE($B205,"!J16"))) -> 97.84580616 | O205: =IF(ISERROR(INDIRECT(CONCATENATE($B205,"!J23"))),"",INDIRECT(CONCATENATE($B205,"!J23"))) -> N/A | R205: =IF(ISERROR(INDIRECT(CONCATENATE($B205,"!J21"))),"",INDIRECT(CONCATENATE($B205,"!J21"))) -> 0.5017758334 | S205: =IF(ISERROR(INDIRECT(CONCATENATE($B205,"!K16"))),"",INDIRECT(CONCATENATE($B205,"!K16"))) -> 99.35960897 | T205: =IF(ISERROR(INDIRECT(CONCATENATE($B205,"!K23"))),"",INDIRECT(CONCATENATE($B205,"!K23"))) -> N/A | W205: =IF(ISERROR(INDIRECT(CONCATENATE($B205,"!K21"))),"",INDIRECT(CONCATENATE($B205,"!K21"))) -> 0.1519599512 | X205: =IF(ISERROR(INDIRECT(CONCATENATE($B205,"!L16"))),"",INDIRECT(CONCATENATE($B205,"!L16"))) -> 99.4421784 | Y205: =IF(ISERROR(INDIRECT(CONCATENATE($B205,"!L23"))),"",INDIRECT(CONCATENATE($B205,"!L23"))) -> N/A | AB205: =IF(ISERROR(INDIRECT(CONCATENATE($B205,"!L221"))),"",INDIRECT(CONCATENATE($B205,"!L21"))) -> 0.08190303178
B206: DHS12 | C206: 2012 | D206: 92.5 | E206: 76.8 | H206: 2.2 | I206: 97.5 | J206: 92.4 | M206: 0.4 | N206: 99.5 | O206: 96.4 | R206: 0.2 | S206: 99 | T206: 96.8 | W206: 0 | X206: 98.1 | Y206: 97.5 | AB206: 0
B218: =CONCATENATE("Urban use of drinking water sources, ",C199,"–",C200) -> Urban use of drinking water sources, 2000–2018 | S218: Data points used for regression
E253: =IF(ISERROR(INDIRECT(CONCATENATE($B253,"!M18"))),"",INDIRECT(CONCATENATE($B253,"!M18"))) ->  | F253: =IF(ISERROR(INDIRECT(CONCATENATE($B253,"!M19"))),"",INDIRECT(CONCATENATE($B253,"!M19"))) ->  | G253: =IF(ISERROR(INDIRECT(CONCATENATE($B253,"!M20"))),"",INDIRECT(CONCATENATE($B253,"!M20"))) ->  | H253: =IF(ISERROR(INDIRECT(CONCATENATE($B253,"!M21"))),"",INDIRECT(CONCATENATE($B253,"!M21"))) ->  | J253: =IF(ISERROR(INDIRECT(CONCATENATE($B253,"!N18"))),"",INDIRECT(CONCATENATE($B253,"!N18"))) ->  | K253: =IF(ISERROR(INDIRECT(CONCATENATE($B253,"!N19"))),"",INDIRECT(CONCATENATE($B253,"!N19"))) ->  | L253: =IF(ISERROR(INDIRECT(CONCATENATE($B253,"!N20"))),"",INDIRECT(CONCATENATE($B253,"!N20"))) ->  | M253: =IF(ISERROR(INDIRECT(CONCATENATE($B253,"!N21"))),"",INDIRECT(CONCATENATE($B253,"!N21"))) ->  | O253: =IF(ISERROR(INDIRECT(CONCATENATE($B253,"!O18"))),"",INDIRECT(CONCATENATE($B253,"!O18"))) ->  | P253: =IF(ISERROR(INDIRECT(CONCATENATE($B253,"!O19"))),"",INDIRECT(CONCATENATE($B253,"!O19"))) ->  | Q253: =IF(ISERROR(INDIRECT(CONCATENATE($B253,"!O20"))),"",INDIRECT(CONCATENATE($B253,"!O20"))) ->  | R253: =IF(ISERROR(INDIRECT(CONCATENATE($B253,"!O21"))),"",INDIRECT(CONCATENATE($B253,"!O21"))) ->  | T253: =IF(ISERROR(INDIRECT(CONCATENATE($B253,"!P18"))),"",INDIRECT(CONCATENATE($B253,"!P18"))) ->  | U253: =IF(ISERROR(INDIRECT(CONCATENATE($B253,"!P19"))),"",INDIRECT(CONCATENATE($B253,"!P19"))) ->  | V253: =IF(ISERROR(INDIRECT(CONCATENATE($B253,"!P20"))),"",INDIRECT(CONCATENATE($B253,"!P20"))) ->  | W253: =IF(ISERROR(INDIRECT(CONCATENATE($B253,"!P21"))),"",INDIRECT(CONCATENATE($B253,"!P21"))) ->  | Y253: =IF(ISERROR(INDIRECT(CONCATENATE($B253,"!Q18"))),"",INDIRECT(CONCATENATE($B253,"!Q18"))) ->  | Z253: =IF(ISERROR(INDIRECT(CONCATENATE($B253,"!Q19"))),"",INDIRECT(CONCATENATE($B253,"!Q19"))) ->  | AA253: =IF(ISERROR(INDIRECT(CONCATENATE($B253,"!Q20"))),"",INDIRECT(CONCATENATE($B253,"!Q20"))) ->  | AB253: =IF(ISERROR(INDIRECT(CONCATENATE($B253,"!Q21"))),"",INDIRECT(CONCATENATE($B253,"!Q1"))) -> 
E254: =IF(ISERROR(INDIRECT(CONCATENATE($B254,"!M18"))),"",INDIRECT(CONCATENATE($B254,"!M18"))) ->  | F254: =IF(ISERROR(INDIRECT(CONCATENATE($B254,"!M19"))),"",INDIRECT(CONCATENATE($B254,"!M19"))) ->  | G254: =IF(ISERROR(INDIRECT(CONCATENATE($B254,"!M20"))),"",INDIRECT(CONCATENATE($B254,"!M20"))) ->  | H254: =IF(ISERROR(INDIRECT(CONCATENATE($B254,"!M21"))),"",INDIRECT(CONCATENATE($B254,"!M21"))) ->  | J254: =IF(ISERROR(INDIRECT(CONCATENATE($B254,"!N18"))),"",INDIRECT(CONCATENATE($B254,"!N18"))) ->  | K254: =IF(ISERROR(INDIRECT(CONCATENATE($B254,"!N19"))),"",INDIRECT(CONCATENATE($B254,"!N19"))) ->  | L254: =IF(ISERROR(INDIRECT(CONCATENATE($B254,"!N20"))),"",INDIRECT(CONCATENATE($B254,"!N20"))) ->  | M254: =IF(ISERROR(INDIRECT(CONCATENATE($B254,"!N21"))),"",INDIRECT(CONCATENATE($B254,"!N21"))) ->  | O254: =IF(ISERROR(INDIRECT(CONCATENATE($B254,"!O18"))),"",INDIRECT(CONCATENATE($B254,"!O18"))) ->  | P254: =IF(ISERROR(INDIRECT(CONCATENATE($B254,"!O19"))),"",INDIRECT(CONCATENATE($B254,"!O19"))) ->  | Q254: =IF(ISERROR(INDIRECT(CONCATENATE($B254,"!O20"))),"",INDIRECT(CONCATENATE($B254,"!O20"))) ->  | R254: =IF(ISERROR(INDIRECT(CONCATENATE($B254,"!O21"))),"",INDIRECT(CONCATENATE($B254,"!O21"))) ->  | T254: =IF(ISERROR(INDIRECT(CONCATENATE($B254,"!P18"))),"",INDIRECT(CONCATENATE($B254,"!P18"))) ->  | U254: =IF(ISERROR(INDIRECT(CONCATENATE($B254,"!P19"))),"",INDIRECT(CONCATENATE($B254,"!P19"))) ->  | V254: =IF(ISERROR(INDIRECT(CONCATENATE($B254,"!P20"))),"",INDIRECT(CONCATENATE($B254,"!P20"))) ->  | W254: =IF(ISERROR(INDIRECT(CONCATENATE($B254,"!P21"))),"",INDIRECT(CONCATENATE($B254,"!P21"))) ->  | Y254: =IF(ISERROR(INDIRECT(CONCATENATE($B254,"!Q18"))),"",INDIRECT(CONCATENATE($B254,"!Q18"))) ->  | Z254: =IF(ISERROR(INDIRECT(CONCATENATE($B254,"!Q19"))),"",INDIRECT(CONCATENATE($B254,"!Q19"))) ->  | AA254: =IF(ISERROR(INDIRECT(CONCATENATE($B254,"!Q20"))),"",INDIRECT(CONCATENATE($B254,"!Q20"))) ->  | AB254: =IF(ISERROR(INDIRECT(CONCATENATE($B254,"!Q21"))),"",INDIRECT(CONCATENATE($B254,"!Q1"))) -> 
E255: =IF(ISERROR(INDIRECT(CONCATENATE($B255,"!M18"))),"",INDIRECT(CONCATENATE($B255,"!M18"))) ->  | F255: =IF(ISERROR(INDIRECT(CONCATENATE($B255,"!M19"))),"",INDIRECT(CONCATENATE($B255,"!M19"))) ->  | G255: =IF(ISERROR(INDIRECT(CONCATENATE($B255,"!M20"))),"",INDIRECT(CONCATENATE($B255,"!M20"))) ->  | H255: =IF(ISERROR(INDIRECT(CONCATENATE($B255,"!M21"))),"",INDIRECT(CONCATENATE($B255,"!M21"))) ->  | J255: =IF(ISERROR(INDIRECT(CONCATENATE($B255,"!N18"))),"",INDIRECT(CONCATENATE($B255,"!N18"))) ->  | K255: =IF(ISERROR(INDIRECT(CONCATENATE($B255,"!N19"))),"",INDIRECT(CONCATENATE($B255,"!N19"))) ->  | L255: =IF(ISERROR(INDIRECT(CONCATENATE($B255,"!N20"))),"",INDIRECT(CONCATENATE($B255,"!N20"))) ->  | M255: =IF(ISERROR(INDIRECT(CONCATENATE($B255,"!N21"))),"",INDIRECT(CONCATENATE($B255,"!N21"))) ->  | O255: =IF(ISERROR(INDIRECT(CONCATENATE($B255,"!O18"))),"",INDIRECT(CONCATENATE($B255,"!O18"))) ->  | P255: =IF(ISERROR(INDIRECT(CONCATENATE($B255,"!O19"))),"",INDIRECT(CONCATENATE($B255,"!O19"))) ->  | Q255: =IF(ISERROR(INDIRECT(CONCATENATE($B255,"!O20"))),"",INDIRECT(CONCATENATE($B255,"!O20"))) ->  | R255: =IF(ISERROR(INDIRECT(CONCATENATE($B255,"!O21"))),"",INDIRECT(CONCATENATE($B255,"!O21"))) ->  | T255: =IF(ISERROR(INDIRECT(CONCATENATE($B255,"!P18"))),"",INDIRECT(CONCATENATE($B255,"!P18"))) ->  | U255: =IF(ISERROR(INDIRECT(CONCATENATE($B255,"!P19"))),"",INDIRECT(CONCATENATE($B255,"!P19"))) ->  | V255: =IF(ISERROR(INDIRECT(CONCATENATE($B255,"!P20"))),"",INDIRECT(CONCATENATE($B255,"!P20"))) ->  | W255: =IF(ISERROR(INDIRECT(CONCATENATE($B255,"!P21"))),"",INDIRECT(CONCATENATE($B255,"!P21"))) ->  | Y255: =IF(ISERROR(INDIRECT(CONCATENATE($B255,"!Q18"))),"",INDIRECT(CONCATENATE($B255,"!Q18"))) ->  | Z255: =IF(ISERROR(INDIRECT(CONCATENATE($B255,"!Q19"))),"",INDIRECT(CONCATENATE($B255,"!Q19"))) ->  | AA255: =IF(ISERROR(INDIRECT(CONCATENATE($B255,"!Q20"))),"",INDIRECT(CONCATENATE($B255,"!Q20"))) ->  | AB255: =IF(ISERROR(INDIRECT(CONCATENATE($B255,"!Q21"))),"",INDIRECT(CONCATENATE($B255,"!Q1"))) -> 
E256: =IF(ISERROR(INDIRECT(CONCATENATE($B256,"!M18"))),"",INDIRECT(CONCATENATE($B256,"!M18"))) ->  | F256: =IF(ISERROR(INDIRECT(CONCATENATE($B256,"!M19"))),"",INDIRECT(CONCATENATE($B256,"!M19"))) ->  | G256: =IF(ISERROR(INDIRECT(CONCATENATE($B256,"!M20"))),"",INDIRECT(CONCATENATE($B256,"!M20"))) ->  | H256: =IF(ISERROR(INDIRECT(CONCATENATE($B256,"!M21"))),"",INDIRECT(CONCATENATE($B256,"!M21"))) ->  | J256: =IF(ISERROR(INDIRECT(CONCATENATE($B256,"!N18"))),"",INDIRECT(CONCATENATE($B256,"!N18"))) ->  | K256: =IF(ISERROR(INDIRECT(CONCATENATE($B256,"!N19"))),"",INDIRECT(CONCATENATE($B256,"!N19"))) ->  | L256: =IF(ISERROR(INDIRECT(CONCATENATE($B256,"!N20"))),"",INDIRECT(CONCATENATE($B256,"!N20"))) ->  | M256: =IF(ISERROR(INDIRECT(CONCATENATE($B256,"!N21"))),"",INDIRECT(CONCATENATE($B256,"!N21"))) ->  | O256: =IF(ISERROR(INDIRECT(CONCATENATE($B256,"!O18"))),"",INDIRECT(CONCATENATE($B256,"!O18"))) ->  | P256: =IF(ISERROR(INDIRECT(CONCATENATE($B256,"!O19"))),"",INDIRECT(CONCATENATE($B256,"!O19"))) ->  | Q256: =IF(ISERROR(INDIRECT(CONCATENATE($B256,"!O20"))),"",INDIRECT(CONCATENATE($B256,"!O20"))) ->  | R256: =IF(ISERROR(INDIRECT(CONCATENATE($B256,"!O21"))),"",INDIRECT(CONCATENATE($B256,"!O21"))) ->  | T256: =IF(ISERROR(INDIRECT(CONCATENATE($B256,"!P18"))),"",INDIRECT(CONCATENATE($B256,"!P18"))) ->  | U256: =IF(ISERROR(INDIRECT(CONCATENATE($B256,"!P19"))),"",INDIRECT(CONCATENATE($B256,"!P19"))) ->  | V256: =IF(ISERROR(INDIRECT(CONCATENATE($B256,"!P20"))),"",INDIRECT(CONCATENATE($B256,"!P20"))) ->  | W256: =IF(ISERROR(INDIRECT(CONCATENATE($B256,"!P21"))),"",INDIRECT(CONCATENATE($B256,"!P21"))) ->  | Y256: =IF(ISERROR(INDIRECT(CONCATENATE($B256,"!Q18"))),"",INDIRECT(CONCATENATE($B256,"!Q18"))) ->  | Z256: =IF(ISERROR(INDIRECT(CONCATENATE($B256,"!Q19"))),"",INDIRECT(CONCATENATE($B256,"!Q19"))) ->  | AA256: =IF(ISERROR(INDIRECT(CONCATENATE($B256,"!Q20"))),"",INDIRECT(CONCATENATE($B256,"!Q20"))) ->  | AB256: =IF(ISERROR(INDIRECT(CONCATENATE($B256,"!Q21"))),"",INDIRECT(CONCATENATE($B256,"!Q1"))) -> 
E257: =IF(ISERROR(INDIRECT(CONCATENATE($B257,"!M18"))),"",INDIRECT(CONCATENATE($B257,"!M18"))) ->  | F257: =IF(ISERROR(INDIRECT(CONCATENATE($B257,"!M19"))),"",INDIRECT(CONCATENATE($B257,"!M19"))) ->  | G257: =IF(ISERROR(INDIRECT(CONCATENATE($B257,"!M20"))),"",INDIRECT(CONCATENATE($B257,"!M20"))) ->  | H257: =IF(ISERROR(INDIRECT(CONCATENATE($B257,"!M21"))),"",INDIRECT(CONCATENATE($B257,"!M21"))) ->  | J257: =IF(ISERROR(INDIRECT(CONCATENATE($B257,"!N18"))),"",INDIRECT(CONCATENATE($B257,"!N18"))) ->  | K257: =IF(ISERROR(INDIRECT(CONCATENATE($B257,"!N19"))),"",INDIRECT(CONCATENATE($B257,"!N19"))) ->  | L257: =IF(ISERROR(INDIRECT(CONCATENATE($B257,"!N20"))),"",INDIRECT(CONCATENATE($B257,"!N20"))) ->  | M257: =IF(ISERROR(INDIRECT(CONCATENATE($B257,"!N21"))),"",INDIRECT(CONCATENATE($B257,"!N21"))) ->  | O257: =IF(ISERROR(INDIRECT(CONCATENATE($B257,"!O18"))),"",INDIRECT(CONCATENATE($B257,"!O18"))) ->  | P257: =IF(ISERROR(INDIRECT(CONCATENATE($B257,"!O19"))),"",INDIRECT(CONCATENATE($B257,"!O19"))) ->  | Q257: =IF(ISERROR(INDIRECT(CONCATENATE($B257,"!O20"))),"",INDIRECT(CONCATENATE($B257,"!O20"))) ->  | R257: =IF(ISERROR(INDIRECT(CONCATENATE($B257,"!O21"))),"",INDIRECT(CONCATENATE($B257,"!O21"))) ->  | T257: =IF(ISERROR(INDIRECT(CONCATENATE($B257,"!P18"))),"",INDIRECT(CONCATENATE($B257,"!P18"))) ->  | U257: =IF(ISERROR(INDIRECT(CONCATENATE($B257,"!P19"))),"",INDIRECT(CONCATENATE($B257,"!P19"))) ->  | V257: =IF(ISERROR(INDIRECT(CONCATENATE($B257,"!P20"))),"",INDIRECT(CONCATENATE($B257,"!P20"))) ->  | W257: =IF(ISERROR(INDIRECT(CONCATENATE($B257,"!P21"))),"",INDIRECT(CONCATENATE($B257,"!P21"))) ->  | Y257: =IF(ISERROR(INDIRECT(CONCATENATE($B257,"!Q18"))),"",INDIRECT(CONCATENATE($B257,"!Q18"))) ->  | Z257: =IF(ISERROR(INDIRECT(CONCATENATE($B257,"!Q19"))),"",INDIRECT(CONCATENATE($B257,"!Q19"))) ->  | AA257: =IF(ISERROR(INDIRECT(CONCATENATE($B257,"!Q20"))),"",INDIRECT(CONCATENATE($B257,"!Q20"))) ->  | AB257: =IF(ISERROR(INDIRECT(CONCATENATE($B257,"!Q21"))),"",INDIRECT(CONCATENATE($B257,"!Q1"))) -> 
A297: RURAL | D297: Poorest | I297: Poor | N297: Middle | S297: Rich | X297: Richest
D298: Improved | E298: Basic | F298: Limited | G298: Unimproved | H298: Surface water | I298: Improved | J298: Basic | K298: Limited | L298: Unimproved | M298: Surface water | N298: Improved | O298: Basic | P298: Limited | Q298: Unimproved | R298: Surface water | S298: Improved | T298: Basic | U298: Limited | V298: Unimproved | W298: Surface water | X298: Improved | Y298: Basic | Z298: Limited | AA298: Unimproved | AB298: Surface water
A299: Forecast period: | C299: 2000 | D299: =IF((D301+H301)>100,D301*100/(D301+H301),D301) -> 41.76310454 | E299: =D299*AVERAGEIF(E305:E316,">0")/100 -> 31.3223284 | F299: =D299*(100-AVERAGEIF(E305:E316,">0"))/100 -> 10.44077613 | G299: =100-(E299+F299+H299) -> 16.83788389 | H299: =IF((D301+H301)>100,H301*100/(D301+H301),H301) -> 41.39901157 | I299: =IF((I301+M301)>100,I301*100/(I301+M301),I301) -> 40.33896128 | J299: =I299*AVERAGEIF(J305:J316,">0")/100 -> 32.1904911 | K299: =I299*(100-AVERAGEIF(J305:J316,">0"))/100 -> 8.148470179 | L299: =100-(J299+K299+M299) -> 18.6731307 | M299: =IF((I301+M301)>100,M301*100/(I301+M301),M301) -> 40.98790802 | N299: =IF((N301+R301)>100,N301*100/(N301+R301),N301) -> 42.72680499 | O299: =N299*AVERAGEIF(O305:O316,">0")/100 -> 30.67784599 | P299: =N299*(100-AVERAGEIF(O305:O316,">0"))/100 -> 12.04895901 | Q299: =100-(O299+P299+R299) -> 16.01565191 | R299: =IF((N301+R301)>100,R301*100/(N301+R301),R301) -> 41.25754309 | S299: =IF((S301+W301)>100,S301*100/(S301+W301),S301) -> 49.4650038 | T299: =S299*AVERAGEIF(T305:T316,">0")/100 -> 40.11611808 | U299: =S299*(100-AVERAGEIF(T305:T316,">0"))/100 -> 9.348885718 | V299: =100-(T299+U299+W299) -> 20.19537329 | W299: =IF((S301+W301)>100,W301*100/(S301+W301),W301) -> 30.33962291 | X299: =IF((X301+AB301)>100,X301*100/(X301+AB301),X301) -> 67.12203659 | Y299: =X299*AVERAGEIF(Y305:Y316,">0")/100 -> 57.52358536 | Z299: =X299*(100-AVERAGEIF(Y305:Y316,">0"))/100 -> 9.598451233 | AA299: =100-(Y299+Z299+AB299) -> 12.86256302 | AB299: =IF((X301+AB301)>100,AB301*100/(X301+AB301),AB301) -> 20.01540039
C300: 2018 | D300: =IF((D302+H302)>100,D302*100/(D302+H302),D302) -> 52.65614924 | E300: =D300*AVERAGEIF(E305:E316,">0")/100 -> 39.49211193 | F300: =D300*(100-AVERAGEIF(E305:E316,">0"))/100 -> 13.16403731 | G300: =100-(E300+F300+H300) -> 7.110352684 | H300: =IF((D302+H302)>100,H302*100/(D302+H302),H302) -> 40.23349807 | I300: =IF((I302+M302)>100,I302*100/(I302+M302),I302) -> 61.52683979 | J300: =I300*AVERAGEIF(J305:J316,">0")/100 -> 49.09841815 | K300: =I300*(100-AVERAGEIF(J305:J316,">0"))/100 -> 12.42842164 | L300: =100-(J300+K300+M300) -> 4.121144884 | M300: =IF((I302+M302)>100,M302*100/(I302+M302),M302) -> 34.35201533 | N300: =IF((N302+R302)>100,N302*100/(N302+R302),N302) -> 71.27886583 | O300: =N300*AVERAGEIF(O305:O316,">0")/100 -> 51.17822567 | P300: =N300*(100-AVERAGEIF(O305:O316,">0"))/100 -> 20.10064017 | Q300: =100-(O300+P300+R300) -> 4.214058014 | R300: =IF((N302+R302)>100,R302*100/(N302+R302),R302) -> 24.50707615 | S300: =IF((S302+W302)>100,S302*100/(S302+W302),S302) -> 74.93916603 | T300: =S300*AVERAGEIF(T305:T316,">0")/100 -> 60.77566365 | U300: =S300*(100-AVERAGEIF(T305:T316,">0"))/100 -> 14.16350238 | V300: =100-(T300+U300+W300) -> 7.017437785 | W300: =IF((S302+W302)>100,W302*100/(S302+W302),W302) -> 18.04339618 | X300: =IF((X302+AB302)>100,X302*100/(X302+AB302),X302) -> 93.69632723 | Y300: =X300*AVERAGEIF(Y305:Y316,">0")/100 -> 80.29775244 | Z300: =X300*(100-AVERAGEIF(Y305:Y316,">0"))/100 -> 13.39857479 | AA300: =100-(Y300+Z300+AB300) -> 3.572906164 | AB300: =IF((X302+AB302)>100,AB302*100/(X302+AB302),AB302) -> 2.730766601
A301: Regression period: | C301: =MinRegYear(C299,C305:C316) -> 2000 | D301: =IF(MAX(C305:C316)-MIN(C305:C316)<5,AVERAGEIF(C305:C316,">0",D305:D316), IF(FORECAST($C301,D$305:D$316,$C$305:$C$316)<0,0, IF(FORECAST($C301,D$305:D$316,$C$305:$C$316)>100,100, FORECAST($C301,D$305:D$316,$C$305:$C$316)))) -> 41.76310454 | H301: =IF(MAX(C305:C316)-MIN(C305:C316)<5,AVERAGEIF(C305:C316,">0",H305:H316), IF(FORECAST($C301,H$305:H$316,$C$305:$C$316)<0,0, IF(FORECAST($C301,H$305:H$316,$C$305:$C$316)>100,100, FORECAST($C301,H$305:H$316,$C$305:$C$316)))) -> 41.39901157 | I301: =IF(MAX(C305:C316)-MIN(C305:C316)<5,AVERAGEIF(C305:C316,">0",I305:I316), IF(FORECAST($C301,I$305:I$316,$C$305:$C$316)<0,0, IF(FORECAST($C301,I$305:I$316,$C$305:$C$316)>100,100, FORECAST($C301,I$305:I$316,$C$305:$C$316)))) -> 40.33896128 | M301: =IF(MAX(C305:C316)-MIN(C305:C316)<5,AVERAGEIF(C305:C316,">0",M305:M316), IF(FORECAST($C301,M$305:M$316,$C$305:$C$316)<0,0, IF(FORECAST($C301,M$305:M$316,$C$305:$C$316)>100,100, FORECAST($C301,M$305:M$316,$C$305:$C$316)))) -> 40.98790802 | N301: =IF(MAX(C305:C316)-MIN(C305:C316)<5,AVERAGEIF(C305:C316,">0",N305:N316), IF(FORECAST($C301,N$305:N$316,$C$305:$C$316)<0,0, IF(FORECAST($C301,N$305:N$316,$C$305:$C$316)>100,100, FORECAST($C301,N$305:N$316,$C$305:$C$316)))) -> 42.72680499 | R301: =IF(MAX(C305:C316)-MIN(C305:C316)<5,AVERAGEIF(C305:C316,">0",R305:R316), IF(FORECAST($C301,R$305:R$316,$C$305:$C$316)<0,0, IF(FORECAST($C301,R$305:R$316,$C$305:$C$316)>100,100, FORECAST($C301,R$305:R$316,$C$305:$C$316)))) -> 41.25754309 | S301: =IF(MAX(C305:C316)-MIN(C305:C316)<5,AVERAGEIF(C305:C316,">0",S305:S316), IF(FORECAST($C301,S$305:S$316,$C$305:$C$316)<0,0, IF(FORECAST($C301,S$305:S$316,$C$305:$C$316)>100,100, FORECAST($C301,S$305:S$316,$C$305:$C$316)))) -> 49.4650038 | W301: =IF(MAX(C305:C316)-MIN(C305:C316)<5,AVERAGEIF(C305:C316,">0",W305:W316), IF(FORECAST($C301,W$305:W$316,$C$305:$C$316)<0,0, IF(FORECAST($C301,W$305:W$316,$C$305:$C$316)>100,100, FORECAST($C301,W$305:W$316,$C$305:$C$316)))) -> 30.33962291 | X301: =IF(MAX(C305:C316)-MIN(C305:C316)<5,AVERAGEIF(C305:C316,">0",X305:X316), IF(FORECAST($C301,X$305:X$316,$C$305:$C$316)<0,0, IF(FORECAST($C301,X$305:X$316,$C$305:$C$316)>100,100, FORECAST($C301,X$305:X$316,$C$305:$C$316)))) -> 67.12203659 | AB301: =IF(MAX(C305:C316)-MIN(C305:C316)<5,AVERAGEIF(C305:C316,">0",AB305:AB316), IF(FORECAST($C301,AB$305:AB$316,$C$305:$C$316)<0,0, IF(FORECAST($C301,AB$305:AB$316,$C$305:$C$316)>100,100, FORECAST($C301,AB$305:AB$316,$C$305:$C$316)))) -> 20.01540039
C302: =MaxRegYear(C300,C305:C316) -> 2014 | D302: =IF(MAX(C305:C316)-MIN(C305:C316)<5,AVERAGEIF(C305:C316,">0",D305:D316), IF(FORECAST($C302,D$305:D$316,$C$305:$C$316)<0,0, IF(FORECAST($C302,D$305:D$316,$C$305:$C$316)>100,100, FORECAST($C302,D$305:D$316,$C$305:$C$316)))) -> 52.65614924 | H302: =IF(MAX(C305:C316)-MIN(C305:C316)<5,AVERAGEIF(C305:C316,">0",H305:H316), IF(FORECAST($C302,H$305:H$316,$C$305:$C$316)<0,0, IF(FORECAST($C302,H$305:H$316,$C$305:$C$316)>100,100, FORECAST($C302,H$305:H$316,$C$305:$C$316)))) -> 40.23349807 | I302: =IF(MAX(C305:C316)-MIN(C305:C316)<5,AVERAGEIF(C305:C316,">0",I305:I316), IF(FORECAST($C302,I$305:I$316,$C$305:$C$316)<0,0, IF(FORECAST($C302,I$305:I$316,$C$305:$C$316)>100,100, FORECAST($C302,I$305:I$316,$C$305:$C$316)))) -> 61.52683979 | M302: =IF(MAX(C305:C316)-MIN(C305:C316)<5,AVERAGEIF(C305:C316,">0",M305:M316), IF(FORECAST($C302,M$305:M$316,$C$305:$C$316)<0,0, IF(FORECAST($C302,M$305:M$316,$C$305:$C$316)>100,100, FORECAST($C302,M$305:M$316,$C$305:$C$316)))) -> 34.35201533 | N302: =IF(MAX(C305:C316)-MIN(C305:C316)<5,AVERAGEIF(C305:C316,">0",N305:N316), IF(FORECAST($C302,N$305:N$316,$C$305:$C$316)<0,0, IF(FORECAST($C302,N$305:N$316,$C$305:$C$316)>100,100, FORECAST($C302,N$305:N$316,$C$305:$C$316)))) -> 71.27886583 | R302: =IF(MAX(C305:C316)-MIN(C305:C316)<5,AVERAGEIF(C305:C316,">0",R305:R316), IF(FORECAST($C302,R$305:R$316,$C$305:$C$316)<0,0, IF(FORECAST($C302,R$305:R$316,$C$305:$C$316)>100,100, FORECAST($C302,R$305:R$316,$C$305:$C$316)))) -> 24.50707615 | S302: =IF(MAX(C305:C316)-MIN(C305:C316)<5,AVERAGEIF(C305:C316,">0",S305:S316), IF(FORECAST($C302,S$305:S$316,$C$305:$C$316)<0,0, IF(FORECAST($C302,S$305:S$316,$C$305:$C$316)>100,100, FORECAST($C302,S$305:S$316,$C$305:$C$316)))) -> 74.93916603 | W302: =IF(MAX(C305:C316)-MIN(C305:C316)<5,AVERAGEIF(C305:C316,">0",W305:W316), IF(FORECAST($C302,W$305:W$316,$C$305:$C$316)<0,0, IF(FORECAST($C302,W$305:W$316,$C$305:$C$316)>100,100, FORECAST($C302,W$305:W$316,$C$305:$C$316)))) -> 18.04339618 | X302: =IF(MAX(C305:C316)-MIN(C305:C316)<5,AVERAGEIF(C305:C316,">0",X305:X316), IF(FORECAST($C302,X$305:X$316,$C$305:$C$316)<0,0, IF(FORECAST($C302,X$305:X$316,$C$305:$C$316)>100,100, FORECAST($C302,X$305:X$316,$C$305:$C$316)))) -> 93.69632723 | AB302: =IF(MAX(C305:C316)-MIN(C305:C316)<5,AVERAGEIF(C305:C316,">0",AB305:AB316), IF(FORECAST($C302,AB$305:AB$316,$C$305:$C$316)<0,0, IF(FORECAST($C302,AB$305:AB$316,$C$305:$C$316)>100,100, FORECAST($C302,AB$305:AB$316,$C$305:$C$316)))) -> 2.730766601
B304: Survey | C304: Year | D304: Improved | E304: % Improved < = 30min | H304: Surface water | I304: Improved | J304: % Improved < = 30min | M304: Surface water | N304: Improved | O304: % Improved < = 30min | R304: Surface water | S304: Improved | T304: % Improved < = 30min | W304: Surface water | X304: Improved | Y304: % Improved < = 30min | AB304: Surface water
B305: DHS00 | C305: 2000 | D305: =IF(ISERROR(INDIRECT(CONCATENATE($B305,"!M16"))),"",INDIRECT(CONCATENATE($B305,"!M16"))) -> 41.76310454 | E305: =IF(ISERROR(INDIRECT(CONCATENATE($B305,"!M23"))),"",INDIRECT(CONCATENATE($B305,"!M23"))) -> N/A | H305: =IF(ISERROR(INDIRECT(CONCATENATE($B305,"!M21"))),"",INDIRECT(CONCATENATE($B305,"!M21"))) -> 41.39901157 | I305: =IF(ISERROR(INDIRECT(CONCATENATE($B305,"!N16"))),"",INDIRECT(CONCATENATE($B305,"!N16"))) -> 40.33896128 | J305: =IF(ISERROR(INDIRECT(CONCATENATE($B305,"!N23"))),"",INDIRECT(CONCATENATE($B305,"!N23"))) -> N/A | M305: =IF(ISERROR(INDIRECT(CONCATENATE($B305,"!N21"))),"",INDIRECT(CONCATENATE($B305,"!N21"))) -> 40.98790802 | N305: =IF(ISERROR(INDIRECT(CONCATENATE($B305,"!O16"))),"",INDIRECT(CONCATENATE($B305,"!O16"))) -> 42.72680499 | O305: =IF(ISERROR(INDIRECT(CONCATENATE($B305,"!O23"))),"",INDIRECT(CONCATENATE($B305,"!O23"))) -> N/A | R305: =IF(ISERROR(INDIRECT(CONCATENATE($B305,"!O21"))),"",INDIRECT(CONCATENATE($B305,"!O21"))) -> 41.25754309 | S305: =IF(ISERROR(INDIRECT(CONCATENATE($B305,"!P16"))),"",INDIRECT(CONCATENATE($B305,"!P16"))) -> 49.4650038 | T305: =IF(ISERROR(INDIRECT(CONCATENATE($B305,"!P23"))),"",INDIRECT(CONCATENATE($B305,"!P23"))) -> N/A | W305: =IF(ISERROR(INDIRECT(CONCATENATE($B305,"!P21"))),"",INDIRECT(CONCATENATE($B305,"!P21"))) -> 30.33962291 | X305: =IF(ISERROR(INDIRECT(CONCATENATE($B305,"!Q16"))),"",INDIRECT(CONCATENATE($B305,"!Q16"))) -> 67.12203659 | Y305: =IF(ISERROR(INDIRECT(CONCATENATE($B305,"!Q23"))),"",INDIRECT(CONCATENATE($B305,"!Q23"))) -> N/A | AB305: =IF(ISERROR(INDIRECT(CONCATENATE($B305,"!Q221"))),"",INDIRECT(CONCATENATE($B305,"!Q21"))) -> 20.01540039
B306: DHS12 | C306: 2012 | D306: 51.1 | E306: 75 | H306: 40.4 | I306: 58.5 | J306: 79.8 | M306: 35.3 | N306: 67.2 | O306: 71.8 | R306: 26.9 | S306: 71.3 | T306: 81.1 | W306: 19.8 | X306: 89.9 | Y306: 85.7 | AB306: 5.2
B318: =CONCATENATE("Rural use of drinking water sources, ",C299,"–",C300) -> Rural use of drinking water sources, 2000–2018 | S318: Data points used for regression

Sheet Sanitation
B4: Summary of trends in use of sanitation facilities by wealth quintile (%)
B5: =IF(ISERROR(INDIRECT(CONCATENATE($B105,"!A2"))),"",INDIRECT(CONCATENATE($B105,"!A2"))) -> Gabon
B7: =B118 -> National use of sanitation facilities, 2000–2018 | J7: =B218 -> Urban use of sanitation facilities, 2000–2018 | R7: =B318 -> Rural use of sanitation facilities, 2000–2018
B31: =IF(ISERROR(INDIRECT(CONCATENATE($B105,"!A2"))),"",INDIRECT(CONCATENATE($B105,"!A2"))) -> Gabon | F31: Poorest | J31: Poor | N31: Middle | R31: Rich | V31: Richest
F32: Basic | G32: Limited | H32: Unimproved | I32: Open defecation | J32: Basic | K32: Limited | L32: Unimproved | M32: Open defecation | N32: Basic | O32: Limited | P32: Unimproved | Q32: Open defecation | R32: Basic | S32: Limited | T32: Unimproved | U32: Open defecation | V32: Basic | W32: Limited | X32: Unimproved | Y32: Open defecation
B33: NATIONAL | D33: Estimate | E33: =C99 -> 2000 | F33: =E99 -> 17.65013589 | G33: =F99 -> 31.18997304 | H33: 46.32637921 | I33: 4.833511862 | J33: =J99 -> 17.47658232 | K33: =K99 -> 42.12824947 | L33: 37.59266411 | M33: 2.802504104 | N33: =O99 -> 29.05696862 | O33: =P99 -> 42.44666003 | P33: 26.72925831 | Q33: 1.767113041 | R33: =T99 -> 55.96375132 | S33: =U99 -> 29.26071782 | T33: 14.03985972 | U33: 0.7356711347 | V33: =Y99 -> 87.46820806 | W33: =Z99 -> 8.482687162 | X33: 3.904084229 | Y33: 0.1450205476
E34: =C100 -> 2018 | F34: =E100 -> 14.15685517 | G34: 25.01691398 | H34: 54.77822047 | I34: 6.048010384 | J34: =J100 -> 14.92509408 | K34: 35.9777487 | L34: 46.63593581 | M34: 2.461221416 | N34: =O100 -> 24.21752673 | O34: 35.3771633 | P34: 38.74458032 | Q34: 1.660729655 | R34: =T100 -> 49.51155943 | S34: 25.88718117 | T34: 22.83444692 | U34: 1.76681248 | V34: =Y100 -> 85.5592713 | W34: 8.297558031 | X34: 6.107817225 | Y34: 0.0353534428
B36: URBAN | D36: Estimate | E36: =C199 -> 2000 | F36: =E199 -> 16.13496967 | G36: =F199 -> 40.87413969 | H36: 39.32933039 | I36: 3.661560259 | J36: =J199 -> 22.73646168 | K36: =K199 -> 47.97825219 | L36: 27.05036383 | M36: 2.234922302 | N36: =O199 -> 35.33081452 | O36: =P199 -> 42.74556087 | P36: 20.81113486 | Q36: 1.112489738 | R36: =T199 -> 64.11710984 | S36: =U199 -> 25.80462979 | T36: 9.732772029 | U36: 0.345488344 | V36: =Y199 -> 88.66367431 | W36: =Z199 -> 8.378310045 | X36: 2.958015641 | Y36: 0
E37: =C200 -> 2018 | F37: =E200 -> 12.36237977 | G37: 31.31717307 | H37: 51.62468448 | I37: 4.695762677 | J37: =J200 -> 17.22158692 | K37: 36.34081908 | L37: 45.14597822 | M37: 1.291615772 | N37: =O200 -> 29.44437913 | O37: 35.62376122 | P37: 33.0695495 | Q37: 1.86231015 | R37: =T200 -> 54.48426046 | S37: 21.92778455 | T37: 21.61497994 | U37: 1.972975046 | V37: =Y200 -> 88.08538295 | W37: 8.323664167 | X37: 3.590952879 | Y37: 0
B39: RURAL | D39: Estimate | E39: =C299 -> 2000 | F39: =E299 -> 23.62090876 | G39: =F299 -> 24.93697867 | H39: 48.34173649 | I39: 3.100376087 | J39: =J299 -> 18.35493012 | K39: =K299 -> 29.3499862 | L39: 44.63795748 | M39: 7.657126198 | N39: =O299 -> 31.47742699 | O39: =P299 -> 18.05117397 | P39: 47.09353723 | Q39: 3.377861805 | R39: =T299 -> 34.83825897 | S39: =U299 -> 20.43000074 | T39: 41.91611307 | U39: 2.815627212 | V39: =Y299 -> 53.86326572 | W39: =Z299 -> 17.41482066 | X39: 26.89449619 | Y39: 1.82741743
E40: =C300 -> 2018 | F40: =E300 -> 17.65213732 | G40: 18.6356493 | H40: 54.70589574 | I40: 9.006317638 | J40: =J300 -> 14.30872136 | K40: 22.87999855 | L40: 57.01805456 | M40: 5.793225527 | N40: =O300 -> 24.18030263 | O40: 13.86653519 | P40: 57.04602458 | Q40: 4.907137599 | R40: =T300 -> 27.48533345 | S40: 16.11806672 | T40: 53.00600213 | U40: 3.390597698 | V40: =Y300 -> 48.35001641 | W40: 15.63230252 | X40: 34.49241398 | Y40: 1.525267084
A97: NATIONAL | D97: Poorest | I97: Poor | N97: Middle | S97: Rich | X97: Richest
D98: Improved | E98: Basic | F98: Limited | G98: Unimproved | H98: Open defecation | I98: Improved | J98: Basic | K98: Limited | L98: Unimproved | M98: Open defecation | N98: Improved | O98: Basic | P98: Limited | Q98: Unimproved | R98: Open defecation | S98: Improved | T98: Basic | U98: Limited | V98: Unimproved | W98: Open defecation | X98: Improved | Y98: Basic | Z98: Limited | AA98: Unimproved | AB98: Open defecation
A99: Forecast period: | C99: 2000 | D99: =IF((D101+H101)>100,D101*100/(D101+H101),D101) -> 48.84010893 | E99: =D99*AVERAGEIF(E105:E116,">0")/100 -> 17.65013589 | F99: =D99*(100-AVERAGEIF(E105:E116,">0"))/100 -> 31.18997304 | G99: =100-(E99+F99+H99) -> 46.32637921 | H99: =IF((D101+H101)>100,H101*100/(D101+H101),H101) -> 4.833511862 | I99: =IF((I101+M101)>100,I101*100/(I101+M101),I101) -> 59.60483179 | J99: =I99*AVERAGEIF(J105:J116,">0")/100 -> 17.47658232 | K99: =I99*(100-AVERAGEIF(J105:J116,">0"))/100 -> 42.12824947 | L99: =100-(J99+K99+M99) -> 37.59266411 | M99: =IF((I101+M101)>100,M101*100/(I101+M101),M101) -> 2.802504104 | N99: =IF((N101+R101)>100,N101*100/(N101+R101),N101) -> 71.50362865 | O99: =N99*AVERAGEIF(O105:O116,">0")/100 -> 29.05696862 | P99: =N99*(100-AVERAGEIF(O105:O116,">0"))/100 -> 42.44666003 | Q99: =100-(O99+P99+R99) -> 26.72925831 | R99: =IF((N101+R101)>100,R101*100/(N101+R101),R101) -> 1.767113041 | S99: =IF((S101+W101)>100,S101*100/(S101+W101),S101) -> 85.22446915 | T99: =S99*AVERAGEIF(T105:T116,">0")/100 -> 55.96375132 | U99: =S99*(100-AVERAGEIF(T105:T116,">0"))/100 -> 29.26071782 | V99: =100-(T99+U99+W99) -> 14.03985972 | W99: =IF((S101+W101)>100,W101*100/(S101+W101),W101) -> 0.7356711347 | X99: =IF((X101+AB101)>100,X101*100/(X101+AB101),X101) -> 95.95089522 | Y99: =X99*AVERAGEIF(Y105:Y116,">0")/100 -> 87.46820806 | Z99: =X99*(100-AVERAGEIF(Y105:Y116,">0"))/100 -> 8.482687162 | AA99: =100-(Y99+Z99+AB99) -> 3.904084229 | AB99: =IF((X101+AB101)>100,AB101*100/(X101+AB101),AB101) -> 0.1450205476
C100: 2018 | D100: =IF((D102+H102)>100,D102*100/(D102+H102),D102) -> 39.17376915 | E100: =D100*AVERAGEIF(E105:E116,">0")/100 -> 14.15685517 | F100: =D100*(100-AVERAGEIF(E105:E116,">0"))/100 -> 25.01691398 | G100: =100-(E100+F100+H100) -> 54.77822047 | H100: =IF((D102+H102)>100,H102*100/(D102+H102),H102) -> 6.048010384 | I100: =IF((I102+M102)>100,I102*100/(I102+M102),I102) -> 50.90284278 | J100: =I100*AVERAGEIF(J105:J116,">0")/100 -> 14.92509408 | K100: =I100*(100-AVERAGEIF(J105:J116,">0"))/100 -> 35.9777487 | L100: =100-(J100+K100+M100) -> 46.63593581 | M100: =IF((I102+M102)>100,M102*100/(I102+M102),M102) -> 2.461221416 | N100: =IF((N102+R102)>100,N102*100/(N102+R102),N102) -> 59.59469003 | O100: =N100*AVERAGEIF(O105:O116,">0")/100 -> 24.21752673 | P100: =N100*(100-AVERAGEIF(O105:O116,">0"))/100 -> 35.3771633 | Q100: =100-(O100+P100+R100) -> 38.74458032 | R100: =IF((N102+R102)>100,R102*100/(N102+R102),R102) -> 1.660729655 | S100: =IF((S102+W102)>100,S102*100/(S102+W102),S102) -> 75.3987406 | T100: =S100*AVERAGEIF(T105:T116,">0")/100 -> 49.51155943 | U100: =S100*(100-AVERAGEIF(T105:T116,">0"))/100 -> 25.88718117 | V100: =100-(T100+U100+W100) -> 22.83444692 | W100: =IF((S102+W102)>100,W102*100/(S102+W102),W102) -> 1.76681248 | X100: =IF((X102+AB102)>100,X102*100/(X102+AB102),X102) -> 93.85682933 | Y100: =X100*AVERAGEIF(Y105:Y116,">0")/100 -> 85.5592713 | Z100: =X100*(100-AVERAGEIF(Y105:Y116,">0"))/100 -> 8.297558031 | AA100: =100-(Y100+Z100+AB100) -> 6.107817225 | AB100: =IF((X102+AB102)>100,AB102*100/(X102+AB102),AB102) -> 0.0353534428
A101: Regression period: | C101: =MinRegYear(C99,C105:C116) -> 2000 | D101: =IF(MAX(C105:C116)-MIN(C105:C116)<5,AVERAGEIF(C105:C116,">0",D105:D116), IF(FORECAST($C101,D$105:D$116,$C$105:$C$116)<0,0, IF(FORECAST($C101,D$105:D$116,$C$105:$C$116)>100,100, FORECAST($C101,D$105:D$116,$C$105:$C$116)))) -> 48.84010893 | H101: =IF(MAX(C105:C116)-MIN(C105:C116)<5,AVERAGEIF(C105:C116,">0",H105:H116), IF(FORECAST($C101,H$105:H$116,$C$105:$C$116)<0,0, IF(FORECAST($C101,H$105:H$116,$C$105:$C$116)>100,100, FORECAST($C101,H$105:H$116,$C$105:$C$116)))) -> 4.833511862 | I101: =IF(MAX(C105:C116)-MIN(C105:C116)<5,AVERAGEIF(C105:C116,">0",I105:I116), IF(FORECAST($C101,I$105:I$116,$C$105:$C$116)<0,0, IF(FORECAST($C101,I$105:I$116,$C$105:$C$116)>100,100, FORECAST($C101,I$105:I$116,$C$105:$C$116)))) -> 59.60483179 | M101: =IF(MAX(C105:C116)-MIN(C105:C116)<5,AVERAGEIF(C105:C116,">0",M105:M116), IF(FORECAST($C101,M$105:M$116,$C$105:$C$116)<0,0, IF(FORECAST($C101,M$105:M$116,$C$105:$C$116)>100,100, FORECAST($C101,M$105:M$116,$C$105:$C$116)))) -> 2.802504104 | N101: =IF(MAX(C105:C116)-MIN(C105:C116)<5,AVERAGEIF(C105:C116,">0",N105:N116), IF(FORECAST($C101,N$105:N$116,$C$105:$C$116)<0,0, IF(FORECAST($C101,N$105:N$116,$C$105:$C$116)>100,100, FORECAST($C101,N$105:N$116,$C$105:$C$116)))) -> 71.50362865 | R101: =IF(MAX(C105:C116)-MIN(C105:C116)<5,AVERAGEIF(C105:C116,">0",R105:R116), IF(FORECAST($C101,R$105:R$116,$C$105:$C$116)<0,0, IF(FORECAST($C101,R$105:R$116,$C$105:$C$116)>100,100, FORECAST($C101,R$105:R$116,$C$105:$C$116)))) -> 1.767113041 | S101: =IF(MAX(C105:C116)-MIN(C105:C116)<5,AVERAGEIF(C105:C116,">0",S105:S116), IF(FORECAST($C101,S$105:S$116,$C$105:$C$116)<0,0, IF(FORECAST($C101,S$105:S$116,$C$105:$C$116)>100,100, FORECAST($C101,S$105:S$116,$C$105:$C$116)))) -> 85.22446915 | W101: =IF(MAX(C105:C116)-MIN(C105:C116)<5,AVERAGEIF(C105:C116,">0",W105:W116), IF(FORECAST($C101,W$105:W$116,$C$105:$C$116)<0,0, IF(FORECAST($C101,W$105:W$116,$C$105:$C$116)>100,100, FORECAST($C101,W$105:W$116,$C$105:$C$116)))) -> 0.7356711347 | X101: =IF(MAX(C105:C116)-MIN(C105:C116)<5,AVERAGEIF(C105:C116,">0",X105:X116), IF(FORECAST($C101,X$105:X$116,$C$105:$C$116)<0,0, IF(FORECAST($C101,X$105:X$116,$C$105:$C$116)>100,100, FORECAST($C101,X$105:X$116,$C$105:$C$116)))) -> 95.95089522 | AB101: =IF(MAX(C105:C116)-MIN(C105:C116)<5,AVERAGEIF(C105:C116,">0",AB105:AB116), IF(FORECAST($C101,AB$105:AB$116,$C$105:$C$116)<0,0, IF(FORECAST($C101,AB$105:AB$116,$C$105:$C$116)>100,100, FORECAST($C101,AB$105:AB$116,$C$105:$C$116)))) -> 0.1450205476
C102: =MaxRegYear(C100,C105:C116) -> 2014 | D102: =IF(MAX(C105:C116)-MIN(C105:C116)<5,AVERAGEIF(C105:C116,">0",D105:D116), IF(FORECAST($C102,D$105:D$116,$C$105:$C$116)<0,0, IF(FORECAST($C102,D$105:D$116,$C$105:$C$116)>100,100, FORECAST($C102,D$105:D$116,$C$105:$C$116)))) -> 39.17376915 | H102: =IF(MAX(C105:C116)-MIN(C105:C116)<5,AVERAGEIF(C105:C116,">0",H105:H116), IF(FORECAST($C102,H$105:H$116,$C$105:$C$116)<0,0, IF(FORECAST($C102,H$105:H$116,$C$105:$C$116)>100,100, FORECAST($C102,H$105:H$116,$C$105:$C$116)))) -> 6.048010384 | I102: =IF(MAX(C105:C116)-MIN(C105:C116)<5,AVERAGEIF(C105:C116,">0",I105:I116), IF(FORECAST($C102,I$105:I$116,$C$105:$C$116)<0,0, IF(FORECAST($C102,I$105:I$116,$C$105:$C$116)>100,100, FORECAST($C102,I$105:I$116,$C$105:$C$116)))) -> 50.90284278 | M102: =IF(MAX(C105:C116)-MIN(C105:C116)<5,AVERAGEIF(C105:C116,">0",M105:M116), IF(FORECAST($C102,M$105:M$116,$C$105:$C$116)<0,0, IF(FORECAST($C102,M$105:M$116,$C$105:$C$116)>100,100, FORECAST($C102,M$105:M$116,$C$105:$C$116)))) -> 2.461221416 | N102: =IF(MAX(C105:C116)-MIN(C105:C116)<5,AVERAGEIF(C105:C116,">0",N105:N116), IF(FORECAST($C102,N$105:N$116,$C$105:$C$116)<0,0, IF(FORECAST($C102,N$105:N$116,$C$105:$C$116)>100,100, FORECAST($C102,N$105:N$116,$C$105:$C$116)))) -> 59.59469003 | R102: =IF(MAX(C105:C116)-MIN(C105:C116)<5,AVERAGEIF(C105:C116,">0",R105:R116), IF(FORECAST($C102,R$105:R$116,$C$105:$C$116)<0,0, IF(FORECAST($C102,R$105:R$116,$C$105:$C$116)>100,100, FORECAST($C102,R$105:R$116,$C$105:$C$116)))) -> 1.660729655 | S102: =IF(MAX(C105:C116)-MIN(C105:C116)<5,AVERAGEIF(C105:C116,">0",S105:S116), IF(FORECAST($C102,S$105:S$116,$C$105:$C$116)<0,0, IF(FORECAST($C102,S$105:S$116,$C$105:$C$116)>100,100, FORECAST($C102,S$105:S$116,$C$105:$C$116)))) -> 75.3987406 | W102: =IF(MAX(C105:C116)-MIN(C105:C116)<5,AVERAGEIF(C105:C116,">0",W105:W116), IF(FORECAST($C102,W$105:W$116,$C$105:$C$116)<0,0, IF(FORECAST($C102,W$105:W$116,$C$105:$C$116)>100,100, FORECAST($C102,W$105:W$116,$C$105:$C$116)))) -> 1.76681248 | X102: =IF(MAX(C105:C116)-MIN(C105:C116)<5,AVERAGEIF(C105:C116,">0",X105:X116), IF(FORECAST($C102,X$105:X$116,$C$105:$C$116)<0,0, IF(FORECAST($C102,X$105:X$116,$C$105:$C$116)>100,100, FORECAST($C102,X$105:X$116,$C$105:$C$116)))) -> 93.85682933 | AB102: =IF(MAX(C105:C116)-MIN(C105:C116)<5,AVERAGEIF(C105:C116,">0",AB105:AB116), IF(FORECAST($C102,AB$105:AB$116,$C$105:$C$116)<0,0, IF(FORECAST($C102,AB$105:AB$116,$C$105:$C$116)>100,100, FORECAST($C102,AB$105:AB$116,$C$105:$C$116)))) -> 0.0353534428
B104: Survey | C104: Year | D104: Improved | E104: Not shared | H104: Open defecation | I104: Improved | J104: Not shared | M104: Open defecation | N104: Improved | O104: Not shared | R104: Open defecation | S104: Improved | T104: Not shared | W104: Open defecation | X104: Improved | Y104: Not shared | AB104: Open defecation
B105: DHS00 | C105: 2000 | D105: =IF(ISERROR(INDIRECT(CONCATENATE($B105,"!C122"))),"",INDIRECT(CONCATENATE($B105,"!C122"))) -> 48.84010893 | E105: =IF(ISERROR(INDIRECT(CONCATENATE($B105,"!C129"))),"",INDIRECT(CONCATENATE($B105,"!C129"))) -> N/A | H105: =IF(ISERROR(INDIRECT(CONCATENATE($B105,"!C127"))),"",INDIRECT(CONCATENATE($B105,"!C127"))) -> 4.833511862 | I105: =IF(ISERROR(INDIRECT(CONCATENATE($B105,"!D122"))),"",INDIRECT(CONCATENATE($B105,"!D122"))) -> 59.60483179 | J105: =IF(ISERROR(INDIRECT(CONCATENATE($B105,"!D129"))),"",INDIRECT(CONCATENATE($B105,"!D129"))) -> N/A | M105: =IF(ISERROR(INDIRECT(CONCATENATE($B105,"!D127"))),"",INDIRECT(CONCATENATE($B105,"!D127"))) -> 2.802504104 | N105: =IF(ISERROR(INDIRECT(CONCATENATE($B105,"!E122"))),"",INDIRECT(CONCATENATE($B105,"!E122"))) -> 71.50362865 | O105: =IF(ISERROR(INDIRECT(CONCATENATE($B105,"!E129"))),"",INDIRECT(CONCATENATE($B105,"!E129"))) -> N/A | R105: =IF(ISERROR(INDIRECT(CONCATENATE($B105,"!E127"))),"",INDIRECT(CONCATENATE($B105,"!E127"))) -> 1.767113041 | S105: =IF(ISERROR(INDIRECT(CONCATENATE($B105,"!F122"))),"",INDIRECT(CONCATENATE($B105,"!F122"))) -> 85.22446915 | T105: =IF(ISERROR(INDIRECT(CONCATENATE($B105,"!F129"))),"",INDIRECT(CONCATENATE($B105,"!F129"))) -> N/A | W105: =IF(ISERROR(INDIRECT(CONCATENATE($B105,"!F127"))),"",INDIRECT(CONCATENATE($B105,"!F127"))) -> 0.7356711347 | X105: =IF(ISERROR(INDIRECT(CONCATENATE($B105,"!G122"))),"",INDIRECT(CONCATENATE($B105,"!G122"))) -> 95.95089522 | Y105: =IF(ISERROR(INDIRECT(CONCATENATE($B105,"!G129"))),"",INDIRECT(CONCATENATE($B105,"!G129"))) -> N/A | AB105: =IF(ISERROR(INDIRECT(CONCATENATE($B105,"!G2127"))),"",INDIRECT(CONCATENATE($B105,"!G127"))) -> 0.1450205476
B106: DHS12 | C106: 2012 | D106: 40.55467483 | E106: 36.13860877 | H106: 5.874510595 | I106: 52.14598406 | J106: 29.32074765 | M106: 2.509976085 | N106: 61.29596698 | O106: 40.6370546 | R106: 1.675927282 | S106: 76.8024161 | T106: 65.666295 | W106: 1.619506573 | X106: 94.1559816 | Y106: 91.15934547 | AB106: 0.05102017206
B118: =CONCATENATE("National use of sanitation facilities, ",C99,"–",C100) -> National use of sanitation facilities, 2000–2018 | S118: Data points used for regression
A197: URBAN | D197: Poorest | I197: Poor | N197: Middle | S197: Rich | X197: Richest
D198: Improved | E198: Basic | F198: Limited | G198: Unimproved | H198: Open defecation | I198: Improved | J198: Basic | K198: Limited | L198: Unimproved | M198: Open defecation | N198: Improved | O198: Basic | P198: Limited | Q198: Unimproved | R198: Open defecation | S198: Improved | T198: Basic | U198: Limited | V198: Unimproved | W198: Open defecation | X198: Improved | Y198: Basic | Z198: Limited | AA198: Unimproved | AB198: Open defecation
A199: Forecast period: | C199: =MinBase(C205:C216) -> 2000 | D199: =IF((D201+H201)>100,D201*100/(D201+H201),D201) -> 57.00910935 | E199: =D199*AVERAGEIF(E205:E216,">0")/100 -> 16.13496967 | F199: =D199*(100-AVERAGEIF(E205:E216,">0"))/100 -> 40.87413969 | G199: =100-(E199+F199+H199) -> 39.32933039 | H199: =IF((D201+H201)>100,H201*100/(D201+H201),H201) -> 3.661560259 | I199: =IF((I201+M201)>100,I201*100/(I201+M201),I201) -> 70.71471387 | J199: =I199*AVERAGEIF(J205:J216,">0")/100 -> 22.73646168 | K199: =I199*(100-AVERAGEIF(J205:J216,">0"))/100 -> 47.97825219 | L199: =100-(J199+K199+M199) -> 27.05036383 | M199: =IF((I201+M201)>100,M201*100/(I201+M201),M201) -> 2.234922302 | N199: =IF((N201+R201)>100,N201*100/(N201+R201),N201) -> 78.0763754 | O199: =N199*AVERAGEIF(O205:O216,">0")/100 -> 35.33081452 | P199: =N199*(100-AVERAGEIF(O205:O216,">0"))/100 -> 42.74556087 | Q199: =100-(O199+P199+R199) -> 20.81113486 | R199: =IF((N201+R201)>100,R201*100/(N201+R201),R201) -> 1.112489738 | S199: =IF((S201+W201)>100,S201*100/(S201+W201),S201) -> 89.92173963 | T199: =S199*AVERAGEIF(T205:T216,">0")/100 -> 64.11710984 | U199: =S199*(100-AVERAGEIF(T205:T216,">0"))/100 -> 25.80462979 | V199: =100-(T199+U199+W199) -> 9.732772029 | W199: =IF((S201+W201)>100,W201*100/(S201+W201),W201) -> 0.345488344 | X199: =IF((X201+AB201)>100,X201*100/(X201+AB201),X201) -> 97.04198436 | Y199: =X199*AVERAGEIF(Y205:Y216,">0")/100 -> 88.66367431 | Z199: =X199*(100-AVERAGEIF(Y205:Y216,">0"))/100 -> 8.378310045 | AA199: =100-(Y199+Z199+AB199) -> 2.958015641 | AB199: =IF((X201+AB201)>100,AB201*100/(X201+AB201),AB201) -> 0
C200: =MaxTarget(C205:C216) -> 2018 | D200: =IF((D202+H202)>100,D202*100/(D202+H202),D202) -> 43.67955285 | E200: =D200*AVERAGEIF(E205:E216,">0")/100 -> 12.36237977 | F200: =D200*(100-AVERAGEIF(E205:E216,">0"))/100 -> 31.31717307 | G200: =100-(E200+F200+H200) -> 51.62468448 | H200: =IF((D202+H202)>100,H202*100/(D202+H202),H202) -> 4.695762677 | I200: =IF((I202+M202)>100,I202*100/(I202+M202),I202) -> 53.562406 | J200: =I200*AVERAGEIF(J205:J216,">0")/100 -> 17.22158692 | K200: =I200*(100-AVERAGEIF(J205:J216,">0"))/100 -> 36.34081908 | L200: =100-(J200+K200+M200) -> 45.14597822 | M200: =IF((I202+M202)>100,M202*100/(I202+M202),M202) -> 1.291615772 | N200: =IF((N202+R202)>100,N202*100/(N202+R202),N202) -> 65.06814035 | O200: =N200*AVERAGEIF(O205:O216,">0")/100 -> 29.44437913 | P200: =N200*(100-AVERAGEIF(O205:O216,">0"))/100 -> 35.62376122 | Q200: =100-(O200+P200+R200) -> 33.0695495 | R200: =IF((N202+R202)>100,R202*100/(N202+R202),R202) -> 1.86231015 | S200: =IF((S202+W202)>100,S202*100/(S202+W202),S202) -> 76.41204502 | T200: =S200*AVERAGEIF(T205:T216,">0")/100 -> 54.48426046 | U200: =S200*(100-AVERAGEIF(T205:T216,">0"))/100 -> 21.92778455 | V200: =100-(T200+U200+W200) -> 21.61497994 | W200: =IF((S202+W202)>100,W202*100/(S202+W202),W202) -> 1.972975046 | X200: =IF((X202+AB202)>100,X202*100/(X202+AB202),X202) -> 96.40904712 | Y200: =X200*AVERAGEIF(Y205:Y216,">0")/100 -> 88.08538295 | Z200: =X200*(100-AVERAGEIF(Y205:Y216,">0"))/100 -> 8.323664167 | AA200: =100-(Y200+Z200+AB200) -> 3.590952879 | AB200: =IF((X202+AB202)>100,AB202*100/(X202+AB202),AB202) -> 0
A201: Regression period: | C201: =MinRegYear(C199,C205:C216) -> 2000 | D201: =IF(MAX(C205:C216)-MIN(C205:C216)<5,AVERAGEIF(C205:C216,">0",D205:D216), IF(FORECAST($C201,D$205:D$216,$C$205:$C$216)<0,0, IF(FORECAST($C201,D$205:D$216,$C$205:$C$216)>100,100, FORECAST($C201,D$205:D$216,$C$205:$C$216)))) -> 57.00910935 | H201: =IF(MAX(C205:C216)-MIN(C205:C216)<5,AVERAGEIF(C205:C216,">0",H205:H216), IF(FORECAST($C201,H$205:H$216,$C$205:$C$216)<0,0, IF(FORECAST($C201,H$205:H$216,$C$205:$C$216)>100,100, FORECAST($C201,H$205:H$216,$C$205:$C$216)))) -> 3.661560259 | I201: =IF(MAX(C205:C216)-MIN(C205:C216)<5,AVERAGEIF(C205:C216,">0",I205:I216), IF(FORECAST($C201,I$205:I$216,$C$205:$C$216)<0,0, IF(FORECAST($C201,I$205:I$216,$C$205:$C$216)>100,100, FORECAST($C201,I$205:I$216,$C$205:$C$216)))) -> 70.71471387 | M201: =IF(MAX(C205:C216)-MIN(C205:C216)<5,AVERAGEIF(C205:C216,">0",M205:M216), IF(FORECAST($C201,M$205:M$216,$C$205:$C$216)<0,0, IF(FORECAST($C201,M$205:M$216,$C$205:$C$216)>100,100, FORECAST($C201,M$205:M$216,$C$205:$C$216)))) -> 2.234922302 | N201: =IF(MAX(C205:C216)-MIN(C205:C216)<5,AVERAGEIF(C205:C216,">0",N205:N216), IF(FORECAST($C201,N$205:N$216,$C$205:$C$216)<0,0, IF(FORECAST($C201,N$205:N$216,$C$205:$C$216)>100,100, FORECAST($C201,N$205:N$216,$C$205:$C$216)))) -> 78.0763754 | R201: =IF(MAX(C205:C216)-MIN(C205:C216)<5,AVERAGEIF(C205:C216,">0",R205:R216), IF(FORECAST($C201,R$205:R$216,$C$205:$C$216)<0,0, IF(FORECAST($C201,R$205:R$216,$C$205:$C$216)>100,100, FORECAST($C201,R$205:R$216,$C$205:$C$216)))) -> 1.112489738 | S201: =IF(MAX(C205:C216)-MIN(C205:C216)<5,AVERAGEIF(C205:C216,">0",S205:S216), IF(FORECAST($C201,S$205:S$216,$C$205:$C$216)<0,0, IF(FORECAST($C201,S$205:S$216,$C$205:$C$216)>100,100, FORECAST($C201,S$205:S$216,$C$205:$C$216)))) -> 89.92173963 | W201: =IF(MAX(C205:C216)-MIN(C205:C216)<5,AVERAGEIF(C205:C216,">0",W205:W216), IF(FORECAST($C201,W$205:W$216,$C$205:$C$216)<0,0, IF(FORECAST($C201,W$205:W$216,$C$205:$C$216)>100,100, FORECAST($C201,W$205:W$216,$C$205:$C$216)))) -> 0.345488344 | X201: =IF(MAX(C205:C216)-MIN(C205:C216)<5,AVERAGEIF(C205:C216,">0",X205:X216), IF(FORECAST($C201,X$205:X$216,$C$205:$C$216)<0,0, IF(FORECAST($C201,X$205:X$216,$C$205:$C$216)>100,100, FORECAST($C201,X$205:X$216,$C$205:$C$216)))) -> 97.04198436 | AB201: =IF(MAX(C205:C216)-MIN(C205:C216)<5,AVERAGEIF(C205:C216,">0",AB205:AB216), IF(FORECAST($C201,AB$205:AB$216,$C$205:$C$216)<0,0, IF(FORECAST($C201,AB$205:AB$216,$C$205:$C$216)>100,100, FORECAST($C201,AB$205:AB$216,$C$205:$C$216)))) -> 0
C202: =MaxRegYear(C200,C205:C216) -> 2014 | D202: =IF(MAX(C205:C216)-MIN(C205:C216)<5,AVERAGEIF(C205:C216,">0",D205:D216), IF(FORECAST($C202,D$205:D$216,$C$205:$C$216)<0,0, IF(FORECAST($C202,D$205:D$216,$C$205:$C$216)>100,100, FORECAST($C202,D$205:D$216,$C$205:$C$216)))) -> 43.67955285 | H202: =IF(MAX(C205:C216)-MIN(C205:C216)<5,AVERAGEIF(C205:C216,">0",H205:H216), IF(FORECAST($C202,H$205:H$216,$C$205:$C$216)<0,0, IF(FORECAST($C202,H$205:H$216,$C$205:$C$216)>100,100, FORECAST($C202,H$205:H$216,$C$205:$C$216)))) -> 4.695762677 | I202: =IF(MAX(C205:C216)-MIN(C205:C216)<5,AVERAGEIF(C205:C216,">0",I205:I216), IF(FORECAST($C202,I$205:I$216,$C$205:$C$216)<0,0, IF(FORECAST($C202,I$205:I$216,$C$205:$C$216)>100,100, FORECAST($C202,I$205:I$216,$C$205:$C$216)))) -> 53.562406 | M202: =IF(MAX(C205:C216)-MIN(C205:C216)<5,AVERAGEIF(C205:C216,">0",M205:M216), IF(FORECAST($C202,M$205:M$216,$C$205:$C$216)<0,0, IF(FORECAST($C202,M$205:M$216,$C$205:$C$216)>100,100, FORECAST($C202,M$205:M$216,$C$205:$C$216)))) -> 1.291615772 | N202: =IF(MAX(C205:C216)-MIN(C205:C216)<5,AVERAGEIF(C205:C216,">0",N205:N216), IF(FORECAST($C202,N$205:N$216,$C$205:$C$216)<0,0, IF(FORECAST($C202,N$205:N$216,$C$205:$C$216)>100,100, FORECAST($C202,N$205:N$216,$C$205:$C$216)))) -> 65.06814035 | R202: =IF(MAX(C205:C216)-MIN(C205:C216)<5,AVERAGEIF(C205:C216,">0",R205:R216), IF(FORECAST($C202,R$205:R$216,$C$205:$C$216)<0,0, IF(FORECAST($C202,R$205:R$216,$C$205:$C$216)>100,100, FORECAST($C202,R$205:R$216,$C$205:$C$216)))) -> 1.86231015 | S202: =IF(MAX(C205:C216)-MIN(C205:C216)<5,AVERAGEIF(C205:C216,">0",S205:S216), IF(FORECAST($C202,S$205:S$216,$C$205:$C$216)<0,0, IF(FORECAST($C202,S$205:S$216,$C$205:$C$216)>100,100, FORECAST($C202,S$205:S$216,$C$205:$C$216)))) -> 76.41204502 | W202: =IF(MAX(C205:C216)-MIN(C205:C216)<5,AVERAGEIF(C205:C216,">0",W205:W216), IF(FORECAST($C202,W$205:W$216,$C$205:$C$216)<0,0, IF(FORECAST($C202,W$205:W$216,$C$205:$C$216)>100,100, FORECAST($C202,W$205:W$216,$C$205:$C$216)))) -> 1.972975046 | X202: =IF(MAX(C205:C216)-MIN(C205:C216)<5,AVERAGEIF(C205:C216,">0",X205:X216), IF(FORECAST($C202,X$205:X$216,$C$205:$C$216)<0,0, IF(FORECAST($C202,X$205:X$216,$C$205:$C$216)>100,100, FORECAST($C202,X$205:X$216,$C$205:$C$216)))) -> 96.40904712 | AB202: =IF(MAX(C205:C216)-MIN(C205:C216)<5,AVERAGEIF(C205:C216,">0",AB205:AB216), IF(FORECAST($C202,AB$205:AB$216,$C$205:$C$216)<0,0, IF(FORECAST($C202,AB$205:AB$216,$C$205:$C$216)>100,100, FORECAST($C202,AB$205:AB$216,$C$205:$C$216)))) -> 0
B204: Survey | C204: Year | D204: Improved | E204: Not shared | H204: Open defecation | I204: Improved | J204: Not shared | M204: Open defecation | N204: Improved | O204: Not shared | R204: Open defecation | S204: Improved | T204: Not shared | W204: Open defecation | X204: Improved | Y204: Not shared | AB204: Open defecation
B205: DHS00 | C205: 2000 | D205: =IF(ISERROR(INDIRECT(CONCATENATE($B205,"!H122"))),"",INDIRECT(CONCATENATE($B205,"!H122"))) -> 57.00910935 | E205: =IF(ISERROR(INDIRECT(CONCATENATE($B205,"!H129"))),"",INDIRECT(CONCATENATE($B205,"!H129"))) -> N/A | H205: =IF(ISERROR(INDIRECT(CONCATENATE($B205,"!H127"))),"",INDIRECT(CONCATENATE($B205,"!H127"))) -> 3.661560259 | I205: =IF(ISERROR(INDIRECT(CONCATENATE($B205,"!I122"))),"",INDIRECT(CONCATENATE($B205,"!I122"))) -> 70.71471387 | J205: =IF(ISERROR(INDIRECT(CONCATENATE($B205,"!I129"))),"",INDIRECT(CONCATENATE($B205,"!I129"))) -> N/A | M205: =IF(ISERROR(INDIRECT(CONCATENATE($B205,"!I127"))),"",INDIRECT(CONCATENATE($B205,"!I127"))) -> 2.234922302 | N205: =IF(ISERROR(INDIRECT(CONCATENATE($B205,"!J122"))),"",INDIRECT(CONCATENATE($B205,"!J122"))) -> 78.0763754 | O205: =IF(ISERROR(INDIRECT(CONCATENATE($B205,"!J129"))),"",INDIRECT(CONCATENATE($B205,"!J129"))) -> N/A | R205: =IF(ISERROR(INDIRECT(CONCATENATE($B205,"!J127"))),"",INDIRECT(CONCATENATE($B205,"!J127"))) -> 1.112489738 | S205: =IF(ISERROR(INDIRECT(CONCATENATE($B205,"!K122"))),"",INDIRECT(CONCATENATE($B205,"!K122"))) -> 89.92173963 | T205: =IF(ISERROR(INDIRECT(CONCATENATE($B205,"!K129"))),"",INDIRECT(CONCATENATE($B205,"!K129"))) -> N/A | W205: =IF(ISERROR(INDIRECT(CONCATENATE($B205,"!K127"))),"",INDIRECT(CONCATENATE($B205,"!K127"))) -> 0.345488344 | X205: =IF(ISERROR(INDIRECT(CONCATENATE($B205,"!L122"))),"",INDIRECT(CONCATENATE($B205,"!L122"))) -> 97.04198436 | Y205: =IF(ISERROR(INDIRECT(CONCATENATE($B205,"!L129"))),"",INDIRECT(CONCATENATE($B205,"!L129"))) -> N/A | AB205: =IF(ISERROR(INDIRECT(CONCATENATE($B205,"!L2127"))),"",INDIRECT(CONCATENATE($B205,"!L127"))) -> 0
B206: DHS12 | C206: 2012 | D206: 45.58377521 | E206: 28.30244123 | H206: 4.548019475 | I206: 56.0127357 | J206: 32.1523774 | M206: 1.426373848 | N206: 66.92645964 | O206: 45.25160696 | R206: 1.755192948 | S206: 78.34200139 | T206: 71.30323557 | W206: 1.740476945 | X206: 96.49946673 | Y206: 91.36630387 | AB206: 0
B218: =CONCATENATE("Urban use of sanitation facilities, ",C199,"–",C200) -> Urban use of sanitation facilities, 2000–2018 | S218: Data points used for regression
A297: RURAL | D297: Poorest | I297: Poor | N297: Middle | S297: Rich | X297: Richest
D298: Improved | E298: Basic | F298: Limited | G298: Unimproved | H298: Open defecation | I298: Improved | J298: Basic | K298: Limited | L298: Unimproved | M298: Open defecation | N298: Improved | O298: Basic | P298: Limited | Q298: Unimproved | R298: Open defecation | S298: Improved | T298: Basic | U298: Limited | V298: Unimproved | W298: Open defecation | X298: Improved | Y298: Basic | Z298: Limited | AA298: Unimproved | AB298: Open defecation
A299: Forecast period: | C299: =MinBase(C305:C316) -> 2000 | D299: =IF((D301+H301)>100,D301*100/(D301+H301),D301) -> 48.55788743 | E299: =D299*AVERAGEIF(E305:E316,">0")/100 -> 23.62090876 | F299: =D299*(100-AVERAGEIF(E305:E316,">0"))/100 -> 24.93697867 | G299: =100-(E299+F299+H299) -> 48.34173649 | H299: =IF((D301+H301)>100,H301*100/(D301+H301),H301) -> 3.100376087 | I299: =IF((I301+M301)>100,I301*100/(I301+M301),I301) -> 47.70491632 | J299: =I299*AVERAGEIF(J305:J316,">0")/100 -> 18.35493012 | K299: =I299*(100-AVERAGEIF(J305:J316,">0"))/100 -> 29.3499862 | L299: =100-(J299+K299+M299) -> 44.63795748 | M299: =IF((I301+M301)>100,M301*100/(I301+M301),M301) -> 7.657126198 | N299: =IF((N301+R301)>100,N301*100/(N301+R301),N301) -> 49.52860096 | O299: =N299*AVERAGEIF(O305:O316,">0")/100 -> 31.47742699 | P299: =N299*(100-AVERAGEIF(O305:O316,">0"))/100 -> 18.05117397 | Q299: =100-(O299+P299+R299) -> 47.09353723 | R299: =IF((N301+R301)>100,R301*100/(N301+R301),R301) -> 3.377861805 | S299: =IF((S301+W301)>100,S301*100/(S301+W301),S301) -> 55.26825972 | T299: =S299*AVERAGEIF(T305:T316,">0")/100 -> 34.83825897 | U299: =S299*(100-AVERAGEIF(T305:T316,">0"))/100 -> 20.43000074 | V299: =100-(T299+U299+W299) -> 41.91611307 | W299: =IF((S301+W301)>100,W301*100/(S301+W301),W301) -> 2.815627212 | X299: =IF((X301+AB301)>100,X301*100/(X301+AB301),X301) -> 71.27808638 | Y299: =X299*AVERAGEIF(Y305:Y316,">0")/100 -> 53.86326572 | Z299: =X299*(100-AVERAGEIF(Y305:Y316,">0"))/100 -> 17.41482066 | AA299: =100-(Y299+Z299+AB299) -> 26.89449619 | AB299: =IF((X301+AB301)>100,AB301*100/(X301+AB301),AB301) -> 1.82741743
C300: =MaxTarget(C305:C316) -> 2018 | D300: =IF((D302+H302)>100,D302*100/(D302+H302),D302) -> 36.28778662 | E300: =D300*AVERAGEIF(E305:E316,">0")/100 -> 17.65213732 | F300: =D300*(100-AVERAGEIF(E305:E316,">0"))/100 -> 18.6356493 | G300: =100-(E300+F300+H300) -> 54.70589574 | H300: =IF((D302+H302)>100,H302*100/(D302+H302),H302) -> 9.006317638 | I300: =IF((I302+M302)>100,I302*100/(I302+M302),I302) -> 37.18871991 | J300: =I300*AVERAGEIF(J305:J316,">0")/100 -> 14.30872136 | K300: =I300*(100-AVERAGEIF(J305:J316,">0"))/100 -> 22.87999855 | L300: =100-(J300+K300+M300) -> 57.01805456 | M300: =IF((I302+M302)>100,M302*100/(I302+M302),M302) -> 5.793225527 | N300: =IF((N302+R302)>100,N302*100/(N302+R302),N302) -> 38.04683782 | O300: =N300*AVERAGEIF(O305:O316,">0")/100 -> 24.18030263 | P300: =N300*(100-AVERAGEIF(O305:O316,">0"))/100 -> 13.86653519 | Q300: =100-(O300+P300+R300) -> 57.04602458 | R300: =IF((N302+R302)>100,R302*100/(N302+R302),R302) -> 4.907137599 | S300: =IF((S302+W302)>100,S302*100/(S302+W302),S302) -> 43.60340017 | T300: =S300*AVERAGEIF(T305:T316,">0")/100 -> 27.48533345 | U300: =S300*(100-AVERAGEIF(T305:T316,">0"))/100 -> 16.11806672 | V300: =100-(T300+U300+W300) -> 53.00600213 | W300: =IF((S302+W302)>100,W302*100/(S302+W302),W302) -> 3.390597698 | X300: =IF((X302+AB302)>100,X302*100/(X302+AB302),X302) -> 63.98231893 | Y300: =X300*AVERAGEIF(Y305:Y316,">0")/100 -> 48.35001641 | Z300: =X300*(100-AVERAGEIF(Y305:Y316,">0"))/100 -> 15.63230252 | AA300: =100-(Y300+Z300+AB300) -> 34.49241398 | AB300: =IF((X302+AB302)>100,AB302*100/(X302+AB302),AB302) -> 1.525267084
A301: Regression period: | C301: =MinRegYear(C299,C305:C316) -> 2000 | D301: =IF(MAX(C305:C316)-MIN(C305:C316)<5,AVERAGEIF(C305:C316,">0",D305:D316), IF(FORECAST($C301,D$305:D$316,$C$305:$C$316)<0,0, IF(FORECAST($C301,D$305:D$316,$C$305:$C$316)>100,100, FORECAST($C301,D$305:D$316,$C$305:$C$316)))) -> 48.55788743 | H301: =IF(MAX(C305:C316)-MIN(C305:C316)<5,AVERAGEIF(C305:C316,">0",H305:H316), IF(FORECAST($C301,H$305:H$316,$C$305:$C$316)<0,0, IF(FORECAST($C301,H$305:H$316,$C$305:$C$316)>100,100, FORECAST($C301,H$305:H$316,$C$305:$C$316)))) -> 3.100376087 | I301: =IF(MAX(C305:C316)-MIN(C305:C316)<5,AVERAGEIF(C305:C316,">0",I305:I316), IF(FORECAST($C301,I$305:I$316,$C$305:$C$316)<0,0, IF(FORECAST($C301,I$305:I$316,$C$305:$C$316)>100,100, FORECAST($C301,I$305:I$316,$C$305:$C$316)))) -> 47.70491632 | M301: =IF(MAX(C305:C316)-MIN(C305:C316)<5,AVERAGEIF(C305:C316,">0",M305:M316), IF(FORECAST($C301,M$305:M$316,$C$305:$C$316)<0,0, IF(FORECAST($C301,M$305:M$316,$C$305:$C$316)>100,100, FORECAST($C301,M$305:M$316,$C$305:$C$316)))) -> 7.657126198 | N301: =IF(MAX(C305:C316)-MIN(C305:C316)<5,AVERAGEIF(C305:C316,">0",N305:N316), IF(FORECAST($C301,N$305:N$316,$C$305:$C$316)<0,0, IF(FORECAST($C301,N$305:N$316,$C$305:$C$316)>100,100, FORECAST($C301,N$305:N$316,$C$305:$C$316)))) -> 49.52860096 | R301: =IF(MAX(C305:C316)-MIN(C305:C316)<5,AVERAGEIF(C305:C316,">0",R305:R316), IF(FORECAST($C301,R$305:R$316,$C$305:$C$316)<0,0, IF(FORECAST($C301,R$305:R$316,$C$305:$C$316)>100,100, FORECAST($C301,R$305:R$316,$C$305:$C$316)))) -> 3.377861805 | S301: =IF(MAX(C305:C316)-MIN(C305:C316)<5,AVERAGEIF(C305:C316,">0",S305:S316), IF(FORECAST($C301,S$305:S$316,$C$305:$C$316)<0,0, IF(FORECAST($C301,S$305:S$316,$C$305:$C$316)>100,100, FORECAST($C301,S$305:S$316,$C$305:$C$316)))) -> 55.26825972 | W301: =IF(MAX(C305:C316)-MIN(C305:C316)<5,AVERAGEIF(C305:C316,">0",W305:W316), IF(FORECAST($C301,W$305:W$316,$C$305:$C$316)<0,0, IF(FORECAST($C301,W$305:W$316,$C$305:$C$316)>100,100, FORECAST($C301,W$305:W$316,$C$305:$C$316)))) -> 2.815627212 | X301: =IF(MAX(C305:C316)-MIN(C305:C316)<5,AVERAGEIF(C305:C316,">0",X305:X316), IF(FORECAST($C301,X$305:X$316,$C$305:$C$316)<0,0, IF(FORECAST($C301,X$305:X$316,$C$305:$C$316)>100,100, FORECAST($C301,X$305:X$316,$C$305:$C$316)))) -> 71.27808638 | AB301: =IF(MAX(C305:C316)-MIN(C305:C316)<5,AVERAGEIF(C305:C316,">0",AB305:AB316), IF(FORECAST($C301,AB$305:AB$316,$C$305:$C$316)<0,0, IF(FORECAST($C301,AB$305:AB$316,$C$305:$C$316)>100,100, FORECAST($C301,AB$305:AB$316,$C$305:$C$316)))) -> 1.82741743
C302: =MaxRegYear(C300,C305:C316) -> 2014 | D302: =IF(MAX(C305:C316)-MIN(C305:C316)<5,AVERAGEIF(C305:C316,">0",D305:D316), IF(FORECAST($C302,D$305:D$316,$C$305:$C$316)<0,0, IF(FORECAST($C302,D$305:D$316,$C$305:$C$316)>100,100, FORECAST($C302,D$305:D$316,$C$305:$C$316)))) -> 36.28778662 | H302: =IF(MAX(C305:C316)-MIN(C305:C316)<5,AVERAGEIF(C305:C316,">0",H305:H316), IF(FORECAST($C302,H$305:H$316,$C$305:$C$316)<0,0, IF(FORECAST($C302,H$305:H$316,$C$305:$C$316)>100,100, FORECAST($C302,H$305:H$316,$C$305:$C$316)))) -> 9.006317638 | I302: =IF(MAX(C305:C316)-MIN(C305:C316)<5,AVERAGEIF(C305:C316,">0",I305:I316), IF(FORECAST($C302,I$305:I$316,$C$305:$C$316)<0,0, IF(FORECAST($C302,I$305:I$316,$C$305:$C$316)>100,100, FORECAST($C302,I$305:I$316,$C$305:$C$316)))) -> 37.18871991 | M302: =IF(MAX(C305:C316)-MIN(C305:C316)<5,AVERAGEIF(C305:C316,">0",M305:M316), IF(FORECAST($C302,M$305:M$316,$C$305:$C$316)<0,0, IF(FORECAST($C302,M$305:M$316,$C$305:$C$316)>100,100, FORECAST($C302,M$305:M$316,$C$305:$C$316)))) -> 5.793225527 | N302: =IF(MAX(C305:C316)-MIN(C305:C316)<5,AVERAGEIF(C305:C316,">0",N305:N316), IF(FORECAST($C302,N$305:N$316,$C$305:$C$316)<0,0, IF(FORECAST($C302,N$305:N$316,$C$305:$C$316)>100,100, FORECAST($C302,N$305:N$316,$C$305:$C$316)))) -> 38.04683782 | R302: =IF(MAX(C305:C316)-MIN(C305:C316)<5,AVERAGEIF(C305:C316,">0",R305:R316), IF(FORECAST($C302,R$305:R$316,$C$305:$C$316)<0,0, IF(FORECAST($C302,R$305:R$316,$C$305:$C$316)>100,100, FORECAST($C302,R$305:R$316,$C$305:$C$316)))) -> 4.907137599 | S302: =IF(MAX(C305:C316)-MIN(C305:C316)<5,AVERAGEIF(C305:C316,">0",S305:S316), IF(FORECAST($C302,S$305:S$316,$C$305:$C$316)<0,0, IF(FORECAST($C302,S$305:S$316,$C$305:$C$316)>100,100, FORECAST($C302,S$305:S$316,$C$305:$C$316)))) -> 43.60340017 | W302: =IF(MAX(C305:C316)-MIN(C305:C316)<5,AVERAGEIF(C305:C316,">0",W305:W316), IF(FORECAST($C302,W$305:W$316,$C$305:$C$316)<0,0, IF(FORECAST($C302,W$305:W$316,$C$305:$C$316)>100,100, FORECAST($C302,W$305:W$316,$C$305:$C$316)))) -> 3.390597698 | X302: =IF(MAX(C305:C316)-MIN(C305:C316)<5,AVERAGEIF(C305:C316,">0",X305:X316), IF(FORECAST($C302,X$305:X$316,$C$305:$C$316)<0,0, IF(FORECAST($C302,X$305:X$316,$C$305:$C$316)>100,100, FORECAST($C302,X$305:X$316,$C$305:$C$316)))) -> 63.98231893 | AB302: =IF(MAX(C305:C316)-MIN(C305:C316)<5,AVERAGEIF(C305:C316,">0",AB305:AB316), IF(FORECAST($C302,AB$305:AB$316,$C$305:$C$316)<0,0, IF(FORECAST($C302,AB$305:AB$316,$C$305:$C$316)>100,100, FORECAST($C302,AB$305:AB$316,$C$305:$C$316)))) -> 1.525267084
B304: Survey | C304: Year | D304: Improved | E304: Not shared | H304: Open defecation | I304: Improved | J304: Not shared | M304: Open defecation | N304: Improved | O304: Not shared | R304: Open defecation | S304: Improved | T304: Not shared | W304: Open defecation | X304: Improved | Y304: Not shared | AB304: Open defecation
B305: DHS00 | C305: 2000 | D305: =IF(ISERROR(INDIRECT(CONCATENATE($B305,"!M122"))),"",INDIRECT(CONCATENATE($B305,"!M122"))) -> 48.55788743 | E305: =IF(ISERROR(INDIRECT(CONCATENATE($B305,"!M129"))),"",INDIRECT(CONCATENATE($B305,"!M129"))) -> N/A | H305: =IF(ISERROR(INDIRECT(CONCATENATE($B305,"!M127"))),"",INDIRECT(CONCATENATE($B305,"!M127"))) -> 3.100376087 | I305: =IF(ISERROR(INDIRECT(CONCATENATE($B305,"!N122"))),"",INDIRECT(CONCATENATE($B305,"!N122"))) -> 47.70491632 | J305: =IF(ISERROR(INDIRECT(CONCATENATE($B305,"!N129"))),"",INDIRECT(CONCATENATE($B305,"!N129"))) -> N/A | M305: =IF(ISERROR(INDIRECT(CONCATENATE($B305,"!N127"))),"",INDIRECT(CONCATENATE($B305,"!N127"))) -> 7.657126198 | N305: =IF(ISERROR(INDIRECT(CONCATENATE($B305,"!O122"))),"",INDIRECT(CONCATENATE($B305,"!O122"))) -> 49.52860096 | O305: =IF(ISERROR(INDIRECT(CONCATENATE($B305,"!O129"))),"",INDIRECT(CONCATENATE($B305,"!O129"))) -> N/A | R305: =IF(ISERROR(INDIRECT(CONCATENATE($B305,"!O127"))),"",INDIRECT(CONCATENATE($B305,"!O127"))) -> 3.377861805 | S305: =IF(ISERROR(INDIRECT(CONCATENATE($B305,"!P122"))),"",INDIRECT(CONCATENATE($B305,"!P122"))) -> 55.26825972 | T305: =IF(ISERROR(INDIRECT(CONCATENATE($B305,"!P129"))),"",INDIRECT(CONCATENATE($B305,"!P129"))) -> N/A | W305: =IF(ISERROR(INDIRECT(CONCATENATE($B305,"!P127"))),"",INDIRECT(CONCATENATE($B305,"!P127"))) -> 2.815627212 | X305: =IF(ISERROR(INDIRECT(CONCATENATE($B305,"!Q122"))),"",INDIRECT(CONCATENATE($B305,"!Q122"))) -> 71.27808638 | Y305: =IF(ISERROR(INDIRECT(CONCATENATE($B305,"!Q129"))),"",INDIRECT(CONCATENATE($B305,"!Q129"))) -> N/A | AB305: =IF(ISERROR(INDIRECT(CONCATENATE($B305,"!Q2127"))),"",INDIRECT(CONCATENATE($B305,"!Q127"))) -> 1.82741743
B306: DHS12 | C306: 2012 | D306: 38.04065816 | E306: 48.64484435 | H306: 8.162611702 | I306: 38.69103369 | J306: 38.47597173 | M306: 6.059497052 | N306: 39.6870897 | O306: 63.55404026 | R306: 4.688669629 | S306: 45.26980868 | T306: 63.0348398 | W306: 3.308459057 | X306: 65.02457142 | Y306: 75.5677775 | AB306: 1.568431419
B318: =CONCATENATE("Rural use of sanitation facilities, ",C299,"–",C300) -> Rural use of sanitation facilities, 2000–2018 | S318: Data points used for regression

Sheet Hygiene
B4: Access to hygiene facilities by wealth quintile (%)
B5: =IF(ISERROR(INDIRECT(CONCATENATE($E$32,"!A2"))),"",INDIRECT(CONCATENATE($E$32,"!A2"))) -> 
B7: =CONCATENATE("National ",IF(ISERROR(INDIRECT(CONCATENATE($E$32,"!A2"))),"",INDIRECT(CONCATENATE($E$32,"!A210")))) -> National | K7: =CONCATENATE("Urban ",IF(ISERROR(INDIRECT(CONCATENATE($E$32,"!A2"))),"",INDIRECT(CONCATENATE($E$32,"!A210")))) -> Urban | S7: =CONCATENATE("Rural ",IF(ISERROR(INDIRECT(CONCATENATE($E$32,"!A2"))),"",INDIRECT(CONCATENATE($E$32,"!A210")))) -> Rural
E32: =INDEX(B88:B100,A88) -> 0 | G32: =IF(ISERROR(INDIRECT(CONCATENATE($E$32,"!A2"))),"",INDIRECT(CONCATENATE($E$32,"!A2"))) ->  | K32: Poorest | N32: Poor | Q32: Middle | T32: Rich | W32: Richest
K33: Basic | L33: Limited | M33: No facility | N33: Basic | O33: Limited | P33: No facility | Q33: Basic | R33: Limited | S33: No facility | T33: Basic | U33: Limited | V33: No facility | W33: Basic | X33: Limited | Y33: No facility
B34: >>> Select Survey : | G34: NATIONAL | J34: =IF(ISERROR(INDIRECT(CONCATENATE(#REF!,"!A2"))),"",INDIRECT(CONCATENATE(#REF!,"!A210"))) ->  | K34: =IF(ISERROR(INDIRECT(CONCATENATE($E$32,"!C222"))),"",INDIRECT(CONCATENATE($E$32,"!C222"))) ->  | L34: =IF(ISERROR(INDIRECT(CONCATENATE($E$32,"!C223"))),"",INDIRECT(CONCATENATE($E$32,"!C223"))) ->  | M34: =IF(ISERROR(INDIRECT(CONCATENATE($E$32,"!C224"))),"",INDIRECT(CONCATENATE($E$32,"!C224"))) ->  | N34: =IF(ISERROR(INDIRECT(CONCATENATE($E$32,"!D222"))),"",INDIRECT(CONCATENATE($E$32,"!D222"))) ->  | O34: =IF(ISERROR(INDIRECT(CONCATENATE($E$32,"!D223"))),"",INDIRECT(CONCATENATE($E$32,"!D223"))) ->  | P34: =IF(ISERROR(INDIRECT(CONCATENATE($E$32,"!D224"))),"",INDIRECT(CONCATENATE($E$32,"!D224"))) ->  | Q34: =IF(ISERROR(INDIRECT(CONCATENATE($E$32,"!E222"))),"",INDIRECT(CONCATENATE($E$32,"!E222"))) ->  | R34: =IF(ISERROR(INDIRECT(CONCATENATE($E$32,"!E223"))),"",INDIRECT(CONCATENATE($E$32,"!E223"))) ->  | S34: =IF(ISERROR(INDIRECT(CONCATENATE($E$32,"!E224"))),"",INDIRECT(CONCATENATE($E$32,"!E224"))) ->  | T34: =IF(ISERROR(INDIRECT(CONCATENATE($E$32,"!F222"))),"",INDIRECT(CONCATENATE($E$32,"!F222"))) ->  | U34: =IF(ISERROR(INDIRECT(CONCATENATE($E$32,"!F223"))),"",INDIRECT(CONCATENATE($E$32,"!F223"))) ->  | V34: =IF(ISERROR(INDIRECT(CONCATENATE($E$32,"!F224"))),"",INDIRECT(CONCATENATE($E$32,"!F224"))) ->  | W34: =IF(ISERROR(INDIRECT(CONCATENATE($E$32,"!G222"))),"",INDIRECT(CONCATENATE($E$32,"!G222"))) ->  | X34: =IF(ISERROR(INDIRECT(CONCATENATE($E$32,"!G223"))),"",INDIRECT(CONCATENATE($E$32,"!G223"))) ->  | Y34: =IF(ISERROR(INDIRECT(CONCATENATE($E$32,"!G224"))),"",INDIRECT(CONCATENATE($E$32,"!G224"))) -> 
G37: URBAN | J37: =IF(ISERROR(INDIRECT(CONCATENATE(#REF!,"!A2"))),"",INDIRECT(CONCATENATE(#REF!,"!A210"))) ->  | K37: =IF(ISERROR(INDIRECT(CONCATENATE($E$32,"!H222"))),"",INDIRECT(CONCATENATE($E$32,"!H222"))) ->  | L37: =IF(ISERROR(INDIRECT(CONCATENATE($E$32,"!H223"))),"",INDIRECT(CONCATENATE($E$32,"!H223"))) ->  | M37: =IF(ISERROR(INDIRECT(CONCATENATE($E$32,"!H224"))),"",INDIRECT(CONCATENATE($E$32,"!H224"))) ->  | N37: =IF(ISERROR(INDIRECT(CONCATENATE($E$32,"!I222"))),"",INDIRECT(CONCATENATE($E$32,"!I222"))) ->  | O37: =IF(ISERROR(INDIRECT(CONCATENATE($E$32,"!I223"))),"",INDIRECT(CONCATENATE($E$32,"!I223"))) ->  | P37: =IF(ISERROR(INDIRECT(CONCATENATE($E$32,"!I224"))),"",INDIRECT(CONCATENATE($E$32,"!I224"))) ->  | Q37: =IF(ISERROR(INDIRECT(CONCATENATE($E$32,"!J222"))),"",INDIRECT(CONCATENATE($E$32,"!J222"))) ->  | R37: =IF(ISERROR(INDIRECT(CONCATENATE($E$32,"!J223"))),"",INDIRECT(CONCATENATE($E$32,"!J223"))) ->  | S37: =IF(ISERROR(INDIRECT(CONCATENATE($E$32,"!J224"))),"",INDIRECT(CONCATENATE($E$32,"!J224"))) ->  | T37: =IF(ISERROR(INDIRECT(CONCATENATE($E$32,"!K222"))),"",INDIRECT(CONCATENATE($E$32,"!K222"))) ->  | U37: =IF(ISERROR(INDIRECT(CONCATENATE($E$32,"!K223"))),"",INDIRECT(CONCATENATE($E$32,"!K223"))) ->  | V37: =IF(ISERROR(INDIRECT(CONCATENATE($E$32,"!K224"))),"",INDIRECT(CONCATENATE($E$32,"!K224"))) ->  | W37: =IF(ISERROR(INDIRECT(CONCATENATE($E$32,"!L222"))),"",INDIRECT(CONCATENATE($E$32,"!L222"))) ->  | X37: =IF(ISERROR(INDIRECT(CONCATENATE($E$32,"!L223"))),"",INDIRECT(CONCATENATE($E$32,"!L223"))) ->  | Y37: =IF(ISERROR(INDIRECT(CONCATENATE($E$32,"!L224"))),"",INDIRECT(CONCATENATE($E$32,"!L224"))) -> 
G40: RURAL | J40: =IF(ISERROR(INDIRECT(CONCATENATE(#REF!,"!A2"))),"",INDIRECT(CONCATENATE(#REF!,"!A210"))) ->  | K40: =IF(ISERROR(INDIRECT(CONCATENATE($E$32,"!M222"))),"",INDIRECT(CONCATENATE($E$32,"!M222"))) ->  | L40: =IF(ISERROR(INDIRECT(CONCATENATE($E$32,"!M223"))),"",INDIRECT(CONCATENATE($E$32,"!M223"))) ->  | M40: =IF(ISERROR(INDIRECT(CONCATENATE($E$32,"!M224"))),"",INDIRECT(CONCATENATE($E$32,"!M224"))) ->  | N40: =IF(ISERROR(INDIRECT(CONCATENATE($E$32,"!N222"))),"",INDIRECT(CONCATENATE($E$32,"!N222"))) ->  | O40: =IF(ISERROR(INDIRECT(CONCATENATE($E$32,"!N223"))),"",INDIRECT(CONCATENATE($E$32,"!N223"))) ->  | P40: =IF(ISERROR(INDIRECT(CONCATENATE($E$32,"!N224"))),"",INDIRECT(CONCATENATE($E$32,"!N224"))) ->  | Q40: =IF(ISERROR(INDIRECT(CONCATENATE($E$32,"!O222"))),"",INDIRECT(CONCATENATE($E$32,"!O222"))) ->  | R40: =IF(ISERROR(INDIRECT(CONCATENATE($E$32,"!O223"))),"",INDIRECT(CONCATENATE($E$32,"!O223"))) ->  | S40: =IF(ISERROR(INDIRECT(CONCATENATE($E$32,"!O224"))),"",INDIRECT(CONCATENATE($E$32,"!O224"))) ->  | T40: =IF(ISERROR(INDIRECT(CONCATENATE($E$32,"!P222"))),"",INDIRECT(CONCATENATE($E$32,"!P222"))) ->  | U40: =IF(ISERROR(INDIRECT(CONCATENATE($E$32,"!P223"))),"",INDIRECT(CONCATENATE($E$32,"!P223"))) ->  | V40: =IF(ISERROR(INDIRECT(CONCATENATE($E$32,"!P224"))),"",INDIRECT(CONCATENATE($E$32,"!P224"))) ->  | W40: =IF(ISERROR(INDIRECT(CONCATENATE($E$32,"!Q222"))),"",INDIRECT(CONCATENATE($E$32,"!Q222"))) ->  | X40: =IF(ISERROR(INDIRECT(CONCATENATE($E$32,"!Q223"))),"",INDIRECT(CONCATENATE($E$32,"!Q223"))) ->  | Y40: =IF(ISERROR(INDIRECT(CONCATENATE($E$32,"!Q224"))),"",INDIRECT(CONCATENATE($E$32,"!Q224"))) -> 
A88: 2 | B88: Template

Sheet DHS00
A2: =A1026 -> Gabon
A3: =A1034 -> 2000
A4: Use of drinking water sources
A5: by wealth quintile and sub-national region
A6: Notes:
A7: WHO/UNICEF JMP customised wealth index excludes water,
A8: sanitation and hygiene assets.
A9: Survey used for analysis: | B9: =A1025 -> DHS00
A10: 50% of Springs considered improved
A11: Time to source based on: | B11: DHS12
A14: Use of drinking water sources | C14: NATIONAL wealth index quintile | H14: URBAN wealth index quintile | M14: RURAL wealth index quintile | R14: SUB-REGIONS: | BA14: Raw numbers of respondents: | BB14: Use of drinking water sources | BC14: NATIONAL wealth index quintile | BH14: URBAN wealth index quintile | BM14: RURAL wealth index quintile | BR14: SUB-REGIONS:
A15: Weighted percentage (used in graphs) | C15: Poorest | D15: Poor | E15: Middle | F15: Rich | G15: Richest | H15: Poorest | I15: Poor | J15: Middle | K15: Rich | L15: Richest | M15: Poorest | N15: Poor | O15: Middle | P15: Rich | Q15: Richest | R15: Big cities | S15: East (Haut-Ogoou‚ & Ogoou‚-Lolo) | T15: North (Ogoou‚-Ivindo & Woleu-Ntem) | U15: South (Ngouni‚, Nyanga) | V15: West (Estuaire, Moyen-Ogoou‚ & Ogoou‚-maritime) | BA15: Water data, raw numbers (weighted) | BC15: Poorest | BD15: Poor | BE15: Middle | BF15: Rich | BG15: Richest | BH15: Poorest | BI15: Poor | BJ15: Middle | BK15: Rich | BL15: Richest | BM15: Poorest | BN15: Poor | BO15: Middle | BP15: Rich | BQ15: Richest | BR15: Big cities | BS15: East (Haut-Ogoou‚ & Ogoou‚-Lolo) | BT15: North (Ogoou‚-Ivindo & Woleu-Ntem) | BU15: South (Ngouni‚, Nyanga) | BV15: West (Estuaire, Moyen-Ogoou‚ & Ogoou‚-maritime)
A16: Water | B16: Improved | C16: =C58+C59+C60+C61+C67+C68+C64*0.5 -> 46.32688545 | D16: 75.13448138 | E16: 94.32504147 | F16: 97.30821426 | G16: 99.26257785 | H16: 80.58434409 | I16: 96.25590965 | J16: 97.84580616 | K16: 99.35960897 | L16: 99.4421784 | M16: 41.76310454 | N16: 40.33896128 | O16: 42.72680499 | P16: 49.4650038 | Q16: 67.12203659 | R16: 99.84348798 | S16: 72.24051058 | T16: 55.05537119 | U16: 65.0447252 | V16: 67.01425099 | BA16: Water | BB16: Improved | BC16: N/A | BD16: N/A | BE16: N/A | BF16: N/A | BG16: N/A | BH16: N/A | BI16: N/A | BJ16: N/A | BK16: N/A | BL16: N/A | BM16: N/A | BN16: N/A | BO16: N/A | BP16: N/A | BQ16: N/A | BR16: N/A | BS16: N/A | BT16: N/A | BU16: N/A | BV16: N/A
B17: Not Improved | C17: =100-C16 -> 53.67311455 | D17: =100-D16 -> 24.86551862 | E17: 5.674958526 | F17: 2.691785736 | G17: 0.73742215 | H17: 19.41565591 | I17: 3.744090346 | J17: 2.154193843 | K17: 0.6403910271 | L17: 0.5578216036 | M17: 58.23689546 | N17: 59.66103872 | O17: 57.27319501 | P17: 50.5349962 | Q17: 32.87796341 | R17: 0.1565120179 | S17: 27.75948942 | T17: 44.94462881 | U17: 34.9552748 | V17: 32.98574901 | BB17: Not Improved | BC17: N/A | BD17: N/A | BE17: N/A | BF17: N/A | BG17: N/A | BH17: N/A | BI17: N/A | BJ17: N/A | BK17: N/A | BL17: N/A | BM17: N/A | BN17: N/A | BO17: N/A | BP17: N/A | BQ17: N/A | BR17: N/A | BS17: N/A | BT17: N/A | BU17: N/A | BV17: N/A
A18: Water ladder | B18: Basic | C18: =C16*'DHS12'!C23/100 -> 34.23556834 | D18: =D16*'DHS12'!D23/100 -> 65.3669988 | E18: =E16*'DHS12'!E23/100 -> 89.23148923 | F18: =F16*'DHS12'!F23/100 -> 93.41588569 | G18: =G16*'DHS12'!G23/100 -> 96.97953856 | H18: =H16*'DHS12'!H23/100 -> 61.88877626 | I18: =I16*'DHS12'!I23/100 -> 88.94046052 | J18: =J16*'DHS12'!J23/100 -> 94.32335714 | K18: =K16*'DHS12'!K23/100 -> 96.18010149 | L18: =L16*'DHS12'!L23/100 -> 96.95612394 | M18: =M16*'DHS12'!M23/100 -> 31.3223284 | N18: =N16*'DHS12'!N23/100 -> 32.1904911 | O18: =O16*'DHS12'!O23/100 -> 30.67784599 | P18: =P16*'DHS12'!P23/100 -> 40.11611808 | Q18: =Q16*'DHS12'!Q23/100 -> 57.52358536 | R18: N/A | S18: N/A | T18: N/A | U18: N/A | V18: N/A | BA18: Water ladder | BB18: Basic | BC18: N/A | BD18: N/A | BE18: N/A | BF18: N/A | BG18: N/A | BH18: N/A | BI18: N/A | BJ18: N/A | BK18: N/A | BL18: N/A | BM18: N/A | BN18: N/A | BO18: N/A | BP18: N/A | BQ18: N/A | BR18: N/A | BS18: N/A | BT18: N/A | BU18: N/A | BV18: N/A
B19: Limited | C19: =C16*'DHS12'!C22/100 -> 12.0913171 | D19: =D16*'DHS12'!D22/100 -> 9.767482579 | E19: =E16*'DHS12'!E22/100 -> 5.09355224 | F19: =F16*'DHS12'!F22/100 -> 3.892328571 | G19: =G16*'DHS12'!G22/100 -> 2.283039291 | H19: =H16*'DHS12'!H22/100 -> 18.69556783 | I19: =I16*'DHS12'!I22/100 -> 7.315449134 | J19: =J16*'DHS12'!J22/100 -> 3.522449022 | K19: =K16*'DHS12'!K22/100 -> 3.179507487 | L19: =L16*'DHS12'!L22/100 -> 2.48605446 | M19: =M16*'DHS12'!M22/100 -> 10.44077613 | N19: =N16*'DHS12'!N22/100 -> 8.148470179 | O19: =O16*'DHS12'!O22/100 -> 12.04895901 | P19: =P16*'DHS12'!P22/100 -> 9.348885718 | Q19: =Q16*'DHS12'!Q22/100 -> 9.598451233 | R19: N/A | S19: N/A | T19: N/A | U19: N/A | V19: N/A | BB19: Limited | BC19: N/A | BD19: N/A | BE19: N/A | BF19: N/A | BG19: N/A | BH19: N/A | BI19: N/A | BJ19: N/A | BK19: N/A | BL19: N/A | BM19: N/A | BN19: N/A | BO19: N/A | BP19: N/A | BQ19: N/A | BR19: N/A | BS19: N/A | BT19: N/A | BU19: N/A | BV19: N/A
B20: Unimproved | C20: =100-(C18+C19+C21) -> 17.28729 | D20: =100-(D18+D19+D21) -> 11.1473138 | E20: 3.573717737 | F20: 1.563257332 | G20: 0.648737147 | H20: 10.81594519 | I20: 2.804172394 | J20: 1.652418009 | K20: 0.4884310758 | L20: 0.4759185718 | M20: 16.83788389 | N20: 18.6731307 | O20: 16.01565191 | P20: 20.19537329 | Q20: 12.86256302 | R20: N/A | S20: N/A | T20: N/A | U20: N/A | V20: N/A | BB20: Unimproved | BC20: N/A | BD20: N/A | BE20: N/A | BF20: N/A | BG20: N/A | BH20: N/A | BI20: N/A | BJ20: N/A | BK20: N/A | BL20: N/A | BM20: N/A | BN20: N/A | BO20: N/A | BP20: N/A | BQ20: N/A | BR20: N/A | BS20: N/A | BT20: N/A | BU20: N/A | BV20: N/A
B21: Surface water | C21: =C65+C66 -> 36.38582456 | D21: 13.71820482 | E21: 2.101240789 | F21: 1.128528403 | G21: 0.08868500301 | H21: 8.599710719 | I21: 0.9399179527 | J21: 0.5017758334 | K21: 0.1519599512 | L21: 0.08190303178 | M21: 41.39901157 | N21: 40.98790802 | O21: 41.25754309 | P21: 30.33962291 | Q21: 20.01540039 | R21: N/A | S21: N/A | T21: N/A | U21: N/A | V21: N/A | BB21: Surface water | BC21: N/A | BD21: N/A | BE21: N/A | BF21: N/A | BG21: N/A | BH21: N/A | BI21: N/A | BJ21: N/A | BK21: N/A | BL21: N/A | BM21: N/A | BN21: N/A | BO21: N/A | BP21: N/A | BQ21: N/A | BR21: N/A | BS21: N/A | BT21: N/A | BU21: N/A | BV21: N/A
A22: Improved water point at more than 30 minutes | B22: Yes | C22: N/A | D22: N/A | E22: N/A | F22: N/A | G22: N/A | H22: N/A | I22: N/A | J22: N/A | K22: N/A | L22: N/A | M22: N/A | N22: N/A | O22: N/A | P22: N/A | Q22: N/A | R22: N/A | S22: N/A | T22: N/A | U22: N/A | V22: N/A | BA22: Improved water point at more than 30 minutes | BB22: Yes | BC22: N/A | BD22: N/A | BE22: N/A | BF22: N/A | BG22: N/A | BH22: N/A | BI22: N/A | BJ22: N/A | BK22: N/A | BL22: N/A | BM22: N/A | BN22: N/A | BO22: N/A | BP22: N/A | BQ22: N/A | BR22: N/A | BS22: N/A | BT22: N/A | BU22: N/A | BV22: N/A
B23: No | C23: N/A | D23: N/A | E23: N/A | F23: N/A | G23: N/A | H23: N/A | I23: N/A | J23: N/A | K23: N/A | L23: N/A | M23: N/A | N23: N/A | O23: N/A | P23: N/A | Q23: N/A | R23: N/A | S23: N/A | T23: N/A | U23: N/A | V23: N/A | BB23: No | BC23: N/A | BD23: N/A | BE23: N/A | BF23: N/A | BG23: N/A | BH23: N/A | BI23: N/A | BJ23: N/A | BK23: N/A | BL23: N/A | BM23: N/A | BN23: N/A | BO23: N/A | BP23: N/A | BQ23: N/A | BR23: N/A | BS23: N/A | BT23: N/A | BU23: N/A | BV23: N/A
A24: Manually calculated ratios | B24: Improved wells
B25: Improved springs
B26: Other
C27: NATIONAL wealth index quintile | H27: URBAN wealth index quintile | M27: RURAL wealth index quintile | R27: SUB-REGIONS: | BA27: Raw numbers of respondents: | BB27: Use of drinking water sources | BC27: NATIONAL wealth index quintile | BH27: URBAN wealth index quintile | BM27: RURAL wealth index quintile | BR27: SUB-REGIONS:
A28: Percentage based on weighted population | C28: Poorest | D28: Poor | E28: Middle | F28: Rich | G28: Richest | H28: Poorest | I28: Poor | J28: Middle | K28: Rich | L28: Richest | M28: Poorest | N28: Poor | O28: Middle | P28: Rich | Q28: Richest | R28: Big cities | S28: East (Haut-Ogoou‚ & Ogoou‚-Lolo) | T28: North (Ogoou‚-Ivindo & Woleu-Ntem) | U28: South (Ngouni‚, Nyanga) | V28: West (Estuaire, Moyen-Ogoou‚ & Ogoou‚-maritime) | BA28: Water data, raw numbers (weighted) | BC28: Poorest | BD28: Poor | BE28: Middle | BF28: Rich | BG28: Richest | BH28: Poorest | BI28: Poor | BJ28: Middle | BK28: Rich | BL28: Richest | BM28: Poorest | BN28: Poor | BO28: Middle | BP28: Rich | BQ28: Richest | BR28: Big cities | BS28: East (Haut-Ogoou‚ & Ogoou‚-Lolo) | BT28: North (Ogoou‚-Ivindo & Woleu-Ntem) | BU28: South (Ngouni‚, Nyanga) | BV28: West (Estuaire, Moyen-Ogoou‚ & Ogoou‚-maritime)
A29: Piped water | B29: Yes | C29: 19.0636739 | D29: 61.80664233 | E29: 90.60797753 | F29: 95.79937366 | G29: 98.67506258 | H29: 72.49975507 | I29: 94.92672143 | J29: 96.49005218 | K29: 99.02749501 | L29: 98.8554933 | M29: 11.91089334 | N29: 8.972570047 | O29: 11.20931752 | P29: 20.2392526 | Q29: 45.40952401 | R29: 99.51971406 | S29: 64.70814845 | T29: 23.07217414 | U29: 42.48040798 | V29: 54.43535097 | BA29: Piped water | BB29: Yes | BC29: N/A | BD29: N/A | BE29: N/A | BF29: N/A | BG29: N/A | BH29: N/A | BI29: N/A | BJ29: N/A | BK29: N/A | BL29: N/A | BM29: N/A | BN29: N/A | BO29: N/A | BP29: N/A | BQ29: N/A | BR29: N/A | BS29: N/A | BT29: N/A | BU29: N/A | BV29: N/A
B30: No | C30: 80.9363261 | D30: 38.19335767 | E30: 9.392022467 | F30: 4.200626344 | G30: 1.324937418 | H30: 27.50024493 | I30: 5.07327857 | J30: 3.509947818 | K30: 0.9725049894 | L30: 1.144506702 | M30: 88.08910666 | N30: 91.02742995 | O30: 88.79068248 | P30: 79.7607474 | Q30: 54.59047599 | R30: 0.4802859377 | S30: 35.29185155 | T30: 76.92782586 | U30: 57.51959202 | V30: 45.56464903 | BB30: No | BC30: N/A | BD30: N/A | BE30: N/A | BF30: N/A | BG30: N/A | BH30: N/A | BI30: N/A | BJ30: N/A | BK30: N/A | BL30: N/A | BM30: N/A | BN30: N/A | BO30: N/A | BP30: N/A | BQ30: N/A | BR30: N/A | BS30: N/A | BT30: N/A | BU30: N/A | BV30: N/A
A31: Piped water on premises | B31: Yes | C31: 3.195114788 | D31: 17.57516008 | E31: 41.28292204 | F31: 59.91956954 | G31: 92.99220981 | H31: 17.18615468 | I31: 38.00951309 | J31: 52.79017709 | K31: 73.65404674 | L31: 94.33801903 | M31: 2.743821227 | N31: 1.464679327 | O31: 2.450238508 | P31: 6.95167525 | Q31: 30.05701412 | R31: 62.30313861 | S31: 40.57390947 | T31: 11.23633035 | U31: 11.4647293 | V31: 26.82172852 | BA31: Piped water on premises | BB31: Yes | BC31: N/A | BD31: N/A | BE31: N/A | BF31: N/A | BG31: N/A | BH31: N/A | BI31: N/A | BJ31: N/A | BK31: N/A | BL31: N/A | BM31: N/A | BN31: N/A | BO31: N/A | BP31: N/A | BQ31: N/A | BR31: N/A | BS31: N/A | BT31: N/A | BU31: N/A | BV31: N/A
B32: No | C32: 96.80488521 | D32: 82.42483992 | E32: 58.71707796 | F32: 40.08043046 | G32: 7.007790188 | H32: 82.81384532 | I32: 61.99048691 | J32: 47.20982291 | K32: 26.34595326 | L32: 5.661980969 | M32: 97.25617877 | N32: 98.53532067 | O32: 97.54976149 | P32: 93.04832475 | Q32: 69.94298588 | R32: 37.69686139 | S32: 59.42609053 | T32: 88.76366965 | U32: 88.5352707 | V32: 73.17827148 | BB32: No | BC32: N/A | BD32: N/A | BE32: N/A | BF32: N/A | BG32: N/A | BH32: N/A | BI32: N/A | BJ32: N/A | BK32: N/A | BL32: N/A | BM32: N/A | BN32: N/A | BO32: N/A | BP32: N/A | BQ32: N/A | BR32: N/A | BS32: N/A | BT32: N/A | BU32: N/A | BV32: N/A
A33: Piped water into dwelling | B33: Yes | C33: N/A | D33: N/A | E33: N/A | F33: N/A | G33: N/A | H33: N/A | I33: N/A | J33: N/A | K33: N/A | L33: N/A | M33: N/A | N33: N/A | O33: N/A | P33: N/A | Q33: N/A | R33: N/A | S33: N/A | T33: N/A | U33: N/A | V33: N/A | BA33: Piped water into dwelling | BB33: Yes | BC33: N/A | BD33: N/A | BE33: N/A | BF33: N/A | BG33: N/A | BH33: N/A | BI33: N/A | BJ33: N/A | BK33: N/A | BL33: N/A | BM33: N/A | BN33: N/A | BO33: N/A | BP33: N/A | BQ33: N/A | BR33: N/A | BS33: N/A | BT33: N/A | BU33: N/A | BV33: N/A
B34: No | C34: N/A | D34: N/A | E34: N/A | F34: N/A | G34: N/A | H34: N/A | I34: N/A | J34: N/A | K34: N/A | L34: N/A | M34: N/A | N34: N/A | O34: N/A | P34: N/A | Q34: N/A | R34: N/A | S34: N/A | T34: N/A | U34: N/A | V34: N/A | BB34: No | BC34: N/A | BD34: N/A | BE34: N/A | BF34: N/A | BG34: N/A | BH34: N/A | BI34: N/A | BJ34: N/A | BK34: N/A | BL34: N/A | BM34: N/A | BN34: N/A | BO34: N/A | BP34: N/A | BQ34: N/A | BR34: N/A | BS34: N/A | BT34: N/A | BU34: N/A | BV34: N/A
A35: Water source on premises | B35: Yes | C35: 3.98418846 | D35: 20.48627526 | E35: 48.85555259 | F35: 64.65845814 | G35: 94.17669813 | H35: 20.28978101 | I35: 45.50779527 | J35: 57.95394316 | K35: 77.89105576 | L35: 95.31623085 | M35: 3.2125602 | N35: 2.716844915 | O35: 3.197544223 | P35: 8.294409041 | Q35: 32.13245773 | R35: 67.6057919 | S35: 42.61582458 | T35: 12.33673791 | U35: 12.0900611 | V35: 29.65669745 | BA35: Water source on premises | BB35: Yes | BC35: N/A | BD35: N/A | BE35: N/A | BF35: N/A | BG35: N/A | BH35: N/A | BI35: N/A | BJ35: N/A | BK35: N/A | BL35: N/A | BM35: N/A | BN35: N/A | BO35: N/A | BP35: N/A | BQ35: N/A | BR35: N/A | BS35: N/A | BT35: N/A | BU35: N/A | BV35: N/A
B36: No | C36: 96.01581154 | D36: 79.51372474 | E36: 51.14444741 | F36: 35.34154186 | G36: 5.823301867 | H36: 79.71021899 | I36: 54.49220473 | J36: 42.04605684 | K36: 22.10894424 | L36: 4.683769151 | M36: 96.7874398 | N36: 97.28315508 | O36: 96.80245578 | P36: 91.70559096 | Q36: 67.86754227 | R36: 32.3942081 | S36: 57.38417542 | T36: 87.66326209 | U36: 87.9099389 | V36: 70.34330255 | BB36: No | BC36: N/A | BD36: N/A | BE36: N/A | BF36: N/A | BG36: N/A | BH36: N/A | BI36: N/A | BJ36: N/A | BK36: N/A | BL36: N/A | BM36: N/A | BN36: N/A | BO36: N/A | BP36: N/A | BQ36: N/A | BR36: N/A | BS36: N/A | BT36: N/A | BU36: N/A | BV36: N/A
A37: Improved Water source on premises | B37: Yes | C37: N/A | D37: N/A | E37: N/A | F37: N/A | G37: N/A | H37: N/A | I37: N/A | J37: N/A | K37: N/A | L37: N/A | M37: N/A | N37: N/A | O37: N/A | P37: N/A | Q37: N/A | R37: N/A | S37: N/A | T37: N/A | U37: N/A | V37: N/A | BA37: Improved water source on premises | BB37: Yes | BC37: N/A | BD37: N/A | BE37: N/A | BF37: N/A | BG37: N/A | BH37: N/A | BI37: N/A | BJ37: N/A | BK37: N/A | BL37: N/A | BM37: N/A | BN37: N/A | BO37: N/A | BP37: N/A | BQ37: N/A | BR37: N/A | BS37: N/A | BT37: N/A | BU37: N/A | BV37: N/A
B38: No | C38: N/A | D38: N/A | E38: N/A | F38: N/A | G38: N/A | H38: N/A | I38: N/A | J38: N/A | K38: N/A | L38: N/A | M38: N/A | N38: N/A | O38: N/A | P38: N/A | Q38: N/A | R38: N/A | S38: N/A | T38: N/A | U38: N/A | V38: N/A | BB38: No | BC38: N/A | BD38: N/A | BE38: N/A | BF38: N/A | BG38: N/A | BH38: N/A | BI38: N/A | BJ38: N/A | BK38: N/A | BL38: N/A | BM38: N/A | BN38: N/A | BO38: N/A | BP38: N/A | BQ38: N/A | BR38: N/A | BS38: N/A | BT38: N/A | BU38: N/A | BV38: N/A
A39: Piped water on premises available when needed | B39: Yes | C39: N/A | D39: N/A | E39: N/A | F39: N/A | G39: N/A | H39: N/A | I39: N/A | J39: N/A | K39: N/A | L39: N/A | M39: N/A | N39: N/A | O39: N/A | P39: N/A | Q39: N/A | R39: N/A | S39: N/A | T39: N/A | U39: N/A | V39: N/A | BA39: Piped water on premises available when needed | BB39: Yes | BC39: N/A | BD39: N/A | BE39: N/A | BF39: N/A | BG39: N/A | BH39: N/A | BI39: N/A | BJ39: N/A | BK39: N/A | BL39: N/A | BM39: N/A | BN39: N/A | BO39: N/A | BP39: N/A | BQ39: N/A | BR39: N/A | BS39: N/A | BT39: N/A | BU39: N/A | BV39: N/A
B40: No | C40: N/A | D40: N/A | E40: N/A | F40: N/A | G40: N/A | H40: N/A | I40: N/A | J40: N/A | K40: N/A | L40: N/A | M40: N/A | N40: N/A | O40: N/A | P40: N/A | Q40: N/A | R40: N/A | S40: N/A | T40: N/A | U40: N/A | V40: N/A | BB40: No | BC40: N/A | BD40: N/A | BE40: N/A | BF40: N/A | BG40: N/A | BH40: N/A | BI40: N/A | BJ40: N/A | BK40: N/A | BL40: N/A | BM40: N/A | BN40: N/A | BO40: N/A | BP40: N/A | BQ40: N/A | BR40: N/A | BS40: N/A | BT40: N/A | BU40: N/A | BV40: N/A
A41: Water point at more than 30 minutes | B41: Yes | C41: 17.68947563 | D41: 11.37014148 | E41: 4.903448901 | F41: 3.197431254 | G41: 0.4282420706 | H41: 12.61984562 | I41: 4.99126828 | J41: 3.500022688 | K41: 1.15908817 | L41: 0.5116481844 | M41: 11.66297959 | N41: 16.98614209 | O41: 21.5187945 | P41: 17.50289614 | Q41: 12.10816286 | R41: 2.413289932 | S41: 12.91486678 | T41: 7.974012482 | U41: 15.10282096 | V41: 15.41429925 | BA41: Water point at more than 30 minutes | BB41: Yes | BC41: N/A | BD41: N/A | BE41: N/A | BF41: N/A | BG41: N/A | BH41: N/A | BI41: N/A | BJ41: N/A | BK41: N/A | BL41: N/A | BM41: N/A | BN41: N/A | BO41: N/A | BP41: N/A | BQ41: N/A | BR41: N/A | BS41: N/A | BT41: N/A | BU41: N/A | BV41: N/A
B42: No | C42: 82.31052437 | D42: 88.62985852 | E42: 95.0965511 | F42: 96.80256875 | G42: 99.57175793 | H42: 87.38015438 | I42: 95.00873172 | J42: 96.49997731 | K42: 98.84091183 | L42: 99.48835182 | M42: 88.33702041 | N42: 83.01385791 | O42: 78.4812055 | P42: 82.49710386 | Q42: 87.89183714 | R42: 97.58671007 | S42: 87.08513322 | T42: 92.02598752 | U42: 84.89717904 | V42: 84.58570075 | BB42: No | BC42: N/A | BD42: N/A | BE42: N/A | BF42: N/A | BG42: N/A | BH42: N/A | BI42: N/A | BJ42: N/A | BK42: N/A | BL42: N/A | BM42: N/A | BN42: N/A | BO42: N/A | BP42: N/A | BQ42: N/A | BR42: N/A | BS42: N/A | BT42: N/A | BU42: N/A | BV42: N/A
A43: Water source available when needed | B43: Yes | C43: N/A | D43: N/A | E43: N/A | F43: N/A | G43: N/A | H43: N/A | I43: N/A | J43: N/A | K43: N/A | L43: N/A | M43: N/A | N43: N/A | O43: N/A | P43: N/A | Q43: N/A | R43: N/A | S43: N/A | T43: N/A | U43: N/A | V43: N/A | BA43: Water source available when needed | BB43: Yes | BC43: N/A | BD43: N/A | BE43: N/A | BF43: N/A | BG43: N/A | BH43: N/A | BI43: N/A | BJ43: N/A | BK43: N/A | BL43: N/A | BM43: N/A | BN43: N/A | BO43: N/A | BP43: N/A | BQ43: N/A | BR43: N/A | BS43: N/A | BT43: N/A | BU43: N/A | BV43: N/A
B44: No | C44: N/A | D44: N/A | E44: N/A | F44: N/A | G44: N/A | H44: N/A | I44: N/A | J44: N/A | K44: N/A | L44: N/A | M44: N/A | N44: N/A | O44: N/A | P44: N/A | Q44: N/A | R44: N/A | S44: N/A | T44: N/A | U44: N/A | V44: N/A | BB44: No | BC44: N/A | BD44: N/A | BE44: N/A | BF44: N/A | BG44: N/A | BH44: N/A | BI44: N/A | BJ44: N/A | BK44: N/A | BL44: N/A | BM44: N/A | BN44: N/A | BO44: N/A | BP44: N/A | BQ44: N/A | BR44: N/A | BS44: N/A | BT44: N/A | BU44: N/A | BV44: N/A
A45: Improved water source available when needed | B45: Yes | C45: N/A | D45: N/A | E45: N/A | F45: N/A | G45: N/A | H45: N/A | I45: N/A | J45: N/A | K45: N/A | L45: N/A | M45: N/A | N45: N/A | O45: N/A | P45: N/A | Q45: N/A | R45: N/A | S45: N/A | T45: N/A | U45: N/A | V45: N/A | BA45: Improved water source available when needed | BB45: Yes | BC45: N/A | BD45: N/A | BE45: N/A | BF45: N/A | BG45: N/A | BH45: N/A | BI45: N/A | BJ45: N/A | BK45: N/A | BL45: N/A | BM45: N/A | BN45: N/A | BO45: N/A | BP45: N/A | BQ45: N/A | BR45: N/A | BS45: N/A | BT45: N/A | BU45: N/A | BV45: N/A
B46: No | C46: N/A | D46: N/A | E46: N/A | F46: N/A | G46: N/A | H46: N/A | I46: N/A | J46: N/A | K46: N/A | L46: N/A | M46: N/A | N46: N/A | O46: N/A | P46: N/A | Q46: N/A | R46: N/A | S46: N/A | T46: N/A | U46: N/A | V46: N/A | BB46: No | BC46: N/A | BD46: N/A | BE46: N/A | BF46: N/A | BG46: N/A | BH46: N/A | BI46: N/A | BJ46: N/A | BK46: N/A | BL46: N/A | BM46: N/A | BN46: N/A | BO46: N/A | BP46: N/A | BQ46: N/A | BR46: N/A | BS46: N/A | BT46: N/A | BU46: N/A | BV46: N/A
A47: Microbiological quality at point of collection | B47: Not contaminated (No E. coli in 100 mL) | C47: N/A | D47: N/A | E47: N/A | F47: N/A | G47: N/A | H47: N/A | I47: N/A | J47: N/A | K47: N/A | L47: N/A | M47: N/A | N47: N/A | O47: N/A | P47: N/A | Q47: N/A | R47: N/A | S47: N/A | T47: N/A | U47: N/A | V47: N/A | BA47: Microbiological quality at point of collection | BB47: Not contaminated (No E. coli in 100 mL) | BC47: N/A | BD47: N/A | BE47: N/A | BF47: N/A | BG47: N/A | BH47: N/A | BI47: N/A | BJ47: N/A | BK47: N/A | BL47: N/A | BM47: N/A | BN47: N/A | BO47: N/A | BP47: N/A | BQ47: N/A | BR47: N/A | BS47: N/A | BT47: N/A | BU47: N/A | BV47: N/A
B48: Contaminated (E. coli detected in 100 mL) | C48: N/A | D48: N/A | E48: N/A | F48: N/A | G48: N/A | H48: N/A | I48: N/A | J48: N/A | K48: N/A | L48: N/A | M48: N/A | N48: N/A | O48: N/A | P48: N/A | Q48: N/A | R48: N/A | S48: N/A | T48: N/A | U48: N/A | V48: N/A | BB48: Contaminated (E. coli detected in 100 mL) | BC48: N/A | BD48: N/A | BE48: N/A | BF48: N/A | BG48: N/A | BH48: N/A | BI48: N/A | BJ48: N/A | BK48: N/A | BL48: N/A | BM48: N/A | BN48: N/A | BO48: N/A | BP48: N/A | BQ48: N/A | BR48: N/A | BS48: N/A | BT48: N/A | BU48: N/A | BV48: N/A
B49: Highly contaminated (>100 CFU/100 mL) | C49: N/A | D49: N/A | E49: N/A | F49: N/A | G49: N/A | H49: N/A | I49: N/A | J49: N/A | K49: N/A | L49: N/A | M49: N/A | N49: N/A | O49: N/A | P49: N/A | Q49: N/A | R49: N/A | S49: N/A | T49: N/A | U49: N/A | V49: N/A | BB49: Highly contaminated (>100 CFU/100 mL) | BC49: N/A | BD49: N/A | BE49: N/A | BF49: N/A | BG49: N/A | BH49: N/A | BI49: N/A | BJ49: N/A | BK49: N/A | BL49: N/A | BM49: N/A | BN49: N/A | BO49: N/A | BP49: N/A | BQ49: N/A | BR49: N/A | BS49: N/A | BT49: N/A | BU49: N/A | BV49: N/A
A50: Microbiological quality of improved water sources at point of collection | B50: Not contaminated (No E. coli in 100 mL) | C50: N/A | D50: N/A | E50: N/A | F50: N/A | G50: N/A | H50: N/A | I50: N/A | J50: N/A | K50: N/A | L50: N/A | M50: N/A | N50: N/A | O50: N/A | P50: N/A | Q50: N/A | R50: N/A | S50: N/A | T50: N/A | U50: N/A | V50: N/A | BA50: Microbiological quality of improved water sources at point of collection | BB50: Not contaminated (No E. coli in 100 mL) | BC50: N/A | BD50: N/A | BE50: N/A | BF50: N/A | BG50: N/A | BH50: N/A | BI50: N/A | BJ50: N/A | BK50: N/A | BL50: N/A | BM50: N/A | BN50: N/A | BO50: N/A | BP50: N/A | BQ50: N/A | BR50: N/A | BS50: N/A | BT50: N/A | BU50: N/A | BV50: N/A
B51: Contaminated (E. coli detected in 100 mL) | C51: N/A | D51: N/A | E51: N/A | F51: N/A | G51: N/A | H51: N/A | I51: N/A | J51: N/A | K51: N/A | L51: N/A | M51: N/A | N51: N/A | O51: N/A | P51: N/A | Q51: N/A | R51: N/A | S51: N/A | T51: N/A | U51: N/A | V51: N/A | BB51: Contaminated (E. coli detected in 100 mL) | BC51: N/A | BD51: N/A | BE51: N/A | BF51: N/A | BG51: N/A | BH51: N/A | BI51: N/A | BJ51: N/A | BK51: N/A | BL51: N/A | BM51: N/A | BN51: N/A | BO51: N/A | BP51: N/A | BQ51: N/A | BR51: N/A | BS51: N/A | BT51: N/A | BU51: N/A | BV51: N/A
B52: Highly contaminated (>100 CFU/100 mL) | C52: N/A | D52: N/A | E52: N/A | F52: N/A | G52: N/A | H52: N/A | I52: N/A | J52: N/A | K52: N/A | L52: N/A | M52: N/A | N52: N/A | O52: N/A | P52: N/A | Q52: N/A | R52: N/A | S52: N/A | T52: N/A | U52: N/A | V52: N/A | BB52: Highly contaminated (>100 CFU/100 mL) | BC52: N/A | BD52: N/A | BE52: N/A | BF52: N/A | BG52: N/A | BH52: N/A | BI52: N/A | BJ52: N/A | BK52: N/A | BL52: N/A | BM52: N/A | BN52: N/A | BO52: N/A | BP52: N/A | BQ52: N/A | BR52: N/A | BS52: N/A | BT52: N/A | BU52: N/A | BV52: N/A
A53: Microbiological quality of piped on premises at point of collection | B53: Not contaminated (No E. coli in 100 mL) | C53: N/A | D53: N/A | E53: N/A | F53: N/A | G53: N/A | H53: N/A | I53: N/A | J53: N/A | K53: N/A | L53: N/A | M53: N/A | N53: N/A | O53: N/A | P53: N/A | Q53: N/A | R53: N/A | S53: N/A | T53: N/A | U53: N/A | V53: N/A | BA53: Microbiological quality of piped on premises at point of collection | BB53: Not contaminated (No E. coli in 100 mL) | BC53: N/A | BD53: N/A | BE53: N/A | BF53: N/A | BG53: N/A | BH53: N/A | BI53: N/A | BJ53: N/A | BK53: N/A | BL53: N/A | BM53: N/A | BN53: N/A | BO53: N/A | BP53: N/A | BQ53: N/A | BR53: N/A | BS53: N/A | BT53: N/A | BU53: N/A | BV53: N/A
B54: Contaminated (E. coli detected in 100 mL) | C54: N/A | D54: N/A | E54: N/A | F54: N/A | G54: N/A | H54: N/A | I54: N/A | J54: N/A | K54: N/A | L54: N/A | M54: N/A | N54: N/A | O54: N/A | P54: N/A | Q54: N/A | R54: N/A | S54: N/A | T54: N/A | U54: N/A | V54: N/A | BB54: Contaminated (E. coli detected in 100 mL) | BC54: N/A | BD54: N/A | BE54: N/A | BF54: N/A | BG54: N/A | BH54: N/A | BI54: N/A | BJ54: N/A | BK54: N/A | BL54: N/A | BM54: N/A | BN54: N/A | BO54: N/A | BP54: N/A | BQ54: N/A | BR54: N/A | BS54: N/A | BT54: N/A | BU54: N/A | BV54: N/A
B55: Highly contaminated (>100 CFU/100 mL) | C55: N/A | D55: N/A | E55: N/A | F55: N/A | G55: N/A | H55: N/A | I55: N/A | J55: N/A | K55: N/A | L55: N/A | M55: N/A | N55: N/A | O55: N/A | P55: N/A | Q55: N/A | R55: N/A | S55: N/A | T55: N/A | U55: N/A | V55: N/A | BB55: Highly contaminated (>100 CFU/100 mL) | BC55: N/A | BD55: N/A | BE55: N/A | BF55: N/A | BG55: N/A | BH55: N/A | BI55: N/A | BJ55: N/A | BK55: N/A | BL55: N/A | BM55: N/A | BN55: N/A | BO55: N/A | BP55: N/A | BQ55: N/A | BR55: N/A | BS55: N/A | BT55: N/A | BU55: N/A | BV55: N/A
C56: NATIONAL wealth index quintile | H56: URBAN wealth index quintile | M56: RURAL wealth index quintile | R56: SUB-REGIONS: | BA56: Raw numbers of respondents: | BB56: Use of drinking water sources | BC56: NATIONAL wealth index quintile | BH56: URBAN wealth index quintile | BM56: RURAL wealth index quintile | BR56: SUB-REGIONS:
A57: Percentage based on weighted population | C57: Poorest | D57: Poor | E57: Middle | F57: Rich | G57: Richest | H57: Poorest | I57: Poor | J57: Middle | K57: Rich | L57: Richest | M57: Poorest | N57: Poor | O57: Middle | P57: Rich | Q57: Richest | R57: Big cities | S57: East (Haut-Ogoou‚ & Ogoou‚-Lolo) | T57: North (Ogoou‚-Ivindo & Woleu-Ntem) | U57: South (Ngouni‚, Nyanga) | V57: West (Estuaire, Moyen-Ogoou‚ & Ogoou‚-maritime) | BA57: Water data, raw numbers (weighted) | BC57: Poorest | BD57: Poor | BE57: Middle | BF57: Rich | BG57: Richest | BH57: Poorest | BI57: Poor | BJ57: Middle | BK57: Rich | BL57: Richest | BM57: Poorest | BN57: Poor | BO57: Middle | BP57: Rich | BQ57: Richest | BR57: Big cities | BS57: East (Haut-Ogoou‚ & Ogoou‚-Lolo) | BT57: North (Ogoou‚-Ivindo & Woleu-Ntem) | BU57: South (Ngouni‚, Nyanga) | BV57: West (Estuaire, Moyen-Ogoou‚ & Ogoou‚-maritime)
A58: Source of drinking water | B58: Piped into residence/yard/plot | C58: 3.198814982 | D58: 17.59734775 | E58: 41.37511913 | F58: 59.91956954 | G58: 92.99220981 | H58: 17.21604354 | I58: 38.00951309 | J58: 52.95400709 | K58: 73.65404674 | L58: 94.33801903 | M58: 2.743821227 | N58: 1.464679327 | O58: 2.450238508 | P58: 6.981696692 | Q58: 30.05701412 | R58: 62.3588597 | S58: 40.67037736 | T58: 11.23633035 | U58: 11.4796145 | V58: 26.82172852
B59: Public tap | C59: 15.88693615 | D59: 44.28732204 | E59: 49.43521307 | F59: 35.87980411 | G59: 5.68285277 | H59: 55.40979765 | I59: 56.91720834 | J59: 43.83549408 | K59: 25.37344827 | L59: 4.517474267 | M59: 9.167072113 | N59: 7.50789072 | O59: 8.759079013 | P59: 13.34496096 | Q59: 15.3525099 | R59: 37.24986026 | S59: 24.19162018 | T59: 11.83584379 | U59: 31.0559478 | V59: 27.61362245
B60: Protected well in yard/plot | C60: 1.49102495 | D60: 0.904739076 | E60: 0.217928802 | F60: 0.1956875089 | G60: 0.09668036507 | H60: 0.8462763774 | I60: 0 | J60: 0 | K60: 0.02580651943 | L60: 0.1310448509 | M60: 1.386613838 | N60: 1.32507523 | O60: 1.812237633 | P60: 2.191760285 | Q60: 1.503546115 | R60: 0.1117942985 | S60: 0.4935293736 | T60: 1.885990501 | U60: 0.3406863916 | V60: 1.453695348
B61: Public protected well | C61: 13.7095335 | D61: 5.563789236 | E61: 1.097745956 | F61: 0.6756295085 | G61: 0 | H61: 1.713858016 | I61: 0.2738706776 | J61: 0.01323368416 | K61: 0.1795408994 | L61: 0 | M61: 14.25593179 | N61: 18.31636639 | O61: 17.41455534 | P61: 13.16331138 | Q61: 10.87757975 | R61: 0 | S61: 1.288934828 | T61: 14.88730445 | U61: 16.14677717 | V61: 3.221810396
B62: Open well in yard/plot | C62: 1.655070473 | D62: 1.059428624 | E62: 0.8165198998 | F62: 0.5869033782 | G62: 0 | H62: 1.581785413 | I62: 0.8721612613 | J62: 0.9242632938 | K62: 0 | L62: 0 | M62: 0.6089414496 | N62: 1.780673512 | O62: 1.142447241 | P62: 1.833099277 | Q62: 0.9384693275 | R62: 0.07825600894 | S62: 0.8457900085 | T62: 3.04110524 | U62: 0.766173493 | V62: 1.559035591
B63: Public open well | C63: 4.88085113 | D63: 4.088760499 | E63: 0.9765109504 | F63: 0.3262723605 | G63: 0.2066962177 | H63: 4.657482056 | I63: 1.033191116 | J63: 0.1633186076 | K63: 0.2940557091 | L63: 0.1885613072 | M63: 3.272329457 | N63: 5.990427029 | O63: 4.75848131 | P63: 5.889675842 | Q63: 2.259537072 | R63: 0.0447177194 | S63: 1.653854653 | T63: 9.839534045 | U63: 2.331757511 | V63: 2.486029726
B64: Spring | C64: 21.50273679 | D64: 11.72404157 | E64: 3.219920728 | F64: 0.9364645022 | G64: 0.7333630594 | H64: 8.809715392 | I64: 1.562893737 | J64: 1.076737479 | K64: 0.253533087 | L64: 0.5747145291 | M64: 25.91322597 | N64: 21.80406031 | O64: 20.22944673 | P64: 24.94519634 | Q64: 17.18653713 | R64: 0.06707657909 | S64: 10.42182347 | T64: 30.08336858 | U64: 6.839917989 | V64: 11.93589245
B65: River/stream | C65: 35.46809647 | D65: 13.19956829 | E65: 2.101240789 | F65: 1.128528403 | G65: 0.08868500301 | H65: 8.268339486 | I65: 0.9399179527 | J65: 0.5017758334 | K65: 0.1519599512 | L65: 0.08190303178 | M65: 41.12699673 | N65: 40.22428818 | O65: 39.26967821 | P65: 29.45841982 | Q65: 19.37262756 | R65: 0 | S65: 18.81334415 | T65: 16.58112375 | U65: 28.18187001 | V65: 21.80750579
B66: Pond/lake | C66: 0.9177280911 | D66: 0.5186365333 | E66: 0 | F66: 0 | G66: 0 | H66: 0.3313712333 | I66: 0 | J66: 0 | K66: 0 | L66: 0 | M66: 0.2720148363 | N66: 0.7636198444 | O66: 1.987864882 | P66: 0.881203094 | Q66: 0.6427728324 | R66: 0 | S66: 0.8482469942 | T66: 0.172636232 | U66: 0.08858445054 | V66: 1.132007351
B67: Rainwater | C67: 1.289207459 | D67: 0.9192624971 | E67: 0.5332416903 | F67: 0.1692913403 | G67: 0 | H67: 0.9935108123 | I67: 0.2738706776 | J67: 0.4271170998 | K67: 0 | L67: 0 | M67: 1.253052585 | N67: 0.8229194573 | O67: 2.175971139 | P67: 1.310676308 | Q67: 0.7381181519 | R67: 0.06707657909 | S67: 0.3851371028 | T67: 0.05312699039 | U67: 2.509001271 | V67: 1.935448053
B68: Bottled water | C68: 0 | D68: 0 | E68: 0.05583246361 | F68: 0 | G68: 0.1241533729 | H68: 0 | I68: 0 | J68: 0.07758545755 | K68: 0 | L68: 0.168282983 | M68: 0 | N68: 0 | O68: 0 | P68: 0 | Q68: 0 | R68: 0.0223588597 | S68: 0 | T68: 0.1150908213 | U68: 0.09273907955 | V68: 0
B69: Other | C69: 0 | D69: 0.1371038944 | E69: 0.1707265231 | F69: 0.1818493425 | G69: 0.07535939957 | H69: 0.171820026 | I69: 0.1173731476 | J69: 0.02646736831 | K69: 0.06760882321 | L69: 0 | M69: 0 | N69: 0 | O69: 0 | P69: 0 | Q69: 1.071288054 | R69: 0 | S69: 0.3873418823 | T69: 0.2685452497 | U69: 0.1669303432 | V69: 0.03322432443
A108: =A1026 -> Gabon
A109: =A1034 -> 2000
A110: Use of sanitation facilities
A111: by wealth quintile and sub-national region
A112: Notes:
A113: WHO/UNICEF JMP customised wealth index excludes water,
A114: sanitation and hygiene assets.
A115: Survey used for analysis: | B115: =A1025 -> DHS00
A116: =B1030 -> Ratio of Improved latrines based on: | B116: DHS12
A117: =B1029 -> Ratio of Shared improved based on: | B117: DHS12
A120: Use of sanitation facilities | C120: NATIONAL wealth index quintile | H120: URBAN wealth index quintile | M120: RURAL wealth index quintile | R120: SUB-REGIONS: | BA120: Raw numbers of respondents: | BB120: Use of sanitation facilities | BC120: NATIONAL wealth index quintile | BH120: URBAN wealth index quintile | BM120: RURAL wealth index quintile | BR120: SUB-REGIONS:
A121: Weighted percentage (used in graphs) | C121: Poorest | D121: Poor | E121: Middle | F121: Rich | G121: Richest | H121: Poorest | I121: Poor | J121: Middle | K121: Rich | L121: Richest | M121: Poorest | N121: Poor | O121: Middle | P121: Rich | Q121: Richest | R121: Big cities | S121: East (Haut-Ogoou‚ & Ogoou‚-Lolo) | T121: North (Ogoou‚-Ivindo & Woleu-Ntem) | U121: South (Ngouni‚, Nyanga) | V121: West (Estuaire, Moyen-Ogoou‚ & Ogoou‚-maritime) | BA121: Sanitation data, raw numbers (weighted) | BC121: Poorest | BD121: Poor | BE121: Middle | BF121: Rich | BG121: Richest | BH121: Poorest | BI121: Poor | BJ121: Middle | BK121: Rich | BL121: Richest | BM121: Poorest | BN121: Poor | BO121: Middle | BP121: Rich | BQ121: Richest | BR121: Big cities | BS121: East (Haut-Ogoou‚ & Ogoou‚-Lolo) | BT121: North (Ogoou‚-Ivindo & Woleu-Ntem) | BU121: South (Ngouni‚, Nyanga) | BV121: West (Estuaire, Moyen-Ogoou‚ & Ogoou‚-maritime)
A122: Sanitation | B122: Improved | C122: =C153+C154+C155*0.5 -> 48.84010893 | D122: =D153+D154+D155*0.5 -> 59.60483179 | E122: 71.50362865 | F122: 85.22446915 | G122: 95.95089522 | H122: 57.00910935 | I122: 70.71471387 | J122: 78.0763754 | K122: 89.92173963 | L122: 97.04198436 | M122: 48.55788743 | N122: 47.70491632 | O122: 49.52860096 | P122: 55.26825972 | Q122: 71.27808638 | R122: 84.5521637 | S122: 62.49089055 | T122: 56.01655722 | U122: 55.89433921 | V122: 64.14784246 | BA122: Sanitation | BB122: Improved | BC122: N/A | BD122: N/A | BE122: N/A | BF122: N/A | BG122: N/A | BH122: N/A | BI122: N/A | BJ122: N/A | BK122: N/A | BL122: N/A | BM122: N/A | BN122: N/A | BO122: N/A | BP122: N/A | BQ122: N/A | BR122: N/A | BS122: N/A | BT122: N/A | BU122: N/A | BV122: N/A
B123: Not Improved | C123: =100-C122 -> 51.15989107 | D123: =100-D122 -> 40.39516821 | E123: 28.49637135 | F123: 14.77553085 | G123: 4.049104776 | H123: 42.99089065 | I123: 29.28528613 | J123: 21.9236246 | K123: 10.07826037 | L123: 2.958015641 | M123: 51.44211257 | N123: 52.29508368 | O123: 50.47139904 | P123: 44.73174028 | Q123: 28.72191362 | R123: 15.4478363 | S123: 37.50910945 | T123: 43.98344278 | U123: 44.10566079 | V123: 35.85215754 | BB123: Not Improved | BC123: N/A | BD123: N/A | BE123: N/A | BF123: N/A | BG123: N/A | BH123: N/A | BI123: N/A | BJ123: N/A | BK123: N/A | BL123: N/A | BM123: N/A | BN123: N/A | BO123: N/A | BP123: N/A | BQ123: N/A | BR123: N/A | BS123: N/A | BT123: N/A | BU123: N/A | BV123: N/A
A124: Sanitation ladder | B124: Basic | C124: =C122*'DHS12'!C129/100 -> 17.65013589 | D124: =D122*'DHS12'!D129/100 -> 17.47658232 | E124: =E122*'DHS12'!E129/100 -> 29.05696862 | F124: =F122*'DHS12'!F129/100 -> 55.96375132 | G124: =G122*'DHS12'!G129/100 -> 87.46820806 | H124: =H122*'DHS12'!H129/100 -> 16.13496967 | I124: =I122*'DHS12'!I129/100 -> 22.73646168 | J124: =J122*'DHS12'!J129/100 -> 35.33081452 | K124: =K122*'DHS12'!K129/100 -> 64.11710984 | L124: =L122*'DHS12'!L129/100 -> 88.66367431 | M124: =M122*'DHS12'!M129/100 -> 23.62090876 | N124: =N122*'DHS12'!N129/100 -> 18.35493012 | O124: =O122*'DHS12'!O129/100 -> 31.47742699 | P124: =P122*'DHS12'!P129/100 -> 34.83825897 | Q124: =Q122*'DHS12'!Q129/100 -> 53.86326572 | R124: N/A | S124: N/A | T124: N/A | U124: N/A | V124: N/A | BA124: Sanitation ladder | BB124: Basic | BC124: N/A | BD124: N/A | BE124: N/A | BF124: N/A | BG124: N/A | BH124: N/A | BI124: N/A | BJ124: N/A | BK124: N/A | BL124: N/A | BM124: N/A | BN124: N/A | BO124: N/A | BP124: N/A | BQ124: N/A | BR124: N/A | BS124: N/A | BT124: N/A | BU124: N/A | BV124: N/A
B125: Limited | C125: =C122*'DHS12'!C128/100 -> 31.18997304 | D125: =D122*'DHS12'!D128/100 -> 42.12824947 | E125: =E122*'DHS12'!E128/100 -> 42.44666003 | F125: =F122*'DHS12'!F128/100 -> 29.26071782 | G125: =G122*'DHS12'!G128/100 -> 8.482687162 | H125: =H122*'DHS12'!H128/100 -> 40.87413969 | I125: =I122*'DHS12'!I128/100 -> 47.97825219 | J125: =J122*'DHS12'!J128/100 -> 42.74556087 | K125: =K122*'DHS12'!K128/100 -> 25.80462979 | L125: =L122*'DHS12'!L128/100 -> 8.378310045 | M125: =M122*'DHS12'!M128/100 -> 24.93697867 | N125: =N122*'DHS12'!N128/100 -> 29.3499862 | O125: =O122*'DHS12'!O128/100 -> 18.05117397 | P125: =P122*'DHS12'!P128/100 -> 20.43000074 | Q125: =Q122*'DHS12'!Q128/100 -> 17.41482066 | R125: N/A | S125: N/A | T125: N/A | U125: N/A | V125: N/A | BB125: Limited | BC125: N/A | BD125: N/A | BE125: N/A | BF125: N/A | BG125: N/A | BH125: N/A | BI125: N/A | BJ125: N/A | BK125: N/A | BL125: N/A | BM125: N/A | BN125: N/A | BO125: N/A | BP125: N/A | BQ125: N/A | BR125: N/A | BS125: N/A | BT125: N/A | BU125: N/A | BV125: N/A
B126: Unimproved | C126: =100-(C124+C125+C127) -> 46.32637921 | D126: =100-(D124+D125+D127) -> 37.59266411 | E126: 26.72925831 | F126: 14.03985972 | G126: 3.904084229 | H126: 39.32933039 | I126: 27.05036383 | J126: 20.81113486 | K126: 9.732772029 | L126: 2.958015641 | M126: 48.34173649 | N126: 44.63795748 | O126: 47.09353723 | P126: 41.91611307 | Q126: 26.89449619 | R126: N/A | S126: N/A | T126: N/A | U126: N/A | V126: N/A | BB126: Unimproved | BC126: N/A | BD126: N/A | BE126: N/A | BF126: N/A | BG126: N/A | BH126: N/A | BI126: N/A | BJ126: N/A | BK126: N/A | BL126: N/A | BM126: N/A | BN126: N/A | BO126: N/A | BP126: N/A | BQ126: N/A | BR126: N/A | BS126: N/A | BT126: N/A | BU126: N/A | BV126: N/A
B127: Open defecation | C127: =C156 -> 4.833511862 | D127: =D156 -> 2.802504104 | E127: 1.767113041 | F127: 0.7356711347 | G127: 0.1450205476 | H127: 3.661560259 | I127: 2.234922302 | J127: 1.112489738 | K127: 0.345488344 | L127: 0 | M127: 3.100376087 | N127: 7.657126198 | O127: 3.377861805 | P127: 2.815627212 | Q127: 1.82741743 | R127: N/A | S127: N/A | T127: N/A | U127: N/A | V127: N/A | BB127: Open defecation | BC127: N/A | BD127: N/A | BE127: N/A | BF127: N/A | BG127: N/A | BH127: N/A | BI127: N/A | BJ127: N/A | BK127: N/A | BL127: N/A | BM127: N/A | BN127: N/A | BO127: N/A | BP127: N/A | BQ127: N/A | BR127: N/A | BS127: N/A | BT127: N/A | BU127: N/A | BV127: N/A
A128: Shared among Improved Sanitation | B128: Yes | C128: N/A | D128: N/A | E128: N/A | F128: N/A | G128: N/A | H128: N/A | I128: N/A | J128: N/A | K128: N/A | L128: N/A | M128: N/A | N128: N/A | O128: N/A | P128: N/A | Q128: N/A | R128: N/A | S128: N/A | T128: N/A | U128: N/A | V128: N/A | BA128: Shared among improved sanitation facilities | BB128: Yes | BC128: N/A | BD128: N/A | BE128: N/A | BF128: N/A | BG128: N/A | BH128: N/A | BI128: N/A | BJ128: N/A | BK128: N/A | BL128: N/A | BM128: N/A | BN128: N/A | BO128: N/A | BP128: N/A | BQ128: N/A | BR128: N/A | BS128: N/A | BT128: N/A | BU128: N/A | BV128: N/A
B129: No | C129: N/A | D129: N/A | E129: N/A | F129: N/A | G129: N/A | H129: N/A | I129: N/A | J129: N/A | K129: N/A | L129: N/A | M129: N/A | N129: N/A | O129: N/A | P129: N/A | Q129: N/A | R129: N/A | S129: N/A | T129: N/A | U129: N/A | V129: N/A | BB129: No | BC129: N/A | BD129: N/A | BE129: N/A | BF129: N/A | BG129: N/A | BH129: N/A | BI129: N/A | BJ129: N/A | BK129: N/A | BL129: N/A | BM129: N/A | BN129: N/A | BO129: N/A | BP129: N/A | BQ129: N/A | BR129: N/A | BS129: N/A | BT129: N/A | BU129: N/A | BV129: N/A
A130: Manually calculated ratios | B130: Improved latrines
B131: Other
B132: Other
C133: NATIONAL wealth index quintile | H133: URBAN wealth index quintile | M133: RURAL wealth index quintile | R133: SUB-REGIONS: | BA133: Raw numbers of respondents: | BB133: Use of sanitation facilities | BC133: NATIONAL wealth index quintile | BH133: URBAN wealth index quintile | BM133: RURAL wealth index quintile | BR133: SUB-REGIONS:
A134: Percentage based on weighted population | C134: Poorest | D134: Poor | E134: Middle | F134: Rich | G134: Richest | H134: Poorest | I134: Poor | J134: Middle | K134: Rich | L134: Richest | M134: Poorest | N134: Poor | O134: Middle | P134: Rich | Q134: Richest | R134: Big cities | S134: East (Haut-Ogoou‚ & Ogoou‚-Lolo) | T134: North (Ogoou‚-Ivindo & Woleu-Ntem) | U134: South (Ngouni‚, Nyanga) | V134: West (Estuaire, Moyen-Ogoou‚ & Ogoou‚-maritime) | BA134: Sanitation data, raw numbers (weighted) | BC134: Poorest | BD134: Poor | BE134: Middle | BF134: Rich | BG134: Richest | BH134: Poorest | BI134: Poor | BJ134: Middle | BK134: Rich | BL134: Richest | BM134: Poorest | BN134: Poor | BO134: Middle | BP134: Rich | BQ134: Richest | BR134: Big cities | BS134: East (Haut-Ogoou‚ & Ogoou‚-Lolo) | BT134: North (Ogoou‚-Ivindo & Woleu-Ntem) | BU134: South (Ngouni‚, Nyanga) | BV134: West (Estuaire, Moyen-Ogoou‚ & Ogoou‚-maritime)
A135: Sanitation type | B135: Sewer connection | C135: N/A | D135: N/A | E135: N/A | F135: N/A | G135: N/A | H135: N/A | I135: N/A | J135: N/A | K135: N/A | L135: N/A | M135: N/A | N135: N/A | O135: N/A | P135: N/A | Q135: N/A | R135: N/A | S135: N/A | T135: N/A | U135: N/A | V135: N/A | BA135: Sanitation type | BB135: Sewer connection | BC135: N/A | BD135: N/A | BE135: N/A | BF135: N/A | BG135: N/A | BH135: N/A | BI135: N/A | BJ135: N/A | BK135: N/A | BL135: N/A | BM135: N/A | BN135: N/A | BO135: N/A | BP135: N/A | BQ135: N/A | BR135: N/A | BS135: N/A | BT135: N/A | BU135: N/A | BV135: N/A
B136: Septic tank connection | C136: N/A | D136: N/A | E136: N/A | F136: N/A | G136: N/A | H136: N/A | I136: N/A | J136: N/A | K136: N/A | L136: N/A | M136: N/A | N136: N/A | O136: N/A | P136: N/A | Q136: N/A | R136: N/A | S136: N/A | T136: N/A | U136: N/A | V136: N/A | BB136: Septic tank connection | BC136: N/A | BD136: N/A | BE136: N/A | BF136: N/A | BG136: N/A | BH136: N/A | BI136: N/A | BJ136: N/A | BK136: N/A | BL136: N/A | BM136: N/A | BN136: N/A | BO136: N/A | BP136: N/A | BQ136: N/A | BR136: N/A | BS136: N/A | BT136: N/A | BU136: N/A | BV136: N/A
B137: Improved latrines | C137: N/A | D137: N/A | E137: N/A | F137: N/A | G137: N/A | H137: N/A | I137: N/A | J137: N/A | K137: N/A | L137: N/A | M137: N/A | N137: N/A | O137: N/A | P137: N/A | Q137: N/A | R137: N/A | S137: N/A | T137: N/A | U137: N/A | V137: N/A | BB137: Improved latrines | BC137: N/A | BD137: N/A | BE137: N/A | BF137: N/A | BG137: N/A | BH137: N/A | BI137: N/A | BJ137: N/A | BK137: N/A | BL137: N/A | BM137: N/A | BN137: N/A | BO137: N/A | BP137: N/A | BQ137: N/A | BR137: N/A | BS137: N/A | BT137: N/A | BU137: N/A | BV137: N/A
B138: Unimproved facilities | C138: N/A | D138: N/A | E138: N/A | F138: N/A | G138: N/A | H138: N/A | I138: N/A | J138: N/A | K138: N/A | L138: N/A | M138: N/A | N138: N/A | O138: N/A | P138: N/A | Q138: N/A | R138: N/A | S138: N/A | T138: N/A | U138: N/A | V138: N/A | BB138: Unimproved facilities | BC138: N/A | BD138: N/A | BE138: N/A | BF138: N/A | BG138: N/A | BH138: N/A | BI138: N/A | BJ138: N/A | BK138: N/A | BL138: N/A | BM138: N/A | BN138: N/A | BO138: N/A | BP138: N/A | BQ138: N/A | BR138: N/A | BS138: N/A | BT138: N/A | BU138: N/A | BV138: N/A
B139: Open defecation | C139: 4.822720568 | D139: 2.792916345 | E139: 1.762797115 | F139: 0.7332544033 | G139: 0.1450205476 | H139: 3.655926772 | I139: 2.228898333 | J139: 1.111750355 | K139: 0.3441895558 | L139: 0 | M139: 3.089772262 | N139: 7.635384194 | O139: 3.377861805 | P139: 2.803519956 | Q139: 1.812307184 | R139: 0.9270635541 | S139: 7.310239315 | T139: 0.393981034 | U139: 2.415796725 | V139: 1.845508589 | BB139: Open defecation | BC139: N/A | BD139: N/A | BE139: N/A | BF139: N/A | BG139: N/A | BH139: N/A | BI139: N/A | BJ139: N/A | BK139: N/A | BL139: N/A | BM139: N/A | BN139: N/A | BO139: N/A | BP139: N/A | BQ139: N/A | BR139: N/A | BS139: N/A | BT139: N/A | BU139: N/A | BV139: N/A
A140: Septic tank emptying practices | B140: Not emptied/treated and disposed in situ | C140: N/A | D140: N/A | E140: N/A | F140: N/A | G140: N/A | H140: N/A | I140: N/A | J140: N/A | K140: N/A | L140: N/A | M140: N/A | N140: N/A | O140: N/A | P140: N/A | Q140: N/A | R140: N/A | S140: N/A | T140: N/A | U140: N/A | V140: N/A | BA140: Septic tank emptying practices | BB140: Not emptied/treated and disposed in situ | BC140: N/A | BD140: N/A | BE140: N/A | BF140: N/A | BG140: N/A | BH140: N/A | BI140: N/A | BJ140: N/A | BK140: N/A | BL140: N/A | BM140: N/A | BN140: N/A | BO140: N/A | BP140: N/A | BQ140: N/A | BR140: N/A | BS140: N/A | BT140: N/A | BU140: N/A | BV140: N/A
B141: Emptied and buried on site | C141: N/A | D141: N/A | E141: N/A | F141: N/A | G141: N/A | H141: N/A | I141: N/A | J141: N/A | K141: N/A | L141: N/A | M141: N/A | N141: N/A | O141: N/A | P141: N/A | Q141: N/A | R141: N/A | S141: N/A | T141: N/A | U141: N/A | V141: N/A | BB141: Emptied and buried on site | BC141: N/A | BD141: N/A | BE141: N/A | BF141: N/A | BG141: N/A | BH141: N/A | BI141: N/A | BJ141: N/A | BK141: N/A | BL141: N/A | BM141: N/A | BN141: N/A | BO141: N/A | BP141: N/A | BQ141: N/A | BR141: N/A | BS141: N/A | BT141: N/A | BU141: N/A | BV141: N/A
B142: Emptied and discharged locally | C142: N/A | D142: N/A | E142: N/A | F142: N/A | G142: N/A | H142: N/A | I142: N/A | J142: N/A | K142: N/A | L142: N/A | M142: N/A | N142: N/A | O142: N/A | P142: N/A | Q142: N/A | R142: N/A | S142: N/A | T142: N/A | U142: N/A | V142: N/A | BB142: Emptied and discharged locally | BC142: N/A | BD142: N/A | BE142: N/A | BF142: N/A | BG142: N/A | BH142: N/A | BI142: N/A | BJ142: N/A | BK142: N/A | BL142: N/A | BM142: N/A | BN142: N/A | BO142: N/A | BP142: N/A | BQ142: N/A | BR142: N/A | BS142: N/A | BT142: N/A | BU142: N/A | BV142: N/A
B143: Emptied and removed offsite | C143: N/A | D143: N/A | E143: N/A | F143: N/A | G143: N/A | H143: N/A | I143: N/A | J143: N/A | K143: N/A | L143: N/A | M143: N/A | N143: N/A | O143: N/A | P143: N/A | Q143: N/A | R143: N/A | S143: N/A | T143: N/A | U143: N/A | V143: N/A | BB143: Emptied and removed offsite | BC143: N/A | BD143: N/A | BE143: N/A | BF143: N/A | BG143: N/A | BH143: N/A | BI143: N/A | BJ143: N/A | BK143: N/A | BL143: N/A | BM143: N/A | BN143: N/A | BO143: N/A | BP143: N/A | BQ143: N/A | BR143: N/A | BS143: N/A | BT143: N/A | BU143: N/A | BV143: N/A
A144: Latrine emptying practices | B144: Not emptied/treated and disposed in situ | C144: N/A | D144: N/A | E144: N/A | F144: N/A | G144: N/A | H144: N/A | I144: N/A | J144: N/A | K144: N/A | L144: N/A | M144: N/A | N144: N/A | O144: N/A | P144: N/A | Q144: N/A | R144: N/A | S144: N/A | T144: N/A | U144: N/A | V144: N/A | BA144: Latrine emptying practices | BB144: Not emptied/treated and disposed in situ | BC144: N/A | BD144: N/A | BE144: N/A | BF144: N/A | BG144: N/A | BH144: N/A | BI144: N/A | BJ144: N/A | BK144: N/A | BL144: N/A | BM144: N/A | BN144: N/A | BO144: N/A | BP144: N/A | BQ144: N/A | BR144: N/A | BS144: N/A | BT144: N/A | BU144: N/A | BV144: N/A
B145: Emptied and buried on site | C145: N/A | D145: N/A | E145: N/A | F145: N/A | G145: N/A | H145: N/A | I145: N/A | J145: N/A | K145: N/A | L145: N/A | M145: N/A | N145: N/A | O145: N/A | P145: N/A | Q145: N/A | R145: N/A | S145: N/A | T145: N/A | U145: N/A | V145: N/A | BB145: Emptied and buried on site | BC145: N/A | BD145: N/A | BE145: N/A | BF145: N/A | BG145: N/A | BH145: N/A | BI145: N/A | BJ145: N/A | BK145: N/A | BL145: N/A | BM145: N/A | BN145: N/A | BO145: N/A | BP145: N/A | BQ145: N/A | BR145: N/A | BS145: N/A | BT145: N/A | BU145: N/A | BV145: N/A
B146: Emptied and discharged locally | C146: N/A | D146: N/A | E146: N/A | F146: N/A | G146: N/A | H146: N/A | I146: N/A | J146: N/A | K146: N/A | L146: N/A | M146: N/A | N146: N/A | O146: N/A | P146: N/A | Q146: N/A | R146: N/A | S146: N/A | T146: N/A | U146: N/A | V146: N/A | BB146: Emptied and discharged locally | BC146: N/A | BD146: N/A | BE146: N/A | BF146: N/A | BG146: N/A | BH146: N/A | BI146: N/A | BJ146: N/A | BK146: N/A | BL146: N/A | BM146: N/A | BN146: N/A | BO146: N/A | BP146: N/A | BQ146: N/A | BR146: N/A | BS146: N/A | BT146: N/A | BU146: N/A | BV146: N/A
B147: Emptied and removed offsite | C147: N/A | D147: N/A | E147: N/A | F147: N/A | G147: N/A | H147: N/A | I147: N/A | J147: N/A | K147: N/A | L147: N/A | M147: N/A | N147: N/A | O147: N/A | P147: N/A | Q147: N/A | R147: N/A | S147: N/A | T147: N/A | U147: N/A | V147: N/A | BB147: Emptied and removed offsite | BC147: N/A | BD147: N/A | BE147: N/A | BF147: N/A | BG147: N/A | BH147: N/A | BI147: N/A | BJ147: N/A | BK147: N/A | BL147: N/A | BM147: N/A | BN147: N/A | BO147: N/A | BP147: N/A | BQ147: N/A | BR147: N/A | BS147: N/A | BT147: N/A | BU147: N/A | BV147: N/A
A148: Shared among improved sanitation facilities | B148: Yes | C148: N/A | D148: N/A | E148: N/A | F148: N/A | G148: N/A | H148: N/A | I148: N/A | J148: N/A | K148: N/A | L148: N/A | M148: N/A | N148: N/A | O148: N/A | P148: N/A | Q148: N/A | R148: N/A | S148: N/A | T148: N/A | U148: N/A | V148: N/A | BA148: Shared among improved sanitation facilities | BB148: Yes | BC148: N/A | BD148: N/A | BE148: N/A | BF148: N/A | BG148: N/A | BH148: N/A | BI148: N/A | BJ148: N/A | BK148: N/A | BL148: N/A | BM148: N/A | BN148: N/A | BO148: N/A | BP148: N/A | BQ148: N/A | BR148: N/A | BS148: N/A | BT148: N/A | BU148: N/A | BV148: N/A
B149: No | C149: N/A | D149: N/A | E149: N/A | F149: N/A | G149: N/A | H149: N/A | I149: N/A | J149: N/A | K149: N/A | L149: N/A | M149: N/A | N149: N/A | O149: N/A | P149: N/A | Q149: N/A | R149: N/A | S149: N/A | T149: N/A | U149: N/A | V149: N/A | BB149: No | BC149: N/A | BD149: N/A | BE149: N/A | BF149: N/A | BG149: N/A | BH149: N/A | BI149: N/A | BJ149: N/A | BK149: N/A | BL149: N/A | BM149: N/A | BN149: N/A | BO149: N/A | BP149: N/A | BQ149: N/A | BR149: N/A | BS149: N/A | BT149: N/A | BU149: N/A | BV149: N/A
B150: DK/missing | C150: N/A | D150: N/A | E150: N/A | F150: N/A | G150: N/A | H150: N/A | I150: N/A | J150: N/A | K150: N/A | L150: N/A | M150: N/A | N150: N/A | O150: N/A | P150: N/A | Q150: N/A | R150: N/A | S150: N/A | T150: N/A | U150: N/A | V150: N/A | BB150: DK/missing | BC150: N/A | BD150: N/A | BE150: N/A | BF150: N/A | BG150: N/A | BH150: N/A | BI150: N/A | BJ150: N/A | BK150: N/A | BL150: N/A | BM150: N/A | BN150: N/A | BO150: N/A | BP150: N/A | BQ150: N/A | BR150: N/A | BS150: N/A | BT150: N/A | BU150: N/A | BV150: N/A
A151: Shared among all sanitation facilities | B151: Yes | C151: 43.6259791 | D151: 58.89196662 | E151: 61.64756209 | F151: 49.36275545 | G151: 14.60327034 | H151: 61.43162289 | I151: 66.4604209 | J151: 56.88022035 | K151: 40.20392666 | L151: 10.42026059 | M151: 39.37446834 | N151: 40.99928401 | O151: 43.0633501 | P151: 50.40195021 | Q151: 35.36718853 | R151: 46.97637617 | S151: 36.63123505 | T151: 45.78049463 | U151: 52.10070171 | V151: 43.56902527 | BA151: Shared among all sanitation facilities | BB151: Yes | BC151: N/A | BD151: N/A | BE151: N/A | BF151: N/A | BG151: N/A | BH151: N/A | BI151: N/A | BJ151: N/A | BK151: N/A | BL151: N/A | BM151: N/A | BN151: N/A | BO151: N/A | BP151: N/A | BQ151: N/A | BR151: N/A | BS151: N/A | BT151: N/A | BU151: N/A | BV151: N/A
B152: No | C152: 55.84877573 | D152: 40.41656439 | E152: 38.10187893 | F152: 50.3542077 | G152: 85.22743006 | H152: 37.66438759 | I152: 33.42221882 | J152: 42.83771868 | K152: 59.46131112 | L152: 89.42688568 | M152: 60.20943533 | N152: 58.62052326 | O152: 56.61532642 | P152: 48.89694258 | Q152: 64.19190424 | R152: 52.78625523 | S152: 62.17162158 | T152: 53.8594246 | U152: 47.57371727 | V152: 56.32329651 | BB152: No | BC152: N/A | BD152: N/A | BE152: N/A | BF152: N/A | BG152: N/A | BH152: N/A | BI152: N/A | BJ152: N/A | BK152: N/A | BL152: N/A | BM152: N/A | BN152: N/A | BO152: N/A | BP152: N/A | BQ152: N/A | BR152: N/A | BS152: N/A | BT152: N/A | BU152: N/A | BV152: N/A
A153: Type of toilet facility | B153: Modern flush toilets | C153: 0.01167673748 | D153: 2.930369524 | E153: 8.386945712 | F153: 28.45587358 | G153: 83.08758733 | H153: 2.272203675 | I153: 7.554151438 | J153: 14.62699845 | K153: 45.83400393 | L153: 88.40293764 | M153: 0.04187451672 | N153: 0 | O153: 0 | P153: 0.7153862133 | Q153: 20.786405 | R153: 36.25181706 | S153: 24.6405669 | T153: 5.79549028 | U153: 5.854632925 | V153: 12.03999009 | BA153: Type of toilet facility | BB153: Modern flush toilets | BC153: 0.757186 | BD153: 187.944939 | BE153: 547.915338 | BF153: 1845.578924 | BG153: 5388.352353 | BH153: 108.481947 | BI153: 361.694066 | BJ153: 689.479653 | BK153: 2215.67856 | BL153: 4229.654142 | BM153: 0.757186 | BN153: 0 | BO153: 0 | BP153: 12.143588 | BQ153: 352.659598 | BR153: 5913.881332 | BS153: 1161.623952 | BT153: 246.617477 | BU153: 197.561853 | BV153: 450.864126
B154: Ventilated improved pit (VIP) Latrines | C154: 2.642250662 | D154: 19.11691599 | E154: 36.90972908 | F154: 42.72873585 | G154: 9.12799202 | H154: 15.49881373 | I154: 36.75786717 | J154: 42.70424966 | K154: 34.35496367 | L154: 5.909787183 | M154: 0.3052116971 | N154: 3.066958844 | O154: 2.57354945 | P154: 12.72484146 | Q154: 23.64181513 | R154: 34.03779492 | S154: 7.695527979 | T154: 6.651285847 | U154: 8.398166789 | V154: 18.42767929 | BB154: Ventilated improved pit (VIP) Latrines | BC154: 171.338545 | BD154: 1226.100524 | BE154: 2411.295766 | BF154: 2771.282144 | BG154: 591.96372 | BH154: 739.96073 | BI154: 1759.972982 | BJ154: 2012.970148 | BK154: 1660.766023 | BL154: 282.75481 | BM154: 5.518918 | BN154: 48.932016 | BO154: 43.998406 | BP154: 216.00253 | BQ154: 401.104136 | BR154: 5552.700424 | BS154: 362.78831 | BT154: 283.034438 | BU154: 283.392215 | BV154: 690.065312
B155: Traditional pit toilet | C155: 92.37236306 | D155: 75.11509256 | E155: 52.41390771 | F155: 28.07971944 | G155: 7.470631755 | H155: 78.47618389 | I155: 52.80539053 | J155: 41.49025457 | K155: 19.46554406 | L155: 5.458519079 | M155: 96.42160242 | N155: 89.27591496 | O155: 93.91010302 | P155: 83.65606409 | Q155: 53.69973251 | R155: 28.52510343 | S155: 60.30959134 | T155: 87.13956219 | U155: 83.28307899 | V155: 67.36034617 | BB155: Traditional pit toilet | BC155: 5989.94884 | BD155: 4817.652304 | BE155: 3424.176684 | BF155: 1821.182479 | BG155: 484.481467 | BH155: 3746.692832 | BI155: 2528.331152 | BJ155: 1955.745495 | BK155: 940.991075 | BL155: 261.163808 | BM155: 1743.520718 | BN155: 1424.359022 | BO155: 1605.52378 | BP155: 1420.050816 | BQ155: 911.063076 | BR155: 4653.396446 | BS155: 2843.159661 | BT155: 3708.079547 | BU155: 2810.348594 | BV155: 2522.457526
B156: No toilet/bush | C156: 4.833511862 | D156: 2.802504104 | E156: 1.767113041 | F156: 0.7356711347 | G156: 0.1450205476 | H156: 3.661560259 | I156: 2.234922302 | J156: 1.112489738 | K156: 0.345488344 | L156: 0 | M156: 3.100376087 | N156: 7.657126198 | O156: 3.377861805 | P156: 2.815627212 | Q156: 1.82741743 | R156: 0.9281001901 | S156: 7.354313776 | T156: 0.3958678781 | U156: 2.419812963 | V156: 1.846121951 | BB156: No toilet/bush | BC156: 313.432371 | BD156: 179.744042 | BE156: 115.444689 | BF156: 47.713845 | BG156: 9.404796 | BH156: 174.814076 | BI156: 107.008463 | BJ156: 52.439948 | BK156: 16.70138 | BL156: 0 | BM156: 56.061814 | BN156: 122.166172 | BO156: 57.749244 | BP156: 47.794906 | BQ156: 31.00374 | BR156: 151.404118 | BS156: 346.702536 | BT156: 16.845501 | BU156: 81.655458 | BV156: 69.13213
B157: OTHER | C157: 0.1401976783 | D157: 0.0351178267 | E157: 0.5223044578 | F157: 0 | G157: 0.1687683509 | H157: 0.09123844129 | I157: 0.6476685664 | J157: 0.06600757773 | K157: 0 | L157: 0.2287561011 | M157: 0.1309352749 | N157: 0 | O157: 0.1384857242 | P157: 0.08808102781 | Q157: 0.04462993478 | R157: 0.25718439 | S157: 0 | T157: 0.01779380828 | U157: 0.04430833306 | V157: 0.3258625034 | BB157: OTHER | BC157: 9.091214 | BD157: 2.25235 | BE157: 34.121912 | BF157: 0 | BG157: 10.944876 | BH157: 4.356002 | BI157: 31.010482 | BJ157: 3.11143 | BK157: 0 | BL157: 10.944876 | BM157: 2.367606 | BN157: 0 | BO157: 2.367606 | BP157: 1.495164 | BQ157: 0.757186 | BR157: 41.955358 | BS157: 0 | BT157: 0.757186 | BU157: 1.495164 | BV157: 12.202644
BB158: Total | BC158: 6484.568156 | BD158: 6413.694159 | BE158: 6532.954389 | BF158: 6485.757392 | BG158: 6485.147212 | BH158: 4774.305587 | BI158: 4788.017145 | BJ158: 4713.746674 | BK158: 4834.137038 | BL158: 4784.517636 | BM158: 1808.226242 | BN158: 1595.45721 | BO158: 1709.639036 | BP158: 1697.487004 | BQ158: 1696.587736 | BR158: 16313.33768 | BS158: 4714.274459 | BT158: 4255.334149 | BU158: 3374.453284 | BV158: 3744.721738
A208: =A1026 -> Gabon
A209: =A1034 -> 2000
A210: Access to hygiene facilities
A211: by wealth quintile and sub-national region
A212: Notes:
A213: WHO/UNICEF JMP customised wealth index excludes water,
A214: sanitation and hygiene assets.
A215: Survey used for analysis: | B215: =A1025 -> DHS00
A220: Access to handwashing | C220: NATIONAL wealth index quintile | H220: URBAN wealth index quintile | M220: RURAL wealth index quintile | R220: SUB-REGIONS: | BA220: Raw numbers of respondents: | BB220: Access to handwashing | BC220: NATIONAL wealth index quintile | BH220: URBAN wealth index quintile | BM220: RURAL wealth index quintile | BR220: SUB-REGIONS:
A221: Weighted percentage (used in graphs) | C221: Poorest | D221: Poor | E221: Middle | F221: Rich | G221: Richest | H221: Poorest | I221: Poor | J221: Middle | K221: Rich | L221: Richest | M221: Poorest | N221: Poor | O221: Middle | P221: Rich | Q221: Richest | R221: Big cities | S221: East (Haut-Ogoou‚ & Ogoou‚-Lolo) | T221: North (Ogoou‚-Ivindo & Woleu-Ntem) | U221: South (Ngouni‚, Nyanga) | V221: West (Estuaire, Moyen-Ogoou‚ & Ogoou‚-maritime) | BA221: Hygiene data, raw numbers (weighted) | BC221: Poorest | BD221: Poor | BE221: Middle | BF221: Rich | BG221: Richest | BH221: Poorest | BI221: Poor | BJ221: Middle | BK221: Rich | BL221: Richest | BM221: Poorest | BN221: Poor | BO221: Middle | BP221: Rich | BQ221: Richest | BR221: Big cities | BS221: East (Haut-Ogoou‚ & Ogoou‚-Lolo) | BT221: North (Ogoou‚-Ivindo & Woleu-Ntem) | BU221: South (Ngouni‚, Nyanga) | BV221: West (Estuaire, Moyen-Ogoou‚ & Ogoou‚-maritime)
A222: Hygiene ladder | B222: Basic | C222: N/A | D222: N/A | E222: N/A | F222: N/A | G222: N/A | H222: N/A | I222: N/A | J222: N/A | K222: N/A | L222: N/A | M222: N/A | N222: N/A | O222: N/A | P222: N/A | Q222: N/A | R222: N/A | S222: N/A | T222: N/A | U222: N/A | V222: N/A | BA222: Hygiene ladder | BB222: Basic | BC222: N/A | BD222: N/A | BE222: N/A | BF222: N/A | BG222: N/A | BH222: N/A | BI222: N/A | BJ222: N/A | BK222: N/A | BL222: N/A | BM222: N/A | BN222: N/A | BO222: N/A | BP222: N/A | BQ222: N/A | BR222: N/A | BS222: N/A | BT222: N/A | BU222: N/A | BV222: N/A
B223: Limited | C223: N/A | D223: N/A | E223: N/A | F223: N/A | G223: N/A | H223: N/A | I223: N/A | J223: N/A | K223: N/A | L223: N/A | M223: N/A | N223: N/A | O223: N/A | P223: N/A | Q223: N/A | R223: N/A | S223: N/A | T223: N/A | U223: N/A | V223: N/A | BB223: Limited | BC223: N/A | BD223: N/A | BE223: N/A | BF223: N/A | BG223: N/A | BH223: N/A | BI223: N/A | BJ223: N/A | BK223: N/A | BL223: N/A | BM223: N/A | BN223: N/A | BO223: N/A | BP223: N/A | BQ223: N/A | BR223: N/A | BS223: N/A | BT223: N/A | BU223: N/A | BV223: N/A
B224: No facility | C224: N/A | D224: N/A | E224: N/A | F224: N/A | G224: N/A | H224: N/A | I224: N/A | J224: N/A | K224: N/A | L224: N/A | M224: N/A | N224: N/A | O224: N/A | P224: N/A | Q224: N/A | R224: N/A | S224: N/A | T224: N/A | U224: N/A | V224: N/A | BB224: No facility | BC224: N/A | BD224: N/A | BE224: N/A | BF224: N/A | BG224: N/A | BH224: N/A | BI224: N/A | BJ224: N/A | BK224: N/A | BL224: N/A | BM224: N/A | BN224: N/A | BO224: N/A | BP224: N/A | BQ224: N/A | BR224: N/A | BS224: N/A | BT224: N/A | BU224: N/A | BV224: N/A
BA225: Observed handwashing place | BB225: Fixed | BC225: N/A | BD225: N/A | BE225: N/A | BF225: N/A | BG225: N/A | BH225: N/A | BI225: N/A | BJ225: N/A | BK225: N/A | BL225: N/A | BM225: N/A | BN225: N/A | BO225: N/A | BP225: N/A | BQ225: N/A | BR225: N/A | BS225: N/A | BT225: N/A | BU225: N/A | BV225: N/A
BB226: Mobile | BC226: N/A | BD226: N/A | BE226: N/A | BF226: N/A | BG226: N/A | BH226: N/A | BI226: N/A | BJ226: N/A | BK226: N/A | BL226: N/A | BM226: N/A | BN226: N/A | BO226: N/A | BP226: N/A | BQ226: N/A | BR226: N/A | BS226: N/A | BT226: N/A | BU226: N/A | BV226: N/A
BA227: Water / Soap | BB227: Water and soap | BC227: N/A | BD227: N/A | BE227: N/A | BF227: N/A | BG227: N/A | BH227: N/A | BI227: N/A | BJ227: N/A | BK227: N/A | BL227: N/A | BM227: N/A | BN227: N/A | BO227: N/A | BP227: N/A | BQ227: N/A | BR227: N/A | BS227: N/A | BT227: N/A | BU227: N/A | BV227: N/A
BB228: Water only | BC228: N/A | BD228: N/A | BE228: N/A | BF228: N/A | BG228: N/A | BH228: N/A | BI228: N/A | BJ228: N/A | BK228: N/A | BL228: N/A | BM228: N/A | BN228: N/A | BO228: N/A | BP228: N/A | BQ228: N/A | BR228: N/A | BS228: N/A | BT228: N/A | BU228: N/A | BV228: N/A
BB229: Soap only | BC229: N/A | BD229: N/A | BE229: N/A | BF229: N/A | BG229: N/A | BH229: N/A | BI229: N/A | BJ229: N/A | BK229: N/A | BL229: N/A | BM229: N/A | BN229: N/A | BO229: N/A | BP229: N/A | BQ229: N/A | BR229: N/A | BS229: N/A | BT229: N/A | BU229: N/A | BV229: N/A
BB230: Neither | BC230: N/A | BD230: N/A | BE230: N/A | BF230: N/A | BG230: N/A | BH230: N/A | BI230: N/A | BJ230: N/A | BK230: N/A | BL230: N/A | BM230: N/A | BN230: N/A | BO230: N/A | BP230: N/A | BQ230: N/A | BR230: N/A | BS230: N/A | BT230: N/A | BU230: N/A | BV230: N/A
BA259: Raw numbers of respondents: | BB259: Menstrual health and hygiene | BC259: NATIONAL wealth index quintile | BH259: URBAN wealth index quintile | BM259: RURAL wealth index quintile | BR259: SUB-REGIONS:
BA260: MHH data, raw numbers (weighted) | BC260: Poorest | BD260: Poor | BE260: Middle | BF260: Rich | BG260: Richest | BH260: Poorest | BI260: Poor | BJ260: Middle | BK260: Rich | BL260: Richest | BM260: Poorest | BN260: Poor | BO260: Middle | BP260: Rich | BQ260: Richest | BR260: Big cities | BS260: East (Haut-Ogoou‚ & Ogoou‚-Lolo) | BT260: North (Ogoou‚-Ivindo & Woleu-Ntem) | BU260: South (Ngouni‚, Nyanga) | BV260: West (Estuaire, Moyen-Ogoou‚ & Ogoou‚-maritime)
BA261: Private place to wash and change | BB261: Yes | BC261: N/A | BD261: N/A | BE261: N/A | BF261: N/A | BG261: N/A | BH261: N/A | BI261: N/A | BJ261: N/A | BK261: N/A | BL261: N/A | BM261: N/A | BN261: N/A | BO261: N/A | BP261: N/A | BQ261: N/A | BR261: N/A | BS261: N/A | BT261: N/A | BU261: N/A | BV261: N/A
BB262: No | BC262: N/A | BD262: N/A | BE262: N/A | BF262: N/A | BG262: N/A | BH262: N/A | BI262: N/A | BJ262: N/A | BK262: N/A | BL262: N/A | BM262: N/A | BN262: N/A | BO262: N/A | BP262: N/A | BQ262: N/A | BR262: N/A | BS262: N/A | BT262: N/A | BU262: N/A | BV262: N/A
BB263: DK/not sure/missing | BC263: N/A | BD263: N/A | BE263: N/A | BF263: N/A | BG263: N/A | BH263: N/A | BI263: N/A | BJ263: N/A | BK263: N/A | BL263: N/A | BM263: N/A | BN263: N/A | BO263: N/A | BP263: N/A | BQ263: N/A | BR263: N/A | BS263: N/A | BT263: N/A | BU263: N/A | BV263: N/A
BA264: Use of menstrual materials | BB264: Materials reusable | BC264: N/A | BD264: N/A | BE264: N/A | BF264: N/A | BG264: N/A | BH264: N/A | BI264: N/A | BJ264: N/A | BK264: N/A | BL264: N/A | BM264: N/A | BN264: N/A | BO264: N/A | BP264: N/A | BQ264: N/A | BR264: N/A | BS264: N/A | BT264: N/A | BU264: N/A | BV264: N/A
BB265: Materials not reusable | BC265: N/A | BD265: N/A | BE265: N/A | BF265: N/A | BG265: N/A | BH265: N/A | BI265: N/A | BJ265: N/A | BK265: N/A | BL265: N/A | BM265: N/A | BN265: N/A | BO265: N/A | BP265: N/A | BQ265: N/A | BR265: N/A | BS265: N/A | BT265: N/A | BU265: N/A | BV265: N/A
BB266: No materials used | BC266: N/A | BD266: N/A | BE266: N/A | BF266: N/A | BG266: N/A | BH266: N/A | BI266: N/A | BJ266: N/A | BK266: N/A | BL266: N/A | BM266: N/A | BN266: N/A | BO266: N/A | BP266: N/A | BQ266: N/A | BR266: N/A | BS266: N/A | BT266: N/A | BU266: N/A | BV266: N/A
BB267: DK/not sure/missing | BC267: N/A | BD267: N/A | BE267: N/A | BF267: N/A | BG267: N/A | BH267: N/A | BI267: N/A | BJ267: N/A | BK267: N/A | BL267: N/A | BM267: N/A | BN267: N/A | BO267: N/A | BP267: N/A | BQ267: N/A | BR267: N/A | BS267: N/A | BT267: N/A | BU267: N/A | BV267: N/A
BA268: Use of menstrual materials with private place to wash and change | BB268: Materials reusable | BC268: N/A | BD268: N/A | BE268: N/A | BF268: N/A | BG268: N/A | BH268: N/A | BI268: N/A | BJ268: N/A | BK268: N/A | BL268: N/A | BM268: N/A | BN268: N/A | BO268: N/A | BP268: N/A | BQ268: N/A | BR268: N/A | BS268: N/A | BT268: N/A | BU268: N/A | BV268: N/A
BB269: Materials not reusable | BC269: N/A | BD269: N/A | BE269: N/A | BF269: N/A | BG269: N/A | BH269: N/A | BI269: N/A | BJ269: N/A | BK269: N/A | BL269: N/A | BM269: N/A | BN269: N/A | BO269: N/A | BP269: N/A | BQ269: N/A | BR269: N/A | BS269: N/A | BT269: N/A | BU269: N/A | BV269: N/A
BB270: No materials used | BC270: N/A | BD270: N/A | BE270: N/A | BF270: N/A | BG270: N/A | BH270: N/A | BI270: N/A | BJ270: N/A | BK270: N/A | BL270: N/A | BM270: N/A | BN270: N/A | BO270: N/A | BP270: N/A | BQ270: N/A | BR270: N/A | BS270: N/A | BT270: N/A | BU270: N/A | BV270: N/A
BA271: Awareness of menstruation before menarche | BB271: Yes | BC271: N/A | BD271: N/A | BE271: N/A | BF271: N/A | BG271: N/A | BH271: N/A | BI271: N/A | BJ271: N/A | BK271: N/A | BL271: N/A | BM271: N/A | BN271: N/A | BO271: N/A | BP271: N/A | BQ271: N/A | BR271: N/A | BS271: N/A | BT271: N/A | BU271: N/A | BV271: N/A
BB272: No | BC272: N/A | BD272: N/A | BE272: N/A | BF272: N/A | BG272: N/A | BH272: N/A | BI272: N/A | BJ272: N/A | BK272: N/A | BL272: N/A | BM272: N/A | BN272: N/A | BO272: N/A | BP272: N/A | BQ272: N/A | BR272: N/A | BS272: N/A | BT272: N/A | BU272: N/A | BV272: N/A
BB273: DK/not sure/missing | BC273: N/A | BD273: N/A | BE273: N/A | BF273: N/A | BG273: N/A | BH273: N/A | BI273: N/A | BJ273: N/A | BK273: N/A | BL273: N/A | BM273: N/A | BN273: N/A | BO273: N/A | BP273: N/A | BQ273: N/A | BR273: N/A | BS273: N/A | BT273: N/A | BU273: N/A | BV273: N/A
BA274: Participation in (all) activities during menstruation | BB274: Yes | BC274: N/A | BD274: N/A | BE274: N/A | BF274: N/A | BG274: N/A | BH274: N/A | BI274: N/A | BJ274: N/A | BK274: N/A | BL274: N/A | BM274: N/A | BN274: N/A | BO274: N/A | BP274: N/A | BQ274: N/A | BR274: N/A | BS274: N/A | BT274: N/A | BU274: N/A | BV274: N/A
BB275: No | BC275: N/A | BD275: N/A | BE275: N/A | BF275: N/A | BG275: N/A | BH275: N/A | BI275: N/A | BJ275: N/A | BK275: N/A | BL275: N/A | BM275: N/A | BN275: N/A | BO275: N/A | BP275: N/A | BQ275: N/A | BR275: N/A | BS275: N/A | BT275: N/A | BU275: N/A | BV275: N/A
BB276: DK/not sure/missing/no such activity | BC276: N/A | BD276: N/A | BE276: N/A | BF276: N/A | BG276: N/A | BH276: N/A | BI276: N/A | BJ276: N/A | BK276: N/A | BL276: N/A | BM276: N/A | BN276: N/A | BO276: N/A | BP276: N/A | BQ276: N/A | BR276: N/A | BS276: N/A | BT276: N/A | BU276: N/A | BV276: N/A
BA277: Participation in specific activities during menstruation | BB277: Did not go to school (amongst those usually attending school) | BC277: N/A | BD277: N/A | BE277: N/A | BF277: N/A | BG277: N/A | BH277: N/A | BI277: N/A | BJ277: N/A | BK277: N/A | BL277: N/A | BM277: N/A | BN277: N/A | BO277: N/A | BP277: N/A | BQ277: N/A | BR277: N/A | BS277: N/A | BT277: N/A | BU277: N/A | BV277: N/A
BB278: Did not go to work (amongst those who usually work) | BC278: N/A | BD278: N/A | BE278: N/A | BF278: N/A | BG278: N/A | BH278: N/A | BI278: N/A | BJ278: N/A | BK278: N/A | BL278: N/A | BM278: N/A | BN278: N/A | BO278: N/A | BP278: N/A | BQ278: N/A | BR278: N/A | BS278: N/A | BT278: N/A | BU278: N/A | BV278: N/A
BB279: Did not participate in social activities | BC279: N/A | BD279: N/A | BE279: N/A | BF279: N/A | BG279: N/A | BH279: N/A | BI279: N/A | BJ279: N/A | BK279: N/A | BL279: N/A | BM279: N/A | BN279: N/A | BO279: N/A | BP279: N/A | BQ279: N/A | BR279: N/A | BS279: N/A | BT279: N/A | BU279: N/A | BV279: N/A
BB280: Did not cook food | BC280: N/A | BD280: N/A | BE280: N/A | BF280: N/A | BG280: N/A | BH280: N/A | BI280: N/A | BJ280: N/A | BK280: N/A | BL280: N/A | BM280: N/A | BN280: N/A | BO280: N/A | BP280: N/A | BQ280: N/A | BR280: N/A | BS280: N/A | BT280: N/A | BU280: N/A | BV280: N/A
BB281: Did not eat with others | BC281: N/A | BD281: N/A | BE281: N/A | BF281: N/A | BG281: N/A | BH281: N/A | BI281: N/A | BJ281: N/A | BK281: N/A | BL281: N/A | BM281: N/A | BN281: N/A | BO281: N/A | BP281: N/A | BQ281: N/A | BR281: N/A | BS281: N/A | BT281: N/A | BU281: N/A | BV281: N/A
BB282: Did not bathe in regular place | BC282: N/A | BD282: N/A | BE282: N/A | BF282: N/A | BG282: N/A | BH282: N/A | BI282: N/A | BJ282: N/A | BK282: N/A | BL282: N/A | BM282: N/A | BN282: N/A | BO282: N/A | BP282: N/A | BQ282: N/A | BR282: N/A | BS282: N/A | BT282: N/A | BU282: N/A | BV282: N/A
BB283: Did not participate in other activities | BC283: N/A | BD283: N/A | BE283: N/A | BF283: N/A | BG283: N/A | BH283: N/A | BI283: N/A | BJ283: N/A | BK283: N/A | BL283: N/A | BM283: N/A | BN283: N/A | BO283: N/A | BP283: N/A | BQ283: N/A | BR283: N/A | BS283: N/A | BT283: N/A | BU283: N/A | BV283: N/A
BB284: DK/not sure/missing/no such activity | BC284: N/A | BD284: N/A | BE284: N/A | BF284: N/A | BG284: N/A | BH284: N/A | BI284: N/A | BJ284: N/A | BK284: N/A | BL284: N/A | BM284: N/A | BN284: N/A | BO284: N/A | BP284: N/A | BQ284: N/A | BR284: N/A | BS284: N/A | BT284: N/A | BU284: N/A | BV284: N/A
BA339: Raw numbers of respondents: | BB339: Basic water, sanitation and hygiene | BC339: NATIONAL wealth index quintile | BH339: URBAN wealth index quintile | BM339: RURAL wealth index quintile | BR339: SUB-REGIONS:
BA340: WatSan data, raw numbers (weighted) | BC340: Poorest | BD340: Poor | BE340: Middle | BF340: Rich | BG340: Richest | BH340: Poorest | BI340: Poor | BJ340: Middle | BK340: Rich | BL340: Richest | BM340: Poorest | BN340: Poor | BO340: Middle | BP340: Rich | BQ340: Richest | BR340: Big cities | BS340: East (Haut-Ogoou‚ & Ogoou‚-Lolo) | BT340: North (Ogoou‚-Ivindo & Woleu-Ntem) | BU340: South (Ngouni‚, Nyanga) | BV340: West (Estuaire, Moyen-Ogoou‚ & Ogoou‚-maritime)
BA341: Use of Basic Water Sanitation and Hygiene | BB341: Yes | BC341: N/A | BD341: N/A | BE341: N/A | BF341: N/A | BG341: N/A | BH341: N/A | BI341: N/A | BJ341: N/A | BK341: N/A | BL341: N/A | BM341: N/A | BN341: N/A | BO341: N/A | BP341: N/A | BQ341: N/A | BR341: N/A | BS341: N/A | BT341: N/A | BU341: N/A | BV341: N/A
BB342: No | BC342: N/A | BD342: N/A | BE342: N/A | BF342: N/A | BG342: N/A | BH342: N/A | BI342: N/A | BJ342: N/A | BK342: N/A | BL342: N/A | BM342: N/A | BN342: N/A | BO342: N/A | BP342: N/A | BQ342: N/A | BR342: N/A | BS342: N/A | BT342: N/A | BU342: N/A | BV342: N/A
BA343: Use of Basic Water and Sanitation | BB343: Yes | BC343: N/A | BD343: N/A | BE343: N/A | BF343: N/A | BG343: N/A | BH343: N/A | BI343: N/A | BJ343: N/A | BK343: N/A | BL343: N/A | BM343: N/A | BN343: N/A | BO343: N/A | BP343: N/A | BQ343: N/A | BR343: N/A | BS343: N/A | BT343: N/A | BU343: N/A | BV343: N/A
BB344: No | BC344: N/A | BD344: N/A | BE344: N/A | BF344: N/A | BG344: N/A | BH344: N/A | BI344: N/A | BJ344: N/A | BK344: N/A | BL344: N/A | BM344: N/A | BN344: N/A | BO344: N/A | BP344: N/A | BQ344: N/A | BR344: N/A | BS344: N/A | BT344: N/A | BU344: N/A | BV344: N/A
BA345: Use of Basic Water and Hygiene | BB345: Yes | BC345: N/A | BD345: N/A | BE345: N/A | BF345: N/A | BG345: N/A | BH345: N/A | BI345: N/A | BJ345: N/A | BK345: N/A | BL345: N/A | BM345: N/A | BN345: N/A | BO345: N/A | BP345: N/A | BQ345: N/A | BR345: N/A | BS345: N/A | BT345: N/A | BU345: N/A | BV345: N/A
BB346: No | BC346: N/A | BD346: N/A | BE346: N/A | BF346: N/A | BG346: N/A | BH346: N/A | BI346: N/A | BJ346: N/A | BK346: N/A | BL346: N/A | BM346: N/A | BN346: N/A | BO346: N/A | BP346: N/A | BQ346: N/A | BR346: N/A | BS346: N/A | BT346: N/A | BU346: N/A | BV346: N/A
BA347: Use of Basic Sanitation and Hygiene | BB347: Yes | BC347: N/A | BD347: N/A | BE347: N/A | BF347: N/A | BG347: N/A | BH347: N/A | BI347: N/A | BJ347: N/A | BK347: N/A | BL347: N/A | BM347: N/A | BN347: N/A | BO347: N/A | BP347: N/A | BQ347: N/A | BR347: N/A | BS347: N/A | BT347: N/A | BU347: N/A | BV347: N/A
BB348: No | BC348: N/A | BD348: N/A | BE348: N/A | BF348: N/A | BG348: N/A | BH348: N/A | BI348: N/A | BJ348: N/A | BK348: N/A | BL348: N/A | BM348: N/A | BN348: N/A | BO348: N/A | BP348: N/A | BQ348: N/A | BR348: N/A | BS348: N/A | BT348: N/A | BU348: N/A | BV348: N/A
BA349: Use of Basic Water | BB349: Yes | BC349: N/A | BD349: N/A | BE349: N/A | BF349: N/A | BG349: N/A | BH349: N/A | BI349: N/A | BJ349: N/A | BK349: N/A | BL349: N/A | BM349: N/A | BN349: N/A | BO349: N/A | BP349: N/A | BQ349: N/A | BR349: N/A | BS349: N/A | BT349: N/A | BU349: N/A | BV349: N/A
BB350: No | BC350: N/A | BD350: N/A | BE350: N/A | BF350: N/A | BG350: N/A | BH350: N/A | BI350: N/A | BJ350: N/A | BK350: N/A | BL350: N/A | BM350: N/A | BN350: N/A | BO350: N/A | BP350: N/A | BQ350: N/A | BR350: N/A | BS350: N/A | BT350: N/A | BU350: N/A | BV350: N/A
BA351: Use of Basic Sanitation | BB351: Yes | BC351: N/A | BD351: N/A | BE351: N/A | BF351: N/A | BG351: N/A | BH351: N/A | BI351: N/A | BJ351: N/A | BK351: N/A | BL351: N/A | BM351: N/A | BN351: N/A | BO351: N/A | BP351: N/A | BQ351: N/A | BR351: N/A | BS351: N/A | BT351: N/A | BU351: N/A | BV351: N/A
BB352: No | BC352: N/A | BD352: N/A | BE352: N/A | BF352: N/A | BG352: N/A | BH352: N/A | BI352: N/A | BJ352: N/A | BK352: N/A | BL352: N/A | BM352: N/A | BN352: N/A | BO352: N/A | BP352: N/A | BQ352: N/A | BR352: N/A | BS352: N/A | BT352: N/A | BU352: N/A | BV352: N/A
BA353: Access to Basic Hygiene | BB353: Yes | BC353: N/A | BD353: N/A | BE353: N/A | BF353: N/A | BG353: N/A | BH353: N/A | BI353: N/A | BJ353: N/A | BK353: N/A | BL353: N/A | BM353: N/A | BN353: N/A | BO353: N/A | BP353: N/A | BQ353: N/A | BR353: N/A | BS353: N/A | BT353: N/A | BU353: N/A | BV353: N/A
BB354: No | BC354: N/A | BD354: N/A | BE354: N/A | BF354: N/A | BG354: N/A | BH354: N/A | BI354: N/A | BJ354: N/A | BK354: N/A | BL354: N/A | BM354: N/A | BN354: N/A | BO354: N/A | BP354: N/A | BQ354: N/A | BR354: N/A | BS354: N/A | BT354: N/A | BU354: N/A | BV354: N/A
C399: INITIAL (national) Wealth Index | H399: URBAN Wealth Index | M399: RURAL Wealth Index
C400: Component Matrix | H400: Component Matrix | M400: Component Matrix
E401: Component | J401: Component | O401: Component
B402: Note: The INITIAL (national) Wealth Index is based on the first component of the Principal Component Analysis (PCA) which has been obtained at national level. The final national-level (NATIONAL) Wealth Index is based on the URBAN and RURAL specific wealth indexes. Regression procedures are used to establish the relationships between the two sets of scores (urban and rural) and the initial (national) wealth factors. This allows best use of the available information for each area and a better precision of the FINAL (NATIONAL) Wealth Index. For dependency reasons, all WASH variables (contained in the generic MICS and DHS scripts) have been excluded from the sets of asset variables used in the PCAs. The PCA can extracts as many components as there are asset variables in the input. Only the first of the components is used to represent the Wealth Index. The scores represent the weights of the asset variables on the Wealth Index (correlations between the variables and the component). The communalities are the proportion of each variable's variance that can be explained by the component. Proportion of explained variance is the part of the model's total variance that is explained by the component. For more information on the procedure used: The DHS Wealth Index, DHS Comparative Reports No. 6, Shea Oscar Rutstein, Kiersten Johnson, ORC Macro International Inc., 2004. The DHS Wealth Index: Approaches for Rural and Urban Areas, Shea O. Rutstein, ORC Macro International Inc., 2008. MICS Methodological Paper No. 4, Review of options for reporting water, sanitation and hygiene coverage by wealth quintile, UNICEF, 2016. | E402: 1 | J402: 1 | O402: 1
C403: Has television | E403: 0.7583314104 | H403: if has corrigated iron sheet roofing | J403: -0.7274957176 | M403: if uses gas as cooking fuel | O403: 0.7098992671
C404: if uses gas as cooking fuel | E404: 0.7495137023 | H404: if has corrigated iron sheet + ceiling roofing | J404: 0.6902273289 | M404: Has refrigerator | O404: 0.697450947
C405: Has refrigerator | E405: 0.7447207473 | H405: Has refrigerator | J405: 0.6523288215 | M405: Has television | O405: 0.6961372929
C406: if uses wood/straw as cooking fuel | E406: -0.7320747358 | H406: Has television | J406: 0.6513372701 | M406: if has dirt, sand, dung as principal floor in dwelling | O406: -0.6944088742
C407: Has electricity | E407: 0.7291448625 | H407: if uses gas as cooking fuel | J407: 0.6099037076 | M407: Has electricity | O407: 0.6366684896
C408: if has corrigated iron sheet + ceiling roofing | E408: 0.7209753883 | H408: if uses wood/straw as cooking fuel | J408: -0.5884172495 | M408: if has corrigated iron sheet + ceiling roofing | O408: 0.6277635869
C409: if has dirt, sand, dung as principal floor in dwelling | E409: -0.7181781228 | H409: if has dirt, sand, dung as principal floor in dwelling | J409: -0.5755704692 | M409: if uses wood/straw as cooking fuel | O409: -0.6022285236
C410: if has corrigated iron sheet roofing | E410: -0.6843678483 | H410: if has tiles for main flooring material | J410: 0.5678126645 | M410: Has video | O410: 0.5412535472
C411: Has video | E411: 0.577913611 | H411: Has video | J411: 0.5618449531 | M411: if has cement principal floor | O411: 0.5144580806
C412: Walls from breeze blocks/parpens/stones/cement | E412: 0.5523229343 | H412: Has electricity | J412: 0.5575129414 | M412: Walls from breeze blocks/parpens/stones/cement | O412: 0.5116350564
C413: if has tiles for main flooring material | E413: 0.5175057665 | H413: Walls from breeze blocks/parpens/stones/cement | J413: 0.5211146936 | M413: if has corrigated iron sheet roofing | O413: -0.5097355641
C414: Has telephone | E414: 0.4949652664 | H414: Has telephone | J414: 0.5088100336 | M414: Has radio | O414: 0.4061623409
C415: Has radio | E415: 0.4935421098 | H415: Has car | J415: 0.4735997279 | M415: Walls from COB/DAUB/MUD/CLAY | O415: -0.3775255697
C416: Has car | E416: 0.4653179146 | H416: Has radio | J416: 0.4640806423 | M416: Has car | O416: 0.3522078922
C417: Walls from COB/DAUB/MUD/CLAY | E417: -0.4151480559 | H417: if has wood, BRANCHES for walls | J417: -0.4313300692 | M417: Has telephone | O417: 0.332461643
C418: if has wood, BRANCHES for walls | E418: -0.2555033032 | H418: Walls from COB/DAUB/MUD/CLAY | J418: -0.2970011446 | M418: if has tiles for main flooring material | O418: 0.3058450413
C419: if has cement principal floor | E419: 0.2542787053 | H419: Has bicycle | J419: 0.2106538858 | M419: if has LINO, GERFLEX as flooring material | O419: 0.2818278094
C420: Semihard/semifinished walls | E420: 0.2516647783 | H420: Semihard/semifinished walls | J420: 0.1980491297 | M420: if has other roofing | O420: 0.19802663
C421: if has LINO, GERFLEX as flooring material | E421: 0.2447944639 | H421: if has LINO, GERFLEX as flooring material | J421: 0.1975363243 | M421: Semihard/semifinished walls | O421: 0.1976337601
C422: if has natural material roofing | E422: -0.1869812458 | H422: if uses coal/charcoal as cooking fuel | J422: -0.191528842 | M422: if has wood, plank principal floor in dwelling | O422: 0.1449633933
... 155 more rows

Sheet DHS12
A2: =A1026 -> Gabon
A3: =A1034 -> 2012
A4: Use of drinking water sources
A5: by wealth quintile and sub-national region
A6: Notes:
A7: WHO/UNICEF JMP customised wealth index excludes water,
A8: sanitation and hygiene assets.
A9: Survey used for analysis: | B9: =A1025 -> DHS12
A10: =B1028 -> 
A11: =B1027 -> 
A14: Use of drinking water sources | C14: NATIONAL wealth index quintile | H14: URBAN wealth index quintile | M14: RURAL wealth index quintile | R14: SUB-REGIONS: | BA14: Raw numbers of respondents: | BB14: Use of drinking water sources | BC14: NATIONAL wealth index quintile | BH14: URBAN wealth index quintile | BM14: RURAL wealth index quintile | BR14: SUB-REGIONS:
A15: Weighted percentage (used in graphs) | C15: Poorest | D15: Poor | E15: Middle | F15: Rich | G15: Richest | H15: Poorest | I15: Poor | J15: Middle | K15: Rich | L15: Richest | M15: Poorest | N15: Poor | O15: Middle | P15: Rich | Q15: Richest | R15: Estuaire | S15: Haut-Ogooué | T15: Libreville-Port-Gentil | U15: Moyen-Ogooué | V15: Ngounié | W15: Nyanga | X15: Ogooué Maritime | Y15: Ogooué-Ivindo | Z15: Ogooué-Lolo | AA15: Woleu-Ntem | BA15: Water data, raw numbers (weighted) | BC15: Poorest | BD15: Poor | BE15: Middle | BF15: Rich | BG15: Richest | BH15: Poorest | BI15: Poor | BJ15: Middle | BK15: Rich | BL15: Richest | BM15: Poorest | BN15: Poor | BO15: Middle | BP15: Rich | BQ15: Richest | BR15: Estuaire | BS15: Haut-Ogooué | BT15: Libreville-Port-Gentil | BU15: Moyen-Ogooué | BV15: Ngounié | BW15: Nyanga | BX15: Ogooué Maritime | BY15: Ogooué-Ivindo | BZ15: Ogooué-Lolo | CA15: Woleu-Ntem
A16: Water | B16: Improved | C16: 74.2 | D16: 94.3 | E16: 97.5 | F16: 98.9 | G16: 98.3 | H16: 92.5 | I16: 97.5 | J16: 99.5 | K16: 99 | L16: 98.1 | M16: 51.1 | N16: 58.5 | O16: 67.2 | P16: 71.3 | Q16: 89.9 | R16: 87.7 | S16: 89.6 | T16: 98.4 | U16: 79.1 | V16: 89.2 | W16: 79.7 | X16: 88.5 | Y16: 73.7 | Z16: 76.5 | AA16: 93 | BA16: Water | BB16: Improved | BC16: N/A | BD16: N/A | BE16: N/A | BF16: N/A | BG16: N/A | BH16: N/A | BI16: N/A | BJ16: N/A | BK16: N/A | BL16: N/A | BM16: N/A | BN16: N/A | BO16: N/A | BP16: N/A | BQ16: N/A | BR16: N/A | BS16: N/A | BT16: N/A | BU16: N/A | BV16: N/A | BW16: N/A | BX16: N/A | BY16: N/A | BZ16: N/A | CA16: N/A
B17: Not Improved | C17: 25.8 | D17: 5.7 | E17: 2.5 | F17: 1.1 | G17: 1.7 | H17: 7.5 | I17: 2.5 | J17: 0.5 | K17: 1 | L17: 1.9 | M17: 48.9 | N17: 41.5 | O17: 32.8 | P17: 28.7 | Q17: 10.1 | R17: 12.3 | S17: 10.4 | T17: 1.6 | U17: 20.9 | V17: 10.8 | W17: 20.3 | X17: 11.5 | Y17: 26.3 | Z17: 23.5 | AA17: 7 | BB17: Not Improved | BC17: N/A | BD17: N/A | BE17: N/A | BF17: N/A | BG17: N/A | BH17: N/A | BI17: N/A | BJ17: N/A | BK17: N/A | BL17: N/A | BM17: N/A | BN17: N/A | BO17: N/A | BP17: N/A | BQ17: N/A | BR17: N/A | BS17: N/A | BT17: N/A | BU17: N/A | BV17: N/A | BW17: N/A | BX17: N/A | BY17: N/A | BZ17: N/A | CA17: N/A
A18: Water ladder | B18: Basic | C18: 54.8 | D18: 82 | E18: 92.2 | F18: 94.9 | G18: 96.1 | H18: 71 | I18: 90.1 | J18: 95.9 | K18: 95.9 | L18: 95.7 | M18: 38.2 | N18: 46.6 | O18: 48 | P18: 57.7 | Q18: 77 | R18: 75.2 | S18: 76.6 | T18: 94.5 | U18: 67.1 | V18: 72.8 | W18: 52.7 | X18: 76.3 | Y18: 62.5 | Z18: 68.1 | AA18: 76.4 | BA18: Water ladder | BB18: Basic | BC18: N/A | BD18: N/A | BE18: N/A | BF18: N/A | BG18: N/A | BH18: N/A | BI18: N/A | BJ18: N/A | BK18: N/A | BL18: N/A | BM18: N/A | BN18: N/A | BO18: N/A | BP18: N/A | BQ18: N/A | BR18: N/A | BS18: N/A | BT18: N/A | BU18: N/A | BV18: N/A | BW18: N/A | BX18: N/A | BY18: N/A | BZ18: N/A | CA18: N/A
B19: Limited | C19: 19.3 | D19: 12.2 | E19: 5.2 | F19: 3.9 | G19: 2.3 | H19: 21.5 | I19: 7.4 | J19: 3.6 | K19: 3.2 | L19: 2.4 | M19: 12.7 | N19: 11.8 | O19: 18.8 | P19: 13.4 | Q19: 12.9 | R19: 12.5 | S19: 12.9 | T19: 4 | U19: 11.9 | V19: 16.4 | W19: 27 | X19: 12.1 | Y19: 11.1 | Z19: 8.4 | AA19: 16.6 | BB19: Limited | BC19: N/A | BD19: N/A | BE19: N/A | BF19: N/A | BG19: N/A | BH19: N/A | BI19: N/A | BJ19: N/A | BK19: N/A | BL19: N/A | BM19: N/A | BN19: N/A | BO19: N/A | BP19: N/A | BQ19: N/A | BR19: N/A | BS19: N/A | BT19: N/A | BU19: N/A | BV19: N/A | BW19: N/A | BX19: N/A | BY19: N/A | BZ19: N/A | CA19: N/A
B20: Unimproved | C20: 6.9 | D20: 3 | E20: 1.9 | F20: 0.9 | G20: 1.7 | H20: 5.3 | I20: 2.1 | J20: 0.3 | K20: 1 | L20: 1.9 | M20: 8.7 | N20: 6.3 | O20: 6.2 | P20: 9.1 | Q20: 4.9 | R20: 4.2 | S20: 4.3 | T20: 1.6 | U20: 5.2 | V20: 0.8 | W20: 2.1 | X20: 4.7 | Y20: 13.4 | Z20: 4.7 | AA20: 3.8 | BB20: Unimproved | BC20: N/A | BD20: N/A | BE20: N/A | BF20: N/A | BG20: N/A | BH20: N/A | BI20: N/A | BJ20: N/A | BK20: N/A | BL20: N/A | BM20: N/A | BN20: N/A | BO20: N/A | BP20: N/A | BQ20: N/A | BR20: N/A | BS20: N/A | BT20: N/A | BU20: N/A | BV20: N/A | BW20: N/A | BX20: N/A | BY20: N/A | BZ20: N/A | CA20: N/A
B21: Surface water | C21: 19 | D21: 2.7 | E21: 0.6 | F21: 0.2 | G21: 0 | H21: 2.2 | I21: 0.4 | J21: 0.2 | K21: 0 | L21: 0 | M21: 40.4 | N21: 35.3 | O21: 26.9 | P21: 19.8 | Q21: 5.2 | R21: 8.2 | S21: 6.2 | T21: 0 | U21: 15.9 | V21: 10 | W21: 18.2 | X21: 6.8 | Y21: 13 | Z21: 18.8 | AA21: 3.2 | BB21: Surface water | BC21: N/A | BD21: N/A | BE21: N/A | BF21: N/A | BG21: N/A | BH21: N/A | BI21: N/A | BJ21: N/A | BK21: N/A | BL21: N/A | BM21: N/A | BN21: N/A | BO21: N/A | BP21: N/A | BQ21: N/A | BR21: N/A | BS21: N/A | BT21: N/A | BU21: N/A | BV21: N/A | BW21: N/A | BX21: N/A | BY21: N/A | BZ21: N/A | CA21: N/A
A22: Improved water point at more than 30 minutes | B22: Yes | C22: 26.1 | D22: 13 | E22: 5.4 | F22: 4 | G22: 2.3 | H22: 23.2 | I22: 7.6 | J22: 3.6 | K22: 3.2 | L22: 2.5 | M22: 25 | N22: 20.2 | O22: 28.2 | P22: 18.9 | Q22: 14.3 | R22: 14.2 | S22: 14.4 | T22: 4.1 | U22: 15 | V22: 18.3 | W22: 33.8 | X22: 13.7 | Y22: 15.1 | Z22: 11 | AA22: 17.8 | BA22: Improved water point at more than 30 minutes | BB22: Yes | BC22: N/A | BD22: N/A | BE22: N/A | BF22: N/A | BG22: N/A | BH22: N/A | BI22: N/A | BJ22: N/A | BK22: N/A | BL22: N/A | BM22: N/A | BN22: N/A | BO22: N/A | BP22: N/A | BQ22: N/A | BR22: N/A | BS22: N/A | BT22: N/A | BU22: N/A | BV22: N/A | BW22: N/A | BX22: N/A | BY22: N/A | BZ22: N/A | CA22: N/A
B23: No | C23: 73.9 | D23: 87 | E23: 94.6 | F23: 96 | G23: 97.7 | H23: 76.8 | I23: 92.4 | J23: 96.4 | K23: 96.8 | L23: 97.5 | M23: 75 | N23: 79.8 | O23: 71.8 | P23: 81.1 | Q23: 85.7 | R23: 85.8 | S23: 85.6 | T23: 95.9 | U23: 85 | V23: 81.7 | W23: 66.2 | X23: 86.3 | Y23: 84.9 | Z23: 89 | AA23: 82.2 | BB23: No | BC23: N/A | BD23: N/A | BE23: N/A | BF23: N/A | BG23: N/A | BH23: N/A | BI23: N/A | BJ23: N/A | BK23: N/A | BL23: N/A | BM23: N/A | BN23: N/A | BO23: N/A | BP23: N/A | BQ23: N/A | BR23: N/A | BS23: N/A | BT23: N/A | BU23: N/A | BV23: N/A | BW23: N/A | BX23: N/A | BY23: N/A | BZ23: N/A | CA23: N/A
A24: Manually calculated ratios | B24: Improved wells
B25: Improved springs
B26: Other
C27: NATIONAL wealth index quintile | H27: URBAN wealth index quintile | M27: RURAL wealth index quintile | R27: SUB-REGIONS: | BA27: Raw numbers of respondents: | BB27: Use of drinking water sources | BC27: NATIONAL wealth index quintile | BH27: URBAN wealth index quintile | BM27: RURAL wealth index quintile | BR27: SUB-REGIONS:
A28: Percentage based on weighted population | C28: Poorest | D28: Poor | E28: Middle | F28: Rich | G28: Richest | H28: Poorest | I28: Poor | J28: Middle | K28: Rich | L28: Richest | M28: Poorest | N28: Poor | O28: Middle | P28: Rich | Q28: Richest | R28: Estuaire | S28: Haut-Ogooué | T28: Libreville-Port-Gentil | U28: Moyen-Ogooué | V28: Ngounié | W28: Nyanga | X28: Ogooué Maritime | Y28: Ogooué-Ivindo | Z28: Ogooué-Lolo | AA28: Woleu-Ntem | BA28: Water data, raw numbers (weighted) | BC28: Poorest | BD28: Poor | BE28: Middle | BF28: Rich | BG28: Richest | BH28: Poorest | BI28: Poor | BJ28: Middle | BK28: Rich | BL28: Richest | BM28: Poorest | BN28: Poor | BO28: Middle | BP28: Rich | BQ28: Richest | BR28: Estuaire | BS28: Haut-Ogooué | BT28: Libreville-Port-Gentil | BU28: Moyen-Ogooué | BV28: Ngounié | BW28: Nyanga | BX28: Ogooué Maritime | BY28: Ogooué-Ivindo | BZ28: Ogooué-Lolo | CA28: Woleu-Ntem
A29: Piped water | B29: Yes | C29: 43.1 | D29: 90.5 | E29: 93.7 | F29: 97.8 | G29: 97 | H29: 86 | I29: 96.5 | J29: 96.4 | K29: 98.3 | L29: 96.8 | M29: 5.2 | N29: 8.4 | O29: 14.5 | P29: 38.6 | Q29: 78.7 | R29: 77.1 | S29: 84.9 | T29: 97.1 | U29: 66.1 | V29: 64.5 | W29: 75.6 | X29: 67.1 | Y29: 38.3 | Z29: 60.5 | AA29: 61.8 | BA29: Piped water | BB29: Yes | BC29: N/A | BD29: N/A | BE29: N/A | BF29: N/A | BG29: N/A | BH29: N/A | BI29: N/A | BJ29: N/A | BK29: N/A | BL29: N/A | BM29: N/A | BN29: N/A | BO29: N/A | BP29: N/A | BQ29: N/A | BR29: N/A | BS29: N/A | BT29: N/A | BU29: N/A | BV29: N/A | BW29: N/A | BX29: N/A | BY29: N/A | BZ29: N/A | CA29: N/A
B30: No | C30: 56.9 | D30: 9.5 | E30: 6.3 | F30: 2.2 | G30: 3 | H30: 14 | I30: 3.5 | J30: 3.6 | K30: 1.7 | L30: 3.2 | M30: 94.8 | N30: 91.6 | O30: 85.5 | P30: 61.4 | Q30: 21.3 | R30: 22.9 | S30: 15.1 | T30: 2.9 | U30: 33.9 | V30: 35.5 | W30: 24.4 | X30: 32.9 | Y30: 61.7 | Z30: 39.5 | AA30: 38.2 | BB30: No | BC30: N/A | BD30: N/A | BE30: N/A | BF30: N/A | BG30: N/A | BH30: N/A | BI30: N/A | BJ30: N/A | BK30: N/A | BL30: N/A | BM30: N/A | BN30: N/A | BO30: N/A | BP30: N/A | BQ30: N/A | BR30: N/A | BS30: N/A | BT30: N/A | BU30: N/A | BV30: N/A | BW30: N/A | BX30: N/A | BY30: N/A | BZ30: N/A | CA30: N/A
A31: Piped water on premises | B31: Yes | C31: 15.6 | D31: 52.5 | E31: 68 | F31: 84.6 | G31: 92.4 | H31: 39.8 | I31: 62.5 | J31: 76.8 | K31: 87.2 | L31: 92.6 | M31: 1.2 | N31: 2.1 | O31: 4.7 | P31: 12.6 | Q31: 47.4 | R31: 51.7 | S31: 55 | T31: 80.7 | U31: 33.9 | V31: 31.9 | W31: 32.5 | X31: 44.5 | Y31: 28.2 | Z31: 33.2 | AA31: 32.9 | BA31: Piped water on premises | BB31: Yes | BC31: N/A | BD31: N/A | BE31: N/A | BF31: N/A | BG31: N/A | BH31: N/A | BI31: N/A | BJ31: N/A | BK31: N/A | BL31: N/A | BM31: N/A | BN31: N/A | BO31: N/A | BP31: N/A | BQ31: N/A | BR31: N/A | BS31: N/A | BT31: N/A | BU31: N/A | BV31: N/A | BW31: N/A | BX31: N/A | BY31: N/A | BZ31: N/A | CA31: N/A
B32: No | C32: 84.4 | D32: 47.5 | E32: 32 | F32: 15.4 | G32: 7.6 | H32: 60.2 | I32: 37.5 | J32: 23.2 | K32: 12.8 | L32: 7.4 | M32: 98.8 | N32: 97.9 | O32: 95.3 | P32: 87.4 | Q32: 52.6 | R32: 48.3 | S32: 45 | T32: 19.3 | U32: 66.1 | V32: 68.1 | W32: 67.5 | X32: 55.5 | Y32: 71.8 | Z32: 66.8 | AA32: 67.1 | BB32: No | BC32: N/A | BD32: N/A | BE32: N/A | BF32: N/A | BG32: N/A | BH32: N/A | BI32: N/A | BJ32: N/A | BK32: N/A | BL32: N/A | BM32: N/A | BN32: N/A | BO32: N/A | BP32: N/A | BQ32: N/A | BR32: N/A | BS32: N/A | BT32: N/A | BU32: N/A | BV32: N/A | BW32: N/A | BX32: N/A | BY32: N/A | BZ32: N/A | CA32: N/A
A33: Piped water into dwelling | B33: Yes | C33: N/A | D33: N/A | E33: N/A | F33: N/A | G33: N/A | H33: N/A | I33: N/A | J33: N/A | K33: N/A | L33: N/A | M33: N/A | N33: N/A | O33: N/A | P33: N/A | Q33: N/A | R33: N/A | S33: N/A | T33: N/A | U33: N/A | V33: N/A | W33: N/A | X33: N/A | Y33: N/A | Z33: N/A | AA33: N/A | BA33: Piped water into dwelling | BB33: Yes | BC33: N/A | BD33: N/A | BE33: N/A | BF33: N/A | BG33: N/A | BH33: N/A | BI33: N/A | BJ33: N/A | BK33: N/A | BL33: N/A | BM33: N/A | BN33: N/A | BO33: N/A | BP33: N/A | BQ33: N/A | BR33: N/A | BS33: N/A | BT33: N/A | BU33: N/A | BV33: N/A | BW33: N/A | BX33: N/A | BY33: N/A | BZ33: N/A | CA33: N/A
B34: No | C34: N/A | D34: N/A | E34: N/A | F34: N/A | G34: N/A | H34: N/A | I34: N/A | J34: N/A | K34: N/A | L34: N/A | M34: N/A | N34: N/A | O34: N/A | P34: N/A | Q34: N/A | R34: N/A | S34: N/A | T34: N/A | U34: N/A | V34: N/A | W34: N/A | X34: N/A | Y34: N/A | Z34: N/A | AA34: N/A | BB34: No | BC34: N/A | BD34: N/A | BE34: N/A | BF34: N/A | BG34: N/A | BH34: N/A | BI34: N/A | BJ34: N/A | BK34: N/A | BL34: N/A | BM34: N/A | BN34: N/A | BO34: N/A | BP34: N/A | BQ34: N/A | BR34: N/A | BS34: N/A | BT34: N/A | BU34: N/A | BV34: N/A | BW34: N/A | BX34: N/A | BY34: N/A | BZ34: N/A | CA34: N/A
A35: Water source on premises | B35: Yes | C35: 20.9 | D35: 54 | E35: 70.1 | F35: 84.7 | G35: 92.5 | H35: 41.8 | I35: 63.1 | J35: 78.8 | K35: 87.3 | L35: 92.6 | M35: 7.2 | N35: 10.2 | O35: 11.6 | P35: 22.2 | Q35: 50.2 | R35: 56.8 | S35: 55.3 | T35: 81.4 | U35: 42.3 | V35: 33.3 | W35: 33.7 | X35: 50.3 | Y35: 37.6 | Z35: 34.6 | AA35: 34.1 | BA35: Water source on premises | BB35: Yes | BC35: N/A | BD35: N/A | BE35: N/A | BF35: N/A | BG35: N/A | BH35: N/A | BI35: N/A | BJ35: N/A | BK35: N/A | BL35: N/A | BM35: N/A | BN35: N/A | BO35: N/A | BP35: N/A | BQ35: N/A | BR35: N/A | BS35: N/A | BT35: N/A | BU35: N/A | BV35: N/A | BW35: N/A | BX35: N/A | BY35: N/A | BZ35: N/A | CA35: N/A
B36: No | C36: 79.1 | D36: 46 | E36: 29.9 | F36: 15.3 | G36: 7.5 | H36: 58.2 | I36: 36.9 | J36: 21.2 | K36: 12.7 | L36: 7.4 | M36: 92.8 | N36: 89.8 | O36: 88.4 | P36: 77.8 | Q36: 49.8 | R36: 43.2 | S36: 44.7 | T36: 18.6 | U36: 57.7 | V36: 66.7 | W36: 66.3 | X36: 49.7 | Y36: 62.4 | Z36: 65.4 | AA36: 65.9 | BB36: No | BC36: N/A | BD36: N/A | BE36: N/A | BF36: N/A | BG36: N/A | BH36: N/A | BI36: N/A | BJ36: N/A | BK36: N/A | BL36: N/A | BM36: N/A | BN36: N/A | BO36: N/A | BP36: N/A | BQ36: N/A | BR36: N/A | BS36: N/A | BT36: N/A | BU36: N/A | BV36: N/A | BW36: N/A | BX36: N/A | BY36: N/A | BZ36: N/A | CA36: N/A
A37: Improved Water source on premises | B37: Yes | C37: 19.9 | D37: 53.3 | E37: 69.8 | F37: 84.7 | G37: 92.5 | H37: 41.2 | I37: 62.9 | J37: 78.8 | K37: 87.3 | L37: 92.6 | M37: 5.8 | N37: 9.3 | O37: 10.6 | P37: 19.8 | Q37: 48.5 | R37: 55.6 | S37: 55.3 | T37: 81.4 | U37: 40.9 | V37: 33 | W37: 33.6 | X37: 48.5 | Y37: 34 | Z37: 34.6 | AA37: 33.8 | BA37: Improved water source on premises | BB37: Yes | BC37: N/A | BD37: N/A | BE37: N/A | BF37: N/A | BG37: N/A | BH37: N/A | BI37: N/A | BJ37: N/A | BK37: N/A | BL37: N/A | BM37: N/A | BN37: N/A | BO37: N/A | BP37: N/A | BQ37: N/A | BR37: N/A | BS37: N/A | BT37: N/A | BU37: N/A | BV37: N/A | BW37: N/A | BX37: N/A | BY37: N/A | BZ37: N/A | CA37: N/A
B38: No | C38: 80.1 | D38: 46.7 | E38: 30.2 | F38: 15.3 | G38: 7.5 | H38: 58.8 | I38: 37.1 | J38: 21.2 | K38: 12.7 | L38: 7.4 | M38: 94.2 | N38: 90.7 | O38: 89.4 | P38: 80.2 | Q38: 51.5 | R38: 44.4 | S38: 44.7 | T38: 18.6 | U38: 59.1 | V38: 67 | W38: 66.4 | X38: 51.5 | Y38: 66 | Z38: 65.4 | AA38: 66.2 | BB38: No | BC38: N/A | BD38: N/A | BE38: N/A | BF38: N/A | BG38: N/A | BH38: N/A | BI38: N/A | BJ38: N/A | BK38: N/A | BL38: N/A | BM38: N/A | BN38: N/A | BO38: N/A | BP38: N/A | BQ38: N/A | BR38: N/A | BS38: N/A | BT38: N/A | BU38: N/A | BV38: N/A | BW38: N/A | BX38: N/A | BY38: N/A | BZ38: N/A | CA38: N/A
A39: Piped water on premises available when needed | B39: Yes | C39: N/A | D39: N/A | E39: N/A | F39: N/A | G39: N/A | H39: N/A | I39: N/A | J39: N/A | K39: N/A | L39: N/A | M39: N/A | N39: N/A | O39: N/A | P39: N/A | Q39: N/A | R39: N/A | S39: N/A | T39: N/A | U39: N/A | V39: N/A | W39: N/A | X39: N/A | Y39: N/A | Z39: N/A | AA39: N/A | BA39: Piped water on premises available when needed | BB39: Yes | BC39: N/A | BD39: N/A | BE39: N/A | BF39: N/A | BG39: N/A | BH39: N/A | BI39: N/A | BJ39: N/A | BK39: N/A | BL39: N/A | BM39: N/A | BN39: N/A | BO39: N/A | BP39: N/A | BQ39: N/A | BR39: N/A | BS39: N/A | BT39: N/A | BU39: N/A | BV39: N/A | BW39: N/A | BX39: N/A | BY39: N/A | BZ39: N/A | CA39: N/A
B40: No | C40: N/A | D40: N/A | E40: N/A | F40: N/A | G40: N/A | H40: N/A | I40: N/A | J40: N/A | K40: N/A | L40: N/A | M40: N/A | N40: N/A | O40: N/A | P40: N/A | Q40: N/A | R40: N/A | S40: N/A | T40: N/A | U40: N/A | V40: N/A | W40: N/A | X40: N/A | Y40: N/A | Z40: N/A | AA40: N/A | BB40: No | BC40: N/A | BD40: N/A | BE40: N/A | BF40: N/A | BG40: N/A | BH40: N/A | BI40: N/A | BJ40: N/A | BK40: N/A | BL40: N/A | BM40: N/A | BN40: N/A | BO40: N/A | BP40: N/A | BQ40: N/A | BR40: N/A | BS40: N/A | BT40: N/A | BU40: N/A | BV40: N/A | BW40: N/A | BX40: N/A | BY40: N/A | BZ40: N/A | CA40: N/A
A41: Water point at more than 30 minutes | B41: Yes | C41: 29.3 | D41: 15 | E41: 6.5 | F41: 4.7 | G41: 3.8 | H41: 24.9 | I41: 8.9 | J41: 3.7 | K41: 4.1 | L41: 4.3 | M41: 30.8 | N41: 29.3 | O41: 31.7 | P41: 24.9 | Q41: 14.9 | R41: 17.1 | S41: 19.4 | T41: 5.4 | U41: 19.3 | V41: 21.1 | W41: 39.4 | X41: 14.5 | Y41: 15.4 | Z41: 16 | AA41: 17.9 | BA41: Water point at more than 30 minutes | BB41: Yes | BC41: N/A | BD41: N/A | BE41: N/A | BF41: N/A | BG41: N/A | BH41: N/A | BI41: N/A | BJ41: N/A | BK41: N/A | BL41: N/A | BM41: N/A | BN41: N/A | BO41: N/A | BP41: N/A | BQ41: N/A | BR41: N/A | BS41: N/A | BT41: N/A | BU41: N/A | BV41: N/A | BW41: N/A | BX41: N/A | BY41: N/A | BZ41: N/A | CA41: N/A
B42: No | C42: 70.7 | D42: 85 | E42: 93.5 | F42: 95.3 | G42: 96.2 | H42: 75.1 | I42: 91.1 | J42: 96.3 | K42: 95.9 | L42: 95.7 | M42: 69.2 | N42: 70.7 | O42: 68.3 | P42: 75.1 | Q42: 85.1 | R42: 82.9 | S42: 80.6 | T42: 94.6 | U42: 80.7 | V42: 78.9 | W42: 60.6 | X42: 85.5 | Y42: 84.6 | Z42: 84 | AA42: 82.1 | BB42: No | BC42: N/A | BD42: N/A | BE42: N/A | BF42: N/A | BG42: N/A | BH42: N/A | BI42: N/A | BJ42: N/A | BK42: N/A | BL42: N/A | BM42: N/A | BN42: N/A | BO42: N/A | BP42: N/A | BQ42: N/A | BR42: N/A | BS42: N/A | BT42: N/A | BU42: N/A | BV42: N/A | BW42: N/A | BX42: N/A | BY42: N/A | BZ42: N/A | CA42: N/A
A43: Water source available when needed | B43: Yes | C43: N/A | D43: N/A | E43: N/A | F43: N/A | G43: N/A | H43: N/A | I43: N/A | J43: N/A | K43: N/A | L43: N/A | M43: N/A | N43: N/A | O43: N/A | P43: N/A | Q43: N/A | R43: N/A | S43: N/A | T43: N/A | U43: N/A | V43: N/A | W43: N/A | X43: N/A | Y43: N/A | Z43: N/A | AA43: N/A | BA43: Water source available when needed | BB43: Yes | BC43: N/A | BD43: N/A | BE43: N/A | BF43: N/A | BG43: N/A | BH43: N/A | BI43: N/A | BJ43: N/A | BK43: N/A | BL43: N/A | BM43: N/A | BN43: N/A | BO43: N/A | BP43: N/A | BQ43: N/A | BR43: N/A | BS43: N/A | BT43: N/A | BU43: N/A | BV43: N/A | BW43: N/A | BX43: N/A | BY43: N/A | BZ43: N/A | CA43: N/A
B44: No | C44: N/A | D44: N/A | E44: N/A | F44: N/A | G44: N/A | H44: N/A | I44: N/A | J44: N/A | K44: N/A | L44: N/A | M44: N/A | N44: N/A | O44: N/A | P44: N/A | Q44: N/A | R44: N/A | S44: N/A | T44: N/A | U44: N/A | V44: N/A | W44: N/A | X44: N/A | Y44: N/A | Z44: N/A | AA44: N/A | BB44: No | BC44: N/A | BD44: N/A | BE44: N/A | BF44: N/A | BG44: N/A | BH44: N/A | BI44: N/A | BJ44: N/A | BK44: N/A | BL44: N/A | BM44: N/A | BN44: N/A | BO44: N/A | BP44: N/A | BQ44: N/A | BR44: N/A | BS44: N/A | BT44: N/A | BU44: N/A | BV44: N/A | BW44: N/A | BX44: N/A | BY44: N/A | BZ44: N/A | CA44: N/A
A45: Improved water source available when needed | B45: Yes | C45: N/A | D45: N/A | E45: N/A | F45: N/A | G45: N/A | H45: N/A | I45: N/A | J45: N/A | K45: N/A | L45: N/A | M45: N/A | N45: N/A | O45: N/A | P45: N/A | Q45: N/A | R45: N/A | S45: N/A | T45: N/A | U45: N/A | V45: N/A | W45: N/A | X45: N/A | Y45: N/A | Z45: N/A | AA45: N/A | BA45: Improved water source available when needed | BB45: Yes | BC45: N/A | BD45: N/A | BE45: N/A | BF45: N/A | BG45: N/A | BH45: N/A | BI45: N/A | BJ45: N/A | BK45: N/A | BL45: N/A | BM45: N/A | BN45: N/A | BO45: N/A | BP45: N/A | BQ45: N/A | BR45: N/A | BS45: N/A | BT45: N/A | BU45: N/A | BV45: N/A | BW45: N/A | BX45: N/A | BY45: N/A | BZ45: N/A | CA45: N/A
B46: No | C46: N/A | D46: N/A | E46: N/A | F46: N/A | G46: N/A | H46: N/A | I46: N/A | J46: N/A | K46: N/A | L46: N/A | M46: N/A | N46: N/A | O46: N/A | P46: N/A | Q46: N/A | R46: N/A | S46: N/A | T46: N/A | U46: N/A | V46: N/A | W46: N/A | X46: N/A | Y46: N/A | Z46: N/A | AA46: N/A | BB46: No | BC46: N/A | BD46: N/A | BE46: N/A | BF46: N/A | BG46: N/A | BH46: N/A | BI46: N/A | BJ46: N/A | BK46: N/A | BL46: N/A | BM46: N/A | BN46: N/A | BO46: N/A | BP46: N/A | BQ46: N/A | BR46: N/A | BS46: N/A | BT46: N/A | BU46: N/A | BV46: N/A | BW46: N/A | BX46: N/A | BY46: N/A | BZ46: N/A | CA46: N/A
A47: Microbiological quality at point of collection | B47: Not contaminated (No E. coli in 100 mL) | C47: N/A | D47: N/A | E47: N/A | F47: N/A | G47: N/A | H47: N/A | I47: N/A | J47: N/A | K47: N/A | L47: N/A | M47: N/A | N47: N/A | O47: N/A | P47: N/A | Q47: N/A | R47: N/A | S47: N/A | T47: N/A | U47: N/A | V47: N/A | W47: N/A | X47: N/A | Y47: N/A | Z47: N/A | AA47: N/A | BA47: Microbiological quality at point of collection | BB47: Not contaminated (No E. coli in 100 mL) | BC47: N/A | BD47: N/A | BE47: N/A | BF47: N/A | BG47: N/A | BH47: N/A | BI47: N/A | BJ47: N/A | BK47: N/A | BL47: N/A | BM47: N/A | BN47: N/A | BO47: N/A | BP47: N/A | BQ47: N/A | BR47: N/A | BS47: N/A | BT47: N/A | BU47: N/A | BV47: N/A | BW47: N/A | BX47: N/A | BY47: N/A | BZ47: N/A | CA47: N/A
B48: Contaminated (E. coli detected in 100 mL) | C48: N/A | D48: N/A | E48: N/A | F48: N/A | G48: N/A | H48: N/A | I48: N/A | J48: N/A | K48: N/A | L48: N/A | M48: N/A | N48: N/A | O48: N/A | P48: N/A | Q48: N/A | R48: N/A | S48: N/A | T48: N/A | U48: N/A | V48: N/A | W48: N/A | X48: N/A | Y48: N/A | Z48: N/A | AA48: N/A | BB48: Contaminated (E. coli detected in 100 mL) | BC48: N/A | BD48: N/A | BE48: N/A | BF48: N/A | BG48: N/A | BH48: N/A | BI48: N/A | BJ48: N/A | BK48: N/A | BL48: N/A | BM48: N/A | BN48: N/A | BO48: N/A | BP48: N/A | BQ48: N/A | BR48: N/A | BS48: N/A | BT48: N/A | BU48: N/A | BV48: N/A | BW48: N/A | BX48: N/A | BY48: N/A | BZ48: N/A | CA48: N/A
B49: Highly contaminated (>100 CFU/100 mL) | C49: N/A | D49: N/A | E49: N/A | F49: N/A | G49: N/A | H49: N/A | I49: N/A | J49: N/A | K49: N/A | L49: N/A | M49: N/A | N49: N/A | O49: N/A | P49: N/A | Q49: N/A | R49: N/A | S49: N/A | T49: N/A | U49: N/A | V49: N/A | W49: N/A | X49: N/A | Y49: N/A | Z49: N/A | AA49: N/A | BB49: Highly contaminated (>100 CFU/100 mL) | BC49: N/A | BD49: N/A | BE49: N/A | BF49: N/A | BG49: N/A | BH49: N/A | BI49: N/A | BJ49: N/A | BK49: N/A | BL49: N/A | BM49: N/A | BN49: N/A | BO49: N/A | BP49: N/A | BQ49: N/A | BR49: N/A | BS49: N/A | BT49: N/A | BU49: N/A | BV49: N/A | BW49: N/A | BX49: N/A | BY49: N/A | BZ49: N/A | CA49: N/A
A50: Microbiological quality of improved water sources at point of collection | B50: Not contaminated (No E. coli in 100 mL) | C50: N/A | D50: N/A | E50: N/A | F50: N/A | G50: N/A | H50: N/A | I50: N/A | J50: N/A | K50: N/A | L50: N/A | M50: N/A | N50: N/A | O50: N/A | P50: N/A | Q50: N/A | R50: N/A | S50: N/A | T50: N/A | U50: N/A | V50: N/A | W50: N/A | X50: N/A | Y50: N/A | Z50: N/A | AA50: N/A | BA50: Microbiological quality of improved water sources at point of collection | BB50: Not contaminated (No E. coli in 100 mL) | BC50: N/A | BD50: N/A | BE50: N/A | BF50: N/A | BG50: N/A | BH50: N/A | BI50: N/A | BJ50: N/A | BK50: N/A | BL50: N/A | BM50: N/A | BN50: N/A | BO50: N/A | BP50: N/A | BQ50: N/A | BR50: N/A | BS50: N/A | BT50: N/A | BU50: N/A | BV50: N/A | BW50: N/A | BX50: N/A | BY50: N/A | BZ50: N/A | CA50: N/A
B51: Contaminated (E. coli detected in 100 mL) | C51: N/A | D51: N/A | E51: N/A | F51: N/A | G51: N/A | H51: N/A | I51: N/A | J51: N/A | K51: N/A | L51: N/A | M51: N/A | N51: N/A | O51: N/A | P51: N/A | Q51: N/A | R51: N/A | S51: N/A | T51: N/A | U51: N/A | V51: N/A | W51: N/A | X51: N/A | Y51: N/A | Z51: N/A | AA51: N/A | BB51: Contaminated (E. coli detected in 100 mL) | BC51: N/A | BD51: N/A | BE51: N/A | BF51: N/A | BG51: N/A | BH51: N/A | BI51: N/A | BJ51: N/A | BK51: N/A | BL51: N/A | BM51: N/A | BN51: N/A | BO51: N/A | BP51: N/A | BQ51: N/A | BR51: N/A | BS51: N/A | BT51: N/A | BU51: N/A | BV51: N/A | BW51: N/A | BX51: N/A | BY51: N/A | BZ51: N/A | CA51: N/A
B52: Highly contaminated (>100 CFU/100 mL) | C52: N/A | D52: N/A | E52: N/A | F52: N/A | G52: N/A | H52: N/A | I52: N/A | J52: N/A | K52: N/A | L52: N/A | M52: N/A | N52: N/A | O52: N/A | P52: N/A | Q52: N/A | R52: N/A | S52: N/A | T52: N/A | U52: N/A | V52: N/A | W52: N/A | X52: N/A | Y52: N/A | Z52: N/A | AA52: N/A | BB52: Highly contaminated (>100 CFU/100 mL) | BC52: N/A | BD52: N/A | BE52: N/A | BF52: N/A | BG52: N/A | BH52: N/A | BI52: N/A | BJ52: N/A | BK52: N/A | BL52: N/A | BM52: N/A | BN52: N/A | BO52: N/A | BP52: N/A | BQ52: N/A | BR52: N/A | BS52: N/A | BT52: N/A | BU52: N/A | BV52: N/A | BW52: N/A | BX52: N/A | BY52: N/A | BZ52: N/A | CA52: N/A
A53: Microbiological quality of piped on premises at point of collection | B53: Not contaminated (No E. coli in 100 mL) | C53: N/A | D53: N/A | E53: N/A | F53: N/A | G53: N/A | H53: N/A | I53: N/A | J53: N/A | K53: N/A | L53: N/A | M53: N/A | N53: N/A | O53: N/A | P53: N/A | Q53: N/A | R53: N/A | S53: N/A | T53: N/A | U53: N/A | V53: N/A | W53: N/A | X53: N/A | Y53: N/A | Z53: N/A | AA53: N/A | BA53: Microbiological quality of piped on premises at point of collection | BB53: Not contaminated (No E. coli in 100 mL) | BC53: N/A | BD53: N/A | BE53: N/A | BF53: N/A | BG53: N/A | BH53: N/A | BI53: N/A | BJ53: N/A | BK53: N/A | BL53: N/A | BM53: N/A | BN53: N/A | BO53: N/A | BP53: N/A | BQ53: N/A | BR53: N/A | BS53: N/A | BT53: N/A | BU53: N/A | BV53: N/A | BW53: N/A | BX53: N/A | BY53: N/A | BZ53: N/A | CA53: N/A
B54: Contaminated (E. coli detected in 100 mL) | C54: N/A | D54: N/A | E54: N/A | F54: N/A | G54: N/A | H54: N/A | I54: N/A | J54: N/A | K54: N/A | L54: N/A | M54: N/A | N54: N/A | O54: N/A | P54: N/A | Q54: N/A | R54: N/A | S54: N/A | T54: N/A | U54: N/A | V54: N/A | W54: N/A | X54: N/A | Y54: N/A | Z54: N/A | AA54: N/A | BB54: Contaminated (E. coli detected in 100 mL) | BC54: N/A | BD54: N/A | BE54: N/A | BF54: N/A | BG54: N/A | BH54: N/A | BI54: N/A | BJ54: N/A | BK54: N/A | BL54: N/A | BM54: N/A | BN54: N/A | BO54: N/A | BP54: N/A | BQ54: N/A | BR54: N/A | BS54: N/A | BT54: N/A | BU54: N/A | BV54: N/A | BW54: N/A | BX54: N/A | BY54: N/A | BZ54: N/A | CA54: N/A
B55: Highly contaminated (>100 CFU/100 mL) | C55: N/A | D55: N/A | E55: N/A | F55: N/A | G55: N/A | H55: N/A | I55: N/A | J55: N/A | K55: N/A | L55: N/A | M55: N/A | N55: N/A | O55: N/A | P55: N/A | Q55: N/A | R55: N/A | S55: N/A | T55: N/A | U55: N/A | V55: N/A | W55: N/A | X55: N/A | Y55: N/A | Z55: N/A | AA55: N/A | BB55: Highly contaminated (>100 CFU/100 mL) | BC55: N/A | BD55: N/A | BE55: N/A | BF55: N/A | BG55: N/A | BH55: N/A | BI55: N/A | BJ55: N/A | BK55: N/A | BL55: N/A | BM55: N/A | BN55: N/A | BO55: N/A | BP55: N/A | BQ55: N/A | BR55: N/A | BS55: N/A | BT55: N/A | BU55: N/A | BV55: N/A | BW55: N/A | BX55: N/A | BY55: N/A | BZ55: N/A | CA55: N/A
C56: NATIONAL wealth index quintile | H56: URBAN wealth index quintile | M56: RURAL wealth index quintile | R56: SUB-REGIONS: | BA56: Raw numbers of respondents: | BB56: Use of drinking water sources | BC56: NATIONAL wealth index quintile | BH56: URBAN wealth index quintile | BM56: RURAL wealth index quintile | BR56: SUB-REGIONS:
A57: Percentage based on weighted population | C57: Poorest | D57: Poor | E57: Middle | F57: Rich | G57: Richest | H57: Poorest | I57: Poor | J57: Middle | K57: Rich | L57: Richest | M57: Poorest | N57: Poor | O57: Middle | P57: Rich | Q57: Richest | R57: Estuaire | S57: Haut-Ogooué | T57: Libreville-Port-Gentil | U57: Moyen-Ogooué | V57: Ngounié | W57: Nyanga | X57: Ogooué Maritime | Y57: Ogooué-Ivindo | Z57: Ogooué-Lolo | AA57: Woleu-Ntem | BA57: Water data, raw numbers (weighted) | BC57: Poorest | BD57: Poor | BE57: Middle | BF57: Rich | BG57: Richest | BH57: Poorest | BI57: Poor | BJ57: Middle | BK57: Rich | BL57: Richest | BM57: Poorest | BN57: Poor | BO57: Middle | BP57: Rich | BQ57: Richest | BR57: Estuaire | BS57: Haut-Ogooué | BT57: Libreville-Port-Gentil | BU57: Moyen-Ogooué | BV57: Ngounié | BW57: Nyanga | BX57: Ogooué Maritime | BY57: Ogooué-Ivindo | BZ57: Ogooué-Lolo | CA57: Woleu-Ntem
A58: Source of drinking water | B58: Piped into dwelling | C58: 0.8 | D58: 4.1 | E58: 13.8 | F58: 38.8 | G58: 78.4 | H58: 1.9 | I58: 7.7 | J58: 19.9 | K58: 45.7 | L58: 80.8 | M58: 0.3 | N58: 0 | O58: 1.7 | P58: 0.3 | Q58: 25.6 | R58: 25.3 | S58: 24.2 | T58: 36.7 | U58: 14.2 | V58: 8.5 | W58: 11.1 | X58: 18.7 | Y58: 4.6 | Z58: 8.6 | AA58: 8.9
B59: Piped to yard/plot | C59: 14.8 | D59: 48.7 | E59: 54.3 | F59: 45.8 | G59: 14.2 | H59: 38.1 | I59: 55 | J59: 57 | K59: 41.5 | L59: 11.9 | M59: 1 | N59: 2.1 | O59: 3 | P59: 12.5 | Q59: 22 | R59: 26.5 | S59: 30.9 | T59: 44.2 | U59: 19.8 | V59: 23.5 | W59: 21.8 | X59: 25.9 | Y59: 23.6 | Z59: 24.8 | AA59: 24
B60: Public tap/standpipe | C60: 27.7 | D60: 38.2 | E60: 25.8 | F60: 13.2 | G60: 4.6 | H60: 46.4 | I60: 34.1 | J60: 19.7 | K60: 11.1 | L60: 4.2 | M60: 4 | N60: 6.3 | O60: 9.9 | P60: 26.2 | Q60: 31.3 | R60: 25.4 | S60: 30 | T60: 16.4 | U60: 32.3 | V60: 32.7 | W60: 43.6 | X60: 22.6 | Y60: 10.1 | Z60: 27.4 | AA60: 29
B61: Protected well into yard/plot | C61: 1.4 | D61: 0.4 | E61: 0 | F61: 0.1 | G61: 0.1 | H61: 1 | I61: 0.2 | J61: 0.1 | K61: 0 | L61: 0.1 | M61: 1.2 | N61: 0.6 | O61: 1.3 | P61: 1.8 | Q61: 0.3 | R61: 0.4 | S61: 0 | T61: 0 | U61: 0.8 | V61: 0.3 | W61: 0.1 | X61: 0.7 | Y61: 5.8 | Z61: 1 | AA61: 0.8
B62: Village hydraulics / other protected well | C62: 11.4 | D62: 1 | E62: 0.6 | F62: 0.2 | G62: 0 | H62: 1.3 | I62: 0.1 | J62: 0.1 | K62: 0 | L62: 0 | M62: 16.6 | N62: 19.4 | O62: 23.4 | P62: 11.1 | Q62: 5.5 | R62: 1.9 | S62: 2.6 | T62: 0 | U62: 0.8 | V62: 15.9 | W62: 1.1 | X62: 1.9 | Y62: 3.2 | Z62: 4 | AA62: 15.6
B63: Unprotected well into yard | C63: 1 | D63: 0.6 | E63: 0.3 | F63: 0 | G63: 0 | H63: 0.7 | I63: 0.3 | J63: 0 | K63: 0 | L63: 0 | M63: 1.4 | N63: 0.9 | O63: 0.9 | P63: 2.4 | Q63: 1.7 | R63: 1.2 | S63: 0 | T63: 0 | U63: 1.4 | V63: 0.3 | W63: 0.2 | X63: 1.9 | Y63: 3.6 | Z63: 0 | AA63: 0.3
B64: Public unprotected well | C64: 5.5 | D64: 0.8 | E64: 0.2 | F64: 0 | G64: 0.3 | H64: 3.2 | I64: 0.4 | J64: 0 | K64: 0 | L64: 0.3 | M64: 6.9 | N64: 5.1 | O64: 4.9 | P64: 4 | Q64: 1.7 | R64: 2.8 | S64: 3.4 | T64: 0 | U64: 2.9 | V64: 0.3 | W64: 0.7 | X64: 1.7 | Y64: 9.6 | Z64: 1.7 | AA64: 3.4
B65: Protected spring | C65: 15.2 | D65: 1.8 | E65: 0.8 | F65: 0.3 | G65: 0 | H65: 3.8 | I65: 0.2 | J65: 0.7 | K65: 0.1 | L65: 0 | M65: 24.8 | N65: 23.5 | O65: 23 | P65: 14.2 | Q65: 4.1 | R65: 4.7 | S65: 1.5 | T65: 0 | U65: 4.5 | V65: 7.4 | W65: 2 | X65: 14.9 | Y65: 26.4 | Z65: 10.4 | AA65: 14.4
B66: River/dam/lake/ponds/stream/canal/irrigation channel | C66: 19 | D66: 2.7 | E66: 0.6 | F66: 0.2 | G66: 0 | H66: 2.2 | I66: 0.4 | J66: 0.2 | K66: 0 | L66: 0 | M66: 40.5 | N66: 35.3 | O66: 26.7 | P66: 19.8 | Q66: 5.2 | R66: 8.2 | S66: 6.1 | T66: 0 | U66: 15.8 | V66: 10 | W66: 18.4 | X66: 6.8 | Y66: 12.9 | Z66: 18.9 | AA66: 3.2
B67: Rainwater | C67: 3 | D67: 0.5 | E67: 1.8 | F67: 0 | G67: 0 | H67: 0.3 | I67: 0.2 | J67: 1.9 | K67: 0 | L67: 0 | M67: 3.3 | N67: 6.7 | O67: 4.7 | P67: 5.3 | Q67: 0.7 | R67: 3.5 | S67: 0.3 | T67: 0.6 | U67: 6.2 | V67: 0.9 | W67: 1 | X67: 3.3 | Y67: 0 | Z67: 0.3 | AA67: 0.1
B68: Tanker truck | C68: 0 | D68: 0 | E68: 0 | F68: 0 | G68: 0 | H68: 0 | I68: 0 | J68: 0 | K68: 0 | L68: 0.1 | M68: 0.1 | N68: 0.1 | O68: 0 | P68: 0 | Q68: 0 | R68: 0 | S68: 0 | T68: 0 | U68: 0 | V68: 0 | W68: 0 | X68: 0.1 | Y68: 0 | Z68: 0.2 | AA68: 0
B69: Bottled water | C69: 0.2 | D69: 0.2 | E69: 0.5 | F69: 0.4 | G69: 1.1 | H69: 0.1 | I69: 0.3 | J69: 0.3 | K69: 0.5 | L69: 1.2 | M69: 0 | N69: 0 | O69: 0.3 | P69: 0.4 | Q69: 0.8 | R69: 0.1 | S69: 0.3 | T69: 0.7 | U69: 0.6 | V69: 0.3 | W69: 0 | X69: 0.7 | Y69: 0 | Z69: 0.3 | AA69: 0.2
B70: Other | C70: 0.1 | D70: 1.2 | E70: 1.2 | F70: 0.8 | G70: 1.2 | H70: 1.1 | I70: 1.2 | J70: 0.2 | K70: 0.9 | L70: 1.4 | M70: 0 | N70: 0.2 | O70: 0.1 | P70: 1.9 | Q70: 1.2 | R70: 0 | S70: 0.4 | T70: 1.4 | U70: 0.5 | V70: 0.1 | W70: 0 | X70: 1 | Y70: 0 | Z70: 2.6 | AA70: 0
A108: =A1026 -> Gabon
A109: =A1034 -> 2012
A110: Use of sanitation facilities
A111: by wealth quintile and sub-national region
A112: Notes:
A113: WHO/UNICEF JMP customised wealth index excludes water,
A114: sanitation and hygiene assets.
A115: Survey used for analysis: | B115: =A1025 -> DHS12
A116: =B1030 -> 
A117: =B1029 -> 
A120: Use of sanitation facilities | C120: NATIONAL wealth index quintile | H120: URBAN wealth index quintile | M120: RURAL wealth index quintile | R120: SUB-REGIONS: | BA120: Raw numbers of respondents: | BB120: Use of sanitation facilities | BC120: NATIONAL wealth index quintile | BH120: URBAN wealth index quintile | BM120: RURAL wealth index quintile | BR120: SUB-REGIONS:
A121: Weighted percentage (used in graphs) | C121: Poorest | D121: Poor | E121: Middle | F121: Rich | G121: Richest | H121: Poorest | I121: Poor | J121: Middle | K121: Rich | L121: Richest | M121: Poorest | N121: Poor | O121: Middle | P121: Rich | Q121: Richest | R121: Estuaire | S121: Haut-Ogooué | T121: Libreville-Port-Gentil | U121: Moyen-Ogooué | V121: Ngounié | W121: Nyanga | X121: Ogooué Maritime | Y121: Ogooué-Ivindo | Z121: Ogooué-Lolo | AA121: Woleu-Ntem | BA121: Sanitation data, raw numbers (weighted) | BC121: Poorest | BD121: Poor | BE121: Middle | BF121: Rich | BG121: Richest | BH121: Poorest | BI121: Poor | BJ121: Middle | BK121: Rich | BL121: Richest | BM121: Poorest | BN121: Poor | BO121: Middle | BP121: Rich | BQ121: Richest | BR121: Estuaire | BS121: Haut-Ogooué | BT121: Libreville-Port-Gentil | BU121: Moyen-Ogooué | BV121: Ngounié | BW121: Nyanga | BX121: Ogooué Maritime | BY121: Ogooué-Ivindo | BZ121: Ogooué-Lolo | CA121: Woleu-Ntem
A122: Sanitation | B122: Improved | C122: =C153+C154+(C155+C156)*0.5 -> 40.55467483 | D122: =D153+D154+(D155+D156)*0.5 -> 52.14598406 | E122: 61.29596698 | F122: 76.8024161 | G122: 94.1559816 | H122: 45.58377521 | I122: 56.0127357 | J122: 66.92645964 | K122: 78.34200139 | L122: 96.49946673 | M122: 38.04065816 | N122: 38.69103369 | O122: 39.6870897 | P122: 45.26980868 | Q122: 65.02457142 | R122: 65.70796215 | S122: 50.83123647 | T122: 74.19459282 | U122: 44.77565286 | V122: 46.13152757 | W122: 55.39476587 | X122: 62.37346953 | Y122: 50.98867925 | Z122: 54.84589862 | AA122: 52.22056235 | BA122: Sanitation | BB122: Improved | BC122: 894.913813 | BD122: 4018.328849 | BE122: 5818.961687 | BF122: 7035.885414 | BG122: 7914.846371 | BH122: 2034.460605 | BI122: 4222.250719 | BJ122: 5480.434609 | BK122: 5951.965283 | BL122: 6777.560283 | BM122: 21.72577 | BN122: 49.873854 | BO122: 95.416765 | BP122: 287.230726 | BQ122: 762.01752 | BR122: 2633.894451 | BS122: 1626.649485 | BT122: 18702.36434 | BU122: 424.909281 | BV122: 568.731435 | BW122: 360.489221 | BX122: 293.46705 | BY122: 164.800974 | BZ122: 367.913908 | CA122: 539.715987
B123: Not Improved | C123: =100-C122 -> 59.44532517 | D123: =100-D122 -> 47.85401594 | E123: 38.70403302 | F123: 23.1975839 | G123: 5.844018397 | H123: 54.41622479 | I123: 43.9872643 | J123: 33.07354036 | K123: 21.65799861 | L123: 3.500533273 | M123: 61.95934184 | N123: 61.30896631 | O123: 60.3129103 | P123: 54.73019132 | Q123: 34.97542858 | R123: 34.29203785 | S123: 49.16876353 | T123: 25.80540718 | U123: 55.22434714 | V123: 53.86847243 | W123: 44.60523413 | X123: 37.62653047 | Y123: 49.01132075 | Z123: 45.15410138 | AA123: 47.77943765 | BB123: Not Improved | BC123: 7314.806785 | BD123: 4192.559547 | BE123: 2393.324517 | BF123: 1172.938384 | BG123: 296.879994 | BH123: 4877.456082 | BI123: 2667.655901 | BJ123: 1453.134838 | BK123: 956.379232 | BL123: 138.928252 | BM123: 1276.691071 | BN123: 1249.019954 | BO123: 1203.376428 | BP123: 1009.987987 | BQ123: 537.879482 | BR123: 1849.624584 | BS123: 2159.133631 | BT123: 3325.014355 | BU123: 910.06985 | BV123: 1987.720063 | BW123: 748.018775 | BX123: 192.381259 | BY123: 1313.448885 | BZ123: 1128.997845 | CA123: 1756.09998
A124: Sanitation ladder | B124: Basic | C124: =C122*C129/100 -> 14.65589527 | D124: =D122*D129/100 -> 15.2895924 | E124: =E122*E129/100 -> 24.90887557 | F124: 50.43330113 | G124: 85.83197655 | H124: 12.90132119 | I124: 18.00942617 | J124: 30.28529847 | K124: 55.8603818 | L124: 88.16799601 | M124: 18.50481895 | N124: 14.88675118 | O124: 25.22274896 | P124: 28.53575138 | Q124: 49.13762345 | R124: 42.41639653 | S124: 36.9358495 | T124: 42.93513051 | U124: 26.44240523 | V124: 34.27483459 | W124: 40.85153377 | X124: 40.34590652 | Y124: 34.56678617 | Z124: 42.71087924 | AA124: 43.61880839 | BA124: Sanitation ladder | BB124: Basic | BC124: 319.34232 | BD124: 1175.264773 | BE124: 2360.760975 | BF124: 4620.205272 | BG124: 7137.233305 | BH124: 575.802017 | BI124: 1351.250139 | BJ124: 2479.984729 | BK124: 4218.254715 | BL124: 6147.25808 | BM124: 10.568467 | BN124: 19.012776 | BO124: 53.78059 | BP124: 181.055428 | BQ124: 575.839704 | BR124: 1686.733263 | BS124: 1173.907131 | BT124: 10774.25247 | BU124: 250.931537 | BV124: 422.556479 | BW124: 265.847095 | BX124: 189.530392 | BY124: 111.723624 | BZ124: 286.510512 | CA124: 450.814146
B125: Limited | C125: =C122*C128/100 -> 25.89877956 | D125: =D122*D128/100 -> 36.85639167 | E125: =E122*E128/100 -> 36.38709141 | F125: 26.36911498 | G125: 8.32400505 | H125: 32.68245402 | I125: 38.00330953 | J125: 36.64116117 | K125: 22.48161959 | L125: 8.331470721 | M125: 19.53583921 | N125: 23.8042825 | O125: 14.46434073 | P125: 16.7340573 | Q125: 15.88694797 | R125: 23.29156562 | S125: 13.89538697 | T125: 31.25946231 | U125: 18.33324764 | V125: 11.85669298 | W125: 14.5432321 | X125: 22.02756302 | Y125: 16.42189308 | Z125: 12.13501938 | AA125: 8.601753965 | BB125: Limited | BC125: 564.317375 | BD125: 2833.039473 | BE125: 3448.619154 | BF125: 2415.680142 | BG125: 692.170546 | BH125: 1458.658588 | BI125: 2851.394419 | BJ125: 3000.44988 | BK125: 1697.682593 | BL125: 580.887658 | BM125: 11.157303 | BN125: 30.401898 | BO125: 30.841237 | BP125: 106.175298 | BQ125: 186.177816 | BR125: 926.213957 | BS125: 441.627689 | BT125: 7844.330153 | BU125: 173.977744 | BV125: 146.174956 | BW125: 94.642126 | BX125: 103.477478 | BY125: 53.07735 | BZ125: 81.403396 | CA125: 88.901841
B126: Unimproved | C126: =100-C124-C125-C127 -> 53.57081457 | D126: =100-D124-D125-D127 -> 45.34403985 | E126: =100-E124-E125-E127 -> 37.02810574 | F126: 21.57807732 | G126: 5.792998225 | H126: 49.86820532 | I126: 42.56089045 | J126: 31.31834741 | K126: 19.91752166 | L126: 3.500533273 | M126: 53.79673014 | N126: 55.24946926 | O126: 55.62424067 | P126: 51.42173227 | Q126: 33.40699716 | R126: 33.30968702 | S126: 37.14914064 | T126: 24.14586987 | U126: 53.8039543 | V126: 53.14345027 | W126: 41.80912187 | X126: 36.48315422 | Y126: 48.98154798 | Z126: 44.65899384 | AA126: 46.97689205 | BB126: Unimproved | BC126: 6833.187003 | BD126: 3986.719827 | BE126: 2255.853152 | BF126: 1039.995943 | BG126: 292.73395 | BH126: 4563.100765 | BI126: 2569.659732 | BJ126: 1331.437316 | BK126: 836.768147 | BL126: 138.928252 | BM126: 1170.706346 | BN126: 1170.341346 | BO126: 1142.986445 | BP126: 967.070037 | BQ126: 517.491489 | BR126: 1805.786473 | BS126: 1705.432718 | BT126: 2960.852176 | BU126: 891.107902 | BV126: 1969.185223 | BW126: 717.023647 | BX126: 186.831435 | BY126: 1313.008769 | BZ126: 1121.586522 | CA126: 1737.67501
B127: Open defecation | C127: 5.874510595 | D127: 2.509976085 | E127: 1.675927282 | F127: 1.619506573 | G127: 0.05102017206 | H127: 4.548019475 | I127: 1.426373848 | J127: 1.755192948 | K127: 1.740476945 | L127: 0 | M127: 8.162611702 | N127: 6.059497052 | O127: 4.688669629 | P127: 3.308459057 | Q127: 1.568431419 | R127: 0.9823508265 | S127: 12.01962289 | T127: 1.65953731 | U127: 1.420392841 | V127: 0.7250221651 | W127: 2.796112262 | X127: 1.143376246 | Y127: 0.0297727747 | Z127: 0.4951075429 | AA127: 0.8025455988 | BB127: Open defecation | BC127: 481.619782 | BD127: 205.83972 | BE127: 137.471365 | BF127: 132.942441 | BG127: 4.146044 | BH127: 314.355317 | BI127: 97.996169 | BJ127: 121.697522 | BK127: 119.611085 | BL127: 0 | BM127: 105.984725 | BN127: 78.678608 | BO127: 60.389983 | BP127: 42.91795 | BQ127: 20.387993 | BR127: 43.838111 | BS127: 453.700913 | BT127: 364.162179 | BU127: 18.961948 | BV127: 18.53484 | BW127: 30.995128 | BX127: 5.549824 | BY127: 0.440116 | BZ127: 7.411323 | CA127: 18.42497
A128: Shared among Improved Sanitation | B128: Yes | C128: 63.86139123 | D128: 70.67925235 | E128: 59.3629454 | F128: 34.333705 | G128: 8.840654527 | H128: 71.69755877 | I128: 67.8476226 | J128: 54.74839304 | K128: 28.69676443 | L128: 8.633696127 | M128: 51.35515565 | N128: 61.52402827 | O128: 36.44595974 | P128: 36.9651602 | Q128: 24.4322225 | R128: 35.44709782 | S128: 27.3363151 | T128: 42.13172567 | U128: 40.94467967 | V128: 25.70193012 | W128: 26.25380191 | X128: 35.31559681 | Y128: 32.20693951 | Z128: 22.12566425 | AA128: 16.47196732 | BA128: Shared among improved sanitation facilities | BB128: Yes | BC128: N/A | BD128: N/A | BE128: N/A | BF128: N/A | BG128: N/A | BH128: N/A | BI128: N/A | BJ128: N/A | BK128: N/A | BL128: N/A | BM128: N/A | BN128: N/A | BO128: N/A | BP128: N/A | BQ128: N/A | BR128: N/A | BS128: N/A | BT128: N/A | BU128: N/A | BV128: N/A | BW128: N/A | BX128: N/A | BY128: N/A | BZ128: N/A | CA128: N/A
B129: No | C129: 36.13860877 | D129: 29.32074765 | E129: 40.6370546 | F129: 65.666295 | G129: 91.15934547 | H129: 28.30244123 | I129: 32.1523774 | J129: 45.25160696 | K129: 71.30323557 | L129: 91.36630387 | M129: 48.64484435 | N129: 38.47597173 | O129: 63.55404026 | P129: 63.0348398 | Q129: 75.5677775 | R129: 64.55290218 | S129: 72.6636849 | T129: 57.86827433 | U129: 59.05532033 | V129: 74.29806988 | W129: 73.74619809 | X129: 64.68440319 | Y129: 67.79306049 | Z129: 77.87433575 | AA129: 83.52803268 | BB129: No | BC129: N/A | BD129: N/A | BE129: N/A | BF129: N/A | BG129: N/A | BH129: N/A | BI129: N/A | BJ129: N/A | BK129: N/A | BL129: N/A | BM129: N/A | BN129: N/A | BO129: N/A | BP129: N/A | BQ129: N/A | BR129: N/A | BS129: N/A | BT129: N/A | BU129: N/A | BV129: N/A | BW129: N/A | BX129: N/A | BY129: N/A | BZ129: N/A | CA129: N/A
A130: Manually calculated ratios | B130: Improved latrines | C130: =(C155+0.5*C156)/(C155+C156)*100 -> 55.84838864 | D130: =(D155+0.5*D156)/(D155+D156)*100 -> 72.81398185 | E130: 82.35581215 | F130: 87.00362027 | G130: 87.09929982 | H130: 64.46092495 | I130: 78.60357882 | J130: 85.74034103 | K130: 87.30077437 | L130: 86.75198405 | M130: 50.70383551 | N130: 52.05992275 | O130: 53.64048353 | P130: 60.37703476 | Q130: 68.82416182 | R130: 68.59573548 | S130: 66.77306896 | T130: 87.8537121 | U130: 63.63632477 | V130: 57.80243264 | W130: 60.55079746 | X130: 73.48035504 | Y130: 52.74004402 | Z130: 57.13702582 | AA130: 56.43655002
B131: Other
B132: Other
C133: NATIONAL wealth index quintile | H133: URBAN wealth index quintile | M133: RURAL wealth index quintile | R133: SUB-REGIONS: | BA133: Raw numbers of respondents: | BB133: Use of sanitation facilities | BC133: NATIONAL wealth index quintile | BH133: URBAN wealth index quintile | BM133: RURAL wealth index quintile | BR133: SUB-REGIONS:
A134: Percentage based on weighted population | C134: Poorest | D134: Poor | E134: Middle | F134: Rich | G134: Richest | H134: Poorest | I134: Poor | J134: Middle | K134: Rich | L134: Richest | M134: Poorest | N134: Poor | O134: Middle | P134: Rich | Q134: Richest | R134: Estuaire | S134: Haut-Ogooué | T134: Libreville-Port-Gentil | U134: Moyen-Ogooué | V134: Ngounié | W134: Nyanga | X134: Ogooué Maritime | Y134: Ogooué-Ivindo | Z134: Ogooué-Lolo | AA134: Woleu-Ntem | BA134: Sanitation data, raw numbers (weighted) | BC134: Poorest | BD134: Poor | BE134: Middle | BF134: Rich | BG134: Richest | BH134: Poorest | BI134: Poor | BJ134: Middle | BK134: Rich | BL134: Richest | BM134: Poorest | BN134: Poor | BO134: Middle | BP134: Rich | BQ134: Richest | BR134: Estuaire | BS134: Haut-Ogooué | BT134: Libreville-Port-Gentil | BU134: Moyen-Ogooué | BV134: Ngounié | BW134: Nyanga | BX134: Ogooué Maritime | BY134: Ogooué-Ivindo | BZ134: Ogooué-Lolo | CA134: Woleu-Ntem
A135: Sanitation type | B135: Sewer connection | C135: 0.8775729227 | D135: 7.280165558 | E135: 18.89446843 | F135: 50.47495822 | G135: 88.21095835 | H135: 4.155853651 | I135: 10.84046246 | J135: 27.40787562 | K135: 55.7383739 | L135: 91.94276569 | M135: 0 | N135: 0 | O135: 0.1560211442 | P135: 1.624074166 | Q135: 33.93564108 | R135: 29.46726004 | S135: 25.89777465 | T135: 45.59348469 | U135: 14.43745228 | V135: 11.3311049 | W135: 14.38798733 | X135: 19.17312755 | Y135: 4.592322373 | Z135: 10.99255842 | AA135: 12.90955291 | BA135: Sanitation type | BB135: Sewer connection | BC135: N/A | BD135: N/A | BE135: N/A | BF135: N/A | BG135: N/A | BH135: N/A | BI135: N/A | BJ135: N/A | BK135: N/A | BL135: N/A | BM135: N/A | BN135: N/A | BO135: N/A | BP135: N/A | BQ135: N/A | BR135: N/A | BS135: N/A | BT135: N/A | BU135: N/A | BV135: N/A | BW135: N/A | BX135: N/A | BY135: N/A | BZ135: N/A | CA135: N/A
B136: Septic tank connection | C136: 0 | D136: 0 | E136: 0 | F136: 0 | G136: 0 | H136: 0 | I136: 0 | J136: 0 | K136: 0 | L136: 0 | M136: 0 | N136: 0 | O136: 0 | P136: 0 | Q136: 0 | R136: 0 | S136: 0 | T136: 0 | U136: 0 | V136: 0 | W136: 0 | X136: 0 | Y136: 0 | Z136: 0 | AA136: 0 | BB136: Septic tank connection | BC136: N/A | BD136: N/A | BE136: N/A | BF136: N/A | BG136: N/A | BH136: N/A | BI136: N/A | BJ136: N/A | BK136: N/A | BL136: N/A | BM136: N/A | BN136: N/A | BO136: N/A | BP136: N/A | BQ136: N/A | BR136: N/A | BS136: N/A | BT136: N/A | BU136: N/A | BV136: N/A | BW136: N/A | BX136: N/A | BY136: N/A | BZ136: N/A | CA136: N/A
B137: Improved latrines | C137: 10.0230881 | D137: 41.65886095 | E137: 51.96231301 | F137: 35.23629089 | G137: 8.173723979 | H137: 25.27824831 | I137: 50.44122032 | J137: 51.63416255 | K137: 30.41779955 | L137: 6.048581341 | M137: 1.673250786 | N137: 3.839717588 | O137: 7.190549928 | P137: 20.51796889 | Q137: 24.68573575 | R137: 29.27888178 | S137: 17.06954374 | T137: 39.31159911 | U137: 17.39145584 | V137: 10.91580397 | W137: 18.13223105 | X137: 41.22989219 | Y137: 6.556061846 | Z137: 13.5856378 | AA137: 10.59912526 | BB137: Improved latrines | BC137: N/A | BD137: N/A | BE137: N/A | BF137: N/A | BG137: N/A | BH137: N/A | BI137: N/A | BJ137: N/A | BK137: N/A | BL137: N/A | BM137: N/A | BN137: N/A | BO137: N/A | BP137: N/A | BQ137: N/A | BR137: N/A | BS137: N/A | BT137: N/A | BU137: N/A | BV137: N/A | BW137: N/A | BX137: N/A | BY137: N/A | BZ137: N/A | CA137: N/A
B138: Unimproved facilities | C138: 83.23288133 | D138: 48.55406181 | E138: 27.46924664 | F138: 12.66924432 | G138: 3.564828356 | H138: 66.01787857 | I138: 37.29600231 | J138: 19.20276888 | K138: 12.11242643 | L138: 2.008652965 | M138: 90.16413751 | N138: 90.10292749 | O138: 88.00372924 | P138: 74.54949788 | Q138: 39.81019175 | R138: 40.27609694 | S138: 45.04834709 | T138: 13.44169098 | U138: 66.75069904 | V138: 77.02806897 | W138: 64.68366936 | X138: 38.45468463 | Y138: 88.82184301 | Z138: 74.92669623 | AA138: 75.68877623 | BB138: Unimproved facilities | BC138: N/A | BD138: N/A | BE138: N/A | BF138: N/A | BG138: N/A | BH138: N/A | BI138: N/A | BJ138: N/A | BK138: N/A | BL138: N/A | BM138: N/A | BN138: N/A | BO138: N/A | BP138: N/A | BQ138: N/A | BR138: N/A | BS138: N/A | BT138: N/A | BU138: N/A | BV138: N/A | BW138: N/A | BX138: N/A | BY138: N/A | BZ138: N/A | CA138: N/A
B139: Open defecation | C139: 5.866457649 | D139: 2.506911677 | E139: 1.673971919 | F139: 1.619506573 | G139: 0.05048931023 | H139: 4.548019475 | I139: 1.422314908 | J139: 1.755192948 | K139: 1.731400117 | L139: 0 | M139: 8.162611702 | N139: 6.057354921 | O139: 4.649699685 | P139: 3.308459057 | Q139: 1.568431419 | R139: 0.977761233 | S139: 11.98433452 | T139: 1.653225216 | U139: 1.420392841 | V139: 0.7250221651 | W139: 2.796112262 | X139: 1.14229563 | Y139: 0.0297727747 | Z139: 0.4951075429 | AA139: 0.8025455988 | BB139: Open defecation | BC139: N/A | BD139: N/A | BE139: N/A | BF139: N/A | BG139: N/A | BH139: N/A | BI139: N/A | BJ139: N/A | BK139: N/A | BL139: N/A | BM139: N/A | BN139: N/A | BO139: N/A | BP139: N/A | BQ139: N/A | BR139: N/A | BS139: N/A | BT139: N/A | BU139: N/A | BV139: N/A | BW139: N/A | BX139: N/A | BY139: N/A | BZ139: N/A | CA139: N/A
A140: Septic tank emptying practices | B140: Not emptied/treated and disposed in situ | C140: N/A | D140: N/A | E140: N/A | F140: N/A | G140: N/A | H140: N/A | I140: N/A | J140: N/A | K140: N/A | L140: N/A | M140: N/A | N140: N/A | O140: N/A | P140: N/A | Q140: N/A | R140: N/A | S140: N/A | T140: N/A | U140: N/A | V140: N/A | W140: N/A | X140: N/A | Y140: N/A | Z140: N/A | AA140: N/A | BA140: Septic tank emptying practices | BB140: Not emptied/treated and disposed in situ | BC140: N/A | BD140: N/A | BE140: N/A | BF140: N/A | BG140: N/A | BH140: N/A | BI140: N/A | BJ140: N/A | BK140: N/A | BL140: N/A | BM140: N/A | BN140: N/A | BO140: N/A | BP140: N/A | BQ140: N/A | BR140: N/A | BS140: N/A | BT140: N/A | BU140: N/A | BV140: N/A | BW140: N/A | BX140: N/A | BY140: N/A | BZ140: N/A | CA140: N/A
B141: Emptied and buried on site | C141: N/A | D141: N/A | E141: N/A | F141: N/A | G141: N/A | H141: N/A | I141: N/A | J141: N/A | K141: N/A | L141: N/A | M141: N/A | N141: N/A | O141: N/A | P141: N/A | Q141: N/A | R141: N/A | S141: N/A | T141: N/A | U141: N/A | V141: N/A | W141: N/A | X141: N/A | Y141: N/A | Z141: N/A | AA141: N/A | BB141: Emptied and buried on site | BC141: N/A | BD141: N/A | BE141: N/A | BF141: N/A | BG141: N/A | BH141: N/A | BI141: N/A | BJ141: N/A | BK141: N/A | BL141: N/A | BM141: N/A | BN141: N/A | BO141: N/A | BP141: N/A | BQ141: N/A | BR141: N/A | BS141: N/A | BT141: N/A | BU141: N/A | BV141: N/A | BW141: N/A | BX141: N/A | BY141: N/A | BZ141: N/A | CA141: N/A
B142: Emptied and discharged locally | C142: N/A | D142: N/A | E142: N/A | F142: N/A | G142: N/A | H142: N/A | I142: N/A | J142: N/A | K142: N/A | L142: N/A | M142: N/A | N142: N/A | O142: N/A | P142: N/A | Q142: N/A | R142: N/A | S142: N/A | T142: N/A | U142: N/A | V142: N/A | W142: N/A | X142: N/A | Y142: N/A | Z142: N/A | AA142: N/A | BB142: Emptied and discharged locally | BC142: N/A | BD142: N/A | BE142: N/A | BF142: N/A | BG142: N/A | BH142: N/A | BI142: N/A | BJ142: N/A | BK142: N/A | BL142: N/A | BM142: N/A | BN142: N/A | BO142: N/A | BP142: N/A | BQ142: N/A | BR142: N/A | BS142: N/A | BT142: N/A | BU142: N/A | BV142: N/A | BW142: N/A | BX142: N/A | BY142: N/A | BZ142: N/A | CA142: N/A
B143: Emptied and removed offsite | C143: N/A | D143: N/A | E143: N/A | F143: N/A | G143: N/A | H143: N/A | I143: N/A | J143: N/A | K143: N/A | L143: N/A | M143: N/A | N143: N/A | O143: N/A | P143: N/A | Q143: N/A | R143: N/A | S143: N/A | T143: N/A | U143: N/A | V143: N/A | W143: N/A | X143: N/A | Y143: N/A | Z143: N/A | AA143: N/A | BB143: Emptied and removed offsite | BC143: N/A | BD143: N/A | BE143: N/A | BF143: N/A | BG143: N/A | BH143: N/A | BI143: N/A | BJ143: N/A | BK143: N/A | BL143: N/A | BM143: N/A | BN143: N/A | BO143: N/A | BP143: N/A | BQ143: N/A | BR143: N/A | BS143: N/A | BT143: N/A | BU143: N/A | BV143: N/A | BW143: N/A | BX143: N/A | BY143: N/A | BZ143: N/A | CA143: N/A
A144: Latrine emptying practices | B144: Not emptied/treated and disposed in situ | C144: N/A | D144: N/A | E144: N/A | F144: N/A | G144: N/A | H144: N/A | I144: N/A | J144: N/A | K144: N/A | L144: N/A | M144: N/A | N144: N/A | O144: N/A | P144: N/A | Q144: N/A | R144: N/A | S144: N/A | T144: N/A | U144: N/A | V144: N/A | W144: N/A | X144: N/A | Y144: N/A | Z144: N/A | AA144: N/A | BA144: Latrine emptying practices | BB144: Not emptied/treated and disposed in situ | BC144: N/A | BD144: N/A | BE144: N/A | BF144: N/A | BG144: N/A | BH144: N/A | BI144: N/A | BJ144: N/A | BK144: N/A | BL144: N/A | BM144: N/A | BN144: N/A | BO144: N/A | BP144: N/A | BQ144: N/A | BR144: N/A | BS144: N/A | BT144: N/A | BU144: N/A | BV144: N/A | BW144: N/A | BX144: N/A | BY144: N/A | BZ144: N/A | CA144: N/A
B145: Emptied and buried on site | C145: N/A | D145: N/A | E145: N/A | F145: N/A | G145: N/A | H145: N/A | I145: N/A | J145: N/A | K145: N/A | L145: N/A | M145: N/A | N145: N/A | O145: N/A | P145: N/A | Q145: N/A | R145: N/A | S145: N/A | T145: N/A | U145: N/A | V145: N/A | W145: N/A | X145: N/A | Y145: N/A | Z145: N/A | AA145: N/A | BB145: Emptied and buried on site | BC145: N/A | BD145: N/A | BE145: N/A | BF145: N/A | BG145: N/A | BH145: N/A | BI145: N/A | BJ145: N/A | BK145: N/A | BL145: N/A | BM145: N/A | BN145: N/A | BO145: N/A | BP145: N/A | BQ145: N/A | BR145: N/A | BS145: N/A | BT145: N/A | BU145: N/A | BV145: N/A | BW145: N/A | BX145: N/A | BY145: N/A | BZ145: N/A | CA145: N/A
B146: Emptied and discharged locally | C146: N/A | D146: N/A | E146: N/A | F146: N/A | G146: N/A | H146: N/A | I146: N/A | J146: N/A | K146: N/A | L146: N/A | M146: N/A | N146: N/A | O146: N/A | P146: N/A | Q146: N/A | R146: N/A | S146: N/A | T146: N/A | U146: N/A | V146: N/A | W146: N/A | X146: N/A | Y146: N/A | Z146: N/A | AA146: N/A | BB146: Emptied and discharged locally | BC146: N/A | BD146: N/A | BE146: N/A | BF146: N/A | BG146: N/A | BH146: N/A | BI146: N/A | BJ146: N/A | BK146: N/A | BL146: N/A | BM146: N/A | BN146: N/A | BO146: N/A | BP146: N/A | BQ146: N/A | BR146: N/A | BS146: N/A | BT146: N/A | BU146: N/A | BV146: N/A | BW146: N/A | BX146: N/A | BY146: N/A | BZ146: N/A | CA146: N/A
B147: Emptied and removed offsite | C147: N/A | D147: N/A | E147: N/A | F147: N/A | G147: N/A | H147: N/A | I147: N/A | J147: N/A | K147: N/A | L147: N/A | M147: N/A | N147: N/A | O147: N/A | P147: N/A | Q147: N/A | R147: N/A | S147: N/A | T147: N/A | U147: N/A | V147: N/A | W147: N/A | X147: N/A | Y147: N/A | Z147: N/A | AA147: N/A | BB147: Emptied and removed offsite | BC147: N/A | BD147: N/A | BE147: N/A | BF147: N/A | BG147: N/A | BH147: N/A | BI147: N/A | BJ147: N/A | BK147: N/A | BL147: N/A | BM147: N/A | BN147: N/A | BO147: N/A | BP147: N/A | BQ147: N/A | BR147: N/A | BS147: N/A | BT147: N/A | BU147: N/A | BV147: N/A | BW147: N/A | BX147: N/A | BY147: N/A | BZ147: N/A | CA147: N/A
A148: Shared among improved sanitation facilities | B148: Yes | C148: 6.873770773 | D148: 34.50344636 | E148: 41.99341168 | F148: 29.42784742 | G148: 8.429050302 | H148: 21.10353255 | I148: 41.38509527 | J148: 43.27424572 | K148: 24.57437653 | L148: 8.398592075 | M148: 0.8593005457 | N148: 2.340599194 | O148: 2.374607225 | P148: 8.184841688 | Q148: 14.32250522 | R148: 20.6581917 | S148: 11.66542497 | T148: 35.61172785 | U148: 13.03224447 | V148: 5.717884971 | W148: 8.537793714 | X148: 21.2983098 | Y148: 3.590553361 | Z148: 5.438089175 | AA148: 3.872341785 | BA148: Shared among improved sanitation facilities | BB148: Yes | BC148: N/A | BD148: N/A | BE148: N/A | BF148: N/A | BG148: N/A | BH148: N/A | BI148: N/A | BJ148: N/A | BK148: N/A | BL148: N/A | BM148: N/A | BN148: N/A | BO148: N/A | BP148: N/A | BQ148: N/A | BR148: N/A | BS148: N/A | BT148: N/A | BU148: N/A | BV148: N/A | BW148: N/A | BX148: N/A | BY148: N/A | BZ148: N/A | CA148: N/A
B149: No | C149: 3.889807408 | D149: 14.31349102 | E149: 28.74669631 | F149: 56.28340169 | G149: 86.91513803 | H149: 8.330569408 | I149: 19.61202399 | J149: 35.76779245 | K149: 61.06028305 | L149: 88.8783094 | M149: 0.8139502405 | N149: 1.463766775 | O149: 4.140812432 | P149: 13.95720137 | Q149: 44.29887161 | R149: 37.620745 | S149: 31.00830383 | T149: 48.91300329 | U149: 18.79666365 | V149: 16.5290239 | W149: 23.98242466 | X149: 39.01019896 | Y149: 7.557830858 | Z149: 19.14010705 | AA149: 19.63633638 | BB149: No | BC149: N/A | BD149: N/A | BE149: N/A | BF149: N/A | BG149: N/A | BH149: N/A | BI149: N/A | BJ149: N/A | BK149: N/A | BL149: N/A | BM149: N/A | BN149: N/A | BO149: N/A | BP149: N/A | BQ149: N/A | BR149: N/A | BS149: N/A | BT149: N/A | BU149: N/A | BV149: N/A | BW149: N/A | BX149: N/A | BY149: N/A | BZ149: N/A | CA149: N/A
B150: DK/missing | C150: 89.23642182 | D150: 51.18306263 | E150: 29.25989201 | F150: 14.2887509 | G150: 4.655811665 | H150: 70.56589804 | I150: 39.00288074 | J150: 20.95796183 | K150: 14.36534042 | L150: 2.723098521 | M150: 98.32674921 | N150: 96.19563403 | O150: 93.48458034 | P150: 77.85795694 | Q150: 41.37862317 | R150: 41.72106331 | S150: 57.3262712 | T150: 15.47526887 | U150: 68.17109188 | V150: 77.75309113 | W150: 67.47978163 | X150: 39.69149124 | Y150: 88.85161578 | Z150: 75.42180377 | AA150: 76.49132183 | BB150: DK/missing | BC150: N/A | BD150: N/A | BE150: N/A | BF150: N/A | BG150: N/A | BH150: N/A | BI150: N/A | BJ150: N/A | BK150: N/A | BL150: N/A | BM150: N/A | BN150: N/A | BO150: N/A | BP150: N/A | BQ150: N/A | BR150: N/A | BS150: N/A | BT150: N/A | BU150: N/A | BV150: N/A | BW150: N/A | BX150: N/A | BY150: N/A | BZ150: N/A | CA150: N/A
A151: Shared among all sanitation facilities | B151: Yes | C151: 42.69609015 | D151: 65.34695981 | E151: 59.18198188 | F151: 36.55798941 | G151: 10.43633599 | H151: 61.69327563 | I151: 67.22690642 | J151: 56.44889696 | K151: 31.58900542 | L151: 9.613267927 | M151: 20.86411584 | N151: 29.8426017 | O151: 32.03868811 | P151: 36.6269255 | Q151: 28.01550856 | R151: 42.11022137 | S151: 41.25076905 | T151: 46.13509043 | U151: 45.21968776 | V151: 35.95605739 | W151: 41.97334904 | X151: 43.03829774 | Y151: 36.47859405 | Z151: 37.12409059 | AA151: 27.28400186 | BA151: Shared among all sanitation facilities | BB151: Yes | BC151: N/A | BD151: N/A | BE151: N/A | BF151: N/A | BG151: N/A | BH151: N/A | BI151: N/A | BJ151: N/A | BK151: N/A | BL151: N/A | BM151: N/A | BN151: N/A | BO151: N/A | BP151: N/A | BQ151: N/A | BR151: N/A | BS151: N/A | BT151: N/A | BU151: N/A | BV151: N/A | BW151: N/A | BX151: N/A | BY151: N/A | BZ151: N/A | CA151: N/A
B152: No | C152: 57.05150662 | D152: 34.43759929 | E152: 40.69935833 | F152: 62.97829828 | G152: 88.52264441 | H152: 38.21666191 | I152: 32.45170314 | J152: 43.55110304 | K152: 67.32865968 | L152: 89.67228652 | M152: 79.07606314 | N152: 69.89327948 | O152: 66.78018906 | P152: 63.3730745 | Q152: 71.98449144 | R152: 57.26839801 | S152: 58.4156658 | T152: 53.30529471 | U152: 54.78031224 | V152: 64.04394261 | W152: 58.02665096 | X152: 56.68421336 | Y152: 63.42938801 | Z152: 62.60500321 | AA152: 72.60338138 | BB152: No | BC152: N/A | BD152: N/A | BE152: N/A | BF152: N/A | BG152: N/A | BH152: N/A | BI152: N/A | BJ152: N/A | BK152: N/A | BL152: N/A | BM152: N/A | BN152: N/A | BO152: N/A | BP152: N/A | BQ152: N/A | BR152: N/A | BS152: N/A | BT152: N/A | BU152: N/A | BV152: N/A | BW152: N/A | BX152: N/A | BY152: N/A | BZ152: N/A | CA152: N/A
A153: Type of toilet facility | B153: Flush to piped sewer system | C153: 0.8776004031 | D153: 7.280165558 | E153: 18.89446843 | F153: 50.47495822 | G153: 88.21095835 | H153: 4.155853651 | I153: 10.84046246 | J153: 27.40787562 | K153: 55.7383739 | L153: 91.94276569 | M153: 0 | N153: 0 | O153: 0.1560211442 | P153: 1.624074166 | Q153: 33.93564108 | R153: 29.46726004 | S153: 25.89777465 | T153: 45.59348469 | U153: 14.43745228 | V153: 11.3311049 | W153: 14.38798733 | X153: 19.17312755 | Y153: 4.59312113 | Z153: 10.99255842 | AA153: 12.90955291 | BA153: Type of toilet facility | BB153: Flush to piped sewer system | BC153: 72.046285 | BD153: 597.766269 | BE153: 1551.667824 | BF153: 4143.400382 | BG153: 7243.642524 | BH153: 287.249142 | BI153: 746.897741 | BJ153: 1900.34409 | BK153: 3850.598896 | BL153: 6359.210848 | BM153: 0 | BN153: 0 | BO153: 2.026392 | BP153: 21.067794 | BQ153: 441.128381 | BR153: 1321.170213 | BS153: 980.43358 | BT153: 10043.04953 | BU153: 192.736975 | BV153: 289.674201 | BW153: 159.49199 | BX153: 93.152316 | BY153: 67.885999 | BZ153: 164.548899 | CA153: 296.379577
B154: Ventilated Improved Pit latrine (VIP) | C154: 0.967965431 | D154: 8.190030269 | E154: 9.907416751 | F154: 7.772986821 | G154: 1.340003199 | H154: 3.118883108 | I154: 8.618701424 | J154: 11.31748105 | K154: 6.722163798 | L154: 1.383023503 | M154: 0.6197234775 | N154: 0.7110438773 | O154: 1.678481079 | P154: 4.105591252 | Q154: 5.168583964 | R154: 9.064200014 | S154: 1.036585689 | T154: 7.769594819 | U154: 1.855459567 | V154: 0.07949644269 | W154: 1.429252658 | X154: 10.78405647 | Y154: 1.653380735 | Z154: 1.492389979 | AA154: 0.6437840494 | BB154: Ventilated Improved Pit latrine (VIP) | BC154: 79.464769 | BD154: 672.474245 | BE154: 813.625419 | BF154: 638.070792 | BG154: 110.037396 | BH154: 215.574602 | BI154: 593.82048 | BJ154: 784.705408 | BK154: 464.390234 | BL154: 95.656662 | BM154: 8.046594 | BN154: 9.233877 | BO154: 21.799998 | BP154: 53.258498 | BQ154: 67.186268 | BR154: 406.395133 | BS154: 39.242886 | BT154: 1711.438074 | BU154: 24.769998 | BV154: 2.032288 | BW154: 15.84338 | BX154: 52.394156 | BY154: 24.436848 | BZ154: 22.339761 | CA154: 14.780097
B155: Pit latrine with slab | C155: 9.055436529 | D155: 33.46883069 | E155: 42.05489626 | F155: 27.46330407 | G155: 6.83372078 | H155: 22.1593652 | I155: 41.8225189 | J155: 40.31668151 | K155: 23.69563576 | L155: 4.665557839 | M155: 1.053527309 | N155: 3.129433803 | O155: 5.512068849 | P155: 16.41237764 | Q155: 19.51715179 | R155: 20.21468177 | S155: 16.03295805 | T155: 31.54200429 | U155: 15.53599627 | V155: 10.83630752 | W155: 16.70297839 | X155: 30.44583572 | Y155: 4.903821428 | Z155: 12.09324782 | AA155: 9.955341207 | BB155: Pit latrine with slab | BC155: 743.402759 | BD155: 2748.088335 | BE155: 3453.668444 | BF155: 2254.41424 | BG155: 561.166451 | BH155: 1531.636861 | BI155: 2881.532498 | BJ155: 2795.385111 | BK155: 1636.976153 | BL155: 322.692773 | BM155: 13.679176 | BN155: 40.639977 | BO155: 71.590375 | BP155: 212.904434 | BQ155: 253.702871 | BR155: 906.329105 | BS155: 606.973019 | BT155: 6947.876734 | BU155: 207.402308 | BV155: 277.024946 | BW155: 185.153851 | BX155: 147.920578 | BY155: 72.478127 | BZ155: 181.025248 | CA155: 228.556313
B156: Pit latrine without slab/open pit | C156: 68.36278147 | D156: 39.88274579 | E156: 22.93326733 | F156: 9.645638066 | G156: 2.376319319 | H156: 54.45871169 | I156: 31.28462473 | J156: 16.08552444 | K156: 8.067291632 | L156: 1.681797221 | M156: 73.78834206 | N156: 72.83054582 | O156: 70.1931061 | P156: 62.66790888 | Q156: 32.32354097 | R156: 34.13832242 | S156: 31.76079422 | T156: 10.12102232 | U156: 41.42948576 | V156: 58.60554492 | W156: 62.45207337 | X156: 34.38673531 | Y156: 84.58053334 | Z156: 72.62865261 | AA156: 67.37910957 | BB156: Pit latrine without slab/open pit | BC156: 5612.21761 | BD156: 3274.727746 | BE156: 1883.345549 | BF156: 791.793433 | BG156: 195.13684 | BH156: 3764.140781 | BI156: 2155.48143 | BJ156: 1115.301008 | BK156: 557.316299 | BL156: 116.321312 | BM156: 958.08026 | BN156: 945.804223 | BO156: 911.663284 | BP156: 812.939841 | BQ156: 420.17274 | BR156: 1530.598184 | BS156: 1202.394785 | BT156: 2229.395915 | BU156: 553.074989 | BV156: 1498.222331 | BW156: 692.286227 | BX156: 167.067372 | BY156: 1250.094182 | BZ156: 1087.186837 | CA156: 1546.900356
B157: No facility/bush/field | C157: 5.866641352 | D157: 2.506911677 | E157: 1.673971919 | F157: 1.619506573 | G157: 0.05048931023 | H157: 4.548019475 | I157: 1.422314908 | J157: 1.755192948 | K157: 1.731400117 | L157: 0 | M157: 8.162611702 | N157: 6.058554007 | O157: 4.649699685 | P157: 3.308459057 | Q157: 1.568431419 | R157: 0.977761233 | S157: 11.98433452 | T157: 1.653225216 | U157: 1.420392841 | V157: 0.7250221651 | W157: 2.796112262 | X157: 1.14229563 | Y157: 0.02977795317 | Z157: 0.4951075429 | AA157: 0.8025455988 | BB157: No facility/bush/field | BC157: 481.619782 | BD157: 205.83972 | BE157: 137.471365 | BF157: 132.942441 | BG157: 4.146044 | BH157: 314.355317 | BI157: 97.996169 | BJ157: 121.697522 | BK157: 119.611085 | BL157: 0 | BM157: 105.984725 | BN157: 78.678608 | BO157: 60.389983 | BP157: 42.91795 | BQ157: 20.387993 | BR157: 43.838111 | BS157: 453.700913 | BT157: 364.162179 | BU157: 18.961948 | BV157: 18.53484 | BW157: 30.995128 | BX157: 5.549824 | BY157: 0.440116 | BZ157: 7.411323 | CA157: 18.42497
B158: Hanging toilet/latrine | C158: 14.70910091 | D158: 8.090218329 | E158: 3.655953124 | F158: 0.9421860659 | G158: 0.3272774665 | H158: 11.44528309 | I158: 4.656506477 | J158: 2.472639545 | K158: 1.127432105 | L158: 0.03557802471 | M158: 16.37579545 | N158: 17.22606383 | O158: 17.78307649 | P158: 11.5448175 | Q158: 7.347330354 | R158: 6.124926176 | S158: 13.26865194 | T158: 1.706171661 | U158: 24.14543333 | V158: 18.42252405 | W158: 2.04032051 | X158: 4.067949324 | Y158: 4.239365412 | Z158: 2.298043618 | AA158: 8.309666661 | BB158: Hanging toilet/latrine | BC158: 1207.538274 | BD158: 664.278798 | BE158: 300.237334 | BF158: 77.342394 | BG158: 26.87513 | BH158: 791.088432 | BI158: 320.828948 | BJ158: 171.44218 | BK158: 77.886894 | BL158: 2.46075 | BM158: 212.626086 | BN158: 223.703993 | BO158: 230.965387 | BP158: 149.761533 | BQ158: 95.507727 | BR158: 274.612231 | BS158: 502.322385 | BT158: 375.824893 | BU158: 322.336496 | BV158: 470.962892 | BW158: 22.617116 | BX158: 19.764063 | BY158: 62.657515 | BZ158: 34.399685 | CA158: 190.774654
B159: Other | C159: 0.1604739087 | D159: 0.5810976925 | E159: 0.8800261852 | F159: 2.081420191 | G159: 0.8612315712 | H159: 0.1138837801 | I159: 1.354871106 | J159: 0.6446048942 | K159: 2.917702694 | L159: 0.2912777184 | M159: 0 | N159: 0.04435867122 | O159: 0.02754664884 | P159: 0.3367715063 | Q159: 0.1393204229 | R159: 0.01284834514 | S159: 0.01890092428 | T159: 1.614496999 | U159: 1.175779953 | V159: 0 | W159: 0.1912754809 | X159: 0 | Y159: 0 | Z159: 0 | AA159: 0 | BB159: Other | BC159: 13.174047 | BD159: 47.713283 | BE159: 72.270269 | BF159: 170.860116 | BG159: 70.72198 | BH159: 7.871552 | BI159: 93.349354 | BJ159: 44.694128 | BK159: 201.564954 | BL159: 20.14619 | BM159: 0 | BN159: 0.576058 | BO159: 0.357774 | BP159: 4.368663 | BQ159: 1.811022 | BR159: 0.576058 | BS159: 0.715548 | BT159: 355.631368 | BU159: 15.696417 | BV159: 0 | BW159: 2.120304 | BX159: 0 | BY159: 0 | BZ159: 0 | CA159: 0
BB160: Total | BC160: 8209.463526 | BD160: 8210.888396 | BE160: 8212.286204 | BF160: 8208.823798 | BG160: 8211.726365 | BH160: 6911.916687 | BI160: 6889.90662 | BJ160: 6933.569447 | BK160: 6908.344515 | BL160: 6916.488535 | BM160: 1298.416841 | BN160: 1298.636736 | BO160: 1298.793193 | BP160: 1297.218713 | BQ160: 1299.897002 | BR160: 4483.519035 | BS160: 3785.783116 | BT160: 22027.3787 | BU160: 1334.979131 | BV160: 2556.451498 | BW160: 1108.507996 | BX160: 485.848309 | BY160: 1477.992787 | BZ160: 1496.911753 | CA160: 2295.815967
A208: =A1026 -> Gabon
A209: =A1034 -> 2012
A210: Access to hygiene facilities
A211: by wealth quintile and sub-national region
A212: Notes:
A213: WHO/UNICEF JMP customised wealth index excludes water,
A214: sanitation and hygiene assets.
A215: Survey used for analysis: | B215: =A1025 -> DHS12
A220: Access to handwashing | C220: NATIONAL wealth index quintile | H220: URBAN wealth index quintile | M220: RURAL wealth index quintile | R220: SUB-REGIONS: | BA220: Raw numbers of respondents: | BB220: Access to handwashing | BC220: NATIONAL wealth index quintile | BH220: URBAN wealth index quintile | BM220: RURAL wealth index quintile | BR220: SUB-REGIONS:
A221: Weighted percentage (used in graphs) | C221: Poorest | D221: Poor | E221: Middle | F221: Rich | G221: Richest | H221: Poorest | I221: Poor | J221: Middle | K221: Rich | L221: Richest | M221: Poorest | N221: Poor | O221: Middle | P221: Rich | Q221: Richest | R221: Estuaire | S221: Haut-Ogooué | T221: Libreville-Port-Gentil | U221: Moyen-Ogooué | V221: Ngounié | W221: Nyanga | X221: Ogooué Maritime | Y221: Ogooué-Ivindo | Z221: Ogooué-Lolo | AA221: Woleu-Ntem | BA221: Hygiene data, raw numbers (weighted) | BC221: Poorest | BD221: Poor | BE221: Middle | BF221: Rich | BG221: Richest | BH221: Poorest | BI221: Poor | BJ221: Middle | BK221: Rich | BL221: Richest | BM221: Poorest | BN221: Poor | BO221: Middle | BP221: Rich | BQ221: Richest | BR221: Estuaire | BS221: Haut-Ogooué | BT221: Libreville-Port-Gentil | BU221: Moyen-Ogooué | BV221: Ngounié | BW221: Nyanga | BX221: Ogooué Maritime | BY221: Ogooué-Ivindo | BZ221: Ogooué-Lolo | CA221: Woleu-Ntem
A222: Hygiene ladder | B222: Basic | C222: N/A | D222: N/A | E222: N/A | F222: N/A | G222: N/A | H222: N/A | I222: N/A | J222: N/A | K222: N/A | L222: N/A | M222: N/A | N222: N/A | O222: N/A | P222: N/A | Q222: N/A | R222: N/A | S222: N/A | T222: N/A | U222: N/A | V222: N/A | W222: N/A | X222: N/A | Y222: N/A | Z222: N/A | AA222: N/A | BA222: Hygiene ladder | BB222: Basic | BC222: N/A | BD222: N/A | BE222: N/A | BF222: N/A | BG222: N/A | BH222: N/A | BI222: N/A | BJ222: N/A | BK222: N/A | BL222: N/A | BM222: N/A | BN222: N/A | BO222: N/A | BP222: N/A | BQ222: N/A | BR222: N/A | BS222: N/A | BT222: N/A | BU222: N/A | BV222: N/A | BW222: N/A | BX222: N/A | BY222: N/A | BZ222: N/A | CA222: N/A
B223: Limited | C223: N/A | D223: N/A | E223: N/A | F223: N/A | G223: N/A | H223: N/A | I223: N/A | J223: N/A | K223: N/A | L223: N/A | M223: N/A | N223: N/A | O223: N/A | P223: N/A | Q223: N/A | R223: N/A | S223: N/A | T223: N/A | U223: N/A | V223: N/A | W223: N/A | X223: N/A | Y223: N/A | Z223: N/A | AA223: N/A | BB223: Limited | BC223: N/A | BD223: N/A | BE223: N/A | BF223: N/A | BG223: N/A | BH223: N/A | BI223: N/A | BJ223: N/A | BK223: N/A | BL223: N/A | BM223: N/A | BN223: N/A | BO223: N/A | BP223: N/A | BQ223: N/A | BR223: N/A | BS223: N/A | BT223: N/A | BU223: N/A | BV223: N/A | BW223: N/A | BX223: N/A | BY223: N/A | BZ223: N/A | CA223: N/A
B224: No facility | C224: N/A | D224: N/A | E224: N/A | F224: N/A | G224: N/A | H224: N/A | I224: N/A | J224: N/A | K224: N/A | L224: N/A | M224: N/A | N224: N/A | O224: N/A | P224: N/A | Q224: N/A | R224: N/A | S224: N/A | T224: N/A | U224: N/A | V224: N/A | W224: N/A | X224: N/A | Y224: N/A | Z224: N/A | AA224: N/A | BB224: No facility | BC224: N/A | BD224: N/A | BE224: N/A | BF224: N/A | BG224: N/A | BH224: N/A | BI224: N/A | BJ224: N/A | BK224: N/A | BL224: N/A | BM224: N/A | BN224: N/A | BO224: N/A | BP224: N/A | BQ224: N/A | BR224: N/A | BS224: N/A | BT224: N/A | BU224: N/A | BV224: N/A | BW224: N/A | BX224: N/A | BY224: N/A | BZ224: N/A | CA224: N/A
BA225: Observed handwashing place | BB225: Fixed | BC225: N/A | BD225: N/A | BE225: N/A | BF225: N/A | BG225: N/A | BH225: N/A | BI225: N/A | BJ225: N/A | BK225: N/A | BL225: N/A | BM225: N/A | BN225: N/A | BO225: N/A | BP225: N/A | BQ225: N/A | BR225: N/A | BS225: N/A | BT225: N/A | BU225: N/A | BV225: N/A | BW225: N/A | BX225: N/A | BY225: N/A | BZ225: N/A | CA225: N/A
BB226: Mobile | BC226: N/A | BD226: N/A | BE226: N/A | BF226: N/A | BG226: N/A | BH226: N/A | BI226: N/A | BJ226: N/A | BK226: N/A | BL226: N/A | BM226: N/A | BN226: N/A | BO226: N/A | BP226: N/A | BQ226: N/A | BR226: N/A | BS226: N/A | BT226: N/A | BU226: N/A | BV226: N/A | BW226: N/A | BX226: N/A | BY226: N/A | BZ226: N/A | CA226: N/A
BA227: Water / Soap | BB227: Water and soap | BC227: N/A | BD227: N/A | BE227: N/A | BF227: N/A | BG227: N/A | BH227: N/A | BI227: N/A | BJ227: N/A | BK227: N/A | BL227: N/A | BM227: N/A | BN227: N/A | BO227: N/A | BP227: N/A | BQ227: N/A | BR227: N/A | BS227: N/A | BT227: N/A | BU227: N/A | BV227: N/A | BW227: N/A | BX227: N/A | BY227: N/A | BZ227: N/A | CA227: N/A
BB228: Water only | BC228: N/A | BD228: N/A | BE228: N/A | BF228: N/A | BG228: N/A | BH228: N/A | BI228: N/A | BJ228: N/A | BK228: N/A | BL228: N/A | BM228: N/A | BN228: N/A | BO228: N/A | BP228: N/A | BQ228: N/A | BR228: N/A | BS228: N/A | BT228: N/A | BU228: N/A | BV228: N/A | BW228: N/A | BX228: N/A | BY228: N/A | BZ228: N/A | CA228: N/A
BB229: Soap only | BC229: N/A | BD229: N/A | BE229: N/A | BF229: N/A | BG229: N/A | BH229: N/A | BI229: N/A | BJ229: N/A | BK229: N/A | BL229: N/A | BM229: N/A | BN229: N/A | BO229: N/A | BP229: N/A | BQ229: N/A | BR229: N/A | BS229: N/A | BT229: N/A | BU229: N/A | BV229: N/A | BW229: N/A | BX229: N/A | BY229: N/A | BZ229: N/A | CA229: N/A
BB230: Neither | BC230: N/A | BD230: N/A | BE230: N/A | BF230: N/A | BG230: N/A | BH230: N/A | BI230: N/A | BJ230: N/A | BK230: N/A | BL230: N/A | BM230: N/A | BN230: N/A | BO230: N/A | BP230: N/A | BQ230: N/A | BR230: N/A | BS230: N/A | BT230: N/A | BU230: N/A | BV230: N/A | BW230: N/A | BX230: N/A | BY230: N/A | BZ230: N/A | CA230: N/A
BA259: Raw numbers of respondents: | BB259: Menstrual health and hygiene | BC259: NATIONAL wealth index quintile | BH259: URBAN wealth index quintile | BM259: RURAL wealth index quintile | BR259: SUB-REGIONS:
BA260: MHH data, raw numbers (weighted) | BC260: Poorest | BD260: Poor | BE260: Middle | BF260: Rich | BG260: Richest | BH260: Poorest | BI260: Poor | BJ260: Middle | BK260: Rich | BL260: Richest | BM260: Poorest | BN260: Poor | BO260: Middle | BP260: Rich | BQ260: Richest | BR260: Estuaire | BS260: Haut-Ogooué | BT260: Libreville-Port-Gentil | BU260: Moyen-Ogooué | BV260: Ngounié | BW260: Nyanga | BX260: Ogooué Maritime | BY260: Ogooué-Ivindo | BZ260: Ogooué-Lolo | CA260: Woleu-Ntem
BA261: Private place to wash and change | BB261: Yes | BC261: N/A | BD261: N/A | BE261: N/A | BF261: N/A | BG261: N/A | BH261: N/A | BI261: N/A | BJ261: N/A | BK261: N/A | BL261: N/A | BM261: N/A | BN261: N/A | BO261: N/A | BP261: N/A | BQ261: N/A | BR261: N/A | BS261: N/A | BT261: N/A | BU261: N/A | BV261: N/A | BW261: N/A | BX261: N/A | BY261: N/A | BZ261: N/A | CA261: N/A
BB262: No | BC262: N/A | BD262: N/A | BE262: N/A | BF262: N/A | BG262: N/A | BH262: N/A | BI262: N/A | BJ262: N/A | BK262: N/A | BL262: N/A | BM262: N/A | BN262: N/A | BO262: N/A | BP262: N/A | BQ262: N/A | BR262: N/A | BS262: N/A | BT262: N/A | BU262: N/A | BV262: N/A | BW262: N/A | BX262: N/A | BY262: N/A | BZ262: N/A | CA262: N/A
BB263: DK/not sure/missing | BC263: N/A | BD263: N/A | BE263: N/A | BF263: N/A | BG263: N/A | BH263: N/A | BI263: N/A | BJ263: N/A | BK263: N/A | BL263: N/A | BM263: N/A | BN263: N/A | BO263: N/A | BP263: N/A | BQ263: N/A | BR263: N/A | BS263: N/A | BT263: N/A | BU263: N/A | BV263: N/A | BW263: N/A | BX263: N/A | BY263: N/A | BZ263: N/A | CA263: N/A
BA264: Use of menstrual materials | BB264: Materials reusable | BC264: N/A | BD264: N/A | BE264: N/A | BF264: N/A | BG264: N/A | BH264: N/A | BI264: N/A | BJ264: N/A | BK264: N/A | BL264: N/A | BM264: N/A | BN264: N/A | BO264: N/A | BP264: N/A | BQ264: N/A | BR264: N/A | BS264: N/A | BT264: N/A | BU264: N/A | BV264: N/A | BW264: N/A | BX264: N/A | BY264: N/A | BZ264: N/A | CA264: N/A
BB265: Materials not reusable | BC265: N/A | BD265: N/A | BE265: N/A | BF265: N/A | BG265: N/A | BH265: N/A | BI265: N/A | BJ265: N/A | BK265: N/A | BL265: N/A | BM265: N/A | BN265: N/A | BO265: N/A | BP265: N/A | BQ265: N/A | BR265: N/A | BS265: N/A | BT265: N/A | BU265: N/A | BV265: N/A | BW265: N/A | BX265: N/A | BY265: N/A | BZ265: N/A | CA265: N/A
BB266: No materials used | BC266: N/A | BD266: N/A | BE266: N/A | BF266: N/A | BG266: N/A | BH266: N/A | BI266: N/A | BJ266: N/A | BK266: N/A | BL266: N/A | BM266: N/A | BN266: N/A | BO266: N/A | BP266: N/A | BQ266: N/A | BR266: N/A | BS266: N/A | BT266: N/A | BU266: N/A | BV266: N/A | BW266: N/A | BX266: N/A | BY266: N/A | BZ266: N/A | CA266: N/A
BB267: DK/not sure/missing | BC267: N/A | BD267: N/A | BE267: N/A | BF267: N/A | BG267: N/A | BH267: N/A | BI267: N/A | BJ267: N/A | BK267: N/A | BL267: N/A | BM267: N/A | BN267: N/A | BO267: N/A | BP267: N/A | BQ267: N/A | BR267: N/A | BS267: N/A | BT267: N/A | BU267: N/A | BV267: N/A | BW267: N/A | BX267: N/A | BY267: N/A | BZ267: N/A | CA267: N/A
BA268: Use of menstrual materials with private place to wash and change | BB268: Materials reusable | BC268: N/A | BD268: N/A | BE268: N/A | BF268: N/A | BG268: N/A | BH268: N/A | BI268: N/A | BJ268: N/A | BK268: N/A | BL268: N/A | BM268: N/A | BN268: N/A | BO268: N/A | BP268: N/A | BQ268: N/A | BR268: N/A | BS268: N/A | BT268: N/A | BU268: N/A | BV268: N/A | BW268: N/A | BX268: N/A | BY268: N/A | BZ268: N/A | CA268: N/A
BB269: Materials not reusable | BC269: N/A | BD269: N/A | BE269: N/A | BF269: N/A | BG269: N/A | BH269: N/A | BI269: N/A | BJ269: N/A | BK269: N/A | BL269: N/A | BM269: N/A | BN269: N/A | BO269: N/A | BP269: N/A | BQ269: N/A | BR269: N/A | BS269: N/A | BT269: N/A | BU269: N/A | BV269: N/A | BW269: N/A | BX269: N/A | BY269: N/A | BZ269: N/A | CA269: N/A
BB270: No materials used | BC270: N/A | BD270: N/A | BE270: N/A | BF270: N/A | BG270: N/A | BH270: N/A | BI270: N/A | BJ270: N/A | BK270: N/A | BL270: N/A | BM270: N/A | BN270: N/A | BO270: N/A | BP270: N/A | BQ270: N/A | BR270: N/A | BS270: N/A | BT270: N/A | BU270: N/A | BV270: N/A | BW270: N/A | BX270: N/A | BY270: N/A | BZ270: N/A | CA270: N/A
BA271: Awareness of menstruation before menarche | BB271: Yes | BC271: N/A | BD271: N/A | BE271: N/A | BF271: N/A | BG271: N/A | BH271: N/A | BI271: N/A | BJ271: N/A | BK271: N/A | BL271: N/A | BM271: N/A | BN271: N/A | BO271: N/A | BP271: N/A | BQ271: N/A | BR271: N/A | BS271: N/A | BT271: N/A | BU271: N/A | BV271: N/A | BW271: N/A | BX271: N/A | BY271: N/A | BZ271: N/A | CA271: N/A
BB272: No | BC272: N/A | BD272: N/A | BE272: N/A | BF272: N/A | BG272: N/A | BH272: N/A | BI272: N/A | BJ272: N/A | BK272: N/A | BL272: N/A | BM272: N/A | BN272: N/A | BO272: N/A | BP272: N/A | BQ272: N/A | BR272: N/A | BS272: N/A | BT272: N/A | BU272: N/A | BV272: N/A | BW272: N/A | BX272: N/A | BY272: N/A | BZ272: N/A | CA272: N/A
BB273: DK/not sure/missing | BC273: N/A | BD273: N/A | BE273: N/A | BF273: N/A | BG273: N/A | BH273: N/A | BI273: N/A | BJ273: N/A | BK273: N/A | BL273: N/A | BM273: N/A | BN273: N/A | BO273: N/A | BP273: N/A | BQ273: N/A | BR273: N/A | BS273: N/A | BT273: N/A | BU273: N/A | BV273: N/A | BW273: N/A | BX273: N/A | BY273: N/A | BZ273: N/A | CA273: N/A
BA274: Participation in (all) activities during menstruation | BB274: Yes | BC274: N/A | BD274: N/A | BE274: N/A | BF274: N/A | BG274: N/A | BH274: N/A | BI274: N/A | BJ274: N/A | BK274: N/A | BL274: N/A | BM274: N/A | BN274: N/A | BO274: N/A | BP274: N/A | BQ274: N/A | BR274: N/A | BS274: N/A | BT274: N/A | BU274: N/A | BV274: N/A | BW274: N/A | BX274: N/A | BY274: N/A | BZ274: N/A | CA274: N/A
BB275: No | BC275: N/A | BD275: N/A | BE275: N/A | BF275: N/A | BG275: N/A | BH275: N/A | BI275: N/A | BJ275: N/A | BK275: N/A | BL275: N/A | BM275: N/A | BN275: N/A | BO275: N/A | BP275: N/A | BQ275: N/A | BR275: N/A | BS275: N/A | BT275: N/A | BU275: N/A | BV275: N/A | BW275: N/A | BX275: N/A | BY275: N/A | BZ275: N/A | CA275: N/A
BB276: DK/not sure/missing/no such activity | BC276: N/A | BD276: N/A | BE276: N/A | BF276: N/A | BG276: N/A | BH276: N/A | BI276: N/A | BJ276: N/A | BK276: N/A | BL276: N/A | BM276: N/A | BN276: N/A | BO276: N/A | BP276: N/A | BQ276: N/A | BR276: N/A | BS276: N/A | BT276: N/A | BU276: N/A | BV276: N/A | BW276: N/A | BX276: N/A | BY276: N/A | BZ276: N/A | CA276: N/A
BA277: Participation in specific activities during menstruation | BB277: Did not go to school (amongst those usually attending school) | BC277: N/A | BD277: N/A | BE277: N/A | BF277: N/A | BG277: N/A | BH277: N/A | BI277: N/A | BJ277: N/A | BK277: N/A | BL277: N/A | BM277: N/A | BN277: N/A | BO277: N/A | BP277: N/A | BQ277: N/A | BR277: N/A | BS277: N/A | BT277: N/A | BU277: N/A | BV277: N/A | BW277: N/A | BX277: N/A | BY277: N/A | BZ277: N/A | CA277: N/A
BB278: Did not go to work (amongst those who usually work) | BC278: N/A | BD278: N/A | BE278: N/A | BF278: N/A | BG278: N/A | BH278: N/A | BI278: N/A | BJ278: N/A | BK278: N/A | BL278: N/A | BM278: N/A | BN278: N/A | BO278: N/A | BP278: N/A | BQ278: N/A | BR278: N/A | BS278: N/A | BT278: N/A | BU278: N/A | BV278: N/A | BW278: N/A | BX278: N/A | BY278: N/A | BZ278: N/A | CA278: N/A
BB279: Did not participate in social activities | BC279: N/A | BD279: N/A | BE279: N/A | BF279: N/A | BG279: N/A | BH279: N/A | BI279: N/A | BJ279: N/A | BK279: N/A | BL279: N/A | BM279: N/A | BN279: N/A | BO279: N/A | BP279: N/A | BQ279: N/A | BR279: N/A | BS279: N/A | BT279: N/A | BU279: N/A | BV279: N/A | BW279: N/A | BX279: N/A | BY279: N/A | BZ279: N/A | CA279: N/A
BB280: Did not cook food | BC280: N/A | BD280: N/A | BE280: N/A | BF280: N/A | BG280: N/A | BH280: N/A | BI280: N/A | BJ280: N/A | BK280: N/A | BL280: N/A | BM280: N/A | BN280: N/A | BO280: N/A | BP280: N/A | BQ280: N/A | BR280: N/A | BS280: N/A | BT280: N/A | BU280: N/A | BV280: N/A | BW280: N/A | BX280: N/A | BY280: N/A | BZ280: N/A | CA280: N/A
BB281: Did not eat with others | BC281: N/A | BD281: N/A | BE281: N/A | BF281: N/A | BG281: N/A | BH281: N/A | BI281: N/A | BJ281: N/A | BK281: N/A | BL281: N/A | BM281: N/A | BN281: N/A | BO281: N/A | BP281: N/A | BQ281: N/A | BR281: N/A | BS281: N/A | BT281: N/A | BU281: N/A | BV281: N/A | BW281: N/A | BX281: N/A | BY281: N/A | BZ281: N/A | CA281: N/A
BB282: Did not bathe in regular place | BC282: N/A | BD282: N/A | BE282: N/A | BF282: N/A | BG282: N/A | BH282: N/A | BI282: N/A | BJ282: N/A | BK282: N/A | BL282: N/A | BM282: N/A | BN282: N/A | BO282: N/A | BP282: N/A | BQ282: N/A | BR282: N/A | BS282: N/A | BT282: N/A | BU282: N/A | BV282: N/A | BW282: N/A | BX282: N/A | BY282: N/A | BZ282: N/A | CA282: N/A
BB283: Did not participate in other activities | BC283: N/A | BD283: N/A | BE283: N/A | BF283: N/A | BG283: N/A | BH283: N/A | BI283: N/A | BJ283: N/A | BK283: N/A | BL283: N/A | BM283: N/A | BN283: N/A | BO283: N/A | BP283: N/A | BQ283: N/A | BR283: N/A | BS283: N/A | BT283: N/A | BU283: N/A | BV283: N/A | BW283: N/A | BX283: N/A | BY283: N/A | BZ283: N/A | CA283: N/A
BB284: DK/not sure/missing/no such activity | BC284: N/A | BD284: N/A | BE284: N/A | BF284: N/A | BG284: N/A | BH284: N/A | BI284: N/A | BJ284: N/A | BK284: N/A | BL284: N/A | BM284: N/A | BN284: N/A | BO284: N/A | BP284: N/A | BQ284: N/A | BR284: N/A | BS284: N/A | BT284: N/A | BU284: N/A | BV284: N/A | BW284: N/A | BX284: N/A | BY284: N/A | BZ284: N/A | CA284: N/A
BA339: Raw numbers of respondents: | BB339: Basic water, sanitation and hygiene | BC339: NATIONAL wealth index quintile | BH339: URBAN wealth index quintile | BM339: RURAL wealth index quintile | BR339: SUB-REGIONS:
BA340: WatSan data, raw numbers (weighted) | BC340: Poorest | BD340: Poor | BE340: Middle | BF340: Rich | BG340: Richest | BH340: Poorest | BI340: Poor | BJ340: Middle | BK340: Rich | BL340: Richest | BM340: Poorest | BN340: Poor | BO340: Middle | BP340: Rich | BQ340: Richest | BR340: Estuaire | BS340: Haut-Ogooué | BT340: Libreville-Port-Gentil | BU340: Moyen-Ogooué | BV340: Ngounié | BW340: Nyanga | BX340: Ogooué Maritime | BY340: Ogooué-Ivindo | BZ340: Ogooué-Lolo | CA340: Woleu-Ntem
BA341: Use of Basic Water Sanitation and Hygiene | BB341: Yes | BC341: N/A | BD341: N/A | BE341: N/A | BF341: N/A | BG341: N/A | BH341: N/A | BI341: N/A | BJ341: N/A | BK341: N/A | BL341: N/A | BM341: N/A | BN341: N/A | BO341: N/A | BP341: N/A | BQ341: N/A | BR341: N/A | BS341: N/A | BT341: N/A | BU341: N/A | BV341: N/A | BW341: N/A | BX341: N/A | BY341: N/A | BZ341: N/A | CA341: N/A
BB342: No | BC342: N/A | BD342: N/A | BE342: N/A | BF342: N/A | BG342: N/A | BH342: N/A | BI342: N/A | BJ342: N/A | BK342: N/A | BL342: N/A | BM342: N/A | BN342: N/A | BO342: N/A | BP342: N/A | BQ342: N/A | BR342: N/A | BS342: N/A | BT342: N/A | BU342: N/A | BV342: N/A | BW342: N/A | BX342: N/A | BY342: N/A | BZ342: N/A | CA342: N/A
BA343: Use of Basic Water and Sanitation | BB343: Yes | BC343: N/A | BD343: N/A | BE343: N/A | BF343: N/A | BG343: N/A | BH343: N/A | BI343: N/A | BJ343: N/A | BK343: N/A | BL343: N/A | BM343: N/A | BN343: N/A | BO343: N/A | BP343: N/A | BQ343: N/A | BR343: N/A | BS343: N/A | BT343: N/A | BU343: N/A | BV343: N/A | BW343: N/A | BX343: N/A | BY343: N/A | BZ343: N/A | CA343: N/A
BB344: No | BC344: N/A | BD344: N/A | BE344: N/A | BF344: N/A | BG344: N/A | BH344: N/A | BI344: N/A | BJ344: N/A | BK344: N/A | BL344: N/A | BM344: N/A | BN344: N/A | BO344: N/A | BP344: N/A | BQ344: N/A | BR344: N/A | BS344: N/A | BT344: N/A | BU344: N/A | BV344: N/A | BW344: N/A | BX344: N/A | BY344: N/A | BZ344: N/A | CA344: N/A
BA345: Use of Basic Water and Hygiene | BB345: Yes | BC345: N/A | BD345: N/A | BE345: N/A | BF345: N/A | BG345: N/A | BH345: N/A | BI345: N/A | BJ345: N/A | BK345: N/A | BL345: N/A | BM345: N/A | BN345: N/A | BO345: N/A | BP345: N/A | BQ345: N/A | BR345: N/A | BS345: N/A | BT345: N/A | BU345: N/A | BV345: N/A | BW345: N/A | BX345: N/A | BY345: N/A | BZ345: N/A | CA345: N/A
BB346: No | BC346: N/A | BD346: N/A | BE346: N/A | BF346: N/A | BG346: N/A | BH346: N/A | BI346: N/A | BJ346: N/A | BK346: N/A | BL346: N/A | BM346: N/A | BN346: N/A | BO346: N/A | BP346: N/A | BQ346: N/A | BR346: N/A | BS346: N/A | BT346: N/A | BU346: N/A | BV346: N/A | BW346: N/A | BX346: N/A | BY346: N/A | BZ346: N/A | CA346: N/A
BA347: Use of Basic Sanitation and Hygiene | BB347: Yes | BC347: N/A | BD347: N/A | BE347: N/A | BF347: N/A | BG347: N/A | BH347: N/A | BI347: N/A | BJ347: N/A | BK347: N/A | BL347: N/A | BM347: N/A | BN347: N/A | BO347: N/A | BP347: N/A | BQ347: N/A | BR347: N/A | BS347: N/A | BT347: N/A | BU347: N/A | BV347: N/A | BW347: N/A | BX347: N/A | BY347: N/A | BZ347: N/A | CA347: N/A
BB348: No | BC348: N/A | BD348: N/A | BE348: N/A | BF348: N/A | BG348: N/A | BH348: N/A | BI348: N/A | BJ348: N/A | BK348: N/A | BL348: N/A | BM348: N/A | BN348: N/A | BO348: N/A | BP348: N/A | BQ348: N/A | BR348: N/A | BS348: N/A | BT348: N/A | BU348: N/A | BV348: N/A | BW348: N/A | BX348: N/A | BY348: N/A | BZ348: N/A | CA348: N/A
BA349: Use of Basic Water | BB349: Yes | BC349: N/A | BD349: N/A | BE349: N/A | BF349: N/A | BG349: N/A | BH349: N/A | BI349: N/A | BJ349: N/A | BK349: N/A | BL349: N/A | BM349: N/A | BN349: N/A | BO349: N/A | BP349: N/A | BQ349: N/A | BR349: N/A | BS349: N/A | BT349: N/A | BU349: N/A | BV349: N/A | BW349: N/A | BX349: N/A | BY349: N/A | BZ349: N/A | CA349: N/A
BB350: No | BC350: N/A | BD350: N/A | BE350: N/A | BF350: N/A | BG350: N/A | BH350: N/A | BI350: N/A | BJ350: N/A | BK350: N/A | BL350: N/A | BM350: N/A | BN350: N/A | BO350: N/A | BP350: N/A | BQ350: N/A | BR350: N/A | BS350: N/A | BT350: N/A | BU350: N/A | BV350: N/A | BW350: N/A | BX350: N/A | BY350: N/A | BZ350: N/A | CA350: N/A
BA351: Use of Basic Sanitation | BB351: Yes | BC351: N/A | BD351: N/A | BE351: N/A | BF351: N/A | BG351: N/A | BH351: N/A | BI351: N/A | BJ351: N/A | BK351: N/A | BL351: N/A | BM351: N/A | BN351: N/A | BO351: N/A | BP351: N/A | BQ351: N/A | BR351: N/A | BS351: N/A | BT351: N/A | BU351: N/A | BV351: N/A | BW351: N/A | BX351: N/A | BY351: N/A | BZ351: N/A | CA351: N/A
BB352: No | BC352: N/A | BD352: N/A | BE352: N/A | BF352: N/A | BG352: N/A | BH352: N/A | BI352: N/A | BJ352: N/A | BK352: N/A | BL352: N/A | BM352: N/A | BN352: N/A | BO352: N/A | BP352: N/A | BQ352: N/A | BR352: N/A | BS352: N/A | BT352: N/A | BU352: N/A | BV352: N/A | BW352: N/A | BX352: N/A | BY352: N/A | BZ352: N/A | CA352: N/A
BA353: Access to Basic Hygiene | BB353: Yes | BC353: N/A | BD353: N/A | BE353: N/A | BF353: N/A | BG353: N/A | BH353: N/A | BI353: N/A | BJ353: N/A | BK353: N/A | BL353: N/A | BM353: N/A | BN353: N/A | BO353: N/A | BP353: N/A | BQ353: N/A | BR353: N/A | BS353: N/A | BT353: N/A | BU353: N/A | BV353: N/A | BW353: N/A | BX353: N/A | BY353: N/A | BZ353: N/A | CA353: N/A
BB354: No | BC354: N/A | BD354: N/A | BE354: N/A | BF354: N/A | BG354: N/A | BH354: N/A | BI354: N/A | BJ354: N/A | BK354: N/A | BL354: N/A | BM354: N/A | BN354: N/A | BO354: N/A | BP354: N/A | BQ354: N/A | BR354: N/A | BS354: N/A | BT354: N/A | BU354: N/A | BV354: N/A | BW354: N/A | BX354: N/A | BY354: N/A | BZ354: N/A | CA354: N/A
C399: INITIAL (national) Wealth Index | H399: URBAN Wealth Index | M399: RURAL Wealth Index
C400: Component Matrix | H400: Component Matrix | M400: Component Matrix
E401: Component | J401: Component | O401: Component
B402: Note: The INITIAL (national) Wealth Index is based on the first component of the Principal Component Analysis (PCA) which has been obtained at national level. The final national-level (NATIONAL) Wealth Index is based on the URBAN and RURAL specific wealth indexes. Regression procedures are used to establish the relationships between the two sets of scores (urban and rural) and the initial (national) wealth factors. This allows best use of the available information for each area and a better precision of the FINAL (NATIONAL) Wealth Index. For dependency reasons, all WASH variables (contained in the generic MICS and DHS scripts) have been excluded from the sets of asset variables used in the PCAs. The PCA can extracts as many components as there are asset variables in the input. Only the first of the components is used to represent the Wealth Index. The scores represent the weights of the asset variables on the Wealth Index (correlations between the variables and the component). The communalities are the proportion of each variable's variance that can be explained by the component. Proportion of explained variance is the part of the model's total variance that is explained by the component. For more information on the procedure used: The DHS Wealth Index, DHS Comparative Reports No. 6, Shea Oscar Rutstein, Kiersten Johnson, ORC Macro International Inc., 2004. The DHS Wealth Index: Approaches for Rural and Urban Areas, Shea O. Rutstein, ORC Macro International Inc., 2008. MICS Methodological Paper No. 4, Review of options for reporting water, sanitation and hygiene coverage by wealth quintile, UNICEF, 2016. | E402: 1 | J402: 1 | O402: 1
C403: Has television | E403: 0.7587770547 | H403: Tin roof without ceiling | J403: -0.6768299823 | M403: Has television | O403: 0.75215271
C404: LPG, natural gas for cooking | E404: 0.7532154489 | H404: Tin roof with ceiling | J404: 0.6593089683 | M404: LPG, natural gas for cooking | O404: 0.7315849496
C405: Has has Fan | E405: 0.7275063905 | H405: Has antenna / decoder | J405: 0.6105462841 | M405: Has DVD/VCD reader | O405: 0.712052352
C406: Wood for cooking | E406: -0.7194186704 | H406: Ceramic tile floor | J406: 0.5973730244 | M406: Has freezer | O406: 0.6892818513
C407: Has DVD/VCD reader | E407: 0.6902183499 | H407: Has stove (gas, electric) | J407: 0.5959402706 | M407: Has has Fan | O407: 0.6808911644
C408: Earth, sand, dung floor | E408: -0.6854369899 | H408: Has refrigerator | J408: 0.5832323531 | M408: Wood for cooking | O408: -0.6566049294
C409: Tin roof with ceiling | E409: 0.6785247214 | H409: Has bank account | J409: 0.5556626272 | M409: Earth, sand, dung floor | O409: -0.6510124882
C410: Has electricity | E410: 0.6769210996 | H410: LPG, natural gas for cooking | J410: 0.5508587742 | M410: Has antenna / decoder | O410: 0.6293691976
C411: Has iron | E411: 0.6321368934 | H411: Parpaing/Cement walls | J411: 0.545105065 | M411: Tin roof with ceiling | O411: 0.5977942968
C412: Has freezer | E412: 0.6321188523 | H412: Has has Fan | J412: 0.533423711 | M412: Has electricity | O412: 0.587812502
C413: Tin roof without ceiling | E413: -0.627345117 | H413: Wood for cooking | J413: -0.5141774079 | M413: Has iron | O413: 0.5679328531
C414: Has antenna / decoder | E414: 0.6263257727 | H414: Has television | J414: 0.5070645264 | M414: Has stove (gas, electric) | O414: 0.5425052064
C415: Has stove (gas, electric) | E415: 0.5950262712 | H415: Has air conditioner | J415: 0.5039205238 | M415: Has refrigerator | O415: 0.5008576418
C416: Has refrigerator | E416: 0.5937081916 | H416: Has watch | J416: 0.4975369731 | M416: Has mobile telephone | O416: 0.4806528905
C417: Parpaing/Cement walls | E417: 0.5833115454 | H417: Earth, sand, dung floor | J417: -0.4905302731 | M417: Has oil lamp | O417: -0.4804842858
C418: Has bank account | E418: 0.5500903585 | H418: Has iron | J418: 0.4877492136 | M418: Has bank account | O418: 0.4788435989
C419: Has oil lamp | E419: -0.5451655014 | H419: Has DVD/VCD reader | J419: 0.4875323453 | M419: Has HIFI | O419: 0.4748222868
... 270 more rows

Sheet data_summary
A1: iso3 | B1: year | C1: data_source | D1: row | E1: var1 | F1: var2 | G1: varname | H1: total_q1 | I1: total_q2 | J1: total_q3 | K1: total_q4 | L1: total_q5 | M1: urban_q1 | N1: urban_q2 | O1: urban_q3 | P1: urban_q4 | Q1: urban_q5 | R1: rural_q1 | S1: rural_q2 | T1: rural_q3 | U1: rural_q4 | V1: rural_q5 | W1: region_1_name | X1: region_2_name | Y1: region_3_name | Z1: region_4_name | AA1: region_5_name | AB1: region_6_name | AC1: region_7_name | AD1: region_8_name | AE1: region_9_name | AF1: region_10_name | AG1: region_1 | AH1: region_2 | AI1: region_3 | AJ1: region_4 | AK1: region_5 | AL1: region_6 | AM1: region_7 | AN1: region_8 | AO1: region_9 | AP1: region_10 | AQ1: n_total_q1 | AR1: n_total_q2 | AS1: n_total_q3 | AT1: n_total_q4 | AU1: n_total_q5 | AV1: n_urban_q1 | AW1: n_urban_q2 | AX1: n_urban_q3 | AY1: n_urban_q4 | AZ1: n_urban_q5 | BA1: n_rural_q1 | BB1: n_rural_q2 | BC1: n_rural_q3 | BD1: n_rural_q4 | BE1: n_rural_q5 | BF1: n_region_1 | BG1: n_region_2 | BH1: n_region_3 | BI1: n_region_4 | BJ1: n_region_5 | BK1: n_region_6 | BL1: n_region_7 | BM1: n_region_8 | BN1: n_region_9 | BO1: n_region_10
A2: GAB | B2: 2000 | C2: GAB_2000_DHS | D2: 16 | E2: Water | F2: Improved | G2: w_imp | H2: 46.32688545 | I2: 75.13448138 | J2: 94.32504147 | K2: 97.30821426 | L2: 99.26257785 | M2: 80.58434409 | N2: 96.25590965 | O2: 97.84580616 | P2: 99.35960897 | Q2: 99.4421784 | R2: 41.76310454 | S2: 40.33896128 | T2: 42.72680499 | U2: 49.4650038 | V2: 67.12203659 | W2: Big cities | X2: East (Haut-Ogoou‚ & Ogoou‚-Lolo) | Y2: North (Ogoou‚-Ivindo & Woleu-Ntem) | Z2: South (Ngouni‚, Nyanga) | AA2: West (Estuaire, Moyen-Ogoou‚ & Ogoou‚-maritime) | AG2: 99.84348798 | AH2: 72.24051058 | AI2: 55.05537119 | AJ2: 65.0447252 | AK2: 67.01425099
A3: GAB | B3: 2000 | C3: GAB_2000_DHS | D3: 17 | E3: Water | F3: Not Improved | H3: 53.67311455 | I3: 24.86551862 | J3: 5.674958526 | K3: 2.691785736 | L3: 0.73742215 | M3: 19.41565591 | N3: 3.744090346 | O3: 2.154193843 | P3: 0.6403910271 | Q3: 0.5578216036 | R3: 58.23689546 | S3: 59.66103872 | T3: 57.27319501 | U3: 50.5349962 | V3: 32.87796341 | W3: Big cities | X3: East (Haut-Ogoou‚ & Ogoou‚-Lolo) | Y3: North (Ogoou‚-Ivindo & Woleu-Ntem) | Z3: South (Ngouni‚, Nyanga) | AA3: West (Estuaire, Moyen-Ogoou‚ & Ogoou‚-maritime) | AG3: 0.1565120179 | AH3: 27.75948942 | AI3: 44.94462881 | AJ3: 34.9552748 | AK3: 32.98574901
A4: GAB | B4: 2000 | C4: GAB_2000_DHS | D4: 18 | E4: Water ladder | F4: Basic | G4: w_bas | H4: 34.23556834 | I4: 65.3669988 | J4: 89.23148923 | K4: 93.41588569 | L4: 96.97953856 | M4: 61.88877626 | N4: 88.94046052 | O4: 94.32335714 | P4: 96.18010149 | Q4: 96.95612394 | R4: 31.3223284 | S4: 32.1904911 | T4: 30.67784599 | U4: 40.11611808 | V4: 57.52358536 | W4: Big cities | X4: East (Haut-Ogoou‚ & Ogoou‚-Lolo) | Y4: North (Ogoou‚-Ivindo & Woleu-Ntem) | Z4: South (Ngouni‚, Nyanga) | AA4: West (Estuaire, Moyen-Ogoou‚ & Ogoou‚-maritime)
A5: GAB | B5: 2000 | C5: GAB_2000_DHS | D5: 19 | E5: Water ladder | F5: Limited | G5: w_lim | H5: 12.0913171 | I5: 9.767482579 | J5: 5.09355224 | K5: 3.892328571 | L5: 2.283039291 | M5: 18.69556783 | N5: 7.315449134 | O5: 3.522449022 | P5: 3.179507487 | Q5: 2.48605446 | R5: 10.44077613 | S5: 8.148470179 | T5: 12.04895901 | U5: 9.348885718 | V5: 9.598451233 | W5: Big cities | X5: East (Haut-Ogoou‚ & Ogoou‚-Lolo) | Y5: North (Ogoou‚-Ivindo & Woleu-Ntem) | Z5: South (Ngouni‚, Nyanga) | AA5: West (Estuaire, Moyen-Ogoou‚ & Ogoou‚-maritime)
A6: GAB | B6: 2000 | C6: GAB_2000_DHS | D6: 20 | E6: Water ladder | F6: Unimproved | G6: w_unimp | H6: 17.28729 | I6: 11.1473138 | J6: 3.573717737 | K6: 1.563257332 | L6: 0.648737147 | M6: 10.81594519 | N6: 2.804172394 | O6: 1.652418009 | P6: 0.4884310758 | Q6: 0.4759185718 | R6: 16.83788389 | S6: 18.6731307 | T6: 16.01565191 | U6: 20.19537329 | V6: 12.86256302 | W6: Big cities | X6: East (Haut-Ogoou‚ & Ogoou‚-Lolo) | Y6: North (Ogoou‚-Ivindo & Woleu-Ntem) | Z6: South (Ngouni‚, Nyanga) | AA6: West (Estuaire, Moyen-Ogoou‚ & Ogoou‚-maritime)
A7: GAB | B7: 2000 | C7: GAB_2000_DHS | D7: 21 | E7: Water ladder | F7: Surface water | G7: w_sur | H7: 36.38582456 | I7: 13.71820482 | J7: 2.101240789 | K7: 1.128528403 | L7: 0.08868500301 | M7: 8.599710719 | N7: 0.9399179527 | O7: 0.5017758334 | P7: 0.1519599512 | Q7: 0.08190303178 | R7: 41.39901157 | S7: 40.98790802 | T7: 41.25754309 | U7: 30.33962291 | V7: 20.01540039 | W7: Big cities | X7: East (Haut-Ogoou‚ & Ogoou‚-Lolo) | Y7: North (Ogoou‚-Ivindo & Woleu-Ntem) | Z7: South (Ngouni‚, Nyanga) | AA7: West (Estuaire, Moyen-Ogoou‚ & Ogoou‚-maritime)
A8: GAB | B8: 2000 | C8: GAB_2000_DHS | D8: 29 | E8: Piped water | F8: Yes | G8: w_pip | H8: 19.0636739 | I8: 61.80664233 | J8: 90.60797753 | K8: 95.79937366 | L8: 98.67506258 | M8: 72.49975507 | N8: 94.92672143 | O8: 96.49005218 | P8: 99.02749501 | Q8: 98.8554933 | R8: 11.91089334 | S8: 8.972570047 | T8: 11.20931752 | U8: 20.2392526 | V8: 45.40952401 | W8: Big cities | X8: East (Haut-Ogoou‚ & Ogoou‚-Lolo) | Y8: North (Ogoou‚-Ivindo & Woleu-Ntem) | Z8: South (Ngouni‚, Nyanga) | AA8: West (Estuaire, Moyen-Ogoou‚ & Ogoou‚-maritime) | AG8: 99.51971406 | AH8: 64.70814845 | AI8: 23.07217414 | AJ8: 42.48040798 | AK8: 54.43535097
A9: GAB | B9: 2000 | C9: GAB_2000_DHS | D9: 30 | E9: Piped water | F9: No | H9: 80.9363261 | I9: 38.19335767 | J9: 9.392022467 | K9: 4.200626344 | L9: 1.324937418 | M9: 27.50024493 | N9: 5.07327857 | O9: 3.509947818 | P9: 0.9725049894 | Q9: 1.144506702 | R9: 88.08910666 | S9: 91.02742995 | T9: 88.79068248 | U9: 79.7607474 | V9: 54.59047599 | W9: Big cities | X9: East (Haut-Ogoou‚ & Ogoou‚-Lolo) | Y9: North (Ogoou‚-Ivindo & Woleu-Ntem) | Z9: South (Ngouni‚, Nyanga) | AA9: West (Estuaire, Moyen-Ogoou‚ & Ogoou‚-maritime) | AG9: 0.4802859377 | AH9: 35.29185155 | AI9: 76.92782586 | AJ9: 57.51959202 | AK9: 45.56464903
A10: GAB | B10: 2000 | C10: GAB_2000_DHS | D10: 31 | E10: Piped water on premises | F10: Yes | G10: w_pop | H10: 3.195114788 | I10: 17.57516008 | J10: 41.28292204 | K10: 59.91956954 | L10: 92.99220981 | M10: 17.18615468 | N10: 38.00951309 | O10: 52.79017709 | P10: 73.65404674 | Q10: 94.33801903 | R10: 2.743821227 | S10: 1.464679327 | T10: 2.450238508 | U10: 6.95167525 | V10: 30.05701412 | W10: Big cities | X10: East (Haut-Ogoou‚ & Ogoou‚-Lolo) | Y10: North (Ogoou‚-Ivindo & Woleu-Ntem) | Z10: South (Ngouni‚, Nyanga) | AA10: West (Estuaire, Moyen-Ogoou‚ & Ogoou‚-maritime) | AG10: 62.30313861 | AH10: 40.57390947 | AI10: 11.23633035 | AJ10: 11.4647293 | AK10: 26.82172852
A11: GAB | B11: 2000 | C11: GAB_2000_DHS | D11: 32 | E11: Piped water on premises | F11: No | H11: 96.80488521 | I11: 82.42483992 | J11: 58.71707796 | K11: 40.08043046 | L11: 7.007790188 | M11: 82.81384532 | N11: 61.99048691 | O11: 47.20982291 | P11: 26.34595326 | Q11: 5.661980969 | R11: 97.25617877 | S11: 98.53532067 | T11: 97.54976149 | U11: 93.04832475 | V11: 69.94298588 | W11: Big cities | X11: East (Haut-Ogoou‚ & Ogoou‚-Lolo) | Y11: North (Ogoou‚-Ivindo & Woleu-Ntem) | Z11: South (Ngouni‚, Nyanga) | AA11: West (Estuaire, Moyen-Ogoou‚ & Ogoou‚-maritime) | AG11: 37.69686139 | AH11: 59.42609053 | AI11: 88.76366965 | AJ11: 88.5352707 | AK11: 73.17827148
A12: GAB | B12: 2000 | C12: GAB_2000_DHS | D12: 35 | E12: Water source on premises | F12: Yes | H12: 3.98418846 | I12: 20.48627526 | J12: 48.85555259 | K12: 64.65845814 | L12: 94.17669813 | M12: 20.28978101 | N12: 45.50779527 | O12: 57.95394316 | P12: 77.89105576 | Q12: 95.31623085 | R12: 3.2125602 | S12: 2.716844915 | T12: 3.197544223 | U12: 8.294409041 | V12: 32.13245773 | W12: Big cities | X12: East (Haut-Ogoou‚ & Ogoou‚-Lolo) | Y12: North (Ogoou‚-Ivindo & Woleu-Ntem) | Z12: South (Ngouni‚, Nyanga) | AA12: West (Estuaire, Moyen-Ogoou‚ & Ogoou‚-maritime) | AG12: 67.6057919 | AH12: 42.61582458 | AI12: 12.33673791 | AJ12: 12.0900611 | AK12: 29.65669745
A13: GAB | B13: 2000 | C13: GAB_2000_DHS | D13: 36 | E13: Water source on premises | F13: No | H13: 96.01581154 | I13: 79.51372474 | J13: 51.14444741 | K13: 35.34154186 | L13: 5.823301867 | M13: 79.71021899 | N13: 54.49220473 | O13: 42.04605684 | P13: 22.10894424 | Q13: 4.683769151 | R13: 96.7874398 | S13: 97.28315508 | T13: 96.80245578 | U13: 91.70559096 | V13: 67.86754227 | W13: Big cities | X13: East (Haut-Ogoou‚ & Ogoou‚-Lolo) | Y13: North (Ogoou‚-Ivindo & Woleu-Ntem) | Z13: South (Ngouni‚, Nyanga) | AA13: West (Estuaire, Moyen-Ogoou‚ & Ogoou‚-maritime) | AG13: 32.3942081 | AH13: 57.38417542 | AI13: 87.66326209 | AJ13: 87.9099389 | AK13: 70.34330255
A14: GAB | B14: 2000 | C14: GAB_2000_DHS | D14: 41 | E14: Water point at more than 30 minutes | F14: Yes | H14: 17.68947563 | I14: 11.37014148 | J14: 4.903448901 | K14: 3.197431254 | L14: 0.4282420706 | M14: 12.61984562 | N14: 4.99126828 | O14: 3.500022688 | P14: 1.15908817 | Q14: 0.5116481844 | R14: 11.66297959 | S14: 16.98614209 | T14: 21.5187945 | U14: 17.50289614 | V14: 12.10816286 | W14: Big cities | X14: East (Haut-Ogoou‚ & Ogoou‚-Lolo) | Y14: North (Ogoou‚-Ivindo & Woleu-Ntem) | Z14: South (Ngouni‚, Nyanga) | AA14: West (Estuaire, Moyen-Ogoou‚ & Ogoou‚-maritime) | AG14: 2.413289932 | AH14: 12.91486678 | AI14: 7.974012482 | AJ14: 15.10282096 | AK14: 15.41429925
A15: GAB | B15: 2000 | C15: GAB_2000_DHS | D15: 42 | E15: Water point at more than 30 minutes | F15: No | G15: w_30min | H15: 82.31052437 | I15: 88.62985852 | J15: 95.0965511 | K15: 96.80256875 | L15: 99.57175793 | M15: 87.38015438 | N15: 95.00873172 | O15: 96.49997731 | P15: 98.84091183 | Q15: 99.48835182 | R15: 88.33702041 | S15: 83.01385791 | T15: 78.4812055 | U15: 82.49710386 | V15: 87.89183714 | W15: Big cities | X15: East (Haut-Ogoou‚ & Ogoou‚-Lolo) | Y15: North (Ogoou‚-Ivindo & Woleu-Ntem) | Z15: South (Ngouni‚, Nyanga) | AA15: West (Estuaire, Moyen-Ogoou‚ & Ogoou‚-maritime) | AG15: 97.58671007 | AH15: 87.08513322 | AI15: 92.02598752 | AJ15: 84.89717904 | AK15: 84.58570075
A16: GAB | B16: 2000 | C16: GAB_2000_DHS | D16: 58 | E16: Source of drinking water | F16: Piped into residence/yard/plot | H16: 3.198814982 | I16: 17.59734775 | J16: 41.37511913 | K16: 59.91956954 | L16: 92.99220981 | M16: 17.21604354 | N16: 38.00951309 | O16: 52.95400709 | P16: 73.65404674 | Q16: 94.33801903 | R16: 2.743821227 | S16: 1.464679327 | T16: 2.450238508 | U16: 6.981696692 | V16: 30.05701412 | W16: Big cities | X16: East (Haut-Ogoou‚ & Ogoou‚-Lolo) | Y16: North (Ogoou‚-Ivindo & Woleu-Ntem) | Z16: South (Ngouni‚, Nyanga) | AA16: West (Estuaire, Moyen-Ogoou‚ & Ogoou‚-maritime) | AG16: 62.3588597 | AH16: 40.67037736 | AI16: 11.23633035 | AJ16: 11.4796145 | AK16: 26.82172852
A17: GAB | B17: 2000 | C17: GAB_2000_DHS | D17: 59 | E17: Source of drinking water | F17: Public tap | H17: 15.88693615 | I17: 44.28732204 | J17: 49.43521307 | K17: 35.87980411 | L17: 5.68285277 | M17: 55.40979765 | N17: 56.91720834 | O17: 43.83549408 | P17: 25.37344827 | Q17: 4.517474267 | R17: 9.167072113 | S17: 7.50789072 | T17: 8.759079013 | U17: 13.34496096 | V17: 15.3525099 | W17: Big cities | X17: East (Haut-Ogoou‚ & Ogoou‚-Lolo) | Y17: North (Ogoou‚-Ivindo & Woleu-Ntem) | Z17: South (Ngouni‚, Nyanga) | AA17: West (Estuaire, Moyen-Ogoou‚ & Ogoou‚-maritime) | AG17: 37.24986026 | AH17: 24.19162018 | AI17: 11.83584379 | AJ17: 31.0559478 | AK17: 27.61362245
A18: GAB | B18: 2000 | C18: GAB_2000_DHS | D18: 60 | E18: Source of drinking water | F18: Protected well in yard/plot | H18: 1.49102495 | I18: 0.904739076 | J18: 0.217928802 | K18: 0.1956875089 | L18: 0.09668036507 | M18: 0.8462763774 | N18: 0 | O18: 0 | P18: 0.02580651943 | Q18: 0.1310448509 | R18: 1.386613838 | S18: 1.32507523 | T18: 1.812237633 | U18: 2.191760285 | V18: 1.503546115 | W18: Big cities | X18: East (Haut-Ogoou‚ & Ogoou‚-Lolo) | Y18: North (Ogoou‚-Ivindo & Woleu-Ntem) | Z18: South (Ngouni‚, Nyanga) | AA18: West (Estuaire, Moyen-Ogoou‚ & Ogoou‚-maritime) | AG18: 0.1117942985 | AH18: 0.4935293736 | AI18: 1.885990501 | AJ18: 0.3406863916 | AK18: 1.453695348
A19: GAB | B19: 2000 | C19: GAB_2000_DHS | D19: 61 | E19: Source of drinking water | F19: Public protected well | H19: 13.7095335 | I19: 5.563789236 | J19: 1.097745956 | K19: 0.6756295085 | L19: 0 | M19: 1.713858016 | N19: 0.2738706776 | O19: 0.01323368416 | P19: 0.1795408994 | Q19: 0 | R19: 14.25593179 | S19: 18.31636639 | T19: 17.41455534 | U19: 13.16331138 | V19: 10.87757975 | W19: Big cities | X19: East (Haut-Ogoou‚ & Ogoou‚-Lolo) | Y19: North (Ogoou‚-Ivindo & Woleu-Ntem) | Z19: South (Ngouni‚, Nyanga) | AA19: West (Estuaire, Moyen-Ogoou‚ & Ogoou‚-maritime) | AG19: 0 | AH19: 1.288934828 | AI19: 14.88730445 | AJ19: 16.14677717 | AK19: 3.221810396
A20: GAB | B20: 2000 | C20: GAB_2000_DHS | D20: 62 | E20: Source of drinking water | F20: Open well in yard/plot | H20: 1.655070473 | I20: 1.059428624 | J20: 0.8165198998 | K20: 0.5869033782 | L20: 0 | M20: 1.581785413 | N20: 0.8721612613 | O20: 0.9242632938 | P20: 0 | Q20: 0 | R20: 0.6089414496 | S20: 1.780673512 | T20: 1.142447241 | U20: 1.833099277 | V20: 0.9384693275 | W20: Big cities | X20: East (Haut-Ogoou‚ & Ogoou‚-Lolo) | Y20: North (Ogoou‚-Ivindo & Woleu-Ntem) | Z20: South (Ngouni‚, Nyanga) | AA20: West (Estuaire, Moyen-Ogoou‚ & Ogoou‚-maritime) | AG20: 0.07825600894 | AH20: 0.8457900085 | AI20: 3.04110524 | AJ20: 0.766173493 | AK20: 1.559035591
A21: GAB | B21: 2000 | C21: GAB_2000_DHS | D21: 63 | E21: Source of drinking water | F21: Public open well | H21: 4.88085113 | I21: 4.088760499 | J21: 0.9765109504 | K21: 0.3262723605 | L21: 0.2066962177 | M21: 4.657482056 | N21: 1.033191116 | O21: 0.1633186076 | P21: 0.2940557091 | Q21: 0.1885613072 | R21: 3.272329457 | S21: 5.990427029 | T21: 4.75848131 | U21: 5.889675842 | V21: 2.259537072 | W21: Big cities | X21: East (Haut-Ogoou‚ & Ogoou‚-Lolo) | Y21: North (Ogoou‚-Ivindo & Woleu-Ntem) | Z21: South (Ngouni‚, Nyanga) | AA21: West (Estuaire, Moyen-Ogoou‚ & Ogoou‚-maritime) | AG21: 0.0447177194 | AH21: 1.653854653 | AI21: 9.839534045 | AJ21: 2.331757511 | AK21: 2.486029726
A22: GAB | B22: 2000 | C22: GAB_2000_DHS | D22: 64 | E22: Source of drinking water | F22: Spring | H22: 21.50273679 | I22: 11.72404157 | J22: 3.219920728 | K22: 0.9364645022 | L22: 0.7333630594 | M22: 8.809715392 | N22: 1.562893737 | O22: 1.076737479 | P22: 0.253533087 | Q22: 0.5747145291 | R22: 25.91322597 | S22: 21.80406031 | T22: 20.22944673 | U22: 24.94519634 | V22: 17.18653713 | W22: Big cities | X22: East (Haut-Ogoou‚ & Ogoou‚-Lolo) | Y22: North (Ogoou‚-Ivindo & Woleu-Ntem) | Z22: South (Ngouni‚, Nyanga) | AA22: West (Estuaire, Moyen-Ogoou‚ & Ogoou‚-maritime) | AG22: 0.06707657909 | AH22: 10.42182347 | AI22: 30.08336858 | AJ22: 6.839917989 | AK22: 11.93589245
A23: GAB | B23: 2000 | C23: GAB_2000_DHS | D23: 65 | E23: Source of drinking water | F23: River/stream | H23: 35.46809647 | I23: 13.19956829 | J23: 2.101240789 | K23: 1.128528403 | L23: 0.08868500301 | M23: 8.268339486 | N23: 0.9399179527 | O23: 0.5017758334 | P23: 0.1519599512 | Q23: 0.08190303178 | R23: 41.12699673 | S23: 40.22428818 | T23: 39.26967821 | U23: 29.45841982 | V23: 19.37262756 | W23: Big cities | X23: East (Haut-Ogoou‚ & Ogoou‚-Lolo) | Y23: North (Ogoou‚-Ivindo & Woleu-Ntem) | Z23: South (Ngouni‚, Nyanga) | AA23: West (Estuaire, Moyen-Ogoou‚ & Ogoou‚-maritime) | AG23: 0 | AH23: 18.81334415 | AI23: 16.58112375 | AJ23: 28.18187001 | AK23: 21.80750579
A24: GAB | B24: 2000 | C24: GAB_2000_DHS | D24: 66 | E24: Source of drinking water | F24: Pond/lake | H24: 0.9177280911 | I24: 0.5186365333 | J24: 0 | K24: 0 | L24: 0 | M24: 0.3313712333 | N24: 0 | O24: 0 | P24: 0 | Q24: 0 | R24: 0.2720148363 | S24: 0.7636198444 | T24: 1.987864882 | U24: 0.881203094 | V24: 0.6427728324 | W24: Big cities | X24: East (Haut-Ogoou‚ & Ogoou‚-Lolo) | Y24: North (Ogoou‚-Ivindo & Woleu-Ntem) | Z24: South (Ngouni‚, Nyanga) | AA24: West (Estuaire, Moyen-Ogoou‚ & Ogoou‚-maritime) | AG24: 0 | AH24: 0.8482469942 | AI24: 0.172636232 | AJ24: 0.08858445054 | AK24: 1.132007351
A25: GAB | B25: 2000 | C25: GAB_2000_DHS | D25: 67 | E25: Source of drinking water | F25: Rainwater | H25: 1.289207459 | I25: 0.9192624971 | J25: 0.5332416903 | K25: 0.1692913403 | L25: 0 | M25: 0.9935108123 | N25: 0.2738706776 | O25: 0.4271170998 | P25: 0 | Q25: 0 | R25: 1.253052585 | S25: 0.8229194573 | T25: 2.175971139 | U25: 1.310676308 | V25: 0.7381181519 | W25: Big cities | X25: East (Haut-Ogoou‚ & Ogoou‚-Lolo) | Y25: North (Ogoou‚-Ivindo & Woleu-Ntem) | Z25: South (Ngouni‚, Nyanga) | AA25: West (Estuaire, Moyen-Ogoou‚ & Ogoou‚-maritime) | AG25: 0.06707657909 | AH25: 0.3851371028 | AI25: 0.05312699039 | AJ25: 2.509001271 | AK25: 1.935448053
A26: GAB | B26: 2000 | C26: GAB_2000_DHS | D26: 68 | E26: Source of drinking water | F26: Bottled water | H26: 0 | I26: 0 | J26: 0.05583246361 | K26: 0 | L26: 0.1241533729 | M26: 0 | N26: 0 | O26: 0.07758545755 | P26: 0 | Q26: 0.168282983 | R26: 0 | S26: 0 | T26: 0 | U26: 0 | V26: 0 | W26: Big cities | X26: East (Haut-Ogoou‚ & Ogoou‚-Lolo) | Y26: North (Ogoou‚-Ivindo & Woleu-Ntem) | Z26: South (Ngouni‚, Nyanga) | AA26: West (Estuaire, Moyen-Ogoou‚ & Ogoou‚-maritime) | AG26: 0.0223588597 | AH26: 0 | AI26: 0.1150908213 | AJ26: 0.09273907955 | AK26: 0
A27: GAB | B27: 2000 | C27: GAB_2000_DHS | D27: 69 | E27: Source of drinking water | F27: Other | H27: 0 | I27: 0.1371038944 | J27: 0.1707265231 | K27: 0.1818493425 | L27: 0.07535939957 | M27: 0.171820026 | N27: 0.1173731476 | O27: 0.02646736831 | P27: 0.06760882321 | Q27: 0 | R27: 0 | S27: 0 | T27: 0 | U27: 0 | V27: 1.071288054 | W27: Big cities | X27: East (Haut-Ogoou‚ & Ogoou‚-Lolo) | Y27: North (Ogoou‚-Ivindo & Woleu-Ntem) | Z27: South (Ngouni‚, Nyanga) | AA27: West (Estuaire, Moyen-Ogoou‚ & Ogoou‚-maritime) | AG27: 0 | AH27: 0.3873418823 | AI27: 0.2685452497 | AJ27: 0.1669303432 | AK27: 0.03322432443
A28: GAB | B28: 2000 | C28: GAB_2000_DHS | D28: 122 | E28: Sanitation | F28: Improved | G28: s_imp | H28: 48.84010893 | I28: 59.60483179 | J28: 71.50362865 | K28: 85.22446915 | L28: 95.95089522 | M28: 57.00910935 | N28: 70.71471387 | O28: 78.0763754 | P28: 89.92173963 | Q28: 97.04198436 | R28: 48.55788743 | S28: 47.70491632 | T28: 49.52860096 | U28: 55.26825972 | V28: 71.27808638 | W28: Big cities | X28: East (Haut-Ogoou‚ & Ogoou‚-Lolo) | Y28: North (Ogoou‚-Ivindo & Woleu-Ntem) | Z28: South (Ngouni‚, Nyanga) | AA28: West (Estuaire, Moyen-Ogoou‚ & Ogoou‚-maritime) | AG28: 84.5521637 | AH28: 62.49089055 | AI28: 56.01655722 | AJ28: 55.89433921 | AK28: 64.14784246
A29: GAB | B29: 2000 | C29: GAB_2000_DHS | D29: 123 | E29: Sanitation | F29: Not Improved | H29: 51.15989107 | I29: 40.39516821 | J29: 28.49637135 | K29: 14.77553085 | L29: 4.049104776 | M29: 42.99089065 | N29: 29.28528613 | O29: 21.9236246 | P29: 10.07826037 | Q29: 2.958015641 | R29: 51.44211257 | S29: 52.29508368 | T29: 50.47139904 | U29: 44.73174028 | V29: 28.72191362 | W29: Big cities | X29: East (Haut-Ogoou‚ & Ogoou‚-Lolo) | Y29: North (Ogoou‚-Ivindo & Woleu-Ntem) | Z29: South (Ngouni‚, Nyanga) | AA29: West (Estuaire, Moyen-Ogoou‚ & Ogoou‚-maritime) | AG29: 15.4478363 | AH29: 37.50910945 | AI29: 43.98344278 | AJ29: 44.10566079 | AK29: 35.85215754
A30: GAB | B30: 2000 | C30: GAB_2000_DHS | D30: 124 | E30: Sanitation ladder | F30: Basic | G30: s_bas | H30: 17.65013589 | I30: 17.47658232 | J30: 29.05696862 | K30: 55.96375132 | L30: 87.46820806 | M30: 16.13496967 | N30: 22.73646168 | O30: 35.33081452 | P30: 64.11710984 | Q30: 88.66367431 | R30: 23.62090876 | S30: 18.35493012 | T30: 31.47742699 | U30: 34.83825897 | V30: 53.86326572 | W30: Big cities | X30: East (Haut-Ogoou‚ & Ogoou‚-Lolo) | Y30: North (Ogoou‚-Ivindo & Woleu-Ntem) | Z30: South (Ngouni‚, Nyanga) | AA30: West (Estuaire, Moyen-Ogoou‚ & Ogoou‚-maritime)
A31: GAB | B31: 2000 | C31: GAB_2000_DHS | D31: 125 | E31: Sanitation ladder | F31: Limited | G31: s_lim | H31: 31.18997304 | I31: 42.12824947 | J31: 42.44666003 | K31: 29.26071782 | L31: 8.482687162 | M31: 40.87413969 | N31: 47.97825219 | O31: 42.74556087 | P31: 25.80462979 | Q31: 8.378310045 | R31: 24.93697867 | S31: 29.3499862 | T31: 18.05117397 | U31: 20.43000074 | V31: 17.41482066 | W31: Big cities | X31: East (Haut-Ogoou‚ & Ogoou‚-Lolo) | Y31: North (Ogoou‚-Ivindo & Woleu-Ntem) | Z31: South (Ngouni‚, Nyanga) | AA31: West (Estuaire, Moyen-Ogoou‚ & Ogoou‚-maritime)
A32: GAB | B32: 2000 | C32: GAB_2000_DHS | D32: 126 | E32: Sanitation ladder | F32: Unimproved | G32: s_unimp | H32: 46.32637921 | I32: 37.59266411 | J32: 26.72925831 | K32: 14.03985972 | L32: 3.904084229 | M32: 39.32933039 | N32: 27.05036383 | O32: 20.81113486 | P32: 9.732772029 | Q32: 2.958015641 | R32: 48.34173649 | S32: 44.63795748 | T32: 47.09353723 | U32: 41.91611307 | V32: 26.89449619 | W32: Big cities | X32: East (Haut-Ogoou‚ & Ogoou‚-Lolo) | Y32: North (Ogoou‚-Ivindo & Woleu-Ntem) | Z32: South (Ngouni‚, Nyanga) | AA32: West (Estuaire, Moyen-Ogoou‚ & Ogoou‚-maritime)
A33: GAB | B33: 2000 | C33: GAB_2000_DHS | D33: 127 | E33: Sanitation ladder | F33: Open defecation | G33: s_od | H33: 4.833511862 | I33: 2.802504104 | J33: 1.767113041 | K33: 0.7356711347 | L33: 0.1450205476 | M33: 3.661560259 | N33: 2.234922302 | O33: 1.112489738 | P33: 0.345488344 | Q33: 0 | R33: 3.100376087 | S33: 7.657126198 | T33: 3.377861805 | U33: 2.815627212 | V33: 1.82741743 | W33: Big cities | X33: East (Haut-Ogoou‚ & Ogoou‚-Lolo) | Y33: North (Ogoou‚-Ivindo & Woleu-Ntem) | Z33: South (Ngouni‚, Nyanga) | AA33: West (Estuaire, Moyen-Ogoou‚ & Ogoou‚-maritime)
A34: GAB | B34: 2000 | C34: GAB_2000_DHS | D34: 139 | E34: Sanitation ladder | F34: Open defecation | H34: 4.822720568 | I34: 2.792916345 | J34: 1.762797115 | K34: 0.7332544033 | L34: 0.1450205476 | M34: 3.655926772 | N34: 2.228898333 | O34: 1.111750355 | P34: 0.3441895558 | Q34: 0 | R34: 3.089772262 | S34: 7.635384194 | T34: 3.377861805 | U34: 2.803519956 | V34: 1.812307184 | W34: Big cities | X34: East (Haut-Ogoou‚ & Ogoou‚-Lolo) | Y34: North (Ogoou‚-Ivindo & Woleu-Ntem) | Z34: South (Ngouni‚, Nyanga) | AA34: West (Estuaire, Moyen-Ogoou‚ & Ogoou‚-maritime) | AG34: 0.9270635541 | AH34: 7.310239315 | AI34: 0.393981034 | AJ34: 2.415796725 | AK34: 1.845508589
A35: GAB | B35: 2000 | C35: GAB_2000_DHS | D35: 151 | E35: Shared among all sanitation facilities | F35: Yes | H35: 43.6259791 | I35: 58.89196662 | J35: 61.64756209 | K35: 49.36275545 | L35: 14.60327034 | M35: 61.43162289 | N35: 66.4604209 | O35: 56.88022035 | P35: 40.20392666 | Q35: 10.42026059 | R35: 39.37446834 | S35: 40.99928401 | T35: 43.0633501 | U35: 50.40195021 | V35: 35.36718853 | W35: Big cities | X35: East (Haut-Ogoou‚ & Ogoou‚-Lolo) | Y35: North (Ogoou‚-Ivindo & Woleu-Ntem) | Z35: South (Ngouni‚, Nyanga) | AA35: West (Estuaire, Moyen-Ogoou‚ & Ogoou‚-maritime) | AG35: 46.97637617 | AH35: 36.63123505 | AI35: 45.78049463 | AJ35: 52.10070171 | AK35: 43.56902527
A36: GAB | B36: 2000 | C36: GAB_2000_DHS | D36: 152 | E36: Shared among all sanitation facilities | F36: No | H36: 55.84877573 | I36: 40.41656439 | J36: 38.10187893 | K36: 50.3542077 | L36: 85.22743006 | M36: 37.66438759 | N36: 33.42221882 | O36: 42.83771868 | P36: 59.46131112 | Q36: 89.42688568 | R36: 60.20943533 | S36: 58.62052326 | T36: 56.61532642 | U36: 48.89694258 | V36: 64.19190424 | W36: Big cities | X36: East (Haut-Ogoou‚ & Ogoou‚-Lolo) | Y36: North (Ogoou‚-Ivindo & Woleu-Ntem) | Z36: South (Ngouni‚, Nyanga) | AA36: West (Estuaire, Moyen-Ogoou‚ & Ogoou‚-maritime) | AG36: 52.78625523 | AH36: 62.17162158 | AI36: 53.8594246 | AJ36: 47.57371727 | AK36: 56.32329651
A37: GAB | B37: 2000 | C37: GAB_2000_DHS | D37: 153 | E37: Type of toilet facility | F37: Modern flush toilets | H37: 0.01167673748 | I37: 2.930369524 | J37: 8.386945712 | K37: 28.45587358 | L37: 83.08758733 | M37: 2.272203675 | N37: 7.554151438 | O37: 14.62699845 | P37: 45.83400393 | Q37: 88.40293764 | R37: 0.04187451672 | S37: 0 | T37: 0 | U37: 0.7153862133 | V37: 20.786405 | W37: Big cities | X37: East (Haut-Ogoou‚ & Ogoou‚-Lolo) | Y37: North (Ogoou‚-Ivindo & Woleu-Ntem) | Z37: South (Ngouni‚, Nyanga) | AA37: West (Estuaire, Moyen-Ogoou‚ & Ogoou‚-maritime) | AG37: 36.25181706 | AH37: 24.6405669 | AI37: 5.79549028 | AJ37: 5.854632925 | AK37: 12.03999009 | AQ37: 0.757186 | AR37: 187.944939 | AS37: 547.915338 | AT37: 1845.578924 | AU37: 5388.352353 | AV37: 108.481947 | AW37: 361.694066 | AX37: 689.479653 | AY37: 2215.67856 | AZ37: 4229.654142 | BA37: 0.757186 | BB37: 0 | BC37: 0 | BD37: 12.143588 | BE37: 352.659598 | BF37: 5913.881332 | BG37: 1161.623952 | BH37: 246.617477 | BI37: 197.561853 | BJ37: 450.864126
A38: GAB | B38: 2000 | C38: GAB_2000_DHS | D38: 154 | E38: Type of toilet facility | F38: Ventilated improved pit (VIP) Latrines | H38: 2.642250662 | I38: 19.11691599 | J38: 36.90972908 | K38: 42.72873585 | L38: 9.12799202 | M38: 15.49881373 | N38: 36.75786717 | O38: 42.70424966 | P38: 34.35496367 | Q38: 5.909787183 | R38: 0.3052116971 | S38: 3.066958844 | T38: 2.57354945 | U38: 12.72484146 | V38: 23.64181513 | W38: Big cities | X38: East (Haut-Ogoou‚ & Ogoou‚-Lolo) | Y38: North (Ogoou‚-Ivindo & Woleu-Ntem) | Z38: South (Ngouni‚, Nyanga) | AA38: West (Estuaire, Moyen-Ogoou‚ & Ogoou‚-maritime) | AG38: 34.03779492 | AH38: 7.695527979 | AI38: 6.651285847 | AJ38: 8.398166789 | AK38: 18.42767929 | AQ38: 171.338545 | AR38: 1226.100524 | AS38: 2411.295766 | AT38: 2771.282144 | AU38: 591.96372 | AV38: 739.96073 | AW38: 1759.972982 | AX38: 2012.970148 | AY38: 1660.766023 | AZ38: 282.75481 | BA38: 5.518918 | BB38: 48.932016 | BC38: 43.998406 | BD38: 216.00253 | BE38: 401.104136 | BF38: 5552.700424 | BG38: 362.78831 | BH38: 283.034438 | BI38: 283.392215 | BJ38: 690.065312
A39: GAB | B39: 2000 | C39: GAB_2000_DHS | D39: 155 | E39: Type of toilet facility | F39: Traditional pit toilet | H39: 92.37236306 | I39: 75.11509256 | J39: 52.41390771 | K39: 28.07971944 | L39: 7.470631755 | M39: 78.47618389 | N39: 52.80539053 | O39: 41.49025457 | P39: 19.46554406 | Q39: 5.458519079 | R39: 96.42160242 | S39: 89.27591496 | T39: 93.91010302 | U39: 83.65606409 | V39: 53.69973251 | W39: Big cities | X39: East (Haut-Ogoou‚ & Ogoou‚-Lolo) | Y39: North (Ogoou‚-Ivindo & Woleu-Ntem) | Z39: South (Ngouni‚, Nyanga) | AA39: West (Estuaire, Moyen-Ogoou‚ & Ogoou‚-maritime) | AG39: 28.52510343 | AH39: 60.30959134 | AI39: 87.13956219 | AJ39: 83.28307899 | AK39: 67.36034617 | AQ39: 5989.94884 | AR39: 4817.652304 | AS39: 3424.176684 | AT39: 1821.182479 | AU39: 484.481467 | AV39: 3746.692832 | AW39: 2528.331152 | AX39: 1955.745495 | AY39: 940.991075 | AZ39: 261.163808 | BA39: 1743.520718 | BB39: 1424.359022 | BC39: 1605.52378 | BD39: 1420.050816 | BE39: 911.063076 | BF39: 4653.396446 | BG39: 2843.159661 | BH39: 3708.079547 | BI39: 2810.348594 | BJ39: 2522.457526
A40: GAB | B40: 2000 | C40: GAB_2000_DHS | D40: 156 | E40: Type of toilet facility | F40: No toilet/bush | H40: 4.833511862 | I40: 2.802504104 | J40: 1.767113041 | K40: 0.7356711347 | L40: 0.1450205476 | M40: 3.661560259 | N40: 2.234922302 | O40: 1.112489738 | P40: 0.345488344 | Q40: 0 | R40: 3.100376087 | S40: 7.657126198 | T40: 3.377861805 | U40: 2.815627212 | V40: 1.82741743 | W40: Big cities | X40: East (Haut-Ogoou‚ & Ogoou‚-Lolo) | Y40: North (Ogoou‚-Ivindo & Woleu-Ntem) | Z40: South (Ngouni‚, Nyanga) | AA40: West (Estuaire, Moyen-Ogoou‚ & Ogoou‚-maritime) | AG40: 0.9281001901 | AH40: 7.354313776 | AI40: 0.3958678781 | AJ40: 2.419812963 | AK40: 1.846121951 | AQ40: 313.432371 | AR40: 179.744042 | AS40: 115.444689 | AT40: 47.713845 | AU40: 9.404796 | AV40: 174.814076 | AW40: 107.008463 | AX40: 52.439948 | AY40: 16.70138 | AZ40: 0 | BA40: 56.061814 | BB40: 122.166172 | BC40: 57.749244 | BD40: 47.794906 | BE40: 31.00374 | BF40: 151.404118 | BG40: 346.702536 | BH40: 16.845501 | BI40: 81.655458 | BJ40: 69.13213
A41: GAB | B41: 2000 | C41: GAB_2000_DHS | D41: 157 | E41: Type of toilet facility | F41: OTHER | H41: 0.1401976783 | I41: 0.0351178267 | J41: 0.5223044578 | K41: 0 | L41: 0.1687683509 | M41: 0.09123844129 | N41: 0.6476685664 | O41: 0.06600757773 | P41: 0 | Q41: 0.2287561011 | R41: 0.1309352749 | S41: 0 | T41: 0.1384857242 | U41: 0.08808102781 | V41: 0.04462993478 | W41: Big cities | X41: East (Haut-Ogoou‚ & Ogoou‚-Lolo) | Y41: North (Ogoou‚-Ivindo & Woleu-Ntem) | Z41: South (Ngouni‚, Nyanga) | AA41: West (Estuaire, Moyen-Ogoou‚ & Ogoou‚-maritime) | AG41: 0.25718439 | AH41: 0 | AI41: 0.01779380828 | AJ41: 0.04430833306 | AK41: 0.3258625034 | AQ41: 9.091214 | AR41: 2.25235 | AS41: 34.121912 | AT41: 0 | AU41: 10.944876 | AV41: 4.356002 | AW41: 31.010482 | AX41: 3.11143 | AY41: 0 | AZ41: 10.944876 | BA41: 2.367606 | BB41: 0 | BC41: 2.367606 | BD41: 1.495164 | BE41: 0.757186 | BF41: 41.955358 | BG41: 0 | BH41: 0.757186 | BI41: 1.495164 | BJ41: 12.202644
A42: GAB | B42: 2012 | C42: GAB_2012_DHS | D42: 16 | E42: Water | F42: Improved | G42: w_imp | H42: 74.2 | I42: 94.3 | J42: 97.5 | K42: 98.9 | L42: 98.3 | M42: 92.5 | N42: 97.5 | O42: 99.5 | P42: 99 | Q42: 98.1 | R42: 51.1 | S42: 58.5 | T42: 67.2 | U42: 71.3 | V42: 89.9 | W42: Estuaire | X42: Haut-Ogooué | Y42: Libreville-Port-Gentil | Z42: Moyen-Ogooué | AA42: Ngounié | AB42: Nyanga | AC42: Ogooué Maritime | AD42: Ogooué-Ivindo | AE42: Ogooué-Lolo | AF42: Woleu-Ntem | AG42: 87.7 | AH42: 89.6 | AI42: 98.4 | AJ42: 79.1 | AK42: 89.2 | AL42: 79.7 | AM42: 88.5 | AN42: 73.7 | AO42: 76.5 | AP42: 93
A43: GAB | B43: 2012 | C43: GAB_2012_DHS | D43: 17 | E43: Water | F43: Not Improved | H43: 25.8 | I43: 5.7 | J43: 2.5 | K43: 1.1 | L43: 1.7 | M43: 7.5 | N43: 2.5 | O43: 0.5 | P43: 1 | Q43: 1.9 | R43: 48.9 | S43: 41.5 | T43: 32.8 | U43: 28.7 | V43: 10.1 | W43: Estuaire | X43: Haut-Ogooué | Y43: Libreville-Port-Gentil | Z43: Moyen-Ogooué | AA43: Ngounié | AB43: Nyanga | AC43: Ogooué Maritime | AD43: Ogooué-Ivindo | AE43: Ogooué-Lolo | AF43: Woleu-Ntem | AG43: 12.3 | AH43: 10.4 | AI43: 1.6 | AJ43: 20.9 | AK43: 10.8 | AL43: 20.3 | AM43: 11.5 | AN43: 26.3 | AO43: 23.5 | AP43: 7
A44: GAB | B44: 2012 | C44: GAB_2012_DHS | D44: 18 | E44: Water ladder | F44: Basic | G44: w_bas | H44: 54.8 | I44: 82 | J44: 92.2 | K44: 94.9 | L44: 96.1 | M44: 71 | N44: 90.1 | O44: 95.9 | P44: 95.9 | Q44: 95.7 | R44: 38.2 | S44: 46.6 | T44: 48 | U44: 57.7 | V44: 77 | W44: Estuaire | X44: Haut-Ogooué | Y44: Libreville-Port-Gentil | Z44: Moyen-Ogooué | AA44: Ngounié | AB44: Nyanga | AC44: Ogooué Maritime | AD44: Ogooué-Ivindo | AE44: Ogooué-Lolo | AF44: Woleu-Ntem | AG44: 75.2 | AH44: 76.6 | AI44: 94.5 | AJ44: 67.1 | AK44: 72.8 | AL44: 52.7 | AM44: 76.3 | AN44: 62.5 | AO44: 68.1 | AP44: 76.4
A45: GAB | B45: 2012 | C45: GAB_2012_DHS | D45: 19 | E45: Water ladder | F45: Limited | G45: w_lim | H45: 19.3 | I45: 12.2 | J45: 5.2 | K45: 3.9 | L45: 2.3 | M45: 21.5 | N45: 7.4 | O45: 3.6 | P45: 3.2 | Q45: 2.4 | R45: 12.7 | S45: 11.8 | T45: 18.8 | U45: 13.4 | V45: 12.9 | W45: Estuaire | X45: Haut-Ogooué | Y45: Libreville-Port-Gentil | Z45: Moyen-Ogooué | AA45: Ngounié | AB45: Nyanga | AC45: Ogooué Maritime | AD45: Ogooué-Ivindo | AE45: Ogooué-Lolo | AF45: Woleu-Ntem | AG45: 12.5 | AH45: 12.9 | AI45: 4 | AJ45: 11.9 | AK45: 16.4 | AL45: 27 | AM45: 12.1 | AN45: 11.1 | AO45: 8.4 | AP45: 16.6
A46: GAB | B46: 2012 | C46: GAB_2012_DHS | D46: 20 | E46: Water ladder | F46: Unimproved | G46: w_unimp | H46: 6.9 | I46: 3 | J46: 1.9 | K46: 0.9 | L46: 1.7 | M46: 5.3 | N46: 2.1 | O46: 0.3 | P46: 1 | Q46: 1.9 | R46: 8.7 | S46: 6.3 | T46: 6.2 | U46: 9.1 | V46: 4.9 | W46: Estuaire | X46: Haut-Ogooué | Y46: Libreville-Port-Gentil | Z46: Moyen-Ogooué | AA46: Ngounié | AB46: Nyanga | AC46: Ogooué Maritime | AD46: Ogooué-Ivindo | AE46: Ogooué-Lolo | AF46: Woleu-Ntem | AG46: 4.2 | AH46: 4.3 | AI46: 1.6 | AJ46: 5.2 | AK46: 0.8 | AL46: 2.1 | AM46: 4.7 | AN46: 13.4 | AO46: 4.7 | AP46: 3.8
A47: GAB | B47: 2012 | C47: GAB_2012_DHS | D47: 21 | E47: Water ladder | F47: Surface water | G47: w_sur | H47: 19 | I47: 2.7 | J47: 0.6 | K47: 0.2 | L47: 0 | M47: 2.2 | N47: 0.4 | O47: 0.2 | P47: 0 | Q47: 0 | R47: 40.4 | S47: 35.3 | T47: 26.9 | U47: 19.8 | V47: 5.2 | W47: Estuaire | X47: Haut-Ogooué | Y47: Libreville-Port-Gentil | Z47: Moyen-Ogooué | AA47: Ngounié | AB47: Nyanga | AC47: Ogooué Maritime | AD47: Ogooué-Ivindo | AE47: Ogooué-Lolo | AF47: Woleu-Ntem | AG47: 8.2 | AH47: 6.2 | AI47: 0 | AJ47: 15.9 | AK47: 10 | AL47: 18.2 | AM47: 6.8 | AN47: 13 | AO47: 18.8 | AP47: 3.2
A48: GAB | B48: 2012 | C48: GAB_2012_DHS | D48: 22 | E48: Improved water point at more than 30 minutes | F48: Yes | H48: 26.1 | I48: 13 | J48: 5.4 | K48: 4 | L48: 2.3 | M48: 23.2 | N48: 7.6 | O48: 3.6 | P48: 3.2 | Q48: 2.5 | R48: 25 | S48: 20.2 | T48: 28.2 | U48: 18.9 | V48: 14.3 | W48: Estuaire | X48: Haut-Ogooué | Y48: Libreville-Port-Gentil | Z48: Moyen-Ogooué | AA48: Ngounié | AB48: Nyanga | AC48: Ogooué Maritime | AD48: Ogooué-Ivindo | AE48: Ogooué-Lolo | AF48: Woleu-Ntem | AG48: 14.2 | AH48: 14.4 | AI48: 4.1 | AJ48: 15 | AK48: 18.3 | AL48: 33.8 | AM48: 13.7 | AN48: 15.1 | AO48: 11 | AP48: 17.8
A49: GAB | B49: 2012 | C49: GAB_2012_DHS | D49: 23 | E49: Improved water point at more than 30 minutes | F49: No | H49: 73.9 | I49: 87 | J49: 94.6 | K49: 96 | L49: 97.7 | M49: 76.8 | N49: 92.4 | O49: 96.4 | P49: 96.8 | Q49: 97.5 | R49: 75 | S49: 79.8 | T49: 71.8 | U49: 81.1 | V49: 85.7 | W49: Estuaire | X49: Haut-Ogooué | Y49: Libreville-Port-Gentil | Z49: Moyen-Ogooué | AA49: Ngounié | AB49: Nyanga | AC49: Ogooué Maritime | AD49: Ogooué-Ivindo | AE49: Ogooué-Lolo | AF49: Woleu-Ntem | AG49: 85.8 | AH49: 85.6 | AI49: 95.9 | AJ49: 85 | AK49: 81.7 | AL49: 66.2 | AM49: 86.3 | AN49: 84.9 | AO49: 89 | AP49: 82.2
